Workbook

Sheet menu
B4: ４つの分析パターン
G8: 需要の変化を入力して、経済波及を計算します。
G9: （需要の変化を分析者が設定(推計)することにより、経済波及を求めます。）
G14: 建物の建設、土木工事の詳細な分類をもとに経済波及を計算します。
G15: （建設活動に関する需要をより詳細に区分して計算することができます。）
G19: 横浜市の来訪者数から、横浜市来訪者の消費活動による経済波及を計算します。
G20: （デフォルトの消費単価は、神奈川県『令和6年度観光客実態調査』の単価を利用しており
G21: 分析者が自分で設定することもできます。）
G26: オフィスビル内での本業以外（管理・間接部門等）の業務活動による経済波及を計算します。
G27: （従業者一人当たりの品目別経費を東京都内の本社部門と同じとするなどの仮定をおいています。）
B32: 分析したい項目をクリックしてください。

Sheet 用語集
B3: 発生需要額 | C3: 市内で発生した新たな需要の総額。
C4: 例 ・新しくビルが建った
C5: ・新たなレジャー施設ができたことにより、市内来訪者が増加した
C6: ・企業が新規立地した
C7: ・有名人が着ていた洋服と同じモデルの洋服が爆発的に売れた
B10: 直接効果 | C10: 発生需要額のうち、最終的にその財・サービスを生産した（販売ではない）市内産業の生産活動の総額。
B13: １次波及 | C13: 直接効果の生産に際して、当然、原材料が必要となる。
C14: その必要となる原材料の生産活動をここでは１次波及とする。
B16: ２次波及 | C16: 直接効果の生産、１次波及の生産により、労働所得を得る。
C17: 得た労働所得の一部は消費活動にまわる。
C18: 追加的に発生した消費活動を満たすため、生産活動が行われる。
C19: この生産活動のうち、市内産業が生産する総額を２次波及とする。
B22: 消費転換率 | C22: 家計の所得が増加（減少）したときに、それと連動して増加（減少）する消費の割合。
C23: 例えば、1万円の所得の増加により消費が8,000円増えると想定する場合、消費転換率は0.8となる。
B24: 市内調達率 | C24: 横浜市内で発生した需要額のうち、市内で生産された財・サービスの割合。
B26: 生産誘発額 | C26: 発生した需要を満たすための生産活動と、そのために必要となる原材料の生産活動の全てを合計した生産活動の総額。
B28: 粗付加価値誘発額 | C28: 生産誘発額から全ての原材料費を差し引いた付加価値の総額。
B30: 雇用者誘発数 | C30: 全ての生産活動（＝生産誘発額）において投入されたと想定される雇用者の人数。
C31: ただし、この人数は「１年間の平均的な労働量」をベースに算出されている。
C32: つまり、雇用者誘発数の人数全員が１年間働いた場合、生産誘発額を満たすことができるということ。
C33: 例えば４か月程度で新たに発生した需要を満たすためには、理論上は雇用者誘発数の３倍（＝12か月／４か月）の人数が必要になる。
B35: 購入者価格 | C35: 小売店や卸売店などにおける流通経費を込みにした額面上の取引額
B37: 生産者価格 | C37: 購入者価格から商業マージン（卸売店や小売店の利益）、運輸マージン（輸送コスト）を差し引いた金額。
C40: 例：100万円の自動車をディーラーより購入
C42: 購入者価格の場合、売値と同じなので100万円。
C44: 生産者価格の場合、100万円の内訳をみる必要あり。
C45: 工場からディーラーまでの輸送コスト５万円
C46: ディーラーの儲け10万円
C47: 工場での生産費用85万円
C48: とすると、輸送機械製造業に85万円
C49: 商業に10万円
C50: 運輸業に５万円 が生産者価格
C54: =" "&C51 -> 
C55: =" "&C52 -> 

Sheet R2汎用入力
A1: 汎用 入力シート
A3: A、B、C について、黄色のシートに数値を入力してください。
A4: ただし、Cについては、省略可能です。
B7: 消費転換率（0から1の間の値） | C7: =+消費転換率!$C$9 -> 0.553782614
L19: （産業連関表より）
C20: 生産者価格 | E20: 購入者価格 | L20: デフォルト | M20: 計算時使用
A21: 37部門表 | C21: (百万円) | E21: (百万円) | J21: 市内調達率 | L21: 市内調達率 | M21: 市内調達率
A22: 01 | B22: 農林漁業 | L22: =+'R2係数一覧'!E6 -> 0.01682682846 | M22: =IF(J22<>"",J22,L22) -> 0.01682682846
A23: 06 | B23: 鉱業 | L23: =+'R2係数一覧'!E7 -> -0.001898080899 | M23: -0.001898080899
A24: 11 | B24: 飲食料品 | L24: =+'R2係数一覧'!E8 -> 0.1616972638 | M24: 0.1616972638
A25: 15 | B25: 繊維製品 | L25: =+'R2係数一覧'!E9 -> 0.004171659565 | M25: 0.004171659565
A26: 16 | B26: パルプ・紙・木製品 | L26: =+'R2係数一覧'!E10 -> 0.04966288697 | M26: 0.04966288697
A27: 20 | B27: 化学製品 | L27: =+'R2係数一覧'!E11 -> 0.04840146353 | M27: 0.04840146353
A28: 21 | B28: 石油・石炭製品 | L28: =+'R2係数一覧'!E12 -> 0.4940365855 | M28: 0.4940365855
A29: 22 | B29: プラスチック・ゴム製品 | L29: =+'R2係数一覧'!E13 -> 0.02777598986 | M29: 0.02777598986
A30: 25 | B30: 窯業・土石製品 | L30: =+'R2係数一覧'!E14 -> 0.2382271893 | M30: 0.2382271893
A31: 26 | B31: 鉄鋼 | L31: =+'R2係数一覧'!E15 -> 0.00161558072 | M31: 0.00161558072
A32: 27 | B32: 非鉄金属 | L32: =+'R2係数一覧'!E16 -> -0.02657520942 | M32: -0.02657520942
A33: 28 | B33: 金属製品 | L33: =+'R2係数一覧'!E17 -> 0.09701290317 | M33: 0.09701290317
A34: 29 | B34: はん用機械 | L34: =+'R2係数一覧'!E18 -> 0.120073106 | M34: 0.120073106
A35: 30 | B35: 生産用機械 | L35: =+'R2係数一覧'!E19 -> 0.07701652534 | M35: 0.07701652534
A36: 31 | B36: 業務用機械 | L36: =+'R2係数一覧'!E20 -> 0.05748086072 | M36: 0.05748086072
A37: 32 | B37: 電子部品 | L37: =+'R2係数一覧'!E21 -> 0.03329680569 | M37: 0.03329680569
A38: 33 | B38: 電気機械 | L38: =+'R2係数一覧'!E22 -> 0.05018792924 | M38: 0.05018792924
A39: 34 | B39: 情報通信機器 | L39: =+'R2係数一覧'!E23 -> 0.1027733913 | M39: 0.1027733913
A40: 35 | B40: 輸送機械 | L40: =+'R2係数一覧'!E24 -> 0.1354947724 | M40: 0.1354947724
A41: 39 | B41: その他の製造工業製品 | L41: =+'R2係数一覧'!E25 -> 0.09512635617 | M41: 0.09512635617
A42: 41 | B42: 建設 | L42: =+'R2係数一覧'!E26 -> 1 | M42: 1
A43: 46 | B43: 電気・ガス・熱供給 | L43: =+'R2係数一覧'!E27 -> 0.9998510829 | M43: 0.9998510829
A44: 47 | B44: 水道 | L44: =+'R2係数一覧'!E28 -> 0.9997725205 | M44: 0.9997725205
A45: 48 | B45: 廃棄物処理 | L45: =+'R2係数一覧'!E29 -> 0.8015372705 | M45: 0.8015372705
A46: 51 | B46: 商業 | L46: =+'R2係数一覧'!E30 -> 0.5694602291 | M46: 0.5694602291
A47: 53 | B47: 金融・保険 | L47: =+'R2係数一覧'!E31 -> 0.4673038343 | M47: 0.4673038343
A48: 55 | B48: 不動産 | L48: =+'R2係数一覧'!E32 -> 0.9961289106 | M48: 0.9961289106
A49: 57 | B49: 運輸・郵便 | L49: =+'R2係数一覧'!E33 -> 0.6153375457 | M49: 0.6153375457
A50: 59 | B50: 情報通信 | L50: =+'R2係数一覧'!E34 -> 0.4989704461 | M50: 0.4989704461
A51: 61 | B51: 公務 | L51: =+'R2係数一覧'!E35 -> 1 | M51: 1
A52: 63 | B52: 教育・研究 | L52: =+'R2係数一覧'!E36 -> 0.756380864 | M52: 0.756380864
A53: 64 | B53: 医療・福祉 | L53: =+'R2係数一覧'!E37 -> 0.8945714706 | M53: 0.8945714706
A54: 65 | B54: 他に分類されない会員制団体 | L54: =+'R2係数一覧'!E38 -> 0.7737522148 | M54: 0.7737522148
A55: 66 | B55: 対事業所サービス | L55: =+'R2係数一覧'!E39 -> 0.5590904063 | M55: 0.5590904063
A56: 67 | B56: 対個人サービス | L56: 1 | M56: 1
A57: 68 | B57: 事務用品 | L57: =+'R2係数一覧'!E41 -> 1 | M57: 1
A58: 69 | B58: 分類不明 | L58: =+'R2係数一覧'!E42 -> 0.6978968016 | M58: 0.6978968016
A59: 70 | B59: 内生部門計 | C59: =SUM(C22:C58) -> 0 | E59: =SUM(E22:E58) -> 0

Sheet R2汎用コンバータ
C2: 生産者価格 | D2: 購入者価格
C4: 市内で生産 した金額 | D4: 市内で販売 された金額 | L4: 購入者価格分
A5: 37部門表 | C5: (百万円) | D5: (百万円) | F5: 卸マージン率 | G5: 小売マージン率 | H5: 運賃率 | I5: 卸マージン額 | J5: 小売マージン額 | K5: 運賃 | L5: 生産者価格 | M5: 生産者価格＋購入者価格 | N5: 発生需要額
A6: 01 | B6: 農林漁業 | C6: ='R2汎用入力'!C22 -> 0 | D6: ='R2汎用入力'!E22 -> 0 | F6: 0.1291033789 | G6: 0.1089704618 | H6: 0.05104559856 | I6: =$D6*F6 -> 0 | J6: =$D6*G6 -> 0 | K6: =$D6*H6 -> 0 | L6: =D6-SUM(I6:K6) -> 0 | M6: =C6+L6 -> 0 | N6: =M6*'R2汎用入力'!M22 -> 0
A7: 06 | B7: 鉱業 | C7: ='R2汎用入力'!C23 -> 0 | D7: ='R2汎用入力'!E23 -> 0 | F7: 0.01274671713 | G7: 2.345517337e-05 | H7: 0.07525766235 | I7: =$D7*F7 -> 0 | J7: =$D7*G7 -> 0 | K7: =$D7*H7 -> 0 | L7: 0 | M7: =C7+L7 -> 0 | N7: =M7*'R2汎用入力'!M23 -> 0
A8: 11 | B8: 飲食料品 | C8: ='R2汎用入力'!C24 -> 0 | D8: ='R2汎用入力'!E24 -> 0 | F8: 0.1047931604 | G8: 0.2141802108 | H8: 0.03497397303 | I8: 0 | J8: 0 | K8: 0 | L8: 0 | M8: 0 | N8: =M8*'R2汎用入力'!M24 -> 0
A9: 15 | B9: 繊維製品 | C9: ='R2汎用入力'!C25 -> 0 | D9: ='R2汎用入力'!E25 -> 0 | F9: 0.1462124562 | G9: 0.2866766549 | H9: 0.03182754686 | I9: 0 | J9: 0 | K9: 0 | L9: 0 | M9: 0 | N9: =M9*'R2汎用入力'!M25 -> 0
A10: 16 | B10: パルプ・紙・木製品 | C10: ='R2汎用入力'!C26 -> 0 | D10: ='R2汎用入力'!E26 -> 0 | F10: 0.1620167003 | G10: 0.06575734021 | H10: 0.06873314577 | I10: 0 | J10: 0 | K10: 0 | L10: 0 | M10: 0 | N10: =M10*'R2汎用入力'!M26 -> 0
A11: 20 | B11: 化学製品 | C11: ='R2汎用入力'!C27 -> 0 | D11: ='R2汎用入力'!E27 -> 0 | F11: 0.1415267193 | G11: 0.06867839843 | H11: 0.02985913058 | I11: 0 | J11: 0 | K11: 0 | L11: 0 | M11: 0 | N11: =M11*'R2汎用入力'!M27 -> 0
A12: 21 | B12: 石油・石炭製品 | C12: ='R2汎用入力'!C28 -> 0 | D12: ='R2汎用入力'!E28 -> 0 | F12: 0.04682739965 | G12: 0.1356760135 | H12: 0.02324648205 | I12: 0 | J12: 0 | K12: 0 | L12: 0 | M12: 0 | N12: =M12*'R2汎用入力'!M28 -> 0
A13: 22 | B13: プラスチック・ゴム製品 | C13: ='R2汎用入力'!C29 -> 0 | D13: ='R2汎用入力'!E29 -> 0 | F13: 0.1402700517 | G13: 0.04480743138 | H13: 0.03226083905 | I13: 0 | J13: 0 | K13: 0 | L13: 0 | M13: 0 | N13: =M13*'R2汎用入力'!M29 -> 0
A14: 25 | B14: 窯業・土石製品 | C14: ='R2汎用入力'!C30 -> 0 | D14: ='R2汎用入力'!E30 -> 0 | F14: 0.155299299 | G14: 0.02353679587 | H14: 0.0662712059 | I14: 0 | J14: 0 | K14: 0 | L14: 0 | M14: 0 | N14: =M14*'R2汎用入力'!M30 -> 0
A15: 26 | B15: 鉄鋼 | C15: ='R2汎用入力'!C31 -> 0 | D15: ='R2汎用入力'!E31 -> 0 | F15: 0.04413584158 | G15: 8.424534536e-07 | H15: 0.03225973312 | I15: 0 | J15: 0 | K15: 0 | L15: 0 | M15: 0 | N15: =M15*'R2汎用入力'!M31 -> 0
A16: 27 | B16: 非鉄金属 | C16: ='R2汎用入力'!C32 -> 0 | D16: ='R2汎用入力'!E32 -> 0 | F16: 0.06559119312 | G16: 0.01811648446 | H16: 0.03285072636 | I16: 0 | J16: 0 | K16: 0 | L16: 0 | M16: 0 | N16: =M16*'R2汎用入力'!M32 -> 0
A17: 28 | B17: 金属製品 | C17: ='R2汎用入力'!C33 -> 0 | D17: ='R2汎用入力'!E33 -> 0 | F17: 0.07791178533 | G17: 0.02254012557 | H17: 0.04540297981 | I17: 0 | J17: 0 | K17: 0 | L17: 0 | M17: 0 | N17: =M17*'R2汎用入力'!M33 -> 0
A18: 29 | B18: はん用機械 | C18: ='R2汎用入力'!C34 -> 0 | D18: ='R2汎用入力'!E34 -> 0 | F18: 0.122844938 | G18: 0.000774132899 | H18: 0.01524061006 | I18: 0 | J18: 0 | K18: 0 | L18: 0 | M18: 0 | N18: =M18*'R2汎用入力'!M34 -> 0
A19: 30 | B19: 生産用機械 | C19: ='R2汎用入力'!C35 -> 0 | D19: ='R2汎用入力'!E35 -> 0 | F19: 0.1192947261 | G19: 0.0137803289 | H19: 0.01300263198 | I19: 0 | J19: 0 | K19: 0 | L19: 0 | M19: 0 | N19: =M19*'R2汎用入力'!M35 -> 0
A20: 31 | B20: 業務用機械 | C20: ='R2汎用入力'!C36 -> 0 | D20: ='R2汎用入力'!E36 -> 0 | F20: 0.1646141026 | G20: 0.04231979307 | H20: 0.01549628478 | I20: 0 | J20: 0 | K20: 0 | L20: 0 | M20: 0 | N20: =M20*'R2汎用入力'!M36 -> 0
A21: 32 | B21: 電子部品 | C21: ='R2汎用入力'!C37 -> 0 | D21: ='R2汎用入力'!E37 -> 0 | F21: 0.06582432121 | G21: 0.002152507655 | H21: 0.01099387198 | I21: 0 | J21: 0 | K21: 0 | L21: 0 | M21: 0 | N21: =M21*'R2汎用入力'!M37 -> 0
A22: 33 | B22: 電気機械 | C22: ='R2汎用入力'!C38 -> 0 | D22: ='R2汎用入力'!E38 -> 0 | F22: 0.1268141173 | G22: 0.06124920782 | H22: 0.01104932533 | I22: 0 | J22: 0 | K22: 0 | L22: 0 | M22: 0 | N22: =M22*'R2汎用入力'!M38 -> 0
A23: 34 | B23: 情報通信機器 | C23: ='R2汎用入力'!C39 -> 0 | D23: ='R2汎用入力'!E39 -> 0 | F23: 0.1236519664 | G23: 0.06981077829 | H23: 0.008739024903 | I23: 0 | J23: 0 | K23: 0 | L23: 0 | M23: 0 | N23: =M23*'R2汎用入力'!M39 -> 0
A24: 35 | B24: 輸送機械 | C24: ='R2汎用入力'!C40 -> 0 | D24: ='R2汎用入力'!E40 -> 0 | F24: 0.0418391447 | G24: 0.05396657798 | H24: 0.01839350959 | I24: 0 | J24: 0 | K24: 0 | L24: 0 | M24: 0 | N24: =M24*'R2汎用入力'!M40 -> 0
A25: 39 | B25: その他の製造工業製品 | C25: ='R2汎用入力'!C41 -> 0 | D25: ='R2汎用入力'!E41 -> 0 | F25: 0.09679356513 | G25: 0.2134342339 | H25: 0.04866796381 | I25: 0 | J25: 0 | K25: 0 | L25: 0 | M25: 0 | N25: =M25*'R2汎用入力'!M41 -> 0
A26: 41 | B26: 建設 | C26: ='R2汎用入力'!C42 -> 0 | D26: ='R2汎用入力'!E42 -> 0 | F26: 0 | G26: 0 | H26: 0 | I26: 0 | J26: 0 | K26: 0 | L26: 0 | M26: 0 | N26: =M26*'R2汎用入力'!M42 -> 0
A27: 46 | B27: 電気・ガス・熱供給 | C27: ='R2汎用入力'!C43 -> 0 | D27: ='R2汎用入力'!E43 -> 0 | F27: 0 | G27: 0 | H27: 0 | I27: 0 | J27: 0 | K27: 0 | L27: 0 | M27: 0 | N27: =M27*'R2汎用入力'!M43 -> 0
A28: 47 | B28: 水道 | C28: ='R2汎用入力'!C44 -> 0 | D28: ='R2汎用入力'!E44 -> 0 | F28: 0 | G28: 0 | H28: 0 | I28: 0 | J28: 0 | K28: 0 | L28: 0 | M28: 0 | N28: =M28*'R2汎用入力'!M44 -> 0
A29: 48 | B29: 廃棄物処理 | C29: ='R2汎用入力'!C45 -> 0 | D29: ='R2汎用入力'!E45 -> 0 | F29: 0 | G29: 0 | H29: 0 | I29: 0 | J29: 0 | K29: 0 | L29: 0 | M29: 0 | N29: =M29*'R2汎用入力'!M45 -> 0
A30: 51 | B30: 商業 | C30: ='R2汎用入力'!C46 -> 0 | D30: ='R2汎用入力'!E46 -> 0 | F30: -17.82031656 | G30: -15.91679401 | H30: 0 | L30: =D30+I43+J43 -> 0 | M30: 0 | N30: =C30+D30+SUM(I43:J43)*'R2汎用入力'!M46 -> 0
A31: 53 | B31: 金融・保険 | C31: ='R2汎用入力'!C47 -> 0 | D31: ='R2汎用入力'!E47 -> 0 | F31: 0 | G31: 0 | H31: 0 | I31: 0 | J31: 0 | K31: 0 | L31: =D31-SUM(I31:K31) -> 0 | M31: 0 | N31: =M31*'R2汎用入力'!M47 -> 0
A32: 55 | B32: 不動産 | C32: ='R2汎用入力'!C48 -> 0 | D32: ='R2汎用入力'!E48 -> 0 | F32: 0 | G32: 0 | H32: 0 | I32: 0 | J32: 0 | K32: 0 | L32: =D32-SUM(I32:K32) -> 0 | M32: 0 | N32: =M32*'R2汎用入力'!M48 -> 0
A33: 57 | B33: 運輸・郵便 | C33: ='R2汎用入力'!C49 -> 0 | D33: ='R2汎用入力'!E49 -> 0 | F33: 0 | G33: 0 | H33: -0.4249837776 | L33: =D33+K43 -> 0 | M33: 0 | N33: =C33+D33+K43*'R2汎用入力'!M49 -> 0
A34: 59 | B34: 情報通信 | C34: ='R2汎用入力'!C50 -> 0 | D34: ='R2汎用入力'!E50 -> 0 | F34: 0.009139779723 | G34: 0.02572049172 | H34: 0.004815525897 | I34: 0 | J34: 0 | K34: 0 | L34: =D34-SUM(I34:K34) -> 0 | M34: 0 | N34: =M34*'R2汎用入力'!M50 -> 0
A35: 61 | B35: 公務 | C35: ='R2汎用入力'!C51 -> 0 | D35: ='R2汎用入力'!E51 -> 0 | F35: 0 | G35: 0 | H35: 0 | I35: 0 | J35: 0 | K35: 0 | L35: 0 | M35: 0 | N35: =M35*'R2汎用入力'!M51 -> 0
A36: 63 | B36: 教育・研究 | C36: ='R2汎用入力'!C52 -> 0 | D36: ='R2汎用入力'!E52 -> 0 | F36: 0 | G36: 0 | H36: 1.439971531e-05 | I36: 0 | J36: 0 | K36: 0 | L36: 0 | M36: 0 | N36: =M36*'R2汎用入力'!M52 -> 0
A37: 64 | B37: 医療・福祉 | C37: ='R2汎用入力'!C53 -> 0 | D37: ='R2汎用入力'!E53 -> 0 | F37: 0 | G37: 0 | H37: 0 | I37: 0 | J37: 0 | K37: 0 | L37: 0 | M37: 0 | N37: =M37*'R2汎用入力'!M53 -> 0
A38: 65 | B38: 他に分類されない会員制団体 | C38: ='R2汎用入力'!C54 -> 0 | D38: ='R2汎用入力'!E54 -> 0 | F38: 0 | G38: 0 | H38: 0 | I38: 0 | J38: 0 | K38: 0 | L38: 0 | M38: 0 | N38: =M38*'R2汎用入力'!M54 -> 0
A39: 66 | B39: 対事業所サービス | C39: ='R2汎用入力'!C55 -> 0 | D39: ='R2汎用入力'!E55 -> 0 | F39: 0 | G39: 0 | H39: 0 | I39: 0 | J39: 0 | K39: 0 | L39: 0 | M39: 0 | N39: =M39*'R2汎用入力'!M55 -> 0
A40: 67 | B40: 対個人サービス | C40: ='R2汎用入力'!C56 -> 0 | D40: ='R2汎用入力'!E56 -> 0 | F40: 2.406571064e-05 | G40: 0 | H40: 9.921170428e-06 | I40: 0 | J40: 0 | K40: 0 | L40: 0 | M40: 0 | N40: =M40*'R2汎用入力'!M56 -> 0
A41: 68 | B41: 事務用品 | C41: ='R2汎用入力'!C57 -> 0 | D41: ='R2汎用入力'!E57 -> 0 | F41: 0 | G41: 0 | H41: 0 | I41: 0 | J41: 0 | K41: 0 | L41: 0 | M41: 0 | N41: =M41*'R2汎用入力'!M57 -> 0
A42: 69 | B42: 分類不明 | C42: ='R2汎用入力'!C58 -> 0 | D42: ='R2汎用入力'!E58 -> 0 | F42: 0.008283153139 | G42: 0.007470080309 | H42: 0.03604300065 | I42: 0 | J42: 0 | K42: 0 | L42: 0 | M42: 0 | N42: =M42*'R2汎用入力'!M58 -> 0
A43: 70 | B43: 内生部門計 | C43: =SUM(C6:C42) -> 0 | D43: =SUM(D6:D42) -> 0 | I43: =SUM(I6:I42) -> 0 | J43: 0 | K43: 0 | L43: 0 | M43: 0 | N43: 0

Sheet R2汎用計算
D4: 発生需要額 | E4: 直接効果 | I4: １次効果 | O4: 直接＋１次 | S4: ２次効果
A5: 13部門 | B5: 37部門 | E5: 市内生産額 | F5: 粗付加価値額 | G5: 雇用者所得 | H5: 雇用者誘発数 | J5: 市内生産額 | K5: 生産誘発額 | L5: 粗付加価値額 | M5: 雇用者所得 | N5: 雇用者誘発数 | O5: 生産誘発額 | P5: 粗付加価値額 | Q5: 雇用者所得 | R5: 雇用者誘発数 | S5: 発生需要額 | T5: 市内生産額 | U5: 生産誘発額 | V5: 粗付加価値額 | W5: 雇用者所得 | X5: 雇用者誘発数
A6: 01 | B6: 01 | C6: 農林漁業 | D6: ='R2汎用コンバータ'!N6 -> 0 | E6: =D6 -> 0 | F6: =E6*'R2係数一覧'!D6 -> 0 | G6: =E6*'R2係数一覧'!C6 -> 0 | H6: =ROUND(E6*'R2雇用表'!O6,0) -> 0 | I6: =MMULT('R2投入'!C5:AM41,'R2汎用計算'!E6:E42) -> 0 | J6: =I6*'R2係数一覧'!E6 -> 0 | K6: =MMULT('R2逆行列'!C5:AM41,'R2汎用計算'!J6:J42) -> 0 | L6: =K6*'R2係数一覧'!D6 -> 0 | M6: =K6*'R2係数一覧'!C6 -> 0 | N6: =K6*'R2雇用表'!O6 -> 0 | O6: =MMULT('R2逆行列'!C5:AM41,E6:E42) -> 0 | P6: =O6*'R2係数一覧'!D6 -> 0 | Q6: =O6*'R2係数一覧'!C6 -> 0 | R6: =O6*'R2雇用表'!O6 -> 0 | S6: =S$43*'R2係数一覧'!H6 -> 0 | T6: =S6*'R2係数一覧'!E6 -> 0 | U6: =MMULT('R2逆行列'!C5:AM41,T6:T42) -> 0 | V6: =U6*'R2係数一覧'!D6 -> 0 | W6: =U6*'R2係数一覧'!C6 -> 0 | X6: =U6*'R2雇用表'!O6 -> 0
A7: 02 | B7: 06 | C7: 鉱業 | D7: ='R2汎用コンバータ'!N7 -> 0 | E7: =D7 -> 0 | F7: =E7*'R2係数一覧'!D7 -> 0 | G7: =E7*'R2係数一覧'!C7 -> 0 | H7: =ROUND(E7*'R2雇用表'!O7,0) -> 0 | I7: 0 | J7: =I7*'R2係数一覧'!E7 -> 0 | K7: 0 | L7: =K7*'R2係数一覧'!D7 -> 0 | M7: =K7*'R2係数一覧'!C7 -> 0 | N7: =K7*'R2雇用表'!O7 -> 0 | O7: 0 | P7: =O7*'R2係数一覧'!D7 -> 0 | Q7: =O7*'R2係数一覧'!C7 -> 0 | R7: =O7*'R2雇用表'!O7 -> 0 | S7: =S$43*'R2係数一覧'!H7 -> 0 | T7: =S7*'R2係数一覧'!E7 -> 0 | U7: 0 | V7: =U7*'R2係数一覧'!D7 -> 0 | W7: =U7*'R2係数一覧'!C7 -> 0 | X7: =U7*'R2雇用表'!O7 -> 0
A8: 03 | B8: 11 | C8: 飲食料品 | D8: ='R2汎用コンバータ'!N8 -> 0 | E8: 0 | F8: =E8*'R2係数一覧'!D8 -> 0 | G8: =E8*'R2係数一覧'!C8 -> 0 | H8: =ROUND(E8*'R2雇用表'!O8,0) -> 0 | I8: 0 | J8: =I8*'R2係数一覧'!E8 -> 0 | K8: 0 | L8: =K8*'R2係数一覧'!D8 -> 0 | M8: =K8*'R2係数一覧'!C8 -> 0 | N8: =K8*'R2雇用表'!O8 -> 0 | O8: 0 | P8: =O8*'R2係数一覧'!D8 -> 0 | Q8: =O8*'R2係数一覧'!C8 -> 0 | R8: =O8*'R2雇用表'!O8 -> 0 | S8: =S$43*'R2係数一覧'!H8 -> 0 | T8: =S8*'R2係数一覧'!E8 -> 0 | U8: 0 | V8: =U8*'R2係数一覧'!D8 -> 0 | W8: =U8*'R2係数一覧'!C8 -> 0 | X8: =U8*'R2雇用表'!O8 -> 0
A9: 03 | B9: 15 | C9: 繊維製品 | D9: ='R2汎用コンバータ'!N9 -> 0 | E9: 0 | F9: =E9*'R2係数一覧'!D9 -> 0 | G9: =E9*'R2係数一覧'!C9 -> 0 | H9: =ROUND(E9*'R2雇用表'!O9,0) -> 0 | I9: 0 | J9: =I9*'R2係数一覧'!E9 -> 0 | K9: 0 | L9: =K9*'R2係数一覧'!D9 -> 0 | M9: =K9*'R2係数一覧'!C9 -> 0 | N9: =K9*'R2雇用表'!O9 -> 0 | O9: 0 | P9: =O9*'R2係数一覧'!D9 -> 0 | Q9: =O9*'R2係数一覧'!C9 -> 0 | R9: =O9*'R2雇用表'!O9 -> 0 | S9: =S$43*'R2係数一覧'!H9 -> 0 | T9: =S9*'R2係数一覧'!E9 -> 0 | U9: 0 | V9: =U9*'R2係数一覧'!D9 -> 0 | W9: =U9*'R2係数一覧'!C9 -> 0 | X9: =U9*'R2雇用表'!O9 -> 0
A10: 03 | B10: 16 | C10: パルプ・紙・木製品 | D10: ='R2汎用コンバータ'!N10 -> 0 | E10: 0 | F10: =E10*'R2係数一覧'!D10 -> 0 | G10: =E10*'R2係数一覧'!C10 -> 0 | H10: =ROUND(E10*'R2雇用表'!O10,0) -> 0 | I10: 0 | J10: =I10*'R2係数一覧'!E10 -> 0 | K10: 0 | L10: =K10*'R2係数一覧'!D10 -> 0 | M10: =K10*'R2係数一覧'!C10 -> 0 | N10: =K10*'R2雇用表'!O10 -> 0 | O10: 0 | P10: =O10*'R2係数一覧'!D10 -> 0 | Q10: =O10*'R2係数一覧'!C10 -> 0 | R10: =O10*'R2雇用表'!O10 -> 0 | S10: =S$43*'R2係数一覧'!H10 -> 0 | T10: =S10*'R2係数一覧'!E10 -> 0 | U10: 0 | V10: =U10*'R2係数一覧'!D10 -> 0 | W10: =U10*'R2係数一覧'!C10 -> 0 | X10: =U10*'R2雇用表'!O10 -> 0
A11: 03 | B11: 20 | C11: 化学製品 | D11: ='R2汎用コンバータ'!N11 -> 0 | E11: 0 | F11: =E11*'R2係数一覧'!D11 -> 0 | G11: =E11*'R2係数一覧'!C11 -> 0 | H11: =ROUND(E11*'R2雇用表'!O11,0) -> 0 | I11: 0 | J11: =I11*'R2係数一覧'!E11 -> 0 | K11: 0 | L11: =K11*'R2係数一覧'!D11 -> 0 | M11: =K11*'R2係数一覧'!C11 -> 0 | N11: =K11*'R2雇用表'!O11 -> 0 | O11: 0 | P11: =O11*'R2係数一覧'!D11 -> 0 | Q11: =O11*'R2係数一覧'!C11 -> 0 | R11: =O11*'R2雇用表'!O11 -> 0 | S11: =S$43*'R2係数一覧'!H11 -> 0 | T11: =S11*'R2係数一覧'!E11 -> 0 | U11: 0 | V11: =U11*'R2係数一覧'!D11 -> 0 | W11: =U11*'R2係数一覧'!C11 -> 0 | X11: =U11*'R2雇用表'!O11 -> 0
A12: 03 | B12: 21 | C12: 石油・石炭製品 | D12: ='R2汎用コンバータ'!N12 -> 0 | E12: 0 | F12: =E12*'R2係数一覧'!D12 -> 0 | G12: =E12*'R2係数一覧'!C12 -> 0 | H12: =ROUND(E12*'R2雇用表'!O12,0) -> 0 | I12: 0 | J12: =I12*'R2係数一覧'!E12 -> 0 | K12: 0 | L12: =K12*'R2係数一覧'!D12 -> 0 | M12: =K12*'R2係数一覧'!C12 -> 0 | N12: =K12*'R2雇用表'!O12 -> 0 | O12: 0 | P12: =O12*'R2係数一覧'!D12 -> 0 | Q12: =O12*'R2係数一覧'!C12 -> 0 | R12: =O12*'R2雇用表'!O12 -> 0 | S12: =S$43*'R2係数一覧'!H12 -> 0 | T12: =S12*'R2係数一覧'!E12 -> 0 | U12: 0 | V12: =U12*'R2係数一覧'!D12 -> 0 | W12: =U12*'R2係数一覧'!C12 -> 0 | X12: =U12*'R2雇用表'!O12 -> 0
A13: 03 | B13: 22 | C13: プラスチック・ゴム製品 | D13: ='R2汎用コンバータ'!N13 -> 0 | E13: 0 | F13: =E13*'R2係数一覧'!D13 -> 0 | G13: =E13*'R2係数一覧'!C13 -> 0 | H13: =ROUND(E13*'R2雇用表'!O13,0) -> 0 | I13: 0 | J13: =I13*'R2係数一覧'!E13 -> 0 | K13: 0 | L13: =K13*'R2係数一覧'!D13 -> 0 | M13: =K13*'R2係数一覧'!C13 -> 0 | N13: =K13*'R2雇用表'!O13 -> 0 | O13: 0 | P13: =O13*'R2係数一覧'!D13 -> 0 | Q13: =O13*'R2係数一覧'!C13 -> 0 | R13: =O13*'R2雇用表'!O13 -> 0 | S13: =S$43*'R2係数一覧'!H13 -> 0 | T13: =S13*'R2係数一覧'!E13 -> 0 | U13: 0 | V13: =U13*'R2係数一覧'!D13 -> 0 | W13: =U13*'R2係数一覧'!C13 -> 0 | X13: =U13*'R2雇用表'!O13 -> 0
A14: 03 | B14: 25 | C14: 窯業・土石製品 | D14: ='R2汎用コンバータ'!N14 -> 0 | E14: 0 | F14: =E14*'R2係数一覧'!D14 -> 0 | G14: =E14*'R2係数一覧'!C14 -> 0 | H14: =ROUND(E14*'R2雇用表'!O14,0) -> 0 | I14: 0 | J14: =I14*'R2係数一覧'!E14 -> 0 | K14: 0 | L14: =K14*'R2係数一覧'!D14 -> 0 | M14: =K14*'R2係数一覧'!C14 -> 0 | N14: =K14*'R2雇用表'!O14 -> 0 | O14: 0 | P14: =O14*'R2係数一覧'!D14 -> 0 | Q14: =O14*'R2係数一覧'!C14 -> 0 | R14: =O14*'R2雇用表'!O14 -> 0 | S14: =S$43*'R2係数一覧'!H14 -> 0 | T14: =S14*'R2係数一覧'!E14 -> 0 | U14: 0 | V14: =U14*'R2係数一覧'!D14 -> 0 | W14: =U14*'R2係数一覧'!C14 -> 0 | X14: =U14*'R2雇用表'!O14 -> 0
A15: 03 | B15: 26 | C15: 鉄鋼 | D15: ='R2汎用コンバータ'!N15 -> 0 | E15: 0 | F15: =E15*'R2係数一覧'!D15 -> 0 | G15: =E15*'R2係数一覧'!C15 -> 0 | H15: =ROUND(E15*'R2雇用表'!O15,0) -> 0 | I15: 0 | J15: =I15*'R2係数一覧'!E15 -> 0 | K15: 0 | L15: =K15*'R2係数一覧'!D15 -> 0 | M15: =K15*'R2係数一覧'!C15 -> 0 | N15: =K15*'R2雇用表'!O15 -> 0 | O15: 0 | P15: =O15*'R2係数一覧'!D15 -> 0 | Q15: =O15*'R2係数一覧'!C15 -> 0 | R15: =O15*'R2雇用表'!O15 -> 0 | S15: =S$43*'R2係数一覧'!H15 -> 0 | T15: =S15*'R2係数一覧'!E15 -> 0 | U15: 0 | V15: =U15*'R2係数一覧'!D15 -> 0 | W15: =U15*'R2係数一覧'!C15 -> 0 | X15: =U15*'R2雇用表'!O15 -> 0
A16: 03 | B16: 27 | C16: 非鉄金属 | D16: ='R2汎用コンバータ'!N16 -> 0 | E16: 0 | F16: =E16*'R2係数一覧'!D16 -> 0 | G16: =E16*'R2係数一覧'!C16 -> 0 | H16: =ROUND(E16*'R2雇用表'!O16,0) -> 0 | I16: 0 | J16: =I16*'R2係数一覧'!E16 -> 0 | K16: 0 | L16: =K16*'R2係数一覧'!D16 -> 0 | M16: =K16*'R2係数一覧'!C16 -> 0 | N16: =K16*'R2雇用表'!O16 -> 0 | O16: 0 | P16: =O16*'R2係数一覧'!D16 -> 0 | Q16: =O16*'R2係数一覧'!C16 -> 0 | R16: =O16*'R2雇用表'!O16 -> 0 | S16: =S$43*'R2係数一覧'!H16 -> 0 | T16: =S16*'R2係数一覧'!E16 -> 0 | U16: 0 | V16: =U16*'R2係数一覧'!D16 -> 0 | W16: =U16*'R2係数一覧'!C16 -> 0 | X16: =U16*'R2雇用表'!O16 -> 0
A17: 03 | B17: 28 | C17: 金属製品 | D17: ='R2汎用コンバータ'!N17 -> 0 | E17: 0 | F17: =E17*'R2係数一覧'!D17 -> 0 | G17: =E17*'R2係数一覧'!C17 -> 0 | H17: =ROUND(E17*'R2雇用表'!O17,0) -> 0 | I17: 0 | J17: =I17*'R2係数一覧'!E17 -> 0 | K17: 0 | L17: =K17*'R2係数一覧'!D17 -> 0 | M17: =K17*'R2係数一覧'!C17 -> 0 | N17: =K17*'R2雇用表'!O17 -> 0 | O17: 0 | P17: =O17*'R2係数一覧'!D17 -> 0 | Q17: =O17*'R2係数一覧'!C17 -> 0 | R17: =O17*'R2雇用表'!O17 -> 0 | S17: =S$43*'R2係数一覧'!H17 -> 0 | T17: =S17*'R2係数一覧'!E17 -> 0 | U17: 0 | V17: =U17*'R2係数一覧'!D17 -> 0 | W17: =U17*'R2係数一覧'!C17 -> 0 | X17: =U17*'R2雇用表'!O17 -> 0
A18: 03 | B18: 29 | C18: はん用機械 | D18: ='R2汎用コンバータ'!N18 -> 0 | E18: 0 | F18: =E18*'R2係数一覧'!D18 -> 0 | G18: =E18*'R2係数一覧'!C18 -> 0 | H18: =ROUND(E18*'R2雇用表'!O18,0) -> 0 | I18: 0 | J18: =I18*'R2係数一覧'!E18 -> 0 | K18: 0 | L18: =K18*'R2係数一覧'!D18 -> 0 | M18: =K18*'R2係数一覧'!C18 -> 0 | N18: =K18*'R2雇用表'!O18 -> 0 | O18: 0 | P18: =O18*'R2係数一覧'!D18 -> 0 | Q18: =O18*'R2係数一覧'!C18 -> 0 | R18: =O18*'R2雇用表'!O18 -> 0 | S18: =S$43*'R2係数一覧'!H18 -> 0 | T18: =S18*'R2係数一覧'!E18 -> 0 | U18: 0 | V18: =U18*'R2係数一覧'!D18 -> 0 | W18: =U18*'R2係数一覧'!C18 -> 0 | X18: =U18*'R2雇用表'!O18 -> 0
A19: 03 | B19: 30 | C19: 生産用機械 | D19: ='R2汎用コンバータ'!N19 -> 0 | E19: 0 | F19: =E19*'R2係数一覧'!D19 -> 0 | G19: =E19*'R2係数一覧'!C19 -> 0 | H19: =ROUND(E19*'R2雇用表'!O19,0) -> 0 | I19: 0 | J19: =I19*'R2係数一覧'!E19 -> 0 | K19: 0 | L19: =K19*'R2係数一覧'!D19 -> 0 | M19: =K19*'R2係数一覧'!C19 -> 0 | N19: =K19*'R2雇用表'!O19 -> 0 | O19: 0 | P19: =O19*'R2係数一覧'!D19 -> 0 | Q19: =O19*'R2係数一覧'!C19 -> 0 | R19: =O19*'R2雇用表'!O19 -> 0 | S19: =S$43*'R2係数一覧'!H19 -> 0 | T19: =S19*'R2係数一覧'!E19 -> 0 | U19: 0 | V19: =U19*'R2係数一覧'!D19 -> 0 | W19: =U19*'R2係数一覧'!C19 -> 0 | X19: =U19*'R2雇用表'!O19 -> 0
A20: 03 | B20: 31 | C20: 業務用機械 | D20: ='R2汎用コンバータ'!N20 -> 0 | E20: 0 | F20: =E20*'R2係数一覧'!D20 -> 0 | G20: =E20*'R2係数一覧'!C20 -> 0 | H20: =ROUND(E20*'R2雇用表'!O20,0) -> 0 | I20: 0 | J20: =I20*'R2係数一覧'!E20 -> 0 | K20: 0 | L20: =K20*'R2係数一覧'!D20 -> 0 | M20: =K20*'R2係数一覧'!C20 -> 0 | N20: =K20*'R2雇用表'!O20 -> 0 | O20: 0 | P20: =O20*'R2係数一覧'!D20 -> 0 | Q20: =O20*'R2係数一覧'!C20 -> 0 | R20: =O20*'R2雇用表'!O20 -> 0 | S20: =S$43*'R2係数一覧'!H20 -> 0 | T20: =S20*'R2係数一覧'!E20 -> 0 | U20: 0 | V20: =U20*'R2係数一覧'!D20 -> 0 | W20: =U20*'R2係数一覧'!C20 -> 0 | X20: =U20*'R2雇用表'!O20 -> 0
A21: 03 | B21: 32 | C21: 電子部品 | D21: ='R2汎用コンバータ'!N21 -> 0 | E21: 0 | F21: =E21*'R2係数一覧'!D21 -> 0 | G21: =E21*'R2係数一覧'!C21 -> 0 | H21: =ROUND(E21*'R2雇用表'!O21,0) -> 0 | I21: 0 | J21: =I21*'R2係数一覧'!E21 -> 0 | K21: 0 | L21: =K21*'R2係数一覧'!D21 -> 0 | M21: =K21*'R2係数一覧'!C21 -> 0 | N21: =K21*'R2雇用表'!O21 -> 0 | O21: 0 | P21: =O21*'R2係数一覧'!D21 -> 0 | Q21: =O21*'R2係数一覧'!C21 -> 0 | R21: =O21*'R2雇用表'!O21 -> 0 | S21: =S$43*'R2係数一覧'!H21 -> 0 | T21: =S21*'R2係数一覧'!E21 -> 0 | U21: 0 | V21: =U21*'R2係数一覧'!D21 -> 0 | W21: =U21*'R2係数一覧'!C21 -> 0 | X21: =U21*'R2雇用表'!O21 -> 0
A22: 03 | B22: 33 | C22: 電気機械 | D22: ='R2汎用コンバータ'!N22 -> 0 | E22: 0 | F22: =E22*'R2係数一覧'!D22 -> 0 | G22: =E22*'R2係数一覧'!C22 -> 0 | H22: =ROUND(E22*'R2雇用表'!O22,0) -> 0 | I22: 0 | J22: =I22*'R2係数一覧'!E22 -> 0 | K22: 0 | L22: =K22*'R2係数一覧'!D22 -> 0 | M22: =K22*'R2係数一覧'!C22 -> 0 | N22: =K22*'R2雇用表'!O22 -> 0 | O22: 0 | P22: =O22*'R2係数一覧'!D22 -> 0 | Q22: =O22*'R2係数一覧'!C22 -> 0 | R22: =O22*'R2雇用表'!O22 -> 0 | S22: =S$43*'R2係数一覧'!H22 -> 0 | T22: =S22*'R2係数一覧'!E22 -> 0 | U22: 0 | V22: =U22*'R2係数一覧'!D22 -> 0 | W22: =U22*'R2係数一覧'!C22 -> 0 | X22: =U22*'R2雇用表'!O22 -> 0
A23: 03 | B23: 34 | C23: 情報通信機器 | D23: ='R2汎用コンバータ'!N23 -> 0 | E23: 0 | F23: =E23*'R2係数一覧'!D23 -> 0 | G23: =E23*'R2係数一覧'!C23 -> 0 | H23: =ROUND(E23*'R2雇用表'!O23,0) -> 0 | I23: 0 | J23: =I23*'R2係数一覧'!E23 -> 0 | K23: 0 | L23: =K23*'R2係数一覧'!D23 -> 0 | M23: =K23*'R2係数一覧'!C23 -> 0 | N23: =K23*'R2雇用表'!O23 -> 0 | O23: 0 | P23: =O23*'R2係数一覧'!D23 -> 0 | Q23: =O23*'R2係数一覧'!C23 -> 0 | R23: =O23*'R2雇用表'!O23 -> 0 | S23: =S$43*'R2係数一覧'!H23 -> 0 | T23: =S23*'R2係数一覧'!E23 -> 0 | U23: 0 | V23: =U23*'R2係数一覧'!D23 -> 0 | W23: =U23*'R2係数一覧'!C23 -> 0 | X23: =U23*'R2雇用表'!O23 -> 0
A24: 03 | B24: 35 | C24: 輸送機械 | D24: ='R2汎用コンバータ'!N24 -> 0 | E24: 0 | F24: =E24*'R2係数一覧'!D24 -> 0 | G24: =E24*'R2係数一覧'!C24 -> 0 | H24: =ROUND(E24*'R2雇用表'!O24,0) -> 0 | I24: 0 | J24: =I24*'R2係数一覧'!E24 -> 0 | K24: 0 | L24: =K24*'R2係数一覧'!D24 -> 0 | M24: =K24*'R2係数一覧'!C24 -> 0 | N24: =K24*'R2雇用表'!O24 -> 0 | O24: 0 | P24: =O24*'R2係数一覧'!D24 -> 0 | Q24: =O24*'R2係数一覧'!C24 -> 0 | R24: =O24*'R2雇用表'!O24 -> 0 | S24: =S$43*'R2係数一覧'!H24 -> 0 | T24: =S24*'R2係数一覧'!E24 -> 0 | U24: 0 | V24: =U24*'R2係数一覧'!D24 -> 0 | W24: =U24*'R2係数一覧'!C24 -> 0 | X24: =U24*'R2雇用表'!O24 -> 0
A25: 03 | B25: 39 | C25: その他の製造工業製品 | D25: ='R2汎用コンバータ'!N25 -> 0 | E25: 0 | F25: =E25*'R2係数一覧'!D25 -> 0 | G25: =E25*'R2係数一覧'!C25 -> 0 | H25: =ROUND(E25*'R2雇用表'!O25,0) -> 0 | I25: 0 | J25: =I25*'R2係数一覧'!E25 -> 0 | K25: 0 | L25: =K25*'R2係数一覧'!D25 -> 0 | M25: =K25*'R2係数一覧'!C25 -> 0 | N25: =K25*'R2雇用表'!O25 -> 0 | O25: 0 | P25: =O25*'R2係数一覧'!D25 -> 0 | Q25: =O25*'R2係数一覧'!C25 -> 0 | R25: =O25*'R2雇用表'!O25 -> 0 | S25: =S$43*'R2係数一覧'!H25 -> 0 | T25: =S25*'R2係数一覧'!E25 -> 0 | U25: 0 | V25: =U25*'R2係数一覧'!D25 -> 0 | W25: =U25*'R2係数一覧'!C25 -> 0 | X25: =U25*'R2雇用表'!O25 -> 0
A26: 04 | B26: 41 | C26: 建設 | D26: ='R2汎用コンバータ'!N26 -> 0 | E26: 0 | F26: =E26*'R2係数一覧'!D26 -> 0 | G26: =E26*'R2係数一覧'!C26 -> 0 | H26: =ROUND(E26*'R2雇用表'!O26,0) -> 0 | I26: 0 | J26: =I26*'R2係数一覧'!E26 -> 0 | K26: 0 | L26: =K26*'R2係数一覧'!D26 -> 0 | M26: =K26*'R2係数一覧'!C26 -> 0 | N26: =K26*'R2雇用表'!O26 -> 0 | O26: 0 | P26: =O26*'R2係数一覧'!D26 -> 0 | Q26: =O26*'R2係数一覧'!C26 -> 0 | R26: =O26*'R2雇用表'!O26 -> 0 | S26: =S$43*'R2係数一覧'!H26 -> 0 | T26: =S26*'R2係数一覧'!E26 -> 0 | U26: 0 | V26: =U26*'R2係数一覧'!D26 -> 0 | W26: =U26*'R2係数一覧'!C26 -> 0 | X26: =U26*'R2雇用表'!O26 -> 0
A27: 05 | B27: 46 | C27: 電気・ガス・熱供給 | D27: ='R2汎用コンバータ'!N27 -> 0 | E27: 0 | F27: =E27*'R2係数一覧'!D27 -> 0 | G27: =E27*'R2係数一覧'!C27 -> 0 | H27: =ROUND(E27*'R2雇用表'!O27,0) -> 0 | I27: 0 | J27: =I27*'R2係数一覧'!E27 -> 0 | K27: 0 | L27: =K27*'R2係数一覧'!D27 -> 0 | M27: =K27*'R2係数一覧'!C27 -> 0 | N27: =K27*'R2雇用表'!O27 -> 0 | O27: 0 | P27: =O27*'R2係数一覧'!D27 -> 0 | Q27: =O27*'R2係数一覧'!C27 -> 0 | R27: =O27*'R2雇用表'!O27 -> 0 | S27: =S$43*'R2係数一覧'!H27 -> 0 | T27: =S27*'R2係数一覧'!E27 -> 0 | U27: 0 | V27: =U27*'R2係数一覧'!D27 -> 0 | W27: =U27*'R2係数一覧'!C27 -> 0 | X27: =U27*'R2雇用表'!O27 -> 0
A28: 05 | B28: 47 | C28: 水道 | D28: ='R2汎用コンバータ'!N28 -> 0 | E28: 0 | F28: =E28*'R2係数一覧'!D28 -> 0 | G28: =E28*'R2係数一覧'!C28 -> 0 | H28: =ROUND(E28*'R2雇用表'!O28,0) -> 0 | I28: 0 | J28: =I28*'R2係数一覧'!E28 -> 0 | K28: 0 | L28: =K28*'R2係数一覧'!D28 -> 0 | M28: =K28*'R2係数一覧'!C28 -> 0 | N28: =K28*'R2雇用表'!O28 -> 0 | O28: 0 | P28: =O28*'R2係数一覧'!D28 -> 0 | Q28: =O28*'R2係数一覧'!C28 -> 0 | R28: =O28*'R2雇用表'!O28 -> 0 | S28: =S$43*'R2係数一覧'!H28 -> 0 | T28: =S28*'R2係数一覧'!E28 -> 0 | U28: 0 | V28: =U28*'R2係数一覧'!D28 -> 0 | W28: =U28*'R2係数一覧'!C28 -> 0 | X28: =U28*'R2雇用表'!O28 -> 0
A29: 12 | B29: 48 | C29: 廃棄物処理 | D29: ='R2汎用コンバータ'!N29 -> 0 | E29: 0 | F29: =E29*'R2係数一覧'!D29 -> 0 | G29: =E29*'R2係数一覧'!C29 -> 0 | H29: =ROUND(E29*'R2雇用表'!O29,0) -> 0 | I29: 0 | J29: =I29*'R2係数一覧'!E29 -> 0 | K29: 0 | L29: =K29*'R2係数一覧'!D29 -> 0 | M29: =K29*'R2係数一覧'!C29 -> 0 | N29: =K29*'R2雇用表'!O29 -> 0 | O29: 0 | P29: =O29*'R2係数一覧'!D29 -> 0 | Q29: =O29*'R2係数一覧'!C29 -> 0 | R29: =O29*'R2雇用表'!O29 -> 0 | S29: =S$43*'R2係数一覧'!H29 -> 0 | T29: =S29*'R2係数一覧'!E29 -> 0 | U29: 0 | V29: =U29*'R2係数一覧'!D29 -> 0 | W29: =U29*'R2係数一覧'!C29 -> 0 | X29: =U29*'R2雇用表'!O29 -> 0
A30: 06 | B30: 51 | C30: 商業 | D30: ='R2汎用コンバータ'!N30 -> 0 | E30: 0 | F30: =E30*'R2係数一覧'!D30 -> 0 | G30: =E30*'R2係数一覧'!C30 -> 0 | H30: =ROUND(E30*'R2雇用表'!O30,0) -> 0 | I30: 0 | J30: =I30*'R2係数一覧'!E30 -> 0 | K30: 0 | L30: =K30*'R2係数一覧'!D30 -> 0 | M30: =K30*'R2係数一覧'!C30 -> 0 | N30: =K30*'R2雇用表'!O30 -> 0 | O30: 0 | P30: =O30*'R2係数一覧'!D30 -> 0 | Q30: =O30*'R2係数一覧'!C30 -> 0 | R30: =O30*'R2雇用表'!O30 -> 0 | S30: =S$43*'R2係数一覧'!H30 -> 0 | T30: =S30*'R2係数一覧'!E30 -> 0 | U30: 0 | V30: =U30*'R2係数一覧'!D30 -> 0 | W30: =U30*'R2係数一覧'!C30 -> 0 | X30: =U30*'R2雇用表'!O30 -> 0
A31: 07 | B31: 53 | C31: 金融・保険 | D31: ='R2汎用コンバータ'!N31 -> 0 | E31: 0 | F31: =E31*'R2係数一覧'!D31 -> 0 | G31: =E31*'R2係数一覧'!C31 -> 0 | H31: =ROUND(E31*'R2雇用表'!O31,0) -> 0 | I31: 0 | J31: =I31*'R2係数一覧'!E31 -> 0 | K31: 0 | L31: =K31*'R2係数一覧'!D31 -> 0 | M31: =K31*'R2係数一覧'!C31 -> 0 | N31: =K31*'R2雇用表'!O31 -> 0 | O31: 0 | P31: =O31*'R2係数一覧'!D31 -> 0 | Q31: =O31*'R2係数一覧'!C31 -> 0 | R31: =O31*'R2雇用表'!O31 -> 0 | S31: =S$43*'R2係数一覧'!H31 -> 0 | T31: =S31*'R2係数一覧'!E31 -> 0 | U31: 0 | V31: =U31*'R2係数一覧'!D31 -> 0 | W31: =U31*'R2係数一覧'!C31 -> 0 | X31: =U31*'R2雇用表'!O31 -> 0
A32: 08 | B32: 55 | C32: 不動産 | D32: ='R2汎用コンバータ'!N32 -> 0 | E32: 0 | F32: =E32*'R2係数一覧'!D32 -> 0 | G32: =E32*'R2係数一覧'!C32 -> 0 | H32: =ROUND(E32*'R2雇用表'!O32,0) -> 0 | I32: 0 | J32: =I32*'R2係数一覧'!E32 -> 0 | K32: 0 | L32: =K32*'R2係数一覧'!D32 -> 0 | M32: =K32*'R2係数一覧'!C32 -> 0 | N32: =K32*'R2雇用表'!O32 -> 0 | O32: 0 | P32: =O32*'R2係数一覧'!D32 -> 0 | Q32: =O32*'R2係数一覧'!C32 -> 0 | R32: =O32*'R2雇用表'!O32 -> 0 | S32: =S$43*'R2係数一覧'!H32 -> 0 | T32: =S32*'R2係数一覧'!E32 -> 0 | U32: 0 | V32: =U32*'R2係数一覧'!D32 -> 0 | W32: =U32*'R2係数一覧'!C32 -> 0 | X32: =U32*'R2雇用表'!O32 -> 0
A33: 09 | B33: 57 | C33: 運輸・郵便 | D33: ='R2汎用コンバータ'!N33 -> 0 | E33: 0 | F33: =E33*'R2係数一覧'!D33 -> 0 | G33: =E33*'R2係数一覧'!C33 -> 0 | H33: =ROUND(E33*'R2雇用表'!O33,0) -> 0 | I33: 0 | J33: =I33*'R2係数一覧'!E33 -> 0 | K33: 0 | L33: =K33*'R2係数一覧'!D33 -> 0 | M33: =K33*'R2係数一覧'!C33 -> 0 | N33: =K33*'R2雇用表'!O33 -> 0 | O33: 0 | P33: =O33*'R2係数一覧'!D33 -> 0 | Q33: =O33*'R2係数一覧'!C33 -> 0 | R33: =O33*'R2雇用表'!O33 -> 0 | S33: =S$43*'R2係数一覧'!H33 -> 0 | T33: =S33*'R2係数一覧'!E33 -> 0 | U33: 0 | V33: =U33*'R2係数一覧'!D33 -> 0 | W33: =U33*'R2係数一覧'!C33 -> 0 | X33: =U33*'R2雇用表'!O33 -> 0
A34: 10 | B34: 59 | C34: 情報通信 | D34: ='R2汎用コンバータ'!N34 -> 0 | E34: 0 | F34: =E34*'R2係数一覧'!D34 -> 0 | G34: =E34*'R2係数一覧'!C34 -> 0 | H34: =ROUND(E34*'R2雇用表'!O34,0) -> 0 | I34: 0 | J34: =I34*'R2係数一覧'!E34 -> 0 | K34: 0 | L34: =K34*'R2係数一覧'!D34 -> 0 | M34: =K34*'R2係数一覧'!C34 -> 0 | N34: =K34*'R2雇用表'!O34 -> 0 | O34: 0 | P34: =O34*'R2係数一覧'!D34 -> 0 | Q34: =O34*'R2係数一覧'!C34 -> 0 | R34: =O34*'R2雇用表'!O34 -> 0 | S34: =S$43*'R2係数一覧'!H34 -> 0 | T34: =S34*'R2係数一覧'!E34 -> 0 | U34: 0 | V34: =U34*'R2係数一覧'!D34 -> 0 | W34: =U34*'R2係数一覧'!C34 -> 0 | X34: =U34*'R2雇用表'!O34 -> 0
A35: 11 | B35: 61 | C35: 公務 | D35: ='R2汎用コンバータ'!N35 -> 0 | E35: 0 | F35: =E35*'R2係数一覧'!D35 -> 0 | G35: =E35*'R2係数一覧'!C35 -> 0 | H35: =ROUND(E35*'R2雇用表'!O35,0) -> 0 | I35: 0 | J35: =I35*'R2係数一覧'!E35 -> 0 | K35: 0 | L35: =K35*'R2係数一覧'!D35 -> 0 | M35: =K35*'R2係数一覧'!C35 -> 0 | N35: =K35*'R2雇用表'!O35 -> 0 | O35: 0 | P35: =O35*'R2係数一覧'!D35 -> 0 | Q35: =O35*'R2係数一覧'!C35 -> 0 | R35: =O35*'R2雇用表'!O35 -> 0 | S35: =S$43*'R2係数一覧'!H35 -> 0 | T35: =S35*'R2係数一覧'!E35 -> 0 | U35: 0 | V35: =U35*'R2係数一覧'!D35 -> 0 | W35: =U35*'R2係数一覧'!C35 -> 0 | X35: =U35*'R2雇用表'!O35 -> 0
A36: 12 | B36: 63 | C36: 教育・研究 | D36: ='R2汎用コンバータ'!N36 -> 0 | E36: 0 | F36: =E36*'R2係数一覧'!D36 -> 0 | G36: =E36*'R2係数一覧'!C36 -> 0 | H36: =ROUND(E36*'R2雇用表'!O36,0) -> 0 | I36: 0 | J36: =I36*'R2係数一覧'!E36 -> 0 | K36: 0 | L36: =K36*'R2係数一覧'!D36 -> 0 | M36: =K36*'R2係数一覧'!C36 -> 0 | N36: =K36*'R2雇用表'!O36 -> 0 | O36: 0 | P36: =O36*'R2係数一覧'!D36 -> 0 | Q36: =O36*'R2係数一覧'!C36 -> 0 | R36: =O36*'R2雇用表'!O36 -> 0 | S36: =S$43*'R2係数一覧'!H36 -> 0 | T36: =S36*'R2係数一覧'!E36 -> 0 | U36: 0 | V36: =U36*'R2係数一覧'!D36 -> 0 | W36: =U36*'R2係数一覧'!C36 -> 0 | X36: =U36*'R2雇用表'!O36 -> 0
A37: 12 | B37: 64 | C37: 医療・福祉 | D37: ='R2汎用コンバータ'!N37 -> 0 | E37: 0 | F37: =E37*'R2係数一覧'!D37 -> 0 | G37: =E37*'R2係数一覧'!C37 -> 0 | H37: =ROUND(E37*'R2雇用表'!O37,0) -> 0 | I37: 0 | J37: =I37*'R2係数一覧'!E37 -> 0 | K37: 0 | L37: =K37*'R2係数一覧'!D37 -> 0 | M37: =K37*'R2係数一覧'!C37 -> 0 | N37: =K37*'R2雇用表'!O37 -> 0 | O37: 0 | P37: =O37*'R2係数一覧'!D37 -> 0 | Q37: =O37*'R2係数一覧'!C37 -> 0 | R37: =O37*'R2雇用表'!O37 -> 0 | S37: =S$43*'R2係数一覧'!H37 -> 0 | T37: =S37*'R2係数一覧'!E37 -> 0 | U37: 0 | V37: =U37*'R2係数一覧'!D37 -> 0 | W37: =U37*'R2係数一覧'!C37 -> 0 | X37: =U37*'R2雇用表'!O37 -> 0
A38: 12 | B38: 65 | C38: 他に分類されない会員制団体 | D38: ='R2汎用コンバータ'!N38 -> 0 | E38: 0 | F38: =E38*'R2係数一覧'!D38 -> 0 | G38: =E38*'R2係数一覧'!C38 -> 0 | H38: =ROUND(E38*'R2雇用表'!O38,0) -> 0 | I38: 0 | J38: =I38*'R2係数一覧'!E38 -> 0 | K38: 0 | L38: =K38*'R2係数一覧'!D38 -> 0 | M38: =K38*'R2係数一覧'!C38 -> 0 | N38: =K38*'R2雇用表'!O38 -> 0 | O38: 0 | P38: =O38*'R2係数一覧'!D38 -> 0 | Q38: =O38*'R2係数一覧'!C38 -> 0 | R38: =O38*'R2雇用表'!O38 -> 0 | S38: =S$43*'R2係数一覧'!H38 -> 0 | T38: =S38*'R2係数一覧'!E38 -> 0 | U38: 0 | V38: =U38*'R2係数一覧'!D38 -> 0 | W38: =U38*'R2係数一覧'!C38 -> 0 | X38: =U38*'R2雇用表'!O38 -> 0
A39: 12 | B39: 66 | C39: 対事業所サービス | D39: ='R2汎用コンバータ'!N39 -> 0 | E39: 0 | F39: =E39*'R2係数一覧'!D39 -> 0 | G39: =E39*'R2係数一覧'!C39 -> 0 | H39: =ROUND(E39*'R2雇用表'!O39,0) -> 0 | I39: 0 | J39: =I39*'R2係数一覧'!E39 -> 0 | K39: 0 | L39: =K39*'R2係数一覧'!D39 -> 0 | M39: =K39*'R2係数一覧'!C39 -> 0 | N39: =K39*'R2雇用表'!O39 -> 0 | O39: 0 | P39: =O39*'R2係数一覧'!D39 -> 0 | Q39: =O39*'R2係数一覧'!C39 -> 0 | R39: =O39*'R2雇用表'!O39 -> 0 | S39: =S$43*'R2係数一覧'!H39 -> 0 | T39: =S39*'R2係数一覧'!E39 -> 0 | U39: 0 | V39: =U39*'R2係数一覧'!D39 -> 0 | W39: =U39*'R2係数一覧'!C39 -> 0 | X39: =U39*'R2雇用表'!O39 -> 0
A40: 12 | B40: 67 | C40: 対個人サービス | D40: ='R2汎用コンバータ'!N40 -> 0 | E40: 0 | F40: =E40*'R2係数一覧'!D40 -> 0 | G40: =E40*'R2係数一覧'!C40 -> 0 | H40: =ROUND(E40*'R2雇用表'!O40,0) -> 0 | I40: 0 | J40: =I40*'R2係数一覧'!E40 -> 0 | K40: 0 | L40: =K40*'R2係数一覧'!D40 -> 0 | M40: =K40*'R2係数一覧'!C40 -> 0 | N40: =K40*'R2雇用表'!O40 -> 0 | O40: 0 | P40: =O40*'R2係数一覧'!D40 -> 0 | Q40: =O40*'R2係数一覧'!C40 -> 0 | R40: =O40*'R2雇用表'!O40 -> 0 | S40: =S$43*'R2係数一覧'!H40 -> 0 | T40: =S40*'R2係数一覧'!E40 -> 0 | U40: 0 | V40: =U40*'R2係数一覧'!D40 -> 0 | W40: =U40*'R2係数一覧'!C40 -> 0 | X40: =U40*'R2雇用表'!O40 -> 0
A41: 03 | B41: 68 | C41: 事務用品 | D41: ='R2汎用コンバータ'!N41 -> 0 | E41: 0 | F41: =E41*'R2係数一覧'!D41 -> 0 | G41: =E41*'R2係数一覧'!C41 -> 0 | H41: =ROUND(E41*'R2雇用表'!O41,0) -> 0 | I41: 0 | J41: =I41*'R2係数一覧'!E41 -> 0 | K41: 0 | L41: =K41*'R2係数一覧'!D41 -> 0 | M41: =K41*'R2係数一覧'!C41 -> 0 | N41: =K41*'R2雇用表'!O41 -> 0 | O41: 0 | P41: =O41*'R2係数一覧'!D41 -> 0 | Q41: =O41*'R2係数一覧'!C41 -> 0 | R41: =O41*'R2雇用表'!O41 -> 0 | S41: =S$43*'R2係数一覧'!H41 -> 0 | T41: =S41*'R2係数一覧'!E41 -> 0 | U41: 0 | V41: =U41*'R2係数一覧'!D41 -> 0 | W41: =U41*'R2係数一覧'!C41 -> 0 | X41: =U41*'R2雇用表'!O41 -> 0
A42: 13 | B42: 69 | C42: 分類不明 | D42: ='R2汎用コンバータ'!N42 -> 0 | E42: 0 | F42: =E42*'R2係数一覧'!D42 -> 0 | G42: =E42*'R2係数一覧'!C42 -> 0 | H42: =ROUND(E42*'R2雇用表'!O42,0) -> 0 | I42: 0 | J42: =I42*'R2係数一覧'!E42 -> 0 | K42: 0 | L42: =K42*'R2係数一覧'!D42 -> 0 | M42: =K42*'R2係数一覧'!C42 -> 0 | N42: =K42*'R2雇用表'!O42 -> 0 | O42: 0 | P42: =O42*'R2係数一覧'!D42 -> 0 | Q42: =O42*'R2係数一覧'!C42 -> 0 | R42: =O42*'R2雇用表'!O42 -> 0 | S42: =S$43*'R2係数一覧'!H42 -> 0 | T42: =S42*'R2係数一覧'!E42 -> 0 | U42: 0 | V42: =U42*'R2係数一覧'!D42 -> 0 | W42: =U42*'R2係数一覧'!C42 -> 0 | X42: =U42*'R2雇用表'!O42 -> 0
D43: =SUM(D6:D42) -> 0 | E43: =SUM(E6:E42) -> 0 | F43: 0 | G43: 0 | H43: 0 | I43: 0 | J43: 0 | K43: 0 | L43: 0 | M43: 0 | N43: 0 | O43: 0 | P43: 0 | Q43: 0 | R43: 0 | S43: =Q43*S45 -> 0 | T43: =SUM(T6:T42) -> 0 | U43: =SUM(U6:U42) -> 0 | V43: =SUM(V6:V42) -> 0 | W43: =SUM(W6:W42) -> 0 | X43: =SUM(X6:X42) -> 0
Q45: 消費転換率 | S45: ='R2汎用入力'!C7 -> 0.553782614
B49: 01 | C49: 農林漁業 | D49: =SUMIF($A$6:$A$42,$B49,D$6:D$42) -> 0 | E49: =SUMIF($A$6:$A$42,$B49,E$6:E$42) -> 0 | F49: 0 | G49: 0 | H49: 0 | I49: 0 | J49: 0 | K49: 0 | L49: 0 | M49: 0 | N49: 0 | O49: 0 | P49: 0 | Q49: 0 | R49: 0 | S49: 0 | T49: 0 | U49: 0 | V49: 0 | W49: 0 | X49: 0
B50: 02 | C50: 鉱業 | D50: 0 | E50: =SUMIF($A$6:$A$42,$B50,E$6:E$42) -> 0 | F50: 0 | G50: 0 | H50: 0 | I50: 0 | J50: 0 | K50: 0 | L50: 0 | M50: 0 | N50: 0 | O50: 0 | P50: 0 | Q50: 0 | R50: 0 | S50: 0 | T50: 0 | U50: 0 | V50: 0 | W50: 0 | X50: 0
B51: 03 | C51: 製造業 | D51: 0 | E51: 0 | F51: 0 | G51: 0 | H51: 0 | I51: 0 | J51: 0 | K51: 0 | L51: 0 | M51: 0 | N51: 0 | O51: 0 | P51: 0 | Q51: 0 | R51: 0 | S51: 0 | T51: 0 | U51: 0 | V51: 0 | W51: 0 | X51: 0
B52: 04 | C52: 建設 | D52: 0 | E52: 0 | F52: 0 | G52: 0 | H52: 0 | I52: 0 | J52: 0 | K52: 0 | L52: 0 | M52: 0 | N52: 0 | O52: 0 | P52: 0 | Q52: 0 | R52: 0 | S52: 0 | T52: 0 | U52: 0 | V52: 0 | W52: 0 | X52: 0
B53: 05 | C53: 電気・ガス・水道 | D53: 0 | E53: 0 | F53: 0 | G53: 0 | H53: 0 | I53: 0 | J53: 0 | K53: 0 | L53: 0 | M53: 0 | N53: 0 | O53: 0 | P53: 0 | Q53: 0 | R53: 0 | S53: 0 | T53: 0 | U53: 0 | V53: 0 | W53: 0 | X53: 0
B54: 06 | C54: 商業 | D54: 0 | E54: 0 | F54: 0 | G54: 0 | H54: 0 | I54: 0 | J54: 0 | K54: 0 | L54: 0 | M54: 0 | N54: 0 | O54: 0 | P54: 0 | Q54: 0 | R54: 0 | S54: 0 | T54: 0 | U54: 0 | V54: 0 | W54: 0 | X54: 0
B55: 07 | C55: 金融・保険 | D55: 0 | E55: 0 | F55: 0 | G55: 0 | H55: 0 | I55: 0 | J55: 0 | K55: 0 | L55: 0 | M55: 0 | N55: 0 | O55: 0 | P55: 0 | Q55: 0 | R55: 0 | S55: 0 | T55: 0 | U55: 0 | V55: 0 | W55: 0 | X55: 0
B56: 08 | C56: 不動産 | D56: 0 | E56: 0 | F56: 0 | G56: 0 | H56: 0 | I56: 0 | J56: 0 | K56: 0 | L56: 0 | M56: 0 | N56: 0 | O56: 0 | P56: 0 | Q56: 0 | R56: 0 | S56: 0 | T56: 0 | U56: 0 | V56: 0 | W56: 0 | X56: 0
B57: 09 | C57: 運輸・郵便 | D57: 0 | E57: 0 | F57: 0 | G57: 0 | H57: 0 | I57: 0 | J57: 0 | K57: 0 | L57: 0 | M57: 0 | N57: 0 | O57: 0 | P57: 0 | Q57: 0 | R57: 0 | S57: 0 | T57: 0 | U57: 0 | V57: 0 | W57: 0 | X57: 0
B58: 10 | C58: 情報通信 | D58: 0 | E58: 0 | F58: 0 | G58: 0 | H58: 0 | I58: 0 | J58: 0 | K58: 0 | L58: 0 | M58: 0 | N58: 0 | O58: 0 | P58: 0 | Q58: 0 | R58: 0 | S58: 0 | T58: 0 | U58: 0 | V58: 0 | W58: 0 | X58: 0
B59: 11 | C59: 公務 | D59: 0 | E59: 0 | F59: 0 | G59: 0 | H59: 0 | I59: 0 | J59: 0 | K59: 0 | L59: 0 | M59: 0 | N59: 0 | O59: 0 | P59: 0 | Q59: 0 | R59: 0 | S59: 0 | T59: 0 | U59: 0 | V59: 0 | W59: 0 | X59: 0
B60: 12 | C60: サービス | D60: 0 | E60: 0 | F60: 0 | G60: 0 | H60: 0 | I60: 0 | J60: 0 | K60: 0 | L60: 0 | M60: 0 | N60: 0 | O60: 0 | P60: 0 | Q60: 0 | R60: 0 | S60: 0 | T60: 0 | U60: 0 | V60: 0 | W60: 0 | X60: 0
B61: 13 | C61: 分類不明 | D61: 0 | E61: 0 | F61: 0 | G61: 0 | H61: 0 | I61: 0 | J61: 0 | K61: 0 | L61: 0 | M61: 0 | N61: 0 | O61: 0 | P61: 0 | Q61: 0 | R61: 0 | S61: 0 | T61: 0 | U61: 0 | V61: 0 | W61: 0 | X61: 0
D62: =SUM(D49:D61) -> 0 | E62: =SUM(E49:E61) -> 0 | F62: 0 | G62: 0 | H62: 0 | I62: 0 | J62: 0 | K62: 0 | L62: 0 | M62: 0 | N62: 0 | O62: 0 | P62: 0 | Q62: 0 | R62: 0 | S62: 0 | T62: 0 | U62: 0 | V62: 0 | W62: 0 | X62: 0

Sheet R2汎用部門分類表
A1: 部 門 分 類 表
A5: 需要額として入力する最終製品・サービス | F5: 「R2汎用入力」シートに 需要額を入れる産業名
A6: 基本分類 （行445部門×列391部門） | F6: 統合大分類 （37部門）
A7: 分類コード | E7: 部 門 名 | F7: 分類 コード | G7: 部 門 名
A8: 列部門 | C8: 行部門
A9: 0111 | B9: 01 | E9: 米 | F9: 01 | G9: 農林漁業
C10: 0111 | D10: 011 | E10: 米
C11: 0111 | D11: 012 | E11: 稲わら
A12: 0111 | B12: 02 | C12: 0111 | D12: 021 | E12: 麦類
A13: 0112 | B13: 01 | C13: 0112 | D13: 011 | E13: いも類
A14: 0112 | B14: 02 | C14: 0112 | D14: 021 | E14: 豆類
A15: 0113 | B15: 01 | C15: 0113 | D15: 011 | E15: 野菜
A16: 0114 | B16: 01 | C16: 0114 | D16: 011 | E16: 果実
A17: 0115 | B17: 01 | C17: 0115 | D17: 011 | E17: 砂糖原料作物
A18: 0115 | B18: 02 | C18: 0115 | D18: 021 | E18: 飲料用作物
A19: 0115 | B19: 09 | C19: 0115 | D19: 099 | E19: その他の食用耕種作物
A20: 0116 | B20: 01 | C20: 0116 | D20: 011 | E20: 飼料作物
A21: 0116 | B21: 02 | C21: 0116 | D21: 021 | E21: 種苗
A22: 0116 | B22: 03 | C22: 0116 | D22: 031 | E22: 花き・花木類
A23: 0116 | B23: 09 | E23: その他の非食用耕種作物
C24: 0116 | D24: 091 | E24: 葉たばこ
C25: 0116 | D25: 092 | E25: 生ゴム（輸入）
C26: 0116 | D26: 093 | E26: 綿花（輸入）
C27: 0116 | D27: 099 | E27: 他に分類されない非食用耕種作物
A28: 0121 | B28: 01 | E28: 酪農
C29: 0121 | D29: 011 | E29: 生乳
C30: 0121 | D30: 019 | E30: その他の酪農生産物
A31: 0121 | B31: 02 | C31: 0121 | D31: 021 | E31: 肉用牛
A32: 0121 | B32: 03 | C32: 0121 | D32: 031 | E32: 豚
A33: 0121 | B33: 04 | C33: 0121 | D33: 041 | E33: 鶏卵
A34: 0121 | B34: 05 | C34: 0121 | D34: 051 | E34: 肉鶏
A35: 0121 | B35: 09 | C35: 0121 | D35: 099 | E35: その他の畜産
A36: 0131 | B36: 01 | C36: 0131 | D36: 011 | E36: 農業サービス
A37: 0151 | B37: 01 | C37: 0151 | D37: 011 | E37: 育林
A38: 0152 | B38: 01 | C38: 0152 | D38: 011 | E38: 素材
A39: 0153 | B39: 01 | C39: 0153 | D39: 011 | E39: 特用林産物（狩猟業を含む。）
A40: 0171 | B40: 01 | C40: 0171 | D40: 011 | E40: 海面漁業
A41: 0171 | B41: 02 | C41: 0171 | D41: 021 | E41: 海面養殖業
C42: 0172 | D42: 001 | E42: 内水面漁業・養殖業
A43: 0172 | B43: 01 | E43: 内水面漁業
A44: 0172 | B44: 02 | E44: 内水面養殖業
A45: 0611 | B45: 01 | E45: 石炭・原油・天然ガス | F45: 06 | G45: 鉱業
C46: 0611 | D46: 011 | E46: 石炭
C47: 0611 | D47: 012 | E47: 原油
C48: 0611 | D48: 013 | E48: 天然ガス
A49: 0621 | B49: 01 | C49: 0621 | D49: 011 | E49: 砂利・採石
A50: 0629 | B50: 09 | E50: その他の鉱物
C51: 0629 | D51: 091 | E51: 鉄鉱石
C52: 0629 | D52: 092 | E52: 非鉄金属鉱物
C53: 0629 | D53: 093 | E53: 石灰石
C54: 0629 | D54: 094 | E54: 窯業原料鉱物（石灰石を除く。）
C55: 0629 | D55: 099 | E55: 他に分類されない鉱物
A56: 1111 | B56: 01 | C56: 1111 | D56: 011 | E56: 食肉 | F56: 11 | G56: 飲食料品
A57: 1111 | B57: 02 | C57: 1111 | D57: 021 | E57: 酪農品
A58: 1111 | B58: 09 | C58: 1111 | D58: 099 | E58: その他の畜産食料品
A59: 1112 | B59: 01 | C59: 1112 | D59: 011 | E59: 冷凍魚介類
A60: 1112 | B60: 02 | C60: 1112 | D60: 021 | E60: 塩・干・くん製品
A61: 1112 | B61: 03 | C61: 1112 | D61: 031 | E61: 水産びん・かん詰
A62: 1112 | B62: 04 | C62: 1112 | D62: 041 | E62: ねり製品
A63: 1112 | B63: 09 | C63: 1112 | D63: 099 | E63: その他の水産食料品
A64: 1113 | B64: 01 | C64: 1113 | D64: 011 | E64: 精穀
A65: 1113 | B65: 02 | C65: 1113 | D65: 021 | E65: 製粉
A66: 1114 | B66: 01 | C66: 1114 | D66: 011 | E66: めん類
A67: 1114 | B67: 02 | C67: 1114 | D67: 021 | E67: パン類
A68: 1114 | B68: 03 | C68: 1114 | D68: 031 | E68: 菓子類
A69: 1115 | B69: 01 | C69: 1115 | D69: 011 | E69: 農産保存食料品
A70: 1116 | B70: 01 | C70: 1116 | D70: 011 | E70: 砂糖
A71: 1116 | B71: 02 | C71: 1116 | D71: 021 | E71: でん粉
A72: 1116 | B72: 03 | C72: 1116 | D72: 031 | E72: ぶどう糖・水あめ・異性化糖
A73: 1116 | B73: 04 | E73: 動植物油脂
C74: 1116 | D74: 041 | E74: 植物油脂
C75: 1116 | D75: 042 | E75: 動物油脂
C76: 1116 | D76: 043 | E76: 加工油脂
C77: 1116 | D77: 044 | E77: 植物原油かす
A78: 1116 | B78: 05 | C78: 1116 | D78: 051 | E78: 調味料
A79: 1119 | B79: 01 | C79: 1119 | D79: 011 | E79: 冷凍調理食品
A80: 1119 | B80: 02 | C80: 1119 | D80: 021 | E80: レトルト食品
A81: 1119 | B81: 03 | C81: 1119 | D81: 031 | E81: そう菜・すし・弁当
A82: 1119 | B82: 09 | C82: 1119 | D82: 099 | E82: その他の食料品
A83: 1121 | B83: 01 | C83: 1121 | D83: 011 | E83: 清酒
A84: 1121 | B84: 02 | C84: 1121 | D84: 021 | E84: ビール類
A85: 1121 | B85: 03 | C85: 1121 | D85: 031 | E85: ウイスキー類
A86: 1121 | B86: 09 | C86: 1121 | D86: 099 | E86: その他の酒類
A87: 1129 | B87: 01 | C87: 1129 | D87: 011 | E87: 茶・コーヒー
A88: 1129 | B88: 02 | C88: 1129 | D88: 021 | E88: 清涼飲料
A89: 1129 | B89: 03 | C89: 1129 | D89: 031 | E89: 製氷
A90: 1131 | B90: 01 | C90: 1131 | D90: 011 | E90: 飼料
A91: 1131 | B91: 02 | C91: 1131 | D91: 021 | E91: 有機質肥料（別掲を除く。）
A92: 1141 | B92: 01 | C92: 1141 | D92: 011 | E92: たばこ
A93: 1511 | B93: 01 | C93: 1511 | D93: 011 | E93: 紡績糸 | F93: 15 | G93: 繊維製品
A94: 1512 | B94: 01 | C94: 1512 | D94: 011 | E94: 綿・スフ織物（合繊短繊維織物を含む。）
A95: 1512 | B95: 02 | C95: 1512 | D95: 021 | E95: 絹・人絹織物（合繊長繊維織物を含む。）
A96: 1512 | B96: 09 | C96: 1512 | D96: 099 | E96: その他の織物
A97: 1513 | B97: 01 | C97: 1513 | D97: 011 | E97: ニット生地
A98: 1514 | B98: 01 | C98: 1514 | D98: 011 | E98: 染色整理
A99: 1519 | B99: 09 | C99: 1519 | D99: 099 | E99: その他の繊維工業製品
A100: 1521 | B100: 01 | C100: 1521 | D100: 011 | E100: 織物製衣服
A101: 1521 | B101: 02 | C101: 1521 | D101: 021 | E101: ニット製衣服
A102: 1522 | B102: 09 | C102: 1522 | D102: 099 | E102: その他の衣服・身の回り品
A103: 1529 | B103: 01 | C103: 1529 | D103: 011 | E103: 寝具
A104: 1529 | B104: 02 | C104: 1529 | D104: 021 | E104: じゅうたん・床敷物
A105: 1529 | B105: 09 | C105: 1529 | D105: 099 | E105: その他の繊維既製品
A106: 1611 | B106: 01 | C106: 1611 | D106: 011 | E106: 製材 | F106: 16 | G106: パルプ・紙・木製品
A107: 1611 | B107: 02 | C107: 1611 | D107: 021 | E107: 合板・集成材
A108: 1611 | B108: 03 | C108: 1611 | D108: 031 | E108: 木材チップ
A109: 1619 | B109: 09 | C109: 1619 | D109: 099 | E109: その他の木製品
A110: 1621 | B110: 01 | C110: 1621 | D110: 011 | E110: 木製家具
A111: 1621 | B111: 02 | C111: 1621 | D111: 021 | E111: 金属製家具
A112: 1621 | B112: 03 | C112: 1621 | D112: 031 | E112: 木製建具
A113: 1621 | B113: 09 | C113: 1621 | D113: 099 | E113: その他の家具・装備品
A114: 1631 | B114: 01 | C114: 1631 | D114: 011 | E114: パルプ
C115: 1631 | D115: 021P | E115: 古紙
A116: 1632 | B116: 01 | C116: 1632 | D116: 011 | E116: 洋紙・和紙
A117: 1632 | B117: 02 | C117: 1632 | D117: 021 | E117: 板紙
A118: 1633 | B118: 01 | C118: 1633 | D118: 011 | E118: 段ボール
A119: 1633 | B119: 02 | C119: 1633 | D119: 021 | E119: 塗工紙・建設用加工紙
A120: 1641 | B120: 01 | C120: 1641 | D120: 011 | E120: 段ボール箱
A121: 1641 | B121: 09 | C121: 1641 | D121: 099 | E121: その他の紙製容器
A122: 1649 | B122: 01 | C122: 1649 | D122: 011 | E122: 紙製衛生材料・用品
A123: 1649 | B123: 09 | C123: 1649 | D123: 099 | E123: その他のパルプ・紙・紙加工品
A124: 1911 | B124: 01 | C124: 1911 | D124: 011 | E124: 印刷・製版・製本 | F124: 39 | G124: その他の製造工業製品 （１／３）
A125: 2011 | B125: 01 | C125: 2011 | D125: 011 | E125: 化学肥料 | F125: 20 | G125: 化学製品
A126: 2021 | B126: 01 | C126: 2021 | D126: 011 | E126: ソーダ工業製品
A127: 2029 | B127: 01 | C127: 2029 | D127: 011 | E127: 無機顔料
A128: 2029 | B128: 02 | C128: 2029 | D128: 021 | E128: 圧縮ガス・液化ガス
A129: 2029 | B129: 03 | E129: 塩
C130: 2029 | D130: 031 | E130: 原塩
C131: 2029 | D131: 032 | E131: 塩
A132: 2029 | B132: 09 | C132: 2029 | D132: 099 | E132: その他の無機化学工業製品
A133: 2031 | B133: 01 | C133: 2031 | D133: 011 | E133: 石油化学基礎製品
A134: 2031 | B134: 02 | C134: 2031 | D134: 021 | E134: 石油化学系芳香族製品
A135: 2041 | B135: 01 | C135: 2041 | D135: 011 | E135: 脂肪族中間物
A136: 2041 | B136: 02 | C136: 2041 | D136: 021 | E136: 環式中間物・合成染料・有機顔料
A137: 2042 | B137: 01 | C137: 2042 | D137: 011 | E137: 合成ゴム
A138: 2049 | B138: 01 | C138: 2049 | D138: 011 | E138: メタン誘導品
A139: 2049 | B139: 02 | C139: 2049 | D139: 021 | E139: 可塑剤
A140: 2049 | B140: 09 | C140: 2049 | D140: 099 | E140: その他の有機化学工業製品
A141: 2051 | B141: 01 | C141: 2051 | D141: 011 | E141: 熱硬化性樹脂
A142: 2051 | B142: 02 | C142: 2051 | D142: 021 | E142: 熱可塑性樹脂
A143: 2051 | B143: 03 | C143: 2051 | D143: 031 | E143: 高機能性樹脂
A144: 2051 | B144: 09 | C144: 2051 | D144: 099 | E144: その他の合成樹脂
A145: 2061 | B145: 01 | C145: 2061 | D145: 011 | E145: 化学繊維
A146: 2071 | B146: 01 | C146: 2071 | D146: 011 | E146: 医薬品
A147: 2081 | B147: 01 | E147: 油脂加工製品・界面活性剤
C148: 2081 | D148: 011 | E148: 油脂加工製品
C149: 2081 | D149: 012 | E149: 石けん・合成洗剤
C150: 2081 | D150: 013 | E150: 界面活性剤（石けん・合成洗剤を除く。）
A151: 2082 | B151: 01 | C151: 2082 | D151: 011 | E151: 化粧品・歯磨
A152: 2083 | B152: 01 | C152: 2083 | D152: 011 | E152: 塗料
A153: 2083 | B153: 02 | C153: 2083 | D153: 021 | E153: 印刷インキ
A154: 2084 | B154: 01 | C154: 2084 | D154: 011 | E154: 農薬
A155: 2089 | B155: 01 | C155: 2089 | D155: 011 | E155: ゼラチン・接着剤
A156: 2089 | B156: 02 | C156: 2089 | D156: 021 | E156: 写真感光材料
A157: 2089 | B157: 09 | E157: その他の化学最終製品
C158: 2089 | D158: 091 | E158: 触媒
C159: 2089 | D159: 099 | E159: 他に分類されない化学最終製品
A160: 2111 | B160: 01 | E160: 石油製品 | F160: 21 | G160: 石油・石炭製品
C161: 2111 | D161: 011 | E161: ガソリン
C162: 2111 | D162: 012 | E162: ジェット燃料油
C163: 2111 | D163: 013 | E163: 灯油
C164: 2111 | D164: 014 | E164: 軽油
C165: 2111 | D165: 015 | E165: Ａ重油
C166: 2111 | D166: 016 | E166: Ｂ重油・Ｃ重油
C167: 2111 | D167: 017 | E167: ナフサ
C168: 2111 | D168: 018 | E168: 液化石油ガス
C169: 2111 | D169: 019 | E169: その他の石油製品
A170: 2121 | B170: 01 | E170: 石炭製品
C171: 2121 | D171: 011 | E171: コークス
C172: 2121 | D172: 019 | E172: その他の石炭製品
A173: 2121 | B173: 02 | C173: 2121 | D173: 021 | E173: 舗装材料
A174: 2211 | B174: 01 | E174: プラスチック製品 | F174: 22 | G174: プラスチック・ゴム製品
C175: 2211 | D175: 011 | E175: プラスチックフィルム・シート
C176: 2211 | D176: 012 | E176: プラスチック板・管・棒
C177: 2211 | D177: 013 | E177: プラスチック発泡製品
C178: 2211 | D178: 014 | E178: 工業用プラスチック製品
C179: 2211 | D179: 015 | E179: 強化プラスチック製品
C180: 2211 | D180: 016 | E180: プラスチック製容器
C181: 2211 | D181: 017 | E181: プラスチック製日用雑貨・食卓用品
C182: 2211 | D182: 019 | E182: その他のプラスチック製品
A183: 2221 | B183: 01 | C183: 2221 | D183: 011 | E183: タイヤ・チューブ
A184: 2229 | B184: 09 | E184: その他のゴム製品
C185: 2229 | D185: 091 | E185: ゴム製・プラスチック製履物
C186: 2229 | D186: 099 | E186: 他に分類されないゴム製品
A187: 2311 | B187: 01 | C187: 2311 | D187: 011 | E187: 革製履物 | F187: 39 | G187: その他の製造工業製品 （２／３）
A188: 2312 | B188: 01 | C188: 2312 | D188: 011 | E188: なめし革・革製品・毛皮（革製履物を除く。）
A189: 2511 | B189: 01 | C189: 2511 | D189: 011 | E189: 板ガラス・安全ガラス | F189: 25 | G189: 窯業・土石製品
A190: 2511 | B190: 02 | C190: 2511 | D190: 021 | E190: ガラス繊維・同製品
A191: 2511 | B191: 09 | E191: その他のガラス製品
C192: 2511 | D192: 091 | E192: ガラス製加工素材
C193: 2511 | D193: 099 | E193: 他に分類されないガラス製品
A194: 2521 | B194: 01 | C194: 2521 | D194: 011 | E194: セメント
A195: 2521 | B195: 02 | C195: 2521 | D195: 021 | E195: 生コンクリート
A196: 2521 | B196: 03 | C196: 2521 | D196: 031 | E196: セメント製品
A197: 2531 | B197: 01 | E197: 陶磁器
C198: 2531 | D198: 011 | E198: 建設用陶磁器
C199: 2531 | D199: 012 | E199: 工業用陶磁器
C200: 2531 | D200: 013 | E200: 日用陶磁器
A201: 2591 | B201: 01 | C201: 2591 | D201: 011 | E201: 耐火物
A202: 2591 | B202: 09 | C202: 2591 | D202: 099 | E202: その他の建設用土石製品
A203: 2599 | B203: 01 | C203: 2599 | D203: 011 | E203: 炭素・黒鉛製品
... 279 more rows

Sheet R2汎用結果
A1: 新規需要発生による市内波及の状況
B3: 発生需要額 | D3: ='R2汎用計算'!D43 -> 0 | E3: 百万円
B4: 直接効果 | C4: 市内生産額 | D4: ='R2汎用計算'!E43 -> 0 | E4: 百万円
C5: 粗付加価値額 | D5: ='R2汎用計算'!F43 -> 0 | E5: 百万円
C6: 雇用者誘発数 | D6: ='R2汎用計算'!H43 -> 0 | E6: 人
B7: １次波及 | C7: 生産誘発額 | D7: ='R2汎用計算'!K43 -> 0 | E7: 百万円
C8: 粗付加価値誘発額 | D8: ='R2汎用計算'!L43 -> 0 | E8: 百万円
C9: 雇用者誘発数 | D9: ='R2汎用計算'!N43 -> 0 | E9: 人
B10: 直接効果 | C10: 生産誘発額 | D10: ='R2汎用計算'!O43 -> 0 | E10: 百万円
B11: ＋１次波及 | C11: 粗付加価値誘発額 | D11: ='R2汎用計算'!P43 -> 0 | E11: 百万円
C12: 雇用者誘発数 | D12: ='R2汎用計算'!R43 -> 0 | E12: 人
C13: 雇用者所得合計額 | D13: ='R2汎用計算'!Q43 -> 0 | E13: 百万円
C14: 消費転換率 | D14: ='R2汎用計算'!S45 -> 0.553782614
C15: 消費喚起額 | D15: ='R2汎用計算'!S43 -> 0 | E15: 百万円
B16: ２次波及 | C16: 生産誘発額 | D16: ='R2汎用計算'!U43 -> 0 | E16: 百万円
C17: 粗付加価値誘発額 | D17: ='R2汎用計算'!V43 -> 0 | E17: 百万円
C18: 雇用者誘発数 | D18: ='R2汎用計算'!X43 -> 0 | E18: 人
B19: 直接効果 | C19: 生産誘発額 | D19: =D4+D7+D16 -> 0 | E19: 百万円
B20: ＋１次波及 | C20: 粗付加価値誘発額 | D20: =D5+D8+D17 -> 0 | E20: 百万円
B21: ＋２次波及 | C21: 雇用者誘発数 | D21: =D6+D9+D18 -> 0 | E21: 人

Sheet R2建設入力
A1: 建設 入力シート
A3: A、B について、黄色のシートに数値を入力してください
B8: 消費転換率（0から1の間の値） | C8: =+消費転換率!$C$9 -> 0.553782614
C10: 発生需要額
C11: (百万円)
B12: 建設
B13: ├建築
B14: │ ├住宅建築
B15: │ │ ├住宅建築（木造）
B16: │ │ │ ├木造在来住宅
B17: │ │ │ ├木造量産住宅
B18: │ │ ├住宅建築（非木造）
B19: │ │ │ ├ＳＲＣ住宅
B20: │ │ │ ├ＲＣ住宅
B21: │ │ │ │ ├ＲＣ在来住宅
B22: │ │ │ │ ├ＲＣ量産住宅
B23: │ │ │ ├Ｓ住宅
B24: │ │ │ │ ├Ｓ在来住宅
B25: │ │ │ │ ├Ｓ量産住宅
B26: │ │ │ ├ＣＢ住宅
B27: │ ├非住宅建築
B28: │ │ ├非住宅建築（木造）
B29: │ │ │ ├木造工場
B30: │ │ │ ├木造事務所
B31: │ │ ├非住宅建築（非木造）
B32: │ │ │ ├ＳＲＣ工場
B33: │ │ │ ├ＳＲＣ事務所
B34: │ │ │ ├ＲＣ工場
B35: │ │ │ ├ＲＣ学校
B36: │ │ │ ├ＲＣ事務所
B37: │ │ │ ├Ｓ工場
B38: │ │ │ ├Ｓ事務所
B39: │ │ │ ├ＣＢ非住宅
B40: ├建築補修
B41: ├土木
B42: │ ├公共事業
B43: │ │ ├道路関係公共事業
B44: │ │ │ ├道路
B45: │ │ │ │ ├一般道路
B46: │ │ │ │ │ ├道路改良
B47: │ │ │ │ │ ├道路舗装
B48: │ │ │ │ │ ├道路橋梁
B49: │ │ │ │ │ ├道路補修
B50: │ │ │ │ │ ├街路改良
B51: │ │ │ │ │ ├街路舗装
B52: │ │ │ │ │ ├街路橋梁
B53: │ │ │ │ ├有料道路
B54: │ │ │ │ │ ├高速有料道路
B55: 東日本高速道路㈱、 │ │ │ │ │ │ ├中日本高速道路㈱、 西日本高速道路㈱
B56: │ │ │ │ │ │ ├首都高速道路㈱
B57: │ │ │ │ │ │ ├阪神高速道路㈱
B58: │ │ │ │ │ │ ├本州四国連絡高速道路㈱
B59: │ │ │ │ │ ├一般有料道路
B60: 東日本高速道路㈱、 │ │ │ │ │ │ ├中日本高速道路㈱、 西日本高速道路㈱
B61: │ │ │ │ │ │ ├地方道路公社等
B62: │ │ │ ├区画整理
B63: │ │ ├河川・下水道・その他の公共事業
B64: │ │ ├治水
B65: │ │ │ ├河川改修
B66: │ │ │ ├河川総合
B67: │ │ │ ├海岸
B68: │ │ │ ├砂防
B69: │ │ ├下水道
B70: │ │ ├港湾・漁港
B71: │ │ ├空港
B72: │ │ ├廃棄物処理施設
B73: │ │ ├公園
B74: │ │ ├災害復旧
B75: │ ├農林関係公共事業
B76: │ ├その他の土木建設
B77: │ │ ├鉄道軌道建設
B78: │ │ ├電力施設建設
B79: │ │ ├電気通信施設建設
B80: │ │ │ ├上・工業用水道
B81: │ │ │ ├土地造成
B82: │ │ │ ├その他の土木
B83: 計 | C83: =SUM(C12:C82) -> 0

Sheet R2建設io
E6: 1 | F6: 2 | G6: 3 | H6: 4 | I6: 5 | J6: 6 | K6: 7 | L6: 8 | M6: 9 | N6: 10 | O6: 11 | P6: 12 | Q6: 13 | R6: 14 | S6: 15 | T6: 16 | U6: 17 | V6: 18 | W6: 19 | X6: 20 | Y6: 21 | Z6: 22 | AA6: 23 | AB6: 24 | AC6: 25 | AD6: 26 | AE6: 27 | AF6: 28 | AG6: 71 | AH6: 29 | AI6: 30 | AJ6: 31 | AK6: 32 | AL6: 33 | AM6: 34 | AN6: 35 | AO6: 36 | AP6: 37 | AQ6: 38 | AR6: 39 | AS6: 40 | AT6: 41 | AU6: 42 | AV6: 43 | AW6: 44 | AX6: 45 | AY6: 46 | AZ6: 47 | BA6: 48 | BB6: 49 | BC6: 50 | BD6: 51 | BE6: 52 | BF6: 53 | BG6: 54 | BH6: 55 | BI6: 56 | BJ6: 57 | BK6: 58 | BL6: 59 | BM6: 60 | BN6: 61 | BO6: 62 | BP6: 63 | BQ6: 64 | BR6: 65 | BS6: 66 | BT6: 67 | BU6: 68 | BV6: 69 | BW6: 70 | CG6: 1 | CH6: 2 | CI6: 3 | CJ6: 4 | CK6: 5 | CL6: 6 | CM6: 7 | CN6: 8 | CO6: 9 | CP6: 10 | CQ6: 11 | CR6: 12 | CS6: 13 | CT6: 14 | CU6: 15 | CV6: 16 | CW6: 17 | CX6: 18 | CY6: 19 | CZ6: 20 | DA6: 21 | DB6: 22 | DC6: 23 | DD6: 24 | DE6: 25 | DF6: 26 | DG6: 27 | DH6: 28 | DI6: 71 | DJ6: 29 | DK6: 30 | DL6: 31 | DM6: 32 | DN6: 33 | DO6: 34 | DP6: 35 | DQ6: 36 | DR6: 37 | DS6: 38 | DT6: 39 | DU6: 40 | DV6: 41 | DW6: 42 | DX6: 43 | DY6: 44 | DZ6: 45 | EA6: 46 | EB6: 47 | EC6: 48 | ED6: 49 | EE6: 50 | EF6: 51 | EG6: 52 | EH6: 53 | EI6: 54 | EJ6: 55 | EK6: 56 | EL6: 57 | EM6: 58 | EN6: 59 | EO6: 60 | EP6: 61 | EQ6: 62 | ER6: 63 | ES6: 64 | ET6: 65 | EU6: 66 | EV6: 67 | EW6: 68 | EX6: 69 | EY6: 70
A7: 産業別投入額 | E7: 建 設 | F7: 建 築 | G7: 住宅建築 | H7: 住宅建築 （木造） | I7: 木造在来 住宅 | J7: 木造量産 住宅 | K7: 住宅建築 （非木造） | L7: ＳＲＣ住宅 | M7: Ｒ Ｃ 住 宅 | N7: Ｒ Ｃ 在 来 住 宅 | O7: Ｒ Ｃ 量 産 住 宅 | P7: Ｓ 住 宅 | Q7: Ｓ在来住宅 | R7: Ｓ量産住宅 | S7: Ｃ Ｂ 住 宅 | T7: 非住宅建築 | U7: 非住宅建築 （ 木 造 ） | V7: 木 造 工 場 | W7: 木造事務所 | X7: 非住宅建築 （非木造） | Y7: ＳＲＣ工場 | Z7: Ｓ Ｒ Ｃ 事 務 所 | AA7: Ｒ Ｃ 工 場 | AB7: Ｒ Ｃ 学 校 | AC7: ＲＣ事務所 | AD7: Ｓ 工 場 | AE7: Ｓ 事 務 所 | AF7: ＣＢ非住宅 | AG7: 建 築 補 修 | AH7: 土 木 | AI7: 公 共 事 業 | AJ7: 道 路 関 係 公 共 事 業 | AK7: 道 路 | AL7: 一 般 道 路 | AM7: 道 路 改 良 | AN7: 道 路 舗 装 | AO7: 道 路 橋 梁 | AP7: 道 路 補 修 | AQ7: 街 路 改 良 | AR7: 街 路 舗 装 | AS7: 街 路 橋 梁 | AT7: 有 料 道 路 | AU7: 高 速 有 料 道 路 | AV7: 東日本高速 道路 （株）、 中日本高速 道路 （株）、 西日本高速 道路 （株） | AW7: 首 都 高 速 道 路 （株） | AX7: 阪 神 高 速 道 路 （株） | AY7: 本 州 四 国 連 絡 高 速 道 路 （株） | AZ7: 一 般 有 料 道 路 | BA7: 東日本高速 道路 （株）、 中日本高速 道路 （株）、 西日本高速 道路 （株） | BB7: 地 方 公 社 等 | BC7: 区 画 整 理 | BD7: 河川・下水 道・その他 の公共事業 | BE7: 治 水 | BF7: 河 川 改 修 | BG7: 河 川 総 合 開 発 | BH7: 海 岸 | BI7: 砂 防 | BJ7: 下 水 道 | BK7: 港湾・漁港 | BL7: 空 港 | BM7: 廃棄物処理 施設 | BN7: 公 園 | BO7: 災 害 復 旧 | BP7: 農 林 関 係 公 共 事 業 | BQ7: そ の 他 の 土 木 建 設 | BR7: 鉄 道 軌 道 建 設 | BS7: 電 力 施 設 建 設 | BT7: 電 気 通 信 施 設 建 設 | BU7: 上・工業用 水 道 | BV7: 土 地 造 成 | BW7: そ の 他 の 土 木 | CG7: 建 設 | CH7: 建 築 | CI7: 住宅建築 | CJ7: 住宅建築 （木造） | CK7: 木造在来 住宅 | CL7: 木造量産 住宅 | CM7: 住宅建築 （非木造） | CN7: ＳＲＣ住宅 | CO7: Ｒ Ｃ 住 宅 | CP7: Ｒ Ｃ 在 来 住 宅 | CQ7: Ｒ Ｃ 量 産 住 宅 | CR7: Ｓ 住 宅 | CS7: Ｓ在来住宅 | CT7: Ｓ量産住宅 | CU7: Ｃ Ｂ 住 宅 | CV7: 非住宅建築 | CW7: 非住宅建築 （ 木 造 ） | CX7: 木 造 工 場 | CY7: 木造事務所 | CZ7: 非住宅建築 （非木造） | DA7: ＳＲＣ工場 | DB7: Ｓ Ｒ Ｃ 事 務 所 | DC7: Ｒ Ｃ 工 場 | DD7: Ｒ Ｃ 学 校 | DE7: ＲＣ事務所 | DF7: Ｓ 工 場 | DG7: Ｓ 事 務 所 | DH7: ＣＢ非住宅 | DI7: 建 築 補 修 | DJ7: 土 木 | DK7: 公 共 事 業 | DL7: 道 路 関 係 公 共 事 業 | DM7: 道 路 | DN7: 一 般 道 路 | DO7: 道 路 改 良 | DP7: 道 路 舗 装 | DQ7: 道 路 橋 梁 | DR7: 道 路 補 修 | DS7: 街 路 改 良 | DT7: 街 路 舗 装 | DU7: 街 路 橋 梁 | DV7: 有 料 道 路 | DW7: 高 速 有 料 道 路 | DX7: 東日本高速 道路 （株）、 中日本高速 道路 （株）、 西日本高速 道路 （株） | DY7: 首 都 高 速 道 路 （株） | DZ7: 阪 神 高 速 道 路 （株） | EA7: 本 州 四 国 連 絡 高 速 道 路 （株） | EB7: 一 般 有 料 道 路 | EC7: 東日本高速 道路 （株）、 中日本高速 道路 （株）、 西日本高速 道路 （株） | ED7: 地 方 公 社 等 | EE7: 区 画 整 理 | EF7: 河川・下水 道・その他 の公共事業 | EG7: 治 水 | EH7: 河 川 改 修 | EI7: 河 川 総 合 開 発 | EJ7: 海 岸 | EK7: 砂 防 | EL7: 下 水 道 | EM7: 港湾・漁港 | EN7: 空 港 | EO7: 廃棄物処理 施設 | EP7: 公 園 | EQ7: 災 害 復 旧 | ER7: 農 林 関 係 公 共 事 業 | ES7: そ の 他 の 土 木 建 設 | ET7: 鉄 道 軌 道 建 設 | EU7: 電 力 施 設 建 設 | EV7: 電 気 通 信 施 設 建 設 | EW7: 上・工業用 水 道 | EX7: 土 地 造 成 | EY7: そ の 他 の 土 木
A8: =SUM(E8:BW8) -> 0 | C8: 01 | D8: 農林漁業 | E8: =E$56*CG8 -> 0 | F8: =F$56*CH8 -> 0 | G8: 0 | H8: 0 | I8: 0 | J8: 0 | K8: 0 | L8: 0 | M8: 0 | N8: 0 | O8: 0 | P8: 0 | Q8: 0 | R8: 0 | S8: 0 | T8: 0 | U8: 0 | V8: =V$56*CX8 -> 0 | W8: 0 | X8: 0 | Y8: 0 | Z8: 0 | AA8: 0 | AB8: 0 | AC8: 0 | AD8: 0 | AE8: 0 | AF8: 0 | AG8: 0 | AH8: 0 | AI8: 0 | AJ8: 0 | AK8: 0 | AL8: =AL$56*DN8 -> 0 | AM8: 0 | AN8: 0 | AO8: 0 | AP8: 0 | AQ8: 0 | AR8: 0 | AS8: 0 | AT8: 0 | AU8: 0 | AV8: 0 | AW8: 0 | AX8: 0 | AY8: 0 | AZ8: 0 | BA8: 0 | BB8: =BB$56*ED8 -> 0 | BC8: 0 | BD8: 0 | BE8: 0 | BF8: 0 | BG8: 0 | BH8: 0 | BI8: 0 | BJ8: 0 | BK8: 0 | BL8: 0 | BM8: 0 | BN8: 0 | BO8: 0 | BP8: 0 | BQ8: 0 | BR8: =BR$56*ET8 -> 0 | BS8: 0 | BT8: 0 | BU8: 0 | BV8: 0 | BW8: 0 | CE8: =+C8 -> 01 | CF8: =+D8 -> 農林漁業 | CG8: =+SUMIFS('R2建設IOデータ'!L:L,'R2建設IOデータ'!$A:$A,'R2建設io'!$CE8)/'R2建設IOデータ'!L$232 -> 0.0009922490805 | CH8: =+SUMIFS('R2建設IOデータ'!M:M,'R2建設IOデータ'!$A:$A,'R2建設io'!$CE8)/'R2建設IOデータ'!M$232 -> 0.0007066042467 | CI8: =+SUMIFS('R2建設IOデータ'!N:N,'R2建設IOデータ'!$A:$A,'R2建設io'!$CE8)/'R2建設IOデータ'!N$232 -> 0.0006186025671 | CJ8: =+SUMIFS('R2建設IOデータ'!O:O,'R2建設IOデータ'!$A:$A,'R2建設io'!$CE8)/'R2建設IOデータ'!O$232 -> 0.0002039974609 | CK8: =+SUMIFS('R2建設IOデータ'!P:P,'R2建設IOデータ'!$A:$A,'R2建設io'!$CE8)/'R2建設IOデータ'!P$232 -> 0.0002001686249 | CL8: =+SUMIFS('R2建設IOデータ'!Q:Q,'R2建設IOデータ'!$A:$A,'R2建設io'!$CE8)/'R2建設IOデータ'!Q$232 -> 0.0003781957541 | CM8: =+SUMIFS('R2建設IOデータ'!R:R,'R2建設IOデータ'!$A:$A,'R2建設io'!$CE8)/'R2建設IOデータ'!R$232 -> 0.001205561613 | CN8: =+SUMIFS('R2建設IOデータ'!S:S,'R2建設IOデータ'!$A:$A,'R2建設io'!$CE8)/'R2建設IOデータ'!S$232 -> 0.0006546076362 | CO8: =+SUMIFS('R2建設IOデータ'!T:T,'R2建設IOデータ'!$A:$A,'R2建設io'!$CE8)/'R2建設IOデータ'!T$232 -> 0.001373789894 | CP8: =+SUMIFS('R2建設IOデータ'!U:U,'R2建設IOデータ'!$A:$A,'R2建設io'!$CE8)/'R2建設IOデータ'!U$232 -> 0.001381802749 | CQ8: =+SUMIFS('R2建設IOデータ'!V:V,'R2建設IOデータ'!$A:$A,'R2建設io'!$CE8)/'R2建設IOデータ'!V$232 -> 0.0007961481594 | CR8: =+SUMIFS('R2建設IOデータ'!W:W,'R2建設IOデータ'!$A:$A,'R2建設io'!$CE8)/'R2建設IOデータ'!W$232 -> 0.000994764585 | CS8: =+SUMIFS('R2建設IOデータ'!X:X,'R2建設IOデータ'!$A:$A,'R2建設io'!$CE8)/'R2建設IOデータ'!X$232 -> 0.001209367297 | CT8: =+SUMIFS('R2建設IOデータ'!Y:Y,'R2建設IOデータ'!$A:$A,'R2建設io'!$CE8)/'R2建設IOデータ'!Y$232 -> 0.0009062019316 | CU8: =+SUMIFS('R2建設IOデータ'!Z:Z,'R2建設IOデータ'!$A:$A,'R2建設io'!$CE8)/'R2建設IOデータ'!Z$232 -> 0 | CV8: =+SUMIFS('R2建設IOデータ'!AA:AA,'R2建設IOデータ'!$A:$A,'R2建設io'!$CE8)/'R2建設IOデータ'!AA$232 -> 0.0007986132385 | CW8: =+SUMIFS('R2建設IOデータ'!AB:AB,'R2建設IOデータ'!$A:$A,'R2建設io'!$CE8)/'R2建設IOデータ'!AB$232 -> 0.0004963152511 | CX8: =+SUMIFS('R2建設IOデータ'!AC:AC,'R2建設IOデータ'!$A:$A,'R2建設io'!$CE8)/'R2建設IOデータ'!AC$232 -> 0.001099372054 | CY8: =+SUMIFS('R2建設IOデータ'!AD:AD,'R2建設IOデータ'!$A:$A,'R2建設io'!$CE8)/'R2建設IOデータ'!AD$232 -> 0.000420138893 | CZ8: =+SUMIFS('R2建設IOデータ'!AE:AE,'R2建設IOデータ'!$A:$A,'R2建設io'!$CE8)/'R2建設IOデータ'!AE$232 -> 0.0008191443756 | DA8: =+SUMIFS('R2建設IOデータ'!AF:AF,'R2建設IOデータ'!$A:$A,'R2建設io'!$CE8)/'R2建設IOデータ'!AF$232 -> 0.0006606904215 | DB8: =+SUMIFS('R2建設IOデータ'!AG:AG,'R2建設IOデータ'!$A:$A,'R2建設io'!$CE8)/'R2建設IOデータ'!AG$232 -> 0.000181192245 | DC8: =+SUMIFS('R2建設IOデータ'!AH:AH,'R2建設IOデータ'!$A:$A,'R2建設io'!$CE8)/'R2建設IOデータ'!AH$232 -> 0.0005328018154 | DD8: =+SUMIFS('R2建設IOデータ'!AI:AI,'R2建設IOデータ'!$A:$A,'R2建設io'!$CE8)/'R2建設IOデータ'!AI$232 -> 0.001464530144 | DE8: =+SUMIFS('R2建設IOデータ'!AJ:AJ,'R2建設IOデータ'!$A:$A,'R2建設io'!$CE8)/'R2建設IOデータ'!AJ$232 -> 0.000821774054 | DF8: =+SUMIFS('R2建設IOデータ'!AK:AK,'R2建設IOデータ'!$A:$A,'R2建設io'!$CE8)/'R2建設IOデータ'!AK$232 -> 0.0007630402414 | DG8: =+SUMIFS('R2建設IOデータ'!AL:AL,'R2建設IOデータ'!$A:$A,'R2建設io'!$CE8)/'R2建設IOデータ'!AL$232 -> 0.0008735867301 | DH8: =+SUMIFS('R2建設IOデータ'!AM:AM,'R2建設IOデータ'!$A:$A,'R2建設io'!$CE8)/'R2建設IOデータ'!AM$232 -> 0.001204683206 | DI8: =+SUMIFS('R2建設IOデータ'!AN:AN,'R2建設IOデータ'!$A:$A,'R2建設io'!$CE8)/'R2建設IOデータ'!AN$232 -> 5.762725652e-05 | DJ8: =+SUMIFS('R2建設IOデータ'!AO:AO,'R2建設IOデータ'!$A:$A,'R2建設io'!$CE8)/'R2建設IOデータ'!AO$232 -> 0.001803896997 | DK8: =+SUMIFS('R2建設IOデータ'!AP:AP,'R2建設IOデータ'!$A:$A,'R2建設io'!$CE8)/'R2建設IOデータ'!AP$232 -> 0.001824271943 | DL8: =+SUMIFS('R2建設IOデータ'!AQ:AQ,'R2建設IOデータ'!$A:$A,'R2建設io'!$CE8)/'R2建設IOデータ'!AQ$232 -> 0.002597010944 | DM8: =+SUMIFS('R2建設IOデータ'!AR:AR,'R2建設IOデータ'!$A:$A,'R2建設io'!$CE8)/'R2建設IOデータ'!AR$232 -> 0.002618697202 | DN8: =+SUMIFS('R2建設IOデータ'!AS:AS,'R2建設IOデータ'!$A:$A,'R2建設io'!$CE8)/'R2建設IOデータ'!AS$232 -> 0.00178559387 | DO8: =+SUMIFS('R2建設IOデータ'!AT:AT,'R2建設IOデータ'!$A:$A,'R2建設io'!$CE8)/'R2建設IOデータ'!AT$232 -> 0.003473847086 | DP8: =+SUMIFS('R2建設IOデータ'!AU:AU,'R2建設IOデータ'!$A:$A,'R2建設io'!$CE8)/'R2建設IOデータ'!AU$232 -> 0.0002048504023 | DQ8: =+SUMIFS('R2建設IOデータ'!AV:AV,'R2建設IOデータ'!$A:$A,'R2建設io'!$CE8)/'R2建設IOデータ'!AV$232 -> 7.087594159e-05 | DR8: =+SUMIFS('R2建設IOデータ'!AW:AW,'R2建設IOデータ'!$A:$A,'R2建設io'!$CE8)/'R2建設IOデータ'!AW$232 -> 0.0007625552839 | DS8: =+SUMIFS('R2建設IOデータ'!AX:AX,'R2建設IOデータ'!$A:$A,'R2建設io'!$CE8)/'R2建設IOデータ'!AX$232 -> 0.0004075062654 | DT8: =+SUMIFS('R2建設IOデータ'!AY:AY,'R2建設IOデータ'!$A:$A,'R2建設io'!$CE8)/'R2建設IOデータ'!AY$232 -> 0.0003312720848 | DU8: =+SUMIFS('R2建設IOデータ'!AZ:AZ,'R2建設IOデータ'!$A:$A,'R2建設io'!$CE8)/'R2建設IOデータ'!AZ$232 -> 7.284912945e-05 | DV8: =+SUMIFS('R2建設IOデータ'!BA:BA,'R2建設IOデータ'!$A:$A,'R2建設io'!$CE8)/'R2建設IOデータ'!BA$232 -> 0.006121826494 | DW8: =+SUMIFS('R2建設IOデータ'!BB:BB,'R2建設IOデータ'!$A:$A,'R2建設io'!$CE8)/'R2建設IOデータ'!BB$232 -> 0.006535136211 | DX8: =+SUMIFS('R2建設IOデータ'!BC:BC,'R2建設IOデータ'!$A:$A,'R2建設io'!$CE8)/'R2建設IOデータ'!BC$232 -> 0.007374301427 | DY8: =+SUMIFS('R2建設IOデータ'!BD:BD,'R2建設IOデータ'!$A:$A,'R2建設io'!$CE8)/'R2建設IOデータ'!BD$232 -> 3.843886938e-05 | DZ8: =+SUMIFS('R2建設IOデータ'!BE:BE,'R2建設IOデータ'!$A:$A,'R2建設io'!$CE8)/'R2建設IOデータ'!BE$232 -> 4.589261129e-05 | EA8: =+SUMIFS('R2建設IOデータ'!BF:BF,'R2建設IOデータ'!$A:$A,'R2建設io'!$CE8)/'R2建設IOデータ'!BF$232 -> 0 | EB8: =+SUMIFS('R2建設IOデータ'!BG:BG,'R2建設IOデータ'!$A:$A,'R2建設io'!$CE8)/'R2建設IOデータ'!BG$232 -> 0.002055358961 | EC8: =+SUMIFS('R2建設IOデータ'!BH:BH,'R2建設IOデータ'!$A:$A,'R2建設io'!$CE8)/'R2建設IOデータ'!BH$232 -> 0.002094600192 | ED8: =+SUMIFS('R2建設IOデータ'!BI:BI,'R2建設IOデータ'!$A:$A,'R2建設io'!$CE8)/'R2建設IOデータ'!BI$232 -> 0.001877480957 | EE8: =+SUMIFS('R2建設IOデータ'!BJ:BJ,'R2建設IOデータ'!$A:$A,'R2建設io'!$CE8)/'R2建設IOデータ'!BJ$232 -> 0.00129235032 | EF8: =+SUMIFS('R2建設IOデータ'!BK:BK,'R2建設IOデータ'!$A:$A,'R2建設io'!$CE8)/'R2建設IOデータ'!BK$232 -> 0.001143461962 | EG8: =+SUMIFS('R2建設IOデータ'!BL:BL,'R2建設IOデータ'!$A:$A,'R2建設io'!$CE8)/'R2建設IOデータ'!BL$232 -> 0.002002715727 | EH8: =+SUMIFS('R2建設IOデータ'!BM:BM,'R2建設IOデータ'!$A:$A,'R2建設io'!$CE8)/'R2建設IOデータ'!BM$232 -> 0.001580135287 | EI8: =+SUMIFS('R2建設IOデータ'!BN:BN,'R2建設IOデータ'!$A:$A,'R2建設io'!$CE8)/'R2建設IOデータ'!BN$232 -> 0.004303810405 | EJ8: =+SUMIFS('R2建設IOデータ'!BO:BO,'R2建設IOデータ'!$A:$A,'R2建設io'!$CE8)/'R2建設IOデータ'!BO$232 -> 5.687440993e-06 | EK8: =+SUMIFS('R2建設IOデータ'!BP:BP,'R2建設IOデータ'!$A:$A,'R2建設io'!$CE8)/'R2建設IOデータ'!BP$232 -> 0.003304363778 | EL8: =+SUMIFS('R2建設IOデータ'!BQ:BQ,'R2建設IOデータ'!$A:$A,'R2建設io'!$CE8)/'R2建設IOデータ'!BQ$232 -> 2.57942257e-05 | EM8: =+SUMIFS('R2建設IOデータ'!BR:BR,'R2建設IOデータ'!$A:$A,'R2建設io'!$CE8)/'R2建設IOデータ'!BR$232 -> 0.0002346606221 | EN8: =+SUMIFS('R2建設IOデータ'!BS:BS,'R2建設IOデータ'!$A:$A,'R2建設io'!$CE8)/'R2建設IOデータ'!BS$232 -> 0.0002009350176 | EO8: =+SUMIFS('R2建設IOデータ'!BT:BT,'R2建設IOデータ'!$A:$A,'R2建設io'!$CE8)/'R2建設IOデータ'!BT$232 -> 0.0001325504285 | EP8: =+SUMIFS('R2建設IOデータ'!BU:BU,'R2建設IOデータ'!$A:$A,'R2建設io'!$CE8)/'R2建設IOデータ'!BU$232 -> 0.004980039166 | EQ8: =+SUMIFS('R2建設IOデータ'!BV:BV,'R2建設IOデータ'!$A:$A,'R2建設io'!$CE8)/'R2建設IOデータ'!BV$232 -> 0.001218401024 | ER8: =+SUMIFS('R2建設IOデータ'!BW:BW,'R2建設IOデータ'!$A:$A,'R2建設io'!$CE8)/'R2建設IOデータ'!BW$232 -> 0.001473338291 | ES8: =+SUMIFS('R2建設IOデータ'!BX:BX,'R2建設IOデータ'!$A:$A,'R2建設io'!$CE8)/'R2建設IOデータ'!BX$232 -> 0.001775153614 | ET8: =+SUMIFS('R2建設IOデータ'!BY:BY,'R2建設IOデータ'!$A:$A,'R2建設io'!$CE8)/'R2建設IOデータ'!BY$232 -> 0.0002359471322 | EU8: =+SUMIFS('R2建設IOデータ'!BZ:BZ,'R2建設IOデータ'!$A:$A,'R2建設io'!$CE8)/'R2建設IOデータ'!BZ$232 -> 0.0005794595886 | EV8: =+SUMIFS('R2建設IOデータ'!CA:CA,'R2建設IOデータ'!$A:$A,'R2建設io'!$CE8)/'R2建設IOデータ'!CA$232 -> 0.000112203257 | EW8: =+SUMIFS('R2建設IOデータ'!CB:CB,'R2建設IOデータ'!$A:$A,'R2建設io'!$CE8)/'R2建設IOデータ'!CB$232 -> 0.0001024309333 | EX8: =+SUMIFS('R2建設IOデータ'!CC:CC,'R2建設IOデータ'!$A:$A,'R2建設io'!$CE8)/'R2建設IOデータ'!CC$232 -> 0.001032818469 | EY8: =+SUMIFS('R2建設IOデータ'!CD:CD,'R2建設IOデータ'!$A:$A,'R2建設io'!$CE8)/'R2建設IOデータ'!CD$232 -> 0.005097076266
A9: 0 | C9: 06 | D9: 鉱業 | E9: =E$56*CG9 -> 0 | F9: 0 | G9: 0 | H9: 0 | I9: 0 | J9: 0 | K9: 0 | L9: 0 | M9: 0 | N9: 0 | O9: 0 | P9: 0 | Q9: 0 | R9: 0 | S9: 0 | T9: 0 | U9: 0 | V9: 0 | W9: 0 | X9: 0 | Y9: 0 | Z9: 0 | AA9: 0 | AB9: 0 | AC9: 0 | AD9: 0 | AE9: 0 | AF9: 0 | AG9: 0 | AH9: 0 | AI9: 0 | AJ9: 0 | AK9: 0 | AL9: 0 | AM9: 0 | AN9: 0 | AO9: 0 | AP9: 0 | AQ9: 0 | AR9: 0 | AS9: 0 | AT9: 0 | AU9: 0 | AV9: 0 | AW9: 0 | AX9: 0 | AY9: 0 | AZ9: 0 | BA9: 0 | BB9: 0 | BC9: 0 | BD9: 0 | BE9: 0 | BF9: 0 | BG9: 0 | BH9: 0 | BI9: 0 | BJ9: 0 | BK9: 0 | BL9: 0 | BM9: 0 | BN9: 0 | BO9: 0 | BP9: 0 | BQ9: 0 | BR9: 0 | BS9: 0 | BT9: 0 | BU9: 0 | BV9: 0 | BW9: 0 | CE9: =+C9 -> 06 | CF9: 鉱業 | CG9: =+SUMIFS('R2建設IOデータ'!L:L,'R2建設IOデータ'!$A:$A,'R2建設io'!$CE9)/'R2建設IOデータ'!L$232 -> 0.002006694614 | CH9: =+SUMIFS('R2建設IOデータ'!M:M,'R2建設IOデータ'!$A:$A,'R2建設io'!$CE9)/'R2建設IOデータ'!M$232 -> 0.001063626024 | CI9: =+SUMIFS('R2建設IOデータ'!N:N,'R2建設IOデータ'!$A:$A,'R2建設io'!$CE9)/'R2建設IOデータ'!N$232 -> 0.001252585985 | CJ9: =+SUMIFS('R2建設IOデータ'!O:O,'R2建設IOデータ'!$A:$A,'R2建設io'!$CE9)/'R2建設IOデータ'!O$232 -> 0.001230491862 | CK9: =+SUMIFS('R2建設IOデータ'!P:P,'R2建設IOデータ'!$A:$A,'R2建設io'!$CE9)/'R2建設IOデータ'!P$232 -> 0.001244348367 | CL9: =+SUMIFS('R2建設IOデータ'!Q:Q,'R2建設IOデータ'!$A:$A,'R2建設io'!$CE9)/'R2建設IOデータ'!Q$232 -> 0.0006000705965 | CM9: =+SUMIFS('R2建設IOデータ'!R:R,'R2建設IOデータ'!$A:$A,'R2建設io'!$CE9)/'R2建設IOデータ'!R$232 -> 0.001283864774 | CN9: =+SUMIFS('R2建設IOデータ'!S:S,'R2建設IOデータ'!$A:$A,'R2建設io'!$CE9)/'R2建設IOデータ'!S$232 -> 0.0008683570684 | CO9: =+SUMIFS('R2建設IOデータ'!T:T,'R2建設IOデータ'!$A:$A,'R2建設io'!$CE9)/'R2建設IOデータ'!T$232 -> 0.001387794926 | CP9: =+SUMIFS('R2建設IOデータ'!U:U,'R2建設IOデータ'!$A:$A,'R2建設io'!$CE9)/'R2建設IOデータ'!U$232 -> 0.001381539799 | CQ9: =+SUMIFS('R2建設IOデータ'!V:V,'R2建設IOデータ'!$A:$A,'R2建設io'!$CE9)/'R2建設IOデータ'!V$232 -> 0.00183872313 | CR9: =+SUMIFS('R2建設IOデータ'!W:W,'R2建設IOデータ'!$A:$A,'R2建設io'!$CE9)/'R2建設IOデータ'!W$232 -> 0.001155530609 | CS9: =+SUMIFS('R2建設IOデータ'!X:X,'R2建設IOデータ'!$A:$A,'R2建設io'!$CE9)/'R2建設IOデータ'!X$232 -> 0.0008153037958 | CT9: =+SUMIFS('R2建設IOデータ'!Y:Y,'R2建設IOデータ'!$A:$A,'R2建設io'!$CE9)/'R2建設IOデータ'!Y$232 -> 0.001295936054 | CU9: =+SUMIFS('R2建設IOデータ'!Z:Z,'R2建設IOデータ'!$A:$A,'R2建設io'!$CE9)/'R2建設IOデータ'!Z$232 -> 0.0005525123526 | CV9: =+SUMIFS('R2建設IOデータ'!AA:AA,'R2建設IOデータ'!$A:$A,'R2建設io'!$CE9)/'R2建設IOデータ'!AA$232 -> 0.0008660614359 | CW9: =+SUMIFS('R2建設IOデータ'!AB:AB,'R2建設IOデータ'!$A:$A,'R2建設io'!$CE9)/'R2建設IOデータ'!AB$232 -> 0.001849427357 | CX9: =+SUMIFS('R2建設IOデータ'!AC:AC,'R2建設IOデータ'!$A:$A,'R2建設io'!$CE9)/'R2建設IOデータ'!AC$232 -> 0.00437885479 | CY9: =+SUMIFS('R2建設IOデータ'!AD:AD,'R2建設IOデータ'!$A:$A,'R2建設io'!$CE9)/'R2建設IOデータ'!AD$232 -> 0.001529917537 | CZ9: =+SUMIFS('R2建設IOデータ'!AE:AE,'R2建設IOデータ'!$A:$A,'R2建設io'!$CE9)/'R2建設IOデータ'!AE$232 -> 0.0007992742876 | DA9: =+SUMIFS('R2建設IOデータ'!AF:AF,'R2建設IOデータ'!$A:$A,'R2建設io'!$CE9)/'R2建設IOデータ'!AF$232 -> 0.0007357688785 | DB9: =+SUMIFS('R2建設IOデータ'!AG:AG,'R2建設IOデータ'!$A:$A,'R2建設io'!$CE9)/'R2建設IOデータ'!AG$232 -> 0.0004952588029 | DC9: =+SUMIFS('R2建設IOデータ'!AH:AH,'R2建設IOデータ'!$A:$A,'R2建設io'!$CE9)/'R2建設IOデータ'!AH$232 -> 0.0008666053624 | DD9: =+SUMIFS('R2建設IOデータ'!AI:AI,'R2建設IOデータ'!$A:$A,'R2建設io'!$CE9)/'R2建設IOデータ'!AI$232 -> 0.0009736261848 | DE9: =+SUMIFS('R2建設IOデータ'!AJ:AJ,'R2建設IOデータ'!$A:$A,'R2建設io'!$CE9)/'R2建設IOデータ'!AJ$232 -> 0.0008497143719 | DF9: =+SUMIFS('R2建設IOデータ'!AK:AK,'R2建設IOデータ'!$A:$A,'R2建設io'!$CE9)/'R2建設IOデータ'!AK$232 -> 0.0009563371692 | DG9: =+SUMIFS('R2建設IOデータ'!AL:AL,'R2建設IOデータ'!$A:$A,'R2建設io'!$CE9)/'R2建設IOデータ'!AL$232 -> 0.0006753173897 | DH9: =+SUMIFS('R2建設IOデータ'!AM:AM,'R2建設IOデータ'!$A:$A,'R2建設io'!$CE9)/'R2建設IOデータ'!AM$232 -> 0.0005872830629 | DI9: =+SUMIFS('R2建設IOデータ'!AN:AN,'R2建設IOデータ'!$A:$A,'R2建設io'!$CE9)/'R2建設IOデータ'!AN$232 -> 0.0001578869222 | DJ9: =+SUMIFS('R2建設IOデータ'!AO:AO,'R2建設IOデータ'!$A:$A,'R2建設io'!$CE9)/'R2建設IOデータ'!AO$232 -> 0.0041275264 | DK9: =+SUMIFS('R2建設IOデータ'!AP:AP,'R2建設IOデータ'!$A:$A,'R2建設io'!$CE9)/'R2建設IOデータ'!AP$232 -> 0.004057771638 | DL9: =+SUMIFS('R2建設IOデータ'!AQ:AQ,'R2建設IOデータ'!$A:$A,'R2建設io'!$CE9)/'R2建設IOデータ'!AQ$232 -> 0.003187478901 | DM9: =+SUMIFS('R2建設IOデータ'!AR:AR,'R2建設IOデータ'!$A:$A,'R2建設io'!$CE9)/'R2建設IOデータ'!AR$232 -> 0.003144052062 | DN9: =+SUMIFS('R2建設IOデータ'!AS:AS,'R2建設IOデータ'!$A:$A,'R2建設io'!$CE9)/'R2建設IOデータ'!AS$232 -> 0.003428876291 | DO9: =+SUMIFS('R2建設IOデータ'!AT:AT,'R2建設IOデータ'!$A:$A,'R2建設io'!$CE9)/'R2建設IOデータ'!AT$232 -> 0.005400895781 | DP9: =+SUMIFS('R2建設IOデータ'!AU:AU,'R2建設IOデータ'!$A:$A,'R2建設io'!$CE9)/'R2建設IOデータ'!AU$232 -> 0.00141119166 | DQ9: =+SUMIFS('R2建設IOデータ'!AV:AV,'R2建設IOデータ'!$A:$A,'R2建設io'!$CE9)/'R2建設IOデータ'!AV$232 -> 0.0006775740016 | DR9: =+SUMIFS('R2建設IOデータ'!AW:AW,'R2建設IOデータ'!$A:$A,'R2建設io'!$CE9)/'R2建設IOデータ'!AW$232 -> 0.00229815492 | DS9: =+SUMIFS('R2建設IOデータ'!AX:AX,'R2建設IOデータ'!$A:$A,'R2建設io'!$CE9)/'R2建設IOデータ'!AX$232 -> 0.002220909146 | DT9: =+SUMIFS('R2建設IOデータ'!AY:AY,'R2建設IOデータ'!$A:$A,'R2建設io'!$CE9)/'R2建設IOデータ'!AY$232 -> 0.002429328622 | DU9: =+SUMIFS('R2建設IOデータ'!AZ:AZ,'R2建設IOデータ'!$A:$A,'R2建設io'!$CE9)/'R2建設IOデータ'!AZ$232 -> 0.0008741895534 | DV9: =+SUMIFS('R2建設IOデータ'!BA:BA,'R2建設IOデータ'!$A:$A,'R2建設io'!$CE9)/'R2建設IOデータ'!BA$232 -> 0.001946390189 | DW9: =+SUMIFS('R2建設IOデータ'!BB:BB,'R2建設IOデータ'!$A:$A,'R2建設io'!$CE9)/'R2建設IOデータ'!BB$232 -> 0.001832833738 | DX9: =+SUMIFS('R2建設IOデータ'!BC:BC,'R2建設IOデータ'!$A:$A,'R2建設io'!$CE9)/'R2建設IOデータ'!BC$232 -> 0.002064982415 | DY9: =+SUMIFS('R2建設IOデータ'!BD:BD,'R2建設IOデータ'!$A:$A,'R2建設io'!$CE9)/'R2建設IOデータ'!BD$232 -> 2.562591292e-05 | DZ9: =+SUMIFS('R2建設IOデータ'!BE:BE,'R2建設IOデータ'!$A:$A,'R2建設io'!$CE9)/'R2建設IOデータ'!BE$232 -> 0 | EA9: =+SUMIFS('R2建設IOデータ'!BF:BF,'R2建設IOデータ'!$A:$A,'R2建設io'!$CE9)/'R2建設IOデータ'!BF$232 -> 0.0001235406758 | EB9: =+SUMIFS('R2建設IOデータ'!BG:BG,'R2建設IOデータ'!$A:$A,'R2建設io'!$CE9)/'R2建設IOデータ'!BG$232 -> 0.003063648262 | EC9: =+SUMIFS('R2建設IOデータ'!BH:BH,'R2建設IOデータ'!$A:$A,'R2建設io'!$CE9)/'R2建設IOデータ'!BH$232 -> 0.003112315539 | ED9: =+SUMIFS('R2建設IOデータ'!BI:BI,'R2建設IOデータ'!$A:$A,'R2建設io'!$CE9)/'R2建設IOデータ'!BI$232 -> 0.002843042592 | EE9: =+SUMIFS('R2建設IOデータ'!BJ:BJ,'R2建設IOデータ'!$A:$A,'R2建設io'!$CE9)/'R2建設IOデータ'!BJ$232 -> 0.005800068236 | EF9: =+SUMIFS('R2建設IOデータ'!BK:BK,'R2建設IOデータ'!$A:$A,'R2建設io'!$CE9)/'R2建設IOデータ'!BK$232 -> 0.004631792445 | EG9: =+SUMIFS('R2建設IOデータ'!BL:BL,'R2建設IOデータ'!$A:$A,'R2建設io'!$CE9)/'R2建設IOデータ'!BL$232 -> 0.003858934458 | EH9: =+SUMIFS('R2建設IOデータ'!BM:BM,'R2建設IOデータ'!$A:$A,'R2建設io'!$CE9)/'R2建設IOデータ'!BM$232 -> 0.003919415139 | EI9: =+SUMIFS('R2建設IOデータ'!BN:BN,'R2建設IOデータ'!$A:$A,'R2建設io'!$CE9)/'R2建設IOデータ'!BN$232 -> 0.0008232882701 | EJ9: =+SUMIFS('R2建設IOデータ'!BO:BO,'R2建設IOデータ'!$A:$A,'R2建設io'!$CE9)/'R2建設IOデータ'!BO$232 -> 0.01448591221 | EK9: =+SUMIFS('R2建設IOデータ'!BP:BP,'R2建設IOデータ'!$A:$A,'R2建設io'!$CE9)/'R2建設IOデータ'!BP$232 -> 0.0005962072049 | EL9: =+SUMIFS('R2建設IOデータ'!BQ:BQ,'R2建設IOデータ'!$A:$A,'R2建設io'!$CE9)/'R2建設IOデータ'!BQ$232 -> 0.002311162623 | EM9: =+SUMIFS('R2建設IOデータ'!BR:BR,'R2建設IOデータ'!$A:$A,'R2建設io'!$CE9)/'R2建設IOデータ'!BR$232 -> 0.01112391204 | EN9: =+SUMIFS('R2建設IOデータ'!BS:BS,'R2建設IOデータ'!$A:$A,'R2建設io'!$CE9)/'R2建設IOデータ'!BS$232 -> 0.007715904676 | EO9: =+SUMIFS('R2建設IOデータ'!BT:BT,'R2建設IOデータ'!$A:$A,'R2建設io'!$CE9)/'R2建設IOデータ'!BT$232 -> 0.004846993281 | EP9: =+SUMIFS('R2建設IOデータ'!BU:BU,'R2建設IOデータ'!$A:$A,'R2建設io'!$CE9)/'R2建設IOデータ'!BU$232 -> 0.002876452027 | EQ9: =+SUMIFS('R2建設IOデータ'!BV:BV,'R2建設IOデータ'!$A:$A,'R2建設io'!$CE9)/'R2建設IOデータ'!BV$232 -> 0.00364944231 | ER9: =+SUMIFS('R2建設IOデータ'!BW:BW,'R2建設IOデータ'!$A:$A,'R2建設io'!$CE9)/'R2建設IOデータ'!BW$232 -> 0.005425429537 | ES9: =+SUMIFS('R2建設IOデータ'!BX:BX,'R2建設IOデータ'!$A:$A,'R2建設io'!$CE9)/'R2建設IOデータ'!BX$232 -> 0.004225930971 | ET9: =+SUMIFS('R2建設IOデータ'!BY:BY,'R2建設IOデータ'!$A:$A,'R2建設io'!$CE9)/'R2建設IOデータ'!BY$232 -> 0.001875193092 | EU9: =+SUMIFS('R2建設IOデータ'!BZ:BZ,'R2建設IOデータ'!$A:$A,'R2建設io'!$CE9)/'R2建設IOデータ'!BZ$232 -> 0.002663357207 | EV9: =+SUMIFS('R2建設IOデータ'!CA:CA,'R2建設IOデータ'!$A:$A,'R2建設io'!$CE9)/'R2建設IOデータ'!CA$232 -> 0.001427901722 | EW9: =+SUMIFS('R2建設IOデータ'!CB:CB,'R2建設IOデータ'!$A:$A,'R2建設io'!$CE9)/'R2建設IOデータ'!CB$232 -> 0.003423312433 | EX9: =+SUMIFS('R2建設IOデータ'!CC:CC,'R2建設IOデータ'!$A:$A,'R2建設io'!$CE9)/'R2建設IOデータ'!CC$232 -> 0.01109617791 | EY9: =+SUMIFS('R2建設IOデータ'!CD:CD,'R2建設IOデータ'!$A:$A,'R2建設io'!$CE9)/'R2建設IOデータ'!CD$232 -> 0.006471266631
A10: 0 | C10: 11 | D10: 飲食料品 | E10: 0 | F10: 0 | G10: 0 | H10: 0 | I10: 0 | J10: 0 | K10: 0 | L10: 0 | M10: 0 | N10: 0 | O10: 0 | P10: 0 | Q10: 0 | R10: 0 | S10: 0 | T10: 0 | U10: 0 | V10: 0 | W10: 0 | X10: 0 | Y10: 0 | Z10: 0 | AA10: 0 | AB10: 0 | AC10: 0 | AD10: 0 | AE10: 0 | AF10: 0 | AG10: 0 | AH10: 0 | AI10: 0 | AJ10: 0 | AK10: 0 | AL10: 0 | AM10: 0 | AN10: 0 | AO10: 0 | AP10: 0 | AQ10: 0 | AR10: 0 | AS10: 0 | AT10: 0 | AU10: 0 | AV10: 0 | AW10: 0 | AX10: 0 | AY10: 0 | AZ10: 0 | BA10: 0 | BB10: 0 | BC10: 0 | BD10: 0 | BE10: 0 | BF10: 0 | BG10: 0 | BH10: 0 | BI10: 0 | BJ10: 0 | BK10: 0 | BL10: 0 | BM10: 0 | BN10: 0 | BO10: 0 | BP10: 0 | BQ10: 0 | BR10: 0 | BS10: 0 | BT10: 0 | BU10: 0 | BV10: 0 | BW10: 0 | CE10: 11 | CF10: 飲食料品 | CG10: =+SUMIFS('R2建設IOデータ'!L:L,'R2建設IOデータ'!$A:$A,'R2建設io'!$CE10)/'R2建設IOデータ'!L$232 -> 2.935406152e-05 | CH10: =+SUMIFS('R2建設IOデータ'!M:M,'R2建設IOデータ'!$A:$A,'R2建設io'!$CE10)/'R2建設IOデータ'!M$232 -> 0 | CI10: =+SUMIFS('R2建設IOデータ'!N:N,'R2建設IOデータ'!$A:$A,'R2建設io'!$CE10)/'R2建設IOデータ'!N$232 -> 0 | CJ10: =+SUMIFS('R2建設IOデータ'!O:O,'R2建設IOデータ'!$A:$A,'R2建設io'!$CE10)/'R2建設IOデータ'!O$232 -> 0 | CK10: =+SUMIFS('R2建設IOデータ'!P:P,'R2建設IOデータ'!$A:$A,'R2建設io'!$CE10)/'R2建設IOデータ'!P$232 -> 0 | CL10: =+SUMIFS('R2建設IOデータ'!Q:Q,'R2建設IOデータ'!$A:$A,'R2建設io'!$CE10)/'R2建設IOデータ'!Q$232 -> 0 | CM10: =+SUMIFS('R2建設IOデータ'!R:R,'R2建設IOデータ'!$A:$A,'R2建設io'!$CE10)/'R2建設IOデータ'!R$232 -> 0 | CN10: =+SUMIFS('R2建設IOデータ'!S:S,'R2建設IOデータ'!$A:$A,'R2建設io'!$CE10)/'R2建設IOデータ'!S$232 -> 0 | CO10: =+SUMIFS('R2建設IOデータ'!T:T,'R2建設IOデータ'!$A:$A,'R2建設io'!$CE10)/'R2建設IOデータ'!T$232 -> 0 | CP10: =+SUMIFS('R2建設IOデータ'!U:U,'R2建設IOデータ'!$A:$A,'R2建設io'!$CE10)/'R2建設IOデータ'!U$232 -> 0 | CQ10: =+SUMIFS('R2建設IOデータ'!V:V,'R2建設IOデータ'!$A:$A,'R2建設io'!$CE10)/'R2建設IOデータ'!V$232 -> 0 | CR10: =+SUMIFS('R2建設IOデータ'!W:W,'R2建設IOデータ'!$A:$A,'R2建設io'!$CE10)/'R2建設IOデータ'!W$232 -> 0 | CS10: =+SUMIFS('R2建設IOデータ'!X:X,'R2建設IOデータ'!$A:$A,'R2建設io'!$CE10)/'R2建設IOデータ'!X$232 -> 0 | CT10: =+SUMIFS('R2建設IOデータ'!Y:Y,'R2建設IOデータ'!$A:$A,'R2建設io'!$CE10)/'R2建設IOデータ'!Y$232 -> 0 | CU10: =+SUMIFS('R2建設IOデータ'!Z:Z,'R2建設IOデータ'!$A:$A,'R2建設io'!$CE10)/'R2建設IOデータ'!Z$232 -> 0 | CV10: =+SUMIFS('R2建設IOデータ'!AA:AA,'R2建設IOデータ'!$A:$A,'R2建設io'!$CE10)/'R2建設IOデータ'!AA$232 -> 0 | CW10: =+SUMIFS('R2建設IOデータ'!AB:AB,'R2建設IOデータ'!$A:$A,'R2建設io'!$CE10)/'R2建設IOデータ'!AB$232 -> 0 | CX10: =+SUMIFS('R2建設IOデータ'!AC:AC,'R2建設IOデータ'!$A:$A,'R2建設io'!$CE10)/'R2建設IOデータ'!AC$232 -> 0 | CY10: =+SUMIFS('R2建設IOデータ'!AD:AD,'R2建設IOデータ'!$A:$A,'R2建設io'!$CE10)/'R2建設IOデータ'!AD$232 -> 0 | CZ10: =+SUMIFS('R2建設IOデータ'!AE:AE,'R2建設IOデータ'!$A:$A,'R2建設io'!$CE10)/'R2建設IOデータ'!AE$232 -> 0 | DA10: =+SUMIFS('R2建設IOデータ'!AF:AF,'R2建設IOデータ'!$A:$A,'R2建設io'!$CE10)/'R2建設IOデータ'!AF$232 -> 0 | DB10: =+SUMIFS('R2建設IOデータ'!AG:AG,'R2建設IOデータ'!$A:$A,'R2建設io'!$CE10)/'R2建設IOデータ'!AG$232 -> 0 | DC10: =+SUMIFS('R2建設IOデータ'!AH:AH,'R2建設IOデータ'!$A:$A,'R2建設io'!$CE10)/'R2建設IOデータ'!AH$232 -> 0 | DD10: =+SUMIFS('R2建設IOデータ'!AI:AI,'R2建設IOデータ'!$A:$A,'R2建設io'!$CE10)/'R2建設IOデータ'!AI$232 -> 0 | DE10: =+SUMIFS('R2建設IOデータ'!AJ:AJ,'R2建設IOデータ'!$A:$A,'R2建設io'!$CE10)/'R2建設IOデータ'!AJ$232 -> 0 | DF10: =+SUMIFS('R2建設IOデータ'!AK:AK,'R2建設IOデータ'!$A:$A,'R2建設io'!$CE10)/'R2建設IOデータ'!AK$232 -> 0 | DG10: =+SUMIFS('R2建設IOデータ'!AL:AL,'R2建設IOデータ'!$A:$A,'R2建設io'!$CE10)/'R2建設IOデータ'!AL$232 -> 0 | DH10: =+SUMIFS('R2建設IOデータ'!AM:AM,'R2建設IOデータ'!$A:$A,'R2建設io'!$CE10)/'R2建設IOデータ'!AM$232 -> 0 | DI10: =+SUMIFS('R2建設IOデータ'!AN:AN,'R2建設IOデータ'!$A:$A,'R2建設io'!$CE10)/'R2建設IOデータ'!AN$232 -> 0 | DJ10: =+SUMIFS('R2建設IOデータ'!AO:AO,'R2建設IOデータ'!$A:$A,'R2建設io'!$CE10)/'R2建設IOデータ'!AO$232 -> 8.262934914e-05 | DK10: =+SUMIFS('R2建設IOデータ'!AP:AP,'R2建設IOデータ'!$A:$A,'R2建設io'!$CE10)/'R2建設IOデータ'!AP$232 -> 0.0001412017357 | DL10: =+SUMIFS('R2建設IOデータ'!AQ:AQ,'R2建設IOデータ'!$A:$A,'R2建設io'!$CE10)/'R2建設IOデータ'!AQ$232 -> 0 | DM10: =+SUMIFS('R2建設IOデータ'!AR:AR,'R2建設IOデータ'!$A:$A,'R2建設io'!$CE10)/'R2建設IOデータ'!AR$232 -> 0 | DN10: =+SUMIFS('R2建設IOデータ'!AS:AS,'R2建設IOデータ'!$A:$A,'R2建設io'!$CE10)/'R2建設IOデータ'!AS$232 -> 0 | DO10: =+SUMIFS('R2建設IOデータ'!AT:AT,'R2建設IOデータ'!$A:$A,'R2建設io'!$CE10)/'R2建設IOデータ'!AT$232 -> 0 | DP10: =+SUMIFS('R2建設IOデータ'!AU:AU,'R2建設IOデータ'!$A:$A,'R2建設io'!$CE10)/'R2建設IOデータ'!AU$232 -> 0 | DQ10: =+SUMIFS('R2建設IOデータ'!AV:AV,'R2建設IOデータ'!$A:$A,'R2建設io'!$CE10)/'R2建設IOデータ'!AV$232 -> 0 | DR10: =+SUMIFS('R2建設IOデータ'!AW:AW,'R2建設IOデータ'!$A:$A,'R2建設io'!$CE10)/'R2建設IOデータ'!AW$232 -> 0 | DS10: =+SUMIFS('R2建設IOデータ'!AX:AX,'R2建設IOデータ'!$A:$A,'R2建設io'!$CE10)/'R2建設IOデータ'!AX$232 -> 0 | DT10: =+SUMIFS('R2建設IOデータ'!AY:AY,'R2建設IOデータ'!$A:$A,'R2建設io'!$CE10)/'R2建設IOデータ'!AY$232 -> 0 | DU10: =+SUMIFS('R2建設IOデータ'!AZ:AZ,'R2建設IOデータ'!$A:$A,'R2建設io'!$CE10)/'R2建設IOデータ'!AZ$232 -> 0 | DV10: =+SUMIFS('R2建設IOデータ'!BA:BA,'R2建設IOデータ'!$A:$A,'R2建設io'!$CE10)/'R2建設IOデータ'!BA$232 -> 0 | DW10: =+SUMIFS('R2建設IOデータ'!BB:BB,'R2建設IOデータ'!$A:$A,'R2建設io'!$CE10)/'R2建設IOデータ'!BB$232 -> 0 | DX10: =+SUMIFS('R2建設IOデータ'!BC:BC,'R2建設IOデータ'!$A:$A,'R2建設io'!$CE10)/'R2建設IOデータ'!BC$232 -> 0 | DY10: =+SUMIFS('R2建設IOデータ'!BD:BD,'R2建設IOデータ'!$A:$A,'R2建設io'!$CE10)/'R2建設IOデータ'!BD$232 -> 0 | DZ10: =+SUMIFS('R2建設IOデータ'!BE:BE,'R2建設IOデータ'!$A:$A,'R2建設io'!$CE10)/'R2建設IOデータ'!BE$232 -> 0 | EA10: =+SUMIFS('R2建設IOデータ'!BF:BF,'R2建設IOデータ'!$A:$A,'R2建設io'!$CE10)/'R2建設IOデータ'!BF$232 -> 0 | EB10: =+SUMIFS('R2建設IOデータ'!BG:BG,'R2建設IOデータ'!$A:$A,'R2建設io'!$CE10)/'R2建設IOデータ'!BG$232 -> 0 | EC10: =+SUMIFS('R2建設IOデータ'!BH:BH,'R2建設IOデータ'!$A:$A,'R2建設io'!$CE10)/'R2建設IOデータ'!BH$232 -> 0 | ED10: =+SUMIFS('R2建設IOデータ'!BI:BI,'R2建設IOデータ'!$A:$A,'R2建設io'!$CE10)/'R2建設IOデータ'!BI$232 -> 0 | EE10: =+SUMIFS('R2建設IOデータ'!BJ:BJ,'R2建設IOデータ'!$A:$A,'R2建設io'!$CE10)/'R2建設IOデータ'!BJ$232 -> 0 | EF10: =+SUMIFS('R2建設IOデータ'!BK:BK,'R2建設IOデータ'!$A:$A,'R2建設io'!$CE10)/'R2建設IOデータ'!BK$232 -> 0 | EG10: =+SUMIFS('R2建設IOデータ'!BL:BL,'R2建設IOデータ'!$A:$A,'R2建設io'!$CE10)/'R2建設IOデータ'!BL$232 -> 0 | EH10: =+SUMIFS('R2建設IOデータ'!BM:BM,'R2建設IOデータ'!$A:$A,'R2建設io'!$CE10)/'R2建設IOデータ'!BM$232 -> 0 | EI10: =+SUMIFS('R2建設IOデータ'!BN:BN,'R2建設IOデータ'!$A:$A,'R2建設io'!$CE10)/'R2建設IOデータ'!BN$232 -> 0 | EJ10: =+SUMIFS('R2建設IOデータ'!BO:BO,'R2建設IOデータ'!$A:$A,'R2建設io'!$CE10)/'R2建設IOデータ'!BO$232 -> 0 | EK10: =+SUMIFS('R2建設IOデータ'!BP:BP,'R2建設IOデータ'!$A:$A,'R2建設io'!$CE10)/'R2建設IOデータ'!BP$232 -> 0 | EL10: =+SUMIFS('R2建設IOデータ'!BQ:BQ,'R2建設IOデータ'!$A:$A,'R2建設io'!$CE10)/'R2建設IOデータ'!BQ$232 -> 0 | EM10: =+SUMIFS('R2建設IOデータ'!BR:BR,'R2建設IOデータ'!$A:$A,'R2建設io'!$CE10)/'R2建設IOデータ'!BR$232 -> 0 | EN10: =+SUMIFS('R2建設IOデータ'!BS:BS,'R2建設IOデータ'!$A:$A,'R2建設io'!$CE10)/'R2建設IOデータ'!BS$232 -> 0 | EO10: =+SUMIFS('R2建設IOデータ'!BT:BT,'R2建設IOデータ'!$A:$A,'R2建設io'!$CE10)/'R2建設IOデータ'!BT$232 -> 0 | EP10: =+SUMIFS('R2建設IOデータ'!BU:BU,'R2建設IOデータ'!$A:$A,'R2建設io'!$CE10)/'R2建設IOデータ'!BU$232 -> 0 | EQ10: =+SUMIFS('R2建設IOデータ'!BV:BV,'R2建設IOデータ'!$A:$A,'R2建設io'!$CE10)/'R2建設IOデータ'!BV$232 -> 0 | ER10: =+SUMIFS('R2建設IOデータ'!BW:BW,'R2建設IOデータ'!$A:$A,'R2建設io'!$CE10)/'R2建設IOデータ'!BW$232 -> 0.001545390248 | ES10: =+SUMIFS('R2建設IOデータ'!BX:BX,'R2建設IOデータ'!$A:$A,'R2建設io'!$CE10)/'R2建設IOデータ'!BX$232 -> 0 | ET10: =+SUMIFS('R2建設IOデータ'!BY:BY,'R2建設IOデータ'!$A:$A,'R2建設io'!$CE10)/'R2建設IOデータ'!BY$232 -> 0 | EU10: =+SUMIFS('R2建設IOデータ'!BZ:BZ,'R2建設IOデータ'!$A:$A,'R2建設io'!$CE10)/'R2建設IOデータ'!BZ$232 -> 0 | EV10: =+SUMIFS('R2建設IOデータ'!CA:CA,'R2建設IOデータ'!$A:$A,'R2建設io'!$CE10)/'R2建設IOデータ'!CA$232 -> 0 | EW10: =+SUMIFS('R2建設IOデータ'!CB:CB,'R2建設IOデータ'!$A:$A,'R2建設io'!$CE10)/'R2建設IOデータ'!CB$232 -> 0 | EX10: =+SUMIFS('R2建設IOデータ'!CC:CC,'R2建設IOデータ'!$A:$A,'R2建設io'!$CE10)/'R2建設IOデータ'!CC$232 -> 0 | EY10: =+SUMIFS('R2建設IOデータ'!CD:CD,'R2建設IOデータ'!$A:$A,'R2建設io'!$CE10)/'R2建設IOデータ'!CD$232 -> 0
A11: 0 | C11: 15 | D11: 繊維製品 | E11: 0 | F11: 0 | G11: 0 | H11: 0 | I11: 0 | J11: 0 | K11: 0 | L11: 0 | M11: 0 | N11: 0 | O11: 0 | P11: 0 | Q11: 0 | R11: 0 | S11: 0 | T11: 0 | U11: 0 | V11: 0 | W11: 0 | X11: 0 | Y11: 0 | Z11: 0 | AA11: 0 | AB11: 0 | AC11: 0 | AD11: 0 | AE11: 0 | AF11: 0 | AG11: 0 | AH11: 0 | AI11: 0 | AJ11: 0 | AK11: 0 | AL11: 0 | AM11: 0 | AN11: 0 | AO11: 0 | AP11: 0 | AQ11: 0 | AR11: 0 | AS11: 0 | AT11: 0 | AU11: 0 | AV11: 0 | AW11: 0 | AX11: 0 | AY11: 0 | AZ11: 0 | BA11: 0 | BB11: 0 | BC11: 0 | BD11: 0 | BE11: 0 | BF11: 0 | BG11: 0 | BH11: 0 | BI11: 0 | BJ11: 0 | BK11: 0 | BL11: 0 | BM11: 0 | BN11: 0 | BO11: 0 | BP11: 0 | BQ11: 0 | BR11: 0 | BS11: 0 | BT11: 0 | BU11: 0 | BV11: 0 | BW11: 0 | CE11: 15 | CF11: 繊維製品 | CG11: =+SUMIFS('R2建設IOデータ'!L:L,'R2建設IOデータ'!$A:$A,'R2建設io'!$CE11)/'R2建設IOデータ'!L$232 -> 0.003656531304 | CH11: =+SUMIFS('R2建設IOデータ'!M:M,'R2建設IOデータ'!$A:$A,'R2建設io'!$CE11)/'R2建設IOデータ'!M$232 -> 0.004522514073 | CI11: =+SUMIFS('R2建設IOデータ'!N:N,'R2建設IOデータ'!$A:$A,'R2建設io'!$CE11)/'R2建設IOデータ'!N$232 -> 0.00356295503 | CJ11: =+SUMIFS('R2建設IOデータ'!O:O,'R2建設IOデータ'!$A:$A,'R2建設io'!$CE11)/'R2建設IOデータ'!O$232 -> 0.003252029699 | CK11: =+SUMIFS('R2建設IOデータ'!P:P,'R2建設IOデータ'!$A:$A,'R2建設io'!$CE11)/'R2建設IOデータ'!P$232 -> 0.00325046803 | CL11: =+SUMIFS('R2建設IOデータ'!Q:Q,'R2建設IOデータ'!$A:$A,'R2建設io'!$CE11)/'R2建設IOデータ'!Q$232 -> 0.003323080026 | CM11: =+SUMIFS('R2建設IOデータ'!R:R,'R2建設IOデータ'!$A:$A,'R2建設io'!$CE11)/'R2建設IOデータ'!R$232 -> 0.004003133969 | CN11: =+SUMIFS('R2建設IOデータ'!S:S,'R2建設IOデータ'!$A:$A,'R2建設io'!$CE11)/'R2建設IOデータ'!S$232 -> 0.004047879873 | CO11: =+SUMIFS('R2建設IOデータ'!T:T,'R2建設IOデータ'!$A:$A,'R2建設io'!$CE11)/'R2建設IOデータ'!T$232 -> 0.004187763907 | CP11: =+SUMIFS('R2建設IOデータ'!U:U,'R2建設IOデータ'!$A:$A,'R2建設io'!$CE11)/'R2建設IOデータ'!U$232 -> 0.004215615922 | CQ11: =+SUMIFS('R2建設IOデータ'!V:V,'R2建設IOデータ'!$A:$A,'R2建設io'!$CE11)/'R2建設IOデータ'!V$232 -> 0.002179929484 | CR11: =+SUMIFS('R2建設IOデータ'!W:W,'R2建設IOデータ'!$A:$A,'R2建設io'!$CE11)/'R2建設IOデータ'!W$232 -> 0.003683328246 | CS11: =+SUMIFS('R2建設IOデータ'!X:X,'R2建設IOデータ'!$A:$A,'R2建設io'!$CE11)/'R2建設IOデータ'!X$232 -> 0.003802033368 | CT11: =+SUMIFS('R2建設IOデータ'!Y:Y,'R2建設IOデータ'!$A:$A,'R2建設io'!$CE11)/'R2建設IOデータ'!Y$232 -> 0.003634340791 | CU11: =+SUMIFS('R2建設IOデータ'!Z:Z,'R2建設IOデータ'!$A:$A,'R2建設io'!$CE11)/'R2建設IOデータ'!Z$232 -> 0.005430407123 | CV11: =+SUMIFS('R2建設IOデータ'!AA:AA,'R2建設IOデータ'!$A:$A,'R2建設io'!$CE11)/'R2建設IOデータ'!AA$232 -> 0.005525768335 | CW11: =+SUMIFS('R2建設IOデータ'!AB:AB,'R2建設IOデータ'!$A:$A,'R2建設io'!$CE11)/'R2建設IOデータ'!AB$232 -> 0.00402799009 | CX11: =+SUMIFS('R2建設IOデータ'!AC:AC,'R2建設IOデータ'!$A:$A,'R2建設io'!$CE11)/'R2建設IOデータ'!AC$232 -> 0.002263961093 | CY11: =+SUMIFS('R2建設IOデータ'!AD:AD,'R2建設IOデータ'!$A:$A,'R2建設io'!$CE11)/'R2建設IOデータ'!AD$232 -> 0.004250817035 | CZ11: =+SUMIFS('R2建設IOデータ'!AE:AE,'R2建設IOデータ'!$A:$A,'R2建設io'!$CE11)/'R2建設IOデータ'!AE$232 -> 0.005627492765 | DA11: =+SUMIFS('R2建設IOデータ'!AF:AF,'R2建設IOデータ'!$A:$A,'R2建設io'!$CE11)/'R2建設IOデータ'!AF$232 -> 0.003183326576 | DB11: =+SUMIFS('R2建設IOデータ'!AG:AG,'R2建設IOデータ'!$A:$A,'R2建設io'!$CE11)/'R2建設IOデータ'!AG$232 -> 0.006022830223 | DC11: =+SUMIFS('R2建設IOデータ'!AH:AH,'R2建設IOデータ'!$A:$A,'R2建設io'!$CE11)/'R2建設IOデータ'!AH$232 -> 0.003001022273 | DD11: =+SUMIFS('R2建設IOデータ'!AI:AI,'R2建設IOデータ'!$A:$A,'R2建設io'!$CE11)/'R2建設IOデータ'!AI$232 -> 0.005442897642 | DE11: =+SUMIFS('R2建設IOデータ'!AJ:AJ,'R2建設IOデータ'!$A:$A,'R2建設io'!$CE11)/'R2建設IOデータ'!AJ$232 -> 0.00890474365 | DF11: =+SUMIFS('R2建設IOデータ'!AK:AK,'R2建設IOデータ'!$A:$A,'R2建設io'!$CE11)/'R2建設IOデータ'!AK$232 -> 0.002639579687 | DG11: =+SUMIFS('R2建設IOデータ'!AL:AL,'R2建設IOデータ'!$A:$A,'R2建設io'!$CE11)/'R2建設IOデータ'!AL$232 -> 0.006713348367 | DH11: =+SUMIFS('R2建設IOデータ'!AM:AM,'R2建設IOデータ'!$A:$A,'R2建設io'!$CE11)/'R2建設IOデータ'!AM$232 -> 0.003064412905 | DI11: =+SUMIFS('R2建設IOデータ'!AN:AN,'R2建設IOデータ'!$A:$A,'R2建設io'!$CE11)/'R2建設IOデータ'!AN$232 -> 0.004297934876 | DJ11: =+SUMIFS('R2建設IOデータ'!AO:AO,'R2建設IOデータ'!$A:$A,'R2建設io'!$CE11)/'R2建設IOデータ'!AO$232 -> 0.002186312355 | DK11: =+SUMIFS('R2建設IOデータ'!AP:AP,'R2建設IOデータ'!$A:$A,'R2建設io'!$CE11)/'R2建設IOデータ'!AP$232 -> 0.002267248878 | DL11: =+SUMIFS('R2建設IOデータ'!AQ:AQ,'R2建設IOデータ'!$A:$A,'R2建設io'!$CE11)/'R2建設IOデータ'!AQ$232 -> 0.002479525908 | DM11: =+SUMIFS('R2建設IOデータ'!AR:AR,'R2建設IOデータ'!$A:$A,'R2建設io'!$CE11)/'R2建設IOデータ'!AR$232 -> 0.002500977844 | DN11: =+SUMIFS('R2建設IOデータ'!AS:AS,'R2建設IOデータ'!$A:$A,'R2建設io'!$CE11)/'R2建設IOデータ'!AS$232 -> 0.002690303272 | DO11: =+SUMIFS('R2建設IOデータ'!AT:AT,'R2建設IOデータ'!$A:$A,'R2建設io'!$CE11)/'R2建設IOデータ'!AT$232 -> 0.00171241623 | DP11: =+SUMIFS('R2建設IOデータ'!AU:AU,'R2建設IOデータ'!$A:$A,'R2建設io'!$CE11)/'R2建設IOデータ'!AU$232 -> 0.001798131309 | DQ11: =+SUMIFS('R2建設IOデータ'!AV:AV,'R2建設IOデータ'!$A:$A,'R2建設io'!$CE11)/'R2建設IOデータ'!AV$232 -> 0.001590456129 | DR11: =+SUMIFS('R2建設IOデータ'!AW:AW,'R2建設IOデータ'!$A:$A,'R2建設io'!$CE11)/'R2建設IOデータ'!AW$232 -> 0.003923436093 | DS11: =+SUMIFS('R2建設IOデータ'!AX:AX,'R2建設IOデータ'!$A:$A,'R2建設io'!$CE11)/'R2建設IOデータ'!AX$232 -> 0.002684447523 | DT11: =+SUMIFS('R2建設IOデータ'!AY:AY,'R2建設IOデータ'!$A:$A,'R2建設io'!$CE11)/'R2建設IOデータ'!AY$232 -> 0.002871024735 | DU11: =+SUMIFS('R2建設IOデータ'!AZ:AZ,'R2建設IOデータ'!$A:$A,'R2建設io'!$CE11)/'R2建設IOデータ'!AZ$232 -> 0.003496758214 | DV11: =+SUMIFS('R2建設IOデータ'!BA:BA,'R2建設IOデータ'!$A:$A,'R2建設io'!$CE11)/'R2建設IOデータ'!BA$232 -> 0.001704880377 | DW11: =+SUMIFS('R2建設IOデータ'!BB:BB,'R2建設IOデータ'!$A:$A,'R2建設io'!$CE11)/'R2建設IOデータ'!BB$232 -> 0.001661375098 | DX11: =+SUMIFS('R2建設IOデータ'!BC:BC,'R2建設IOデータ'!$A:$A,'R2建設io'!$CE11)/'R2建設IOデータ'!BC$232 -> 0.001663334435 | DY11: =+SUMIFS('R2建設IOデータ'!BD:BD,'R2建設IOデータ'!$A:$A,'R2建設io'!$CE11)/'R2建設IOデータ'!BD$232 -> 0.001499115906 | DZ11: =+SUMIFS('R2建設IOデータ'!BE:BE,'R2建設IOデータ'!$A:$A,'R2建設io'!$CE11)/'R2建設IOデータ'!BE$232 -> 0.002111060119 | EA11: =+SUMIFS('R2建設IOデータ'!BF:BF,'R2建設IOデータ'!$A:$A,'R2建設io'!$CE11)/'R2建設IOデータ'!BF$232 -> 0.001729569461 | EB11: =+SUMIFS('R2建設IOデータ'!BG:BG,'R2建設IOデータ'!$A:$A,'R2建設io'!$CE11)/'R2建設IOデータ'!BG$232 -> 0.002132919676 | EC11: =+SUMIFS('R2建設IOデータ'!BH:BH,'R2建設IOデータ'!$A:$A,'R2建設io'!$CE11)/'R2建設IOデータ'!BH$232 -> 0.002177437487 | ED11: =+SUMIFS('R2建設IOデータ'!BI:BI,'R2建設IOデータ'!$A:$A,'R2建設io'!$CE11)/'R2建設IOデータ'!BI$232 -> 0.00193112327 | EE11: =+SUMIFS('R2建設IOデータ'!BJ:BJ,'R2建設IOデータ'!$A:$A,'R2建設io'!$CE11)/'R2建設IOデータ'!BJ$232 -> 0.001188962294 | EF11: =+SUMIFS('R2建設IOデータ'!BK:BK,'R2建設IOデータ'!$A:$A,'R2建設io'!$CE11)/'R2建設IOデータ'!BK$232 -> 0.002009676255 | EG11: =+SUMIFS('R2建設IOデータ'!BL:BL,'R2建設IOデータ'!$A:$A,'R2建設io'!$CE11)/'R2建設IOデータ'!BL$232 -> 0.002230649119 | EH11: =+SUMIFS('R2建設IOデータ'!BM:BM,'R2建設IOデータ'!$A:$A,'R2建設io'!$CE11)/'R2建設IOデータ'!BM$232 -> 0.002578508937 | EI11: =+SUMIFS('R2建設IOデータ'!BN:BN,'R2建設IOデータ'!$A:$A,'R2建設io'!$CE11)/'R2建設IOデータ'!BN$232 -> 0.001146925728 | EJ11: =+SUMIFS('R2建設IOデータ'!BO:BO,'R2建設IOデータ'!$A:$A,'R2建設io'!$CE11)/'R2建設IOデータ'!BO$232 -> 0.001984916906 | EK11: =+SUMIFS('R2建設IOデータ'!BP:BP,'R2建設IOデータ'!$A:$A,'R2建設io'!$CE11)/'R2建設IOデータ'!BP$232 -> 0.001593707721 | EL11: =+SUMIFS('R2建設IOデータ'!BQ:BQ,'R2建設IOデータ'!$A:$A,'R2建設io'!$CE11)/'R2建設IOデータ'!BQ$232 -> 0.001557971233 | EM11: =+SUMIFS('R2建設IOデータ'!BR:BR,'R2建設IOデータ'!$A:$A,'R2建設io'!$CE11)/'R2建設IOデータ'!BR$232 -> 0.001884774145 | EN11: =+SUMIFS('R2建設IOデータ'!BS:BS,'R2建設IOデータ'!$A:$A,'R2建設io'!$CE11)/'R2建設IOデータ'!BS$232 -> 0.002384428876 | EO11: =+SUMIFS('R2建設IOデータ'!BT:BT,'R2建設IOデータ'!$A:$A,'R2建設io'!$CE11)/'R2建設IOデータ'!BT$232 -> 0.001297807181 | EP11: =+SUMIFS('R2建設IOデータ'!BU:BU,'R2建設IOデータ'!$A:$A,'R2建設io'!$CE11)/'R2建設IOデータ'!BU$232 -> 0.00484638584 | EQ11: =+SUMIFS('R2建設IOデータ'!BV:BV,'R2建設IOデータ'!$A:$A,'R2建設io'!$CE11)/'R2建設IOデータ'!BV$232 -> 0.001953858222 | ER11: =+SUMIFS('R2建設IOデータ'!BW:BW,'R2建設IOデータ'!$A:$A,'R2建設io'!$CE11)/'R2建設IOデータ'!BW$232 -> 0.002526787592 | ES11: =+SUMIFS('R2建設IOデータ'!BX:BX,'R2建設IOデータ'!$A:$A,'R2建設io'!$CE11)/'R2建設IOデータ'!BX$232 -> 0.00207213343 | ET11: =+SUMIFS('R2建設IOデータ'!BY:BY,'R2建設IOデータ'!$A:$A,'R2建設io'!$CE11)/'R2建設IOデータ'!BY$232 -> 0.001533656359 | EU11: =+SUMIFS('R2建設IOデータ'!BZ:BZ,'R2建設IOデータ'!$A:$A,'R2建設io'!$CE11)/'R2建設IOデータ'!BZ$232 -> 0.002163537018 | EV11: =+SUMIFS('R2建設IOデータ'!CA:CA,'R2建設IOデータ'!$A:$A,'R2建設io'!$CE11)/'R2建設IOデータ'!CA$232 -> 0.002802007362 | EW11: =+SUMIFS('R2建設IOデータ'!CB:CB,'R2建設IOデータ'!$A:$A,'R2建設io'!$CE11)/'R2建設IOデータ'!CB$232 -> 0.002156700961 | EX11: =+SUMIFS('R2建設IOデータ'!CC:CC,'R2建設IOデータ'!$A:$A,'R2建設io'!$CE11)/'R2建設IOデータ'!CC$232 -> 0.001997775468 | EY11: =+SUMIFS('R2建設IOデータ'!CD:CD,'R2建設IOデータ'!$A:$A,'R2建設io'!$CE11)/'R2建設IOデータ'!CD$232 -> 0.002092533663
A12: 0 | C12: 16 | D12: パルプ・紙・木製品 | E12: 0 | F12: 0 | G12: 0 | H12: 0 | I12: 0 | J12: 0 | K12: 0 | L12: 0 | M12: 0 | N12: 0 | O12: 0 | P12: 0 | Q12: 0 | R12: 0 | S12: 0 | T12: 0 | U12: 0 | V12: 0 | W12: 0 | X12: 0 | Y12: 0 | Z12: 0 | AA12: 0 | AB12: 0 | AC12: 0 | AD12: 0 | AE12: 0 | AF12: 0 | AG12: 0 | AH12: 0 | AI12: 0 | AJ12: 0 | AK12: 0 | AL12: 0 | AM12: 0 | AN12: 0 | AO12: 0 | AP12: 0 | AQ12: 0 | AR12: 0 | AS12: 0 | AT12: 0 | AU12: 0 | AV12: 0 | AW12: 0 | AX12: 0 | AY12: 0 | AZ12: 0 | BA12: 0 | BB12: 0 | BC12: 0 | BD12: 0 | BE12: 0 | BF12: 0 | BG12: 0 | BH12: 0 | BI12: 0 | BJ12: 0 | BK12: 0 | BL12: 0 | BM12: 0 | BN12: 0 | BO12: 0 | BP12: 0 | BQ12: 0 | BR12: 0 | BS12: 0 | BT12: 0 | BU12: 0 | BV12: 0 | BW12: 0 | CE12: 16 | CF12: パルプ・紙・木製品 | CG12: =+SUMIFS('R2建設IOデータ'!L:L,'R2建設IOデータ'!$A:$A,'R2建設io'!$CE12)/'R2建設IOデータ'!L$232 -> 0.04097271683 | CH12: =+SUMIFS('R2建設IOデータ'!M:M,'R2建設IOデータ'!$A:$A,'R2建設io'!$CE12)/'R2建設IOデータ'!M$232 -> 0.06900665691 | CI12: =+SUMIFS('R2建設IOデータ'!N:N,'R2建設IOデータ'!$A:$A,'R2建設io'!$CE12)/'R2建設IOデータ'!N$232 -> 0.1143824302 | CJ12: =+SUMIFS('R2建設IOデータ'!O:O,'R2建設IOデータ'!$A:$A,'R2建設io'!$CE12)/'R2建設IOデータ'!O$232 -> 0.1520673641 | CK12: =+SUMIFS('R2建設IOデータ'!P:P,'R2建設IOデータ'!$A:$A,'R2建設io'!$CE12)/'R2建設IOデータ'!P$232 -> 0.1508544352 | CL12: =+SUMIFS('R2建設IOデータ'!Q:Q,'R2建設IOデータ'!$A:$A,'R2建設io'!$CE12)/'R2建設IOデータ'!Q$232 -> 0.2072512733 | CM12: =+SUMIFS('R2建設IOデータ'!R:R,'R2建設IOデータ'!$A:$A,'R2建設io'!$CE12)/'R2建設IOデータ'!R$232 -> 0.0610316334 | CN12: =+SUMIFS('R2建設IOデータ'!S:S,'R2建設IOデータ'!$A:$A,'R2建設io'!$CE12)/'R2建設IOデータ'!S$232 -> 0.02865578326 | CO12: =+SUMIFS('R2建設IOデータ'!T:T,'R2建設IOデータ'!$A:$A,'R2建設io'!$CE12)/'R2建設IOデータ'!T$232 -> 0.04178634701 | CP12: =+SUMIFS('R2建設IOデータ'!U:U,'R2建設IOデータ'!$A:$A,'R2建設io'!$CE12)/'R2建設IOデータ'!U$232 -> 0.04143988317 | CQ12: =+SUMIFS('R2建設IOデータ'!V:V,'R2建設IOデータ'!$A:$A,'R2建設io'!$CE12)/'R2建設IOデータ'!V$232 -> 0.06676270994 | CR12: =+SUMIFS('R2建設IOデータ'!W:W,'R2建設IOデータ'!$A:$A,'R2建設io'!$CE12)/'R2建設IOデータ'!W$232 -> 0.0915040515 | CS12: =+SUMIFS('R2建設IOデータ'!X:X,'R2建設IOデータ'!$A:$A,'R2建設io'!$CE12)/'R2建設IOデータ'!X$232 -> 0.03565323499 | CT12: =+SUMIFS('R2建設IOデータ'!Y:Y,'R2建設IOデータ'!$A:$A,'R2建設io'!$CE12)/'R2建設IOデータ'!Y$232 -> 0.1145526721 | CU12: =+SUMIFS('R2建設IOデータ'!Z:Z,'R2建設IOデータ'!$A:$A,'R2建設io'!$CE12)/'R2建設IOデータ'!Z$232 -> 0.05886624465 | CV12: =+SUMIFS('R2建設IOデータ'!AA:AA,'R2建設IOデータ'!$A:$A,'R2建設io'!$CE12)/'R2建設IOデータ'!AA$232 -> 0.02156461743 | CW12: =+SUMIFS('R2建設IOデータ'!AB:AB,'R2建設IOデータ'!$A:$A,'R2建設io'!$CE12)/'R2建設IOデータ'!AB$232 -> 0.0961639533 | CX12: =+SUMIFS('R2建設IOデータ'!AC:AC,'R2建設IOデータ'!$A:$A,'R2建設io'!$CE12)/'R2建設IOデータ'!AC$232 -> 0.06555238787 | CY12: =+SUMIFS('R2建設IOデータ'!AD:AD,'R2建設IOデータ'!$A:$A,'R2建設io'!$CE12)/'R2建設IOデータ'!AD$232 -> 0.100030716 | CZ12: =+SUMIFS('R2建設IOデータ'!AE:AE,'R2建設IOデータ'!$A:$A,'R2建設io'!$CE12)/'R2建設IOデータ'!AE$232 -> 0.01649806306 | DA12: =+SUMIFS('R2建設IOデータ'!AF:AF,'R2建設IOデータ'!$A:$A,'R2建設io'!$CE12)/'R2建設IOデータ'!AF$232 -> 0.007350180939 | DB12: =+SUMIFS('R2建設IOデータ'!AG:AG,'R2建設IOデータ'!$A:$A,'R2建設io'!$CE12)/'R2建設IOデータ'!AG$232 -> 0.01628555898 | DC12: =+SUMIFS('R2建設IOデータ'!AH:AH,'R2建設IOデータ'!$A:$A,'R2建設io'!$CE12)/'R2建設IOデータ'!AH$232 -> 0.00909775148 | DD12: =+SUMIFS('R2建設IOデータ'!AI:AI,'R2建設IOデータ'!$A:$A,'R2建設io'!$CE12)/'R2建設IOデータ'!AI$232 -> 0.0344860031 | DE12: =+SUMIFS('R2建設IOデータ'!AJ:AJ,'R2建設IOデータ'!$A:$A,'R2建設io'!$CE12)/'R2建設IOデータ'!AJ$232 -> 0.02964796432 | DF12: =+SUMIFS('R2建設IOデータ'!AK:AK,'R2建設IOデータ'!$A:$A,'R2建設io'!$CE12)/'R2建設IOデータ'!AK$232 -> 0.00681414983 | DG12: =+SUMIFS('R2建設IOデータ'!AL:AL,'R2建設IOデータ'!$A:$A,'R2建設io'!$CE12)/'R2建設IOデータ'!AL$232 -> 0.01744014884 | DH12: =+SUMIFS('R2建設IOデータ'!AM:AM,'R2建設IOデータ'!$A:$A,'R2建設io'!$CE12)/'R2建設IOデータ'!AM$232 -> 0.007152806535 | DI12: =+SUMIFS('R2建設IOデータ'!AN:AN,'R2建設IOデータ'!$A:$A,'R2建設io'!$CE12)/'R2建設IOデータ'!AN$232 -> 0.04214973188 | DJ12: =+SUMIFS('R2建設IOデータ'!AO:AO,'R2建設IOデータ'!$A:$A,'R2建設io'!$CE12)/'R2建設IOデータ'!AO$232 -> 0.002228025564 | DK12: =+SUMIFS('R2建設IOデータ'!AP:AP,'R2建設IOデータ'!$A:$A,'R2建設io'!$CE12)/'R2建設IOデータ'!AP$232 -> 0.001531350228 | DL12: =+SUMIFS('R2建設IOデータ'!AQ:AQ,'R2建設IOデータ'!$A:$A,'R2建設io'!$CE12)/'R2建設IOデータ'!AQ$232 -> 0.001593908494 | DM12: =+SUMIFS('R2建設IOデータ'!AR:AR,'R2建設IOデータ'!$A:$A,'R2建設io'!$CE12)/'R2建設IOデータ'!AR$232 -> 0.001535679105 | DN12: =+SUMIFS('R2建設IOデータ'!AS:AS,'R2建設IOデータ'!$A:$A,'R2建設io'!$CE12)/'R2建設IOデータ'!AS$232 -> 0.001435665121 | DO12: =+SUMIFS('R2建設IOデータ'!AT:AT,'R2建設IOデータ'!$A:$A,'R2建設io'!$CE12)/'R2建設IOデータ'!AT$232 -> 0.001490044614 | DP12: =+SUMIFS('R2建設IOデータ'!AU:AU,'R2建設IOデータ'!$A:$A,'R2建設io'!$CE12)/'R2建設IOデータ'!AU$232 -> 0.0003755590709 | DQ12: =+SUMIFS('R2建設IOデータ'!AV:AV,'R2建設IOデータ'!$A:$A,'R2建設io'!$CE12)/'R2建設IOデータ'!AV$232 -> 0.001057469048 | DR12: =+SUMIFS('R2建設IOデータ'!AW:AW,'R2建設IOデータ'!$A:$A,'R2建設io'!$CE12)/'R2建設IOデータ'!AW$232 -> 0.0004746303521 | DS12: =+SUMIFS('R2建設IOデータ'!AX:AX,'R2建設IOデータ'!$A:$A,'R2建設io'!$CE12)/'R2建設IOデータ'!AX$232 -> 0.006430958251 | DT12: =+SUMIFS('R2建設IOデータ'!AY:AY,'R2建設IOデータ'!$A:$A,'R2建設io'!$CE12)/'R2建設IOデータ'!AY$232 -> 0.0009938162544 | DU12: =+SUMIFS('R2建設IOデータ'!AZ:AZ,'R2建設IOデータ'!$A:$A,'R2建設io'!$CE12)/'R2建設IOデータ'!AZ$232 -> 0.001165586071 | DV12: =+SUMIFS('R2建設IOデータ'!BA:BA,'R2建設IOデータ'!$A:$A,'R2建設io'!$CE12)/'R2建設IOデータ'!BA$232 -> 0.001956229477 | DW12: =+SUMIFS('R2建設IOデータ'!BB:BB,'R2建設IOデータ'!$A:$A,'R2建設io'!$CE12)/'R2建設IOデータ'!BB$232 -> 0.002067357625 | DX12: =+SUMIFS('R2建設IOデータ'!BC:BC,'R2建設IOデータ'!$A:$A,'R2建設io'!$CE12)/'R2建設IOデータ'!BC$232 -> 0.002304191046 | DY12: =+SUMIFS('R2建設IOデータ'!BD:BD,'R2建設IOデータ'!$A:$A,'R2建設io'!$CE12)/'R2建設IOデータ'!BD$232 -> 0.0002690720857 | DZ12: =+SUMIFS('R2建設IOデータ'!BE:BE,'R2建設IOデータ'!$A:$A,'R2建設io'!$CE12)/'R2建設IOデータ'!BE$232 -> 0.0001376778339 | EA12: =+SUMIFS('R2建設IOデータ'!BF:BF,'R2建設IOデータ'!$A:$A,'R2建設io'!$CE12)/'R2建設IOデータ'!BF$232 -> 0.0001853110137 | EB12: =+SUMIFS('R2建設IOデータ'!BG:BG,'R2建設IOデータ'!$A:$A,'R2建設io'!$CE12)/'R2建設IOデータ'!BG$232 -> 0.0008628629599 | EC12: =+SUMIFS('R2建設IOデータ'!BH:BH,'R2建設IOデータ'!$A:$A,'R2建設io'!$CE12)/'R2建設IOデータ'!BH$232 -> 0.0008757085547 | ED12: =+SUMIFS('R2建設IOデータ'!BI:BI,'R2建設IOデータ'!$A:$A,'R2建設io'!$CE12)/'R2建設IOデータ'!BI$232 -> 0.0008046346958 | EE12: =+SUMIFS('R2建設IOデータ'!BJ:BJ,'R2建設IOデータ'!$A:$A,'R2建設io'!$CE12)/'R2建設IOデータ'!BJ$232 -> 0.005097029662 | EF12: =+SUMIFS('R2建設IOデータ'!BK:BK,'R2建設IOデータ'!$A:$A,'R2建設io'!$CE12)/'R2建設IOデータ'!BK$232 -> 0.001129673445 | EG12: =+SUMIFS('R2建設IOデータ'!BL:BL,'R2建設IOデータ'!$A:$A,'R2建設io'!$CE12)/'R2建設IOデータ'!BL$232 -> 0.0003669063729 | EH12: =+SUMIFS('R2建設IOデータ'!BM:BM,'R2建設IOデータ'!$A:$A,'R2建設io'!$CE12)/'R2建設IOデータ'!BM$232 -> 0.0003948639147 | EI12: =+SUMIFS('R2建設IOデータ'!BN:BN,'R2建設IOデータ'!$A:$A,'R2建設io'!$CE12)/'R2建設IOデータ'!BN$232 -> 6.245635153e-05 | EJ12: =+SUMIFS('R2建設IOデータ'!BO:BO,'R2建設IOデータ'!$A:$A,'R2建設io'!$CE12)/'R2建設IOデータ'!BO$232 -> 0.0003241841366 | EK12: =+SUMIFS('R2建設IOデータ'!BP:BP,'R2建設IOデータ'!$A:$A,'R2建設io'!$CE12)/'R2建設IOデータ'!BP$232 -> 0.0004127588342 | EL12: =+SUMIFS('R2建設IOデータ'!BQ:BQ,'R2建設IOデータ'!$A:$A,'R2建設io'!$CE12)/'R2建設IOデータ'!BQ$232 -> 0.001220066876 | EM12: =+SUMIFS('R2建設IOデータ'!BR:BR,'R2建設IOデータ'!$A:$A,'R2建設io'!$CE12)/'R2建設IOデータ'!BR$232 -> 0.003190385904 | EN12: =+SUMIFS('R2建設IOデータ'!BS:BS,'R2建設IOデータ'!$A:$A,'R2建設io'!$CE12)/'R2建設IOデータ'!BS$232 -> 0.0001138631766 | EO12: =+SUMIFS('R2建設IOデータ'!BT:BT,'R2建設IOデータ'!$A:$A,'R2建設io'!$CE12)/'R2建設IOデータ'!BT$232 -> 0.0003857810979 | EP12: =+SUMIFS('R2建設IOデータ'!BU:BU,'R2建設IOデータ'!$A:$A,'R2建設io'!$CE12)/'R2建設IOデータ'!BU$232 -> 0.008222585088 | EQ12: =+SUMIFS('R2建設IOデータ'!BV:BV,'R2建設IOデータ'!$A:$A,'R2建設io'!$CE12)/'R2建設IOデータ'!BV$232 -> 0.0004330172276 | ER12: =+SUMIFS('R2建設IOデータ'!BW:BW,'R2建設IOデータ'!$A:$A,'R2建設io'!$CE12)/'R2建設IOデータ'!BW$232 -> 0.003251448079 | ES12: =+SUMIFS('R2建設IOデータ'!BX:BX,'R2建設IOデータ'!$A:$A,'R2建設io'!$CE12)/'R2建設IOデータ'!BX$232 -> 0.003210840724 | ET12: =+SUMIFS('R2建設IOデータ'!BY:BY,'R2建設IOデータ'!$A:$A,'R2建設io'!$CE12)/'R2建設IOデータ'!BY$232 -> 0.003723011103 | EU12: =+SUMIFS('R2建設IOデータ'!BZ:BZ,'R2建設IOデータ'!$A:$A,'R2建設io'!$CE12)/'R2建設IOデータ'!BZ$232 -> 0.001862400539 | EV12: =+SUMIFS('R2建設IOデータ'!CA:CA,'R2建設IOデータ'!$A:$A,'R2建設io'!$CE12)/'R2建設IOデータ'!CA$232 -> 0.00206115846 | EW12: =+SUMIFS('R2建設IOデータ'!CB:CB,'R2建設IOデータ'!$A:$A,'R2建設io'!$CE12)/'R2建設IOデータ'!CB$232 -> 0.001340079176 | EX12: =+SUMIFS('R2建設IOデータ'!CC:CC,'R2建設IOデータ'!$A:$A,'R2建設io'!$CE12)/'R2建設IOデータ'!CC$232 -> 0.001727984746 | EY12: =+SUMIFS('R2建設IOデータ'!CD:CD,'R2建設IOデータ'!$A:$A,'R2建設io'!$CE12)/'R2建設IOデータ'!CD$232 -> 0.005666082642
A13: 0 | C13: 20 | D13: 化学製品 | E13: 0 | F13: 0 | G13: 0 | H13: 0 | I13: 0 | J13: 0 | K13: 0 | L13: 0 | M13: 0 | N13: 0 | O13: 0 | P13: 0 | Q13: 0 | R13: 0 | S13: 0 | T13: 0 | U13: 0 | V13: 0 | W13: 0 | X13: 0 | Y13: 0 | Z13: 0 | AA13: 0 | AB13: 0 | AC13: 0 | AD13: 0 | AE13: 0 | AF13: 0 | AG13: 0 | AH13: 0 | AI13: 0 | AJ13: 0 | AK13: 0 | AL13: 0 | AM13: 0 | AN13: 0 | AO13: 0 | AP13: 0 | AQ13: 0 | AR13: 0 | AS13: 0 | AT13: 0 | AU13: 0 | AV13: 0 | AW13: 0 | AX13: 0 | AY13: 0 | AZ13: 0 | BA13: 0 | BB13: 0 | BC13: 0 | BD13: 0 | BE13: 0 | BF13: 0 | BG13: 0 | BH13: 0 | BI13: 0 | BJ13: 0 | BK13: 0 | BL13: 0 | BM13: 0 | BN13: 0 | BO13: 0 | BP13: 0 | BQ13: 0 | BR13: 0 | BS13: 0 | BT13: 0 | BU13: 0 | BV13: 0 | BW13: 0 | CE13: 20 | CF13: 化学製品 | CG13: =+SUMIFS('R2建設IOデータ'!L:L,'R2建設IOデータ'!$A:$A,'R2建設io'!$CE13)/'R2建設IOデータ'!L$232 -> 0.004795393382 | CH13: =+SUMIFS('R2建設IOデータ'!M:M,'R2建設IOデータ'!$A:$A,'R2建設io'!$CE13)/'R2建設IOデータ'!M$232 -> 0.005613590815 | CI13: =+SUMIFS('R2建設IOデータ'!N:N,'R2建設IOデータ'!$A:$A,'R2建設io'!$CE13)/'R2建設IOデータ'!N$232 -> 0.006804564681 | CJ13: =+SUMIFS('R2建設IOデータ'!O:O,'R2建設IOデータ'!$A:$A,'R2建設io'!$CE13)/'R2建設IOデータ'!O$232 -> 0.007002286051 | CK13: =+SUMIFS('R2建設IOデータ'!P:P,'R2建設IOデータ'!$A:$A,'R2建設io'!$CE13)/'R2建設IOデータ'!P$232 -> 0.006966333654 | CL13: =+SUMIFS('R2建設IOデータ'!Q:Q,'R2建設IOデータ'!$A:$A,'R2建設io'!$CE13)/'R2建設IOデータ'!Q$232 -> 0.008637991024 | CM13: =+SUMIFS('R2建設IOデータ'!R:R,'R2建設IOデータ'!$A:$A,'R2建設io'!$CE13)/'R2建設IOデータ'!R$232 -> 0.006524649298 | CN13: =+SUMIFS('R2建設IOデータ'!S:S,'R2建設IOデータ'!$A:$A,'R2建設io'!$CE13)/'R2建設IOデータ'!S$232 -> 0.004221551287 | CO13: =+SUMIFS('R2建設IOデータ'!T:T,'R2建設IOデータ'!$A:$A,'R2建設io'!$CE13)/'R2建設IOデータ'!T$232 -> 0.007979496633 | CP13: =+SUMIFS('R2建設IOデータ'!U:U,'R2建設IOデータ'!$A:$A,'R2建設io'!$CE13)/'R2建設IOデータ'!U$232 -> 0.007880351396 | CQ13: =+SUMIFS('R2建設IOデータ'!V:V,'R2建設IOデータ'!$A:$A,'R2建設io'!$CE13)/'R2建設IOデータ'!V$232 -> 0.01512681503 | CR13: =+SUMIFS('R2建設IOデータ'!W:W,'R2建設IOデータ'!$A:$A,'R2建設io'!$CE13)/'R2建設IOデータ'!W$232 -> 0.004391095706 | CS13: =+SUMIFS('R2建設IOデータ'!X:X,'R2建設IOデータ'!$A:$A,'R2建設io'!$CE13)/'R2建設IOデータ'!X$232 -> 0.005287245116 | CT13: =+SUMIFS('R2建設IOデータ'!Y:Y,'R2建設IOデータ'!$A:$A,'R2建設io'!$CE13)/'R2建設IOデータ'!Y$232 -> 0.004021271072 | CU13: =+SUMIFS('R2建設IOデータ'!Z:Z,'R2建設IOデータ'!$A:$A,'R2建設io'!$CE13)/'R2建設IOデータ'!Z$232 -> 0.005540909593 | CV13: =+SUMIFS('R2建設IOデータ'!AA:AA,'R2建設IOデータ'!$A:$A,'R2建設io'!$CE13)/'R2建設IOデータ'!AA$232 -> 0.004368383847 | CW13: =+SUMIFS('R2建設IOデータ'!AB:AB,'R2建設IOデータ'!$A:$A,'R2建設io'!$CE13)/'R2建設IOデータ'!AB$232 -> 0.004825229115 | CX13: =+SUMIFS('R2建設IOデータ'!AC:AC,'R2建設IOデータ'!$A:$A,'R2建設io'!$CE13)/'R2建設IOデータ'!AC$232 -> 0.003568300818 | CY13: =+SUMIFS('R2建設IOデータ'!AD:AD,'R2建設IOデータ'!$A:$A,'R2建設io'!$CE13)/'R2建設IOデータ'!AD$232 -> 0.004984000593 | CZ13: =+SUMIFS('R2建設IOデータ'!AE:AE,'R2建設IOデータ'!$A:$A,'R2建設io'!$CE13)/'R2建設IOデータ'!AE$232 -> 0.00433735634 | DA13: =+SUMIFS('R2建設IOデータ'!AF:AF,'R2建設IOデータ'!$A:$A,'R2建設io'!$CE13)/'R2建設IOデータ'!AF$232 -> 0.005150382149 | DB13: =+SUMIFS('R2建設IOデータ'!AG:AG,'R2建設IOデータ'!$A:$A,'R2建設io'!$CE13)/'R2建設IOデータ'!AG$232 -> 0.003341184997 | DC13: =+SUMIFS('R2建設IOデータ'!AH:AH,'R2建設IOデータ'!$A:$A,'R2建設io'!$CE13)/'R2建設IOデータ'!AH$232 -> 0.005283083061 | DD13: =+SUMIFS('R2建設IOデータ'!AI:AI,'R2建設IOデータ'!$A:$A,'R2建設io'!$CE13)/'R2建設IOデータ'!AI$232 -> 0.004418135629 | DE13: =+SUMIFS('R2建設IOデータ'!AJ:AJ,'R2建設IOデータ'!$A:$A,'R2建設io'!$CE13)/'R2建設IOデータ'!AJ$232 -> 0.004004094078 | DF13: =+SUMIFS('R2建設IOデータ'!AK:AK,'R2建設IOデータ'!$A:$A,'R2建設io'!$CE13)/'R2建設IOデータ'!AK$232 -> 0.004968795292 | DG13: =+SUMIFS('R2建設IOデータ'!AL:AL,'R2建設IOデータ'!$A:$A,'R2建設io'!$CE13)/'R2建設IOデータ'!AL$232 -> 0.004033193206 | DH13: =+SUMIFS('R2建設IOデータ'!AM:AM,'R2建設IOデータ'!$A:$A,'R2建設io'!$CE13)/'R2建設IOデータ'!AM$232 -> 0.002130783421 | DI13: =+SUMIFS('R2建設IOデータ'!AN:AN,'R2建設IOデータ'!$A:$A,'R2建設io'!$CE13)/'R2建設IOデータ'!AN$232 -> 0.007006709949 | DJ13: =+SUMIFS('R2建設IOデータ'!AO:AO,'R2建設IOデータ'!$A:$A,'R2建設io'!$CE13)/'R2建設IOデータ'!AO$232 -> 0.002680981412 | DK13: =+SUMIFS('R2建設IOデータ'!AP:AP,'R2建設IOデータ'!$A:$A,'R2建設io'!$CE13)/'R2建設IOデータ'!AP$232 -> 0.002592330688 | DL13: =+SUMIFS('R2建設IOデータ'!AQ:AQ,'R2建設IOデータ'!$A:$A,'R2建設io'!$CE13)/'R2建設IOデータ'!AQ$232 -> 0.003292961869 | DM13: =+SUMIFS('R2建設IOデータ'!AR:AR,'R2建設IOデータ'!$A:$A,'R2建設io'!$CE13)/'R2建設IOデータ'!AR$232 -> 0.003320201467 | DN13: =+SUMIFS('R2建設IOデータ'!AS:AS,'R2建設IOデータ'!$A:$A,'R2建設io'!$CE13)/'R2建設IOデータ'!AS$232 -> 0.003021937874 | DO13: =+SUMIFS('R2建設IOデータ'!AT:AT,'R2建設IOデータ'!$A:$A,'R2建設io'!$CE13)/'R2建設IOデータ'!AT$232 -> 0.001620062357 | DP13: =+SUMIFS('R2建設IOデータ'!AU:AU,'R2建設IOデータ'!$A:$A,'R2建設io'!$CE13)/'R2建設IOデータ'!AU$232 -> 0.0007738792976 | DQ13: =+SUMIFS('R2建設IOデータ'!AV:AV,'R2建設IOデータ'!$A:$A,'R2建設io'!$CE13)/'R2建設IOデータ'!AV$232 -> 0.003728074527 | DR13: =+SUMIFS('R2建設IOデータ'!AW:AW,'R2建設IOデータ'!$A:$A,'R2建設io'!$CE13)/'R2建設IOデータ'!AW$232 -> 0.004968147321 | DS13: =+SUMIFS('R2建設IOデータ'!AX:AX,'R2建設IOデータ'!$A:$A,'R2建設io'!$CE13)/'R2建設IOデータ'!AX$232 -> 0.0005119297459 | DT13: =+SUMIFS('R2建設IOデータ'!AY:AY,'R2建設IOデータ'!$A:$A,'R2建設io'!$CE13)/'R2建設IOデータ'!AY$232 -> 0.0004416961131 | DU13: =+SUMIFS('R2建設IOデータ'!AZ:AZ,'R2建設IOデータ'!$A:$A,'R2建設io'!$CE13)/'R2建設IOデータ'!AZ$232 -> 0.0003642456473 | DV13: =+SUMIFS('R2建設IOデータ'!BA:BA,'R2建設IOデータ'!$A:$A,'R2建設io'!$CE13)/'R2建設IOデータ'!BA$232 -> 0.004574374736 | DW13: =+SUMIFS('R2建設IOデータ'!BB:BB,'R2建設IOデータ'!$A:$A,'R2建設io'!$CE13)/'R2建設IOデータ'!BB$232 -> 0.004630368675 | DX13: =+SUMIFS('R2建設IOデータ'!BC:BC,'R2建設IOデータ'!$A:$A,'R2建設io'!$CE13)/'R2建設IOデータ'!BC$232 -> 0.003163116922 | DY13: =+SUMIFS('R2建設IOデータ'!BD:BD,'R2建設IOデータ'!$A:$A,'R2建設io'!$CE13)/'R2建設IOデータ'!BD$232 -> 0.0129795249 | DZ13: =+SUMIFS('R2建設IOデータ'!BE:BE,'R2建設IOデータ'!$A:$A,'R2建設io'!$CE13)/'R2建設IOデータ'!BE$232 -> 0.03836622304 | EA13: =+SUMIFS('R2建設IOデータ'!BF:BF,'R2建設IOデータ'!$A:$A,'R2建設io'!$CE13)/'R2建設IOデータ'!BF$232 -> 0.0004323923652 | EB13: =+SUMIFS('R2建設IOデータ'!BG:BG,'R2建設IOデータ'!$A:$A,'R2建設io'!$CE13)/'R2建設IOデータ'!BG$232 -> 0.004023462116 | EC13: =+SUMIFS('R2建設IOデータ'!BH:BH,'R2建設IOデータ'!$A:$A,'R2建設io'!$CE13)/'R2建設IOデータ'!BH$232 -> 0.00407086139 | ED13: =+SUMIFS('R2建設IOデータ'!BI:BI,'R2建設IOデータ'!$A:$A,'R2建設io'!$CE13)/'R2建設IOデータ'!BI$232 -> 0.003808604227 | EE13: =+SUMIFS('R2建設IOデータ'!BJ:BJ,'R2建設IOデータ'!$A:$A,'R2建設io'!$CE13)/'R2建設IOデータ'!BJ$232 -> 0.00165420841 | EF13: =+SUMIFS('R2建設IOデータ'!BK:BK,'R2建設IOデータ'!$A:$A,'R2建設io'!$CE13)/'R2建設IOデータ'!BK$232 -> 0.001546119468 | EG13: =+SUMIFS('R2建設IOデータ'!BL:BL,'R2建設IOデータ'!$A:$A,'R2建設io'!$CE13)/'R2建設IOデータ'!BL$232 -> 0.0007625810381 | EH13: =+SUMIFS('R2建設IOデータ'!BM:BM,'R2建設IOデータ'!$A:$A,'R2建設io'!$CE13)/'R2建設IOデータ'!BM$232 -> 0.0008026407629 | EI13: =+SUMIFS('R2建設IOデータ'!BN:BN,'R2建設IOデータ'!$A:$A,'R2建設io'!$CE13)/'R2建設IOデータ'!BN$232 -> 0.0007097312674 | EJ13: =+SUMIFS('R2建設IOデータ'!BO:BO,'R2建設IOデータ'!$A:$A,'R2建設io'!$CE13)/'R2建設IOデータ'!BO$232 -> 0.001996291788 | EK13: =+SUMIFS('R2建設IOデータ'!BP:BP,'R2建設IOデータ'!$A:$A,'R2建設io'!$CE13)/'R2建設IOデータ'!BP$232 -> 0.0001513449059 | EL13: =+SUMIFS('R2建設IOデータ'!BQ:BQ,'R2建設IOデータ'!$A:$A,'R2建設io'!$CE13)/'R2建設IOデータ'!BQ$232 -> 0.003456426244 | EM13: =+SUMIFS('R2建設IOデータ'!BR:BR,'R2建設IOデータ'!$A:$A,'R2建設io'!$CE13)/'R2建設IOデータ'!BR$232 -> 0.001249442993 | EN13: =+SUMIFS('R2建設IOデータ'!BS:BS,'R2建設IOデータ'!$A:$A,'R2建設io'!$CE13)/'R2建設IOデータ'!BS$232 -> 0.001192214438 | EO13: =+SUMIFS('R2建設IOデータ'!BT:BT,'R2建設IOデータ'!$A:$A,'R2建設io'!$CE13)/'R2建設IOデータ'!BT$232 -> 0.001883403104 | EP13: =+SUMIFS('R2建設IOデータ'!BU:BU,'R2建設IOデータ'!$A:$A,'R2建設io'!$CE13)/'R2建設IOデータ'!BU$232 -> 0.003451742433 | EQ13: =+SUMIFS('R2建設IOデータ'!BV:BV,'R2建設IOデータ'!$A:$A,'R2建設io'!$CE13)/'R2建設IOデータ'!BV$232 -> 0.0009130806727 | ER13: =+SUMIFS('R2建設IOデータ'!BW:BW,'R2建設IOデータ'!$A:$A,'R2建設io'!$CE13)/'R2建設IOデータ'!BW$232 -> 0.004438234909 | ES13: =+SUMIFS('R2建設IOデータ'!BX:BX,'R2建設IOデータ'!$A:$A,'R2建設io'!$CE13)/'R2建設IOデータ'!BX$232 -> 0.002806042931 | ET13: =+SUMIFS('R2建設IOデータ'!BY:BY,'R2建設IOデータ'!$A:$A,'R2建設io'!$CE13)/'R2建設IOデータ'!BY$232 -> 0.003900949133 | EU13: =+SUMIFS('R2建設IOデータ'!BZ:BZ,'R2建設IOデータ'!$A:$A,'R2建設io'!$CE13)/'R2建設IOデータ'!BZ$232 -> 0.001236899422 | EV13: =+SUMIFS('R2建設IOデータ'!CA:CA,'R2建設IOデータ'!$A:$A,'R2建設io'!$CE13)/'R2建設IOデータ'!CA$232 -> 0.001812159452 | EW13: =+SUMIFS('R2建設IOデータ'!CB:CB,'R2建設IOデータ'!$A:$A,'R2建設io'!$CE13)/'R2建設IOデータ'!CB$232 -> 0.00532217001 | EX13: =+SUMIFS('R2建設IOデータ'!CC:CC,'R2建設IOデータ'!$A:$A,'R2建設io'!$CE13)/'R2建設IOデータ'!CC$232 -> 0.002881629735 | EY13: =+SUMIFS('R2建設IOデータ'!CD:CD,'R2建設IOデータ'!$A:$A,'R2建設io'!$CE13)/'R2建設IOデータ'!CD$232 -> 0.002494398957
A14: 0 | C14: 21 | D14: 石油・石炭製品 | E14: 0 | F14: 0 | G14: 0 | H14: 0 | I14: 0 | J14: 0 | K14: 0 | L14: 0 | M14: 0 | N14: 0 | O14: 0 | P14: 0 | Q14: 0 | R14: 0 | S14: 0 | T14: 0 | U14: 0 | V14: 0 | W14: 0 | X14: 0 | Y14: 0 | Z14: 0 | AA14: 0 | AB14: 0 | AC14: 0 | AD14: 0 | AE14: 0 | AF14: 0 | AG14: 0 | AH14: 0 | AI14: 0 | AJ14: 0 | AK14: 0 | AL14: 0 | AM14: 0 | AN14: 0 | AO14: 0 | AP14: 0 | AQ14: 0 | AR14: 0 | AS14: 0 | AT14: 0 | AU14: 0 | AV14: 0 | AW14: 0 | AX14: 0 | AY14: 0 | AZ14: 0 | BA14: 0 | BB14: 0 | BC14: 0 | BD14: 0 | BE14: 0 | BF14: 0 | BG14: 0 | BH14: 0 | BI14: 0 | BJ14: 0 | BK14: 0 | BL14: 0 | BM14: 0 | BN14: 0 | BO14: 0 | BP14: 0 | BQ14: 0 | BR14: 0 | BS14: 0 | BT14: 0 | BU14: 0 | BV14: 0 | BW14: 0 | CE14: 21 | CF14: 石油・石炭製品 | CG14: =+SUMIFS('R2建設IOデータ'!L:L,'R2建設IOデータ'!$A:$A,'R2建設io'!$CE14)/'R2建設IOデータ'!L$232 -> 0.01131945154 | CH14: =+SUMIFS('R2建設IOデータ'!M:M,'R2建設IOデータ'!$A:$A,'R2建設io'!$CE14)/'R2建設IOデータ'!M$232 -> 0.002746663714 | CI14: =+SUMIFS('R2建設IOデータ'!N:N,'R2建設IOデータ'!$A:$A,'R2建設io'!$CE14)/'R2建設IOデータ'!N$232 -> 0.001519907715 | CJ14: =+SUMIFS('R2建設IOデータ'!O:O,'R2建設IOデータ'!$A:$A,'R2建設io'!$CE14)/'R2建設IOデータ'!O$232 -> 0.00055353697 | CK14: =+SUMIFS('R2建設IOデータ'!P:P,'R2建設IOデータ'!$A:$A,'R2建設io'!$CE14)/'R2建設IOデータ'!P$232 -> 0.0005539550317 | CL14: =+SUMIFS('R2建設IOデータ'!Q:Q,'R2建設IOデータ'!$A:$A,'R2建設io'!$CE14)/'R2建設IOデータ'!Q$232 -> 0.0005345166658 | CM14: =+SUMIFS('R2建設IOデータ'!R:R,'R2建設IOデータ'!$A:$A,'R2建設io'!$CE14)/'R2建設IOデータ'!R$232 -> 0.002888004831 | CN14: =+SUMIFS('R2建設IOデータ'!S:S,'R2建設IOデータ'!$A:$A,'R2建設io'!$CE14)/'R2建設IOデータ'!S$232 -> 0.002444759131 | CO14: =+SUMIFS('R2建設IOデータ'!T:T,'R2建設IOデータ'!$A:$A,'R2建設io'!$CE14)/'R2建設IOデータ'!T$232 -> 0.003644161185 | CP14: =+SUMIFS('R2建設IOデータ'!U:U,'R2建設IOデータ'!$A:$A,'R2建設io'!$CE14)/'R2建設IOデータ'!U$232 -> 0.003676305278 | CQ14: =+SUMIFS('R2建設IOデータ'!V:V,'R2建設IOデータ'!$A:$A,'R2建設io'!$CE14)/'R2建設IOデータ'!V$232 -> 0.001326913599 | CR14: =+SUMIFS('R2建設IOデータ'!W:W,'R2建設IOデータ'!$A:$A,'R2建設io'!$CE14)/'R2建設IOデータ'!W$232 -> 0.001749372516 | CS14: =+SUMIFS('R2建設IOデータ'!X:X,'R2建設IOデータ'!$A:$A,'R2建設io'!$CE14)/'R2建設IOデータ'!X$232 -> 0.002826386492 | CT14: =+SUMIFS('R2建設IOデータ'!Y:Y,'R2建設IOデータ'!$A:$A,'R2建設io'!$CE14)/'R2建設IOデータ'!Y$232 -> 0.001304908351 | CU14: =+SUMIFS('R2建設IOデータ'!Z:Z,'R2建設IOデータ'!$A:$A,'R2建設io'!$CE14)/'R2建設IOデータ'!Z$232 -> 0.00266784536 | CV14: =+SUMIFS('R2建設IOデータ'!AA:AA,'R2建設IOデータ'!$A:$A,'R2建設io'!$CE14)/'R2建設IOデータ'!AA$232 -> 0.00402928222 | CW14: =+SUMIFS('R2建設IOデータ'!AB:AB,'R2建設IOデータ'!$A:$A,'R2建設io'!$CE14)/'R2建設IOデータ'!AB$232 -> 0.001239220816 | CX14: =+SUMIFS('R2建設IOデータ'!AC:AC,'R2建設IOデータ'!$A:$A,'R2建設io'!$CE14)/'R2建設IOデータ'!AC$232 -> 0.004583822461 | CY14: =+SUMIFS('R2建設IOデータ'!AD:AD,'R2建設IOデータ'!$A:$A,'R2建設io'!$CE14)/'R2建設IOデータ'!AD$232 -> 0.0008167405931 | CZ14: =+SUMIFS('R2建設IOデータ'!AE:AE,'R2建設IOデータ'!$A:$A,'R2建設io'!$CE14)/'R2建設IOデータ'!AE$232 -> 0.004218774494 | DA14: =+SUMIFS('R2建設IOデータ'!AF:AF,'R2建設IOデータ'!$A:$A,'R2建設io'!$CE14)/'R2建設IOデータ'!AF$232 -> 0.006456747301 | DB14: =+SUMIFS('R2建設IOデータ'!AG:AG,'R2建設IOデータ'!$A:$A,'R2建設io'!$CE14)/'R2建設IOデータ'!AG$232 -> 0.002727547261 | DC14: =+SUMIFS('R2建設IOデータ'!AH:AH,'R2建設IOデータ'!$A:$A,'R2建設io'!$CE14)/'R2建設IOデータ'!AH$232 -> 0.005719595392 | DD14: =+SUMIFS('R2建設IOデータ'!AI:AI,'R2建設IOデータ'!$A:$A,'R2建設io'!$CE14)/'R2建設IOデータ'!AI$232 -> 0.00456131595 | DE14: =+SUMIFS('R2建設IOデータ'!AJ:AJ,'R2建設IOデータ'!$A:$A,'R2建設io'!$CE14)/'R2建設IOデータ'!AJ$232 -> 0.004205839609 | DF14: =+SUMIFS('R2建設IOデータ'!AK:AK,'R2建設IOデータ'!$A:$A,'R2建設io'!$CE14)/'R2建設IOデータ'!AK$232 -> 0.005792720354 | DG14: =+SUMIFS('R2建設IOデータ'!AL:AL,'R2建設IOデータ'!$A:$A,'R2建設io'!$CE14)/'R2建設IOデータ'!AL$232 -> 0.003014552283 | DH14: =+SUMIFS('R2建設IOデータ'!AM:AM,'R2建設IOデータ'!$A:$A,'R2建設io'!$CE14)/'R2建設IOデータ'!AM$232 -> 0.003493581297 | DI14: =+SUMIFS('R2建設IOデータ'!AN:AN,'R2建設IOデータ'!$A:$A,'R2建設io'!$CE14)/'R2建設IOデータ'!AN$232 -> 0.002803644434 | DJ14: =+SUMIFS('R2建設IOデータ'!AO:AO,'R2建設IOデータ'!$A:$A,'R2建設io'!$CE14)/'R2建設IOデータ'!AO$232 -> 0.02685263436 | DK14: =+SUMIFS('R2建設IOデータ'!AP:AP,'R2建設IOデータ'!$A:$A,'R2建設io'!$CE14)/'R2建設IOデータ'!AP$232 -> 0.0357428055 | DL14: =+SUMIFS('R2建設IOデータ'!AQ:AQ,'R2建設IOデータ'!$A:$A,'R2建設io'!$CE14)/'R2建設IOデータ'!AQ$232 -> 0.05556213885 | DM14: =+SUMIFS('R2建設IOデータ'!AR:AR,'R2建設IOデータ'!$A:$A,'R2建設io'!$CE14)/'R2建設IOデータ'!AR$232 -> 0.05569277069 | DN14: =+SUMIFS('R2建設IOデータ'!AS:AS,'R2建設IOデータ'!$A:$A,'R2建設io'!$CE14)/'R2建設IOデータ'!AS$232 -> 0.05593180282 | DO14: =+SUMIFS('R2建設IOデータ'!AT:AT,'R2建設IOデータ'!$A:$A,'R2建設io'!$CE14)/'R2建設IOデータ'!AT$232 -> 0.03365344183 | DP14: =+SUMIFS('R2建設IOデータ'!AU:AU,'R2建設IOデータ'!$A:$A,'R2建設io'!$CE14)/'R2建設IOデータ'!AU$232 -> 0.1310587352 | DQ14: =+SUMIFS('R2建設IOデータ'!AV:AV,'R2建設IOデータ'!$A:$A,'R2建設io'!$CE14)/'R2建設IOデータ'!AV$232 -> 0.01024299108 | DR14: =+SUMIFS('R2建設IOデータ'!AW:AW,'R2建設IOデータ'!$A:$A,'R2建設io'!$CE14)/'R2建設IOデータ'!AW$232 -> 0.08613727988 | DS14: =+SUMIFS('R2建設IOデータ'!AX:AX,'R2建設IOデータ'!$A:$A,'R2建設io'!$CE14)/'R2建設IOデータ'!AX$232 -> 0.04181523666 | DT14: =+SUMIFS('R2建設IOデータ'!AY:AY,'R2建設IOデータ'!$A:$A,'R2建設io'!$CE14)/'R2建設IOデータ'!AY$232 -> 0.2034010601 | DU14: =+SUMIFS('R2建設IOデータ'!AZ:AZ,'R2建設IOデータ'!$A:$A,'R2建設io'!$CE14)/'R2建設IOデータ'!AZ$232 -> 0.005463684709 | DV14: =+SUMIFS('R2建設IOデータ'!BA:BA,'R2建設IOデータ'!$A:$A,'R2建設io'!$CE14)/'R2建設IOデータ'!BA$232 -> 0.05468766073 | DW14: =+SUMIFS('R2建設IOデータ'!BB:BB,'R2建設IOデータ'!$A:$A,'R2建設io'!$CE14)/'R2建設IOデータ'!BB$232 -> 0.05442629348 | DX14: =+SUMIFS('R2建設IOデータ'!BC:BC,'R2建設IOデータ'!$A:$A,'R2建設io'!$CE14)/'R2建設IOデータ'!BC$232 -> 0.05774051315 | DY14: =+SUMIFS('R2建設IOデータ'!BD:BD,'R2建設IOデータ'!$A:$A,'R2建設io'!$CE14)/'R2建設IOデータ'!BD$232 -> 0.02007790278 | DZ14: =+SUMIFS('R2建設IOデータ'!BE:BE,'R2建設IOデータ'!$A:$A,'R2建設io'!$CE14)/'R2建設IOデータ'!BE$232 -> 0.07448370812 | EA14: =+SUMIFS('R2建設IOデータ'!BF:BF,'R2建設IOデータ'!$A:$A,'R2建設io'!$CE14)/'R2建設IOデータ'!BF$232 -> 0.009018469331 | EB14: =+SUMIFS('R2建設IOデータ'!BG:BG,'R2建設IOデータ'!$A:$A,'R2建設io'!$CE14)/'R2建設IOデータ'!BG$232 -> 0.05725919822 | EC14: =+SUMIFS('R2建設IOデータ'!BH:BH,'R2建設IOデータ'!$A:$A,'R2建設io'!$CE14)/'R2建設IOデータ'!BH$232 -> 0.0580334426 | ED14: =+SUMIFS('R2建設IOデータ'!BI:BI,'R2建設IOデータ'!$A:$A,'R2建設io'!$CE14)/'R2建設IOデータ'!BI$232 -> 0.05374959768 | EE14: =+SUMIFS('R2建設IOデータ'!BJ:BJ,'R2建設IOデータ'!$A:$A,'R2建設io'!$CE14)/'R2建設IOデータ'!BJ$232 -> 0.04770323501 | EF14: =+SUMIFS('R2建設IOデータ'!BK:BK,'R2建設IOデータ'!$A:$A,'R2建設io'!$CE14)/'R2建設IOデータ'!BK$232 -> 0.01882329458 | EG14: =+SUMIFS('R2建設IOデータ'!BL:BL,'R2建設IOデータ'!$A:$A,'R2建設io'!$CE14)/'R2建設IOデータ'!BL$232 -> 0.01281915101 | EH14: =+SUMIFS('R2建設IOデータ'!BM:BM,'R2建設IOデータ'!$A:$A,'R2建設io'!$CE14)/'R2建設IOデータ'!BM$232 -> 0.0155988237 | EI14: =+SUMIFS('R2建設IOデータ'!BN:BN,'R2建設IOデータ'!$A:$A,'R2建設io'!$CE14)/'R2建設IOデータ'!BN$232 -> 0.0101236068 | EJ14: =+SUMIFS('R2建設IOデータ'!BO:BO,'R2建設IOデータ'!$A:$A,'R2建設io'!$CE14)/'R2建設IOデータ'!BO$232 -> 0.008468599638 | EK14: =+SUMIFS('R2建設IOデータ'!BP:BP,'R2建設IOデータ'!$A:$A,'R2建設io'!$CE14)/'R2建設IOデータ'!BP$232 -> 0.006283106698 | EL14: =+SUMIFS('R2建設IOデータ'!BQ:BQ,'R2建設IOデータ'!$A:$A,'R2建設io'!$CE14)/'R2建設IOデータ'!BQ$232 -> 0.02432911368 | EM14: =+SUMIFS('R2建設IOデータ'!BR:BR,'R2建設IOデータ'!$A:$A,'R2建設io'!$CE14)/'R2建設IOデータ'!BR$232 -> 0.01840088772 | EN14: =+SUMIFS('R2建設IOデータ'!BS:BS,'R2建設IOデータ'!$A:$A,'R2建設io'!$CE14)/'R2建設IOデータ'!BS$232 -> 0.06170714391 | EO14: =+SUMIFS('R2建設IOデータ'!BT:BT,'R2建設IOデータ'!$A:$A,'R2建設io'!$CE14)/'R2建設IOデータ'!BT$232 -> 0.01412156655 | EP14: =+SUMIFS('R2建設IOデータ'!BU:BU,'R2建設IOデータ'!$A:$A,'R2建設io'!$CE14)/'R2建設IOデータ'!BU$232 -> 0.05533247718 | EQ14: =+SUMIFS('R2建設IOデータ'!BV:BV,'R2建設IOデータ'!$A:$A,'R2建設io'!$CE14)/'R2建設IOデータ'!BV$232 -> 0.01612725138 | ER14: =+SUMIFS('R2建設IOデータ'!BW:BW,'R2建設IOデータ'!$A:$A,'R2建設io'!$CE14)/'R2建設IOデータ'!BW$232 -> 0.02400738077 | ES14: =+SUMIFS('R2建設IOデータ'!BX:BX,'R2建設IOデータ'!$A:$A,'R2建設io'!$CE14)/'R2建設IOデータ'!BX$232 -> 0.01431107515 | ET14: =+SUMIFS('R2建設IOデータ'!BY:BY,'R2建設IOデータ'!$A:$A,'R2建設io'!$CE14)/'R2建設IOデータ'!BY$232 -> 0.004659629967 | EU14: =+SUMIFS('R2建設IOデータ'!BZ:BZ,'R2建設IOデータ'!$A:$A,'R2建設io'!$CE14)/'R2建設IOデータ'!BZ$232 -> 0.007642893615 | EV14: =+SUMIFS('R2建設IOデータ'!CA:CA,'R2建設IOデータ'!$A:$A,'R2建設io'!$CE14)/'R2建設IOデータ'!CA$232 -> 0.002935729052 | EW14: =+SUMIFS('R2建設IOデータ'!CB:CB,'R2建設IOデータ'!$A:$A,'R2建設io'!$CE14)/'R2建設IOデータ'!CB$232 -> 0.008835197812 | EX14: =+SUMIFS('R2建設IOデータ'!CC:CC,'R2建設IOデータ'!$A:$A,'R2建設io'!$CE14)/'R2建設IOデータ'!CC$232 -> 0.02656859305 | EY14: =+SUMIFS('R2建設IOデータ'!CD:CD,'R2建設IOデータ'!$A:$A,'R2建設io'!$CE14)/'R2建設IOデータ'!CD$232 -> 0.02834749067
A15: 0 | C15: 22 | D15: プラスチック・ゴム製品 | E15: 0 | F15: 0 | G15: 0 | H15: 0 | I15: 0 | J15: 0 | K15: 0 | L15: 0 | M15: 0 | N15: 0 | O15: 0 | P15: 0 | Q15: 0 | R15: 0 | S15: 0 | T15: 0 | U15: 0 | V15: 0 | W15: 0 | X15: 0 | Y15: 0 | Z15: 0 | AA15: 0 | AB15: 0 | AC15: 0 | AD15: 0 | AE15: 0 | AF15: 0 | AG15: 0 | AH15: 0 | AI15: 0 | AJ15: 0 | AK15: 0 | AL15: 0 | AM15: 0 | AN15: 0 | AO15: 0 | AP15: 0 | AQ15: 0 | AR15: 0 | AS15: 0 | AT15: 0 | AU15: 0 | AV15: 0 | AW15: 0 | AX15: 0 | AY15: 0 | AZ15: 0 | BA15: 0 | BB15: 0 | BC15: 0 | BD15: 0 | BE15: 0 | BF15: 0 | BG15: 0 | BH15: 0 | BI15: 0 | BJ15: 0 | BK15: 0 | BL15: 0 | BM15: 0 | BN15: 0 | BO15: 0 | BP15: 0 | BQ15: 0 | BR15: 0 | BS15: 0 | BT15: 0 | BU15: 0 | BV15: 0 | BW15: 0 | CE15: 22 | CF15: プラスチック・ゴム製品 | CG15: =+SUMIFS('R2建設IOデータ'!L:L,'R2建設IOデータ'!$A:$A,'R2建設io'!$CE15)/'R2建設IOデータ'!L$232 -> 0.01399837933 | CH15: =+SUMIFS('R2建設IOデータ'!M:M,'R2建設IOデータ'!$A:$A,'R2建設io'!$CE15)/'R2建設IOデータ'!M$232 -> 0.01270328313 | CI15: =+SUMIFS('R2建設IOデータ'!N:N,'R2建設IOデータ'!$A:$A,'R2建設io'!$CE15)/'R2建設IOデータ'!N$232 -> 0.01443670812 | CJ15: =+SUMIFS('R2建設IOデータ'!O:O,'R2建設IOデータ'!$A:$A,'R2建設io'!$CE15)/'R2建設IOデータ'!O$232 -> 0.01414935499 | CK15: =+SUMIFS('R2建設IOデータ'!P:P,'R2建設IOデータ'!$A:$A,'R2建設io'!$CE15)/'R2建設IOデータ'!P$232 -> 0.01419457122 | CL15: =+SUMIFS('R2建設IOデータ'!Q:Q,'R2建設IOデータ'!$A:$A,'R2建設io'!$CE15)/'R2建設IOデータ'!Q$232 -> 0.01209217891 | CM15: =+SUMIFS('R2建設IOデータ'!R:R,'R2建設IOデータ'!$A:$A,'R2建設io'!$CE15)/'R2建設IOデータ'!R$232 -> 0.01484351574 | CN15: =+SUMIFS('R2建設IOデータ'!S:S,'R2建設IOデータ'!$A:$A,'R2建設io'!$CE15)/'R2建設IOデータ'!S$232 -> 0.01551019318 | CO15: =+SUMIFS('R2建設IOデータ'!T:T,'R2建設IOデータ'!$A:$A,'R2建設io'!$CE15)/'R2建設IOデータ'!T$232 -> 0.01556348079 | CP15: =+SUMIFS('R2建設IOデータ'!U:U,'R2建設IOデータ'!$A:$A,'R2建設io'!$CE15)/'R2建設IOデータ'!U$232 -> 0.0155187887 | CQ15: =+SUMIFS('R2建設IOデータ'!V:V,'R2建設IOデータ'!$A:$A,'R2建設io'!$CE15)/'R2建設IOデータ'!V$232 -> 0.01878530538 | CR15: =+SUMIFS('R2建設IOデータ'!W:W,'R2建設IOデータ'!$A:$A,'R2建設io'!$CE15)/'R2建設IOデータ'!W$232 -> 0.01373418191 | CS15: =+SUMIFS('R2建設IOデータ'!X:X,'R2建設IOデータ'!$A:$A,'R2建設io'!$CE15)/'R2建設IOデータ'!X$232 -> 0.01316579746 | CT15: =+SUMIFS('R2建設IOデータ'!Y:Y,'R2建設IOデータ'!$A:$A,'R2建設io'!$CE15)/'R2建設IOデータ'!Y$232 -> 0.01396874388 | CU15: =+SUMIFS('R2建設IOデータ'!Z:Z,'R2建設IOデータ'!$A:$A,'R2建設io'!$CE15)/'R2建設IOデータ'!Z$232 -> 0.0143495351 | CV15: =+SUMIFS('R2建設IOデータ'!AA:AA,'R2建設IOデータ'!$A:$A,'R2建設io'!$CE15)/'R2建設IOデータ'!AA$232 -> 0.01089092357 | CW15: =+SUMIFS('R2建設IOデータ'!AB:AB,'R2建設IOデータ'!$A:$A,'R2建設io'!$CE15)/'R2建設IOデータ'!AB$232 -> 0.008299435872 | CX15: =+SUMIFS('R2建設IOデータ'!AC:AC,'R2建設IOデータ'!$A:$A,'R2建設io'!$CE15)/'R2建設IOデータ'!AC$232 -> 0.006046546295 | CY15: =+SUMIFS('R2建設IOデータ'!AD:AD,'R2建設IOデータ'!$A:$A,'R2建設io'!$CE15)/'R2建設IOデータ'!AD$232 -> 0.008584014245 | CZ15: =+SUMIFS('R2建設IOデータ'!AE:AE,'R2建設IOデータ'!$A:$A,'R2建設io'!$CE15)/'R2建設IOデータ'!AE$232 -> 0.01106692934 | DA15: =+SUMIFS('R2建設IOデータ'!AF:AF,'R2建設IOデータ'!$A:$A,'R2建設io'!$CE15)/'R2建設IOデータ'!AF$232 -> 0.007410243705 | DB15: =+SUMIFS('R2建設IOデータ'!AG:AG,'R2建設IOデータ'!$A:$A,'R2建設io'!$CE15)/'R2建設IOデータ'!AG$232 -> 0.01085462342 | DC15: =+SUMIFS('R2建設IOデータ'!AH:AH,'R2建設IOデータ'!$A:$A,'R2建設io'!$CE15)/'R2建設IOデータ'!AH$232 -> 0.006079076134 | DD15: =+SUMIFS('R2建設IOデータ'!AI:AI,'R2建設IOデータ'!$A:$A,'R2建設io'!$CE15)/'R2建設IOデータ'!AI$232 -> 0.01084693205 | DE15: =+SUMIFS('R2建設IOデータ'!AJ:AJ,'R2建設IOデータ'!$A:$A,'R2建設io'!$CE15)/'R2建設IOデータ'!AJ$232 -> 0.01472043863 | DF15: =+SUMIFS('R2建設IOデータ'!AK:AK,'R2建設IOデータ'!$A:$A,'R2建設io'!$CE15)/'R2建設IOデータ'!AK$232 -> 0.009051295708 | DG15: =+SUMIFS('R2建設IOデータ'!AL:AL,'R2建設IOデータ'!$A:$A,'R2建設io'!$CE15)/'R2建設IOデータ'!AL$232 -> 0.01168707639 | DH15: =+SUMIFS('R2建設IOデータ'!AM:AM,'R2建設IOデータ'!$A:$A,'R2建設io'!$CE15)/'R2建設IOデータ'!AM$232 -> 0.006776343034 | DI15: =+SUMIFS('R2建設IOデータ'!AN:AN,'R2建設IOデータ'!$A:$A,'R2建設io'!$CE15)/'R2建設IOデータ'!AN$232 -> 0.01601714313 | DJ15: =+SUMIFS('R2建設IOデータ'!AO:AO,'R2建設IOデータ'!$A:$A,'R2建設io'!$CE15)/'R2建設IOデータ'!AO$232 -> 0.01485158489 | DK15: =+SUMIFS('R2建設IOデータ'!AP:AP,'R2建設IOデータ'!$A:$A,'R2建設io'!$CE15)/'R2建設IOデータ'!AP$232 -> 0.01568671073 | DL15: =+SUMIFS('R2建設IOデータ'!AQ:AQ,'R2建設IOデータ'!$A:$A,'R2建設io'!$CE15)/'R2建設IOデータ'!AQ$232 -> 0.012524581 | DM15: =+SUMIFS('R2建設IOデータ'!AR:AR,'R2建設IOデータ'!$A:$A,'R2建設io'!$CE15)/'R2建設IOデータ'!AR$232 -> 0.01243855393 | DN15: =+SUMIFS('R2建設IOデータ'!AS:AS,'R2建設IOデータ'!$A:$A,'R2建設io'!$CE15)/'R2建設IOデータ'!AS$232 -> 0.009355967306 | DO15: =+SUMIFS('R2建設IOデータ'!AT:AT,'R2建設IOデータ'!$A:$A,'R2建設io'!$CE15)/'R2建設IOデータ'!AT$232 -> 0.005865760808 | DP15: =+SUMIFS('R2建設IOデータ'!AU:AU,'R2建設IOデータ'!$A:$A,'R2建設io'!$CE15)/'R2建設IOデータ'!AU$232 -> 0.03960441111 | DQ15: =+SUMIFS('R2建設IOデータ'!AV:AV,'R2建設IOデータ'!$A:$A,'R2建設io'!$CE15)/'R2建設IOデータ'!AV$232 -> 0.01587621092 | DR15: =+SUMIFS('R2建設IOデータ'!AW:AW,'R2建設IOデータ'!$A:$A,'R2建設io'!$CE15)/'R2建設IOデータ'!AW$232 -> 0.0112757487 | DS15: =+SUMIFS('R2建設IOデータ'!AX:AX,'R2建設IOデータ'!$A:$A,'R2建設io'!$CE15)/'R2建設IOデータ'!AX$232 -> 0.004294097272 | DT15: =+SUMIFS('R2建設IOデータ'!AY:AY,'R2建設IOデータ'!$A:$A,'R2建設io'!$CE15)/'R2建設IOデータ'!AY$232 -> 0.01325088339 | DU15: =+SUMIFS('R2建設IOデータ'!AZ:AZ,'R2建設IOデータ'!$A:$A,'R2建設io'!$CE15)/'R2建設IOデータ'!AZ$232 -> 0.01653675239 | DV15: =+SUMIFS('R2建設IOデータ'!BA:BA,'R2建設IOデータ'!$A:$A,'R2建設io'!$CE15)/'R2建設IOデータ'!BA$232 -> 0.02540057086 | DW15: =+SUMIFS('R2建設IOデータ'!BB:BB,'R2建設IOデータ'!$A:$A,'R2建設io'!$CE15)/'R2建設IOデータ'!BB$232 -> 0.0269347728 | DX15: =+SUMIFS('R2建設IOデータ'!BC:BC,'R2建設IOデータ'!$A:$A,'R2建設io'!$CE15)/'R2建設IOデータ'!BC$232 -> 0.0289842979 | DY15: =+SUMIFS('R2建設IOデータ'!BD:BD,'R2建設IOデータ'!$A:$A,'R2建設io'!$CE15)/'R2建設IOデータ'!BD$232 -> 0.01319734516 | DZ15: =+SUMIFS('R2建設IOデータ'!BE:BE,'R2建設IOデータ'!$A:$A,'R2建設io'!$CE15)/'R2建設IOデータ'!BE$232 -> 0.0009178522258 | EA15: =+SUMIFS('R2建設IOデータ'!BF:BF,'R2建設IOデータ'!$A:$A,'R2建設io'!$CE15)/'R2建設IOデータ'!BF$232 -> 0.01439248873 | EB15: =+SUMIFS('R2建設IOデータ'!BG:BG,'R2建設IOデータ'!$A:$A,'R2建設io'!$CE15)/'R2建設IOデータ'!BG$232 -> 0.01030588007 | EC15: =+SUMIFS('R2建設IOデータ'!BH:BH,'R2建設IOデータ'!$A:$A,'R2建設io'!$CE15)/'R2建設IOデータ'!BH$232 -> 0.01044933316 | ED15: =+SUMIFS('R2建設IOデータ'!BI:BI,'R2建設IOデータ'!$A:$A,'R2建設io'!$CE15)/'R2建設IOデータ'!BI$232 -> 0.00965561635 | EE15: =+SUMIFS('R2建設IOデータ'!BJ:BJ,'R2建設IOデータ'!$A:$A,'R2建設io'!$CE15)/'R2建設IOデータ'!BJ$232 -> 0.01770002998 | EF15: =+SUMIFS('R2建設IOデータ'!BK:BK,'R2建設IOデータ'!$A:$A,'R2建設io'!$CE15)/'R2建設IOデータ'!BK$232 -> 0.01920100144 | EG15: =+SUMIFS('R2建設IOデータ'!BL:BL,'R2建設IOデータ'!$A:$A,'R2建設io'!$CE15)/'R2建設IOデータ'!BL$232 -> 0.007110194066 | EH15: =+SUMIFS('R2建設IOデータ'!BM:BM,'R2建設IOデータ'!$A:$A,'R2建設io'!$CE15)/'R2建設IOデータ'!BM$232 -> 0.008114079651 | EI15: =+SUMIFS('R2建設IOデータ'!BN:BN,'R2建設IOデータ'!$A:$A,'R2建設io'!$CE15)/'R2建設IOデータ'!BN$232 -> 0.004729649166 | EJ15: =+SUMIFS('R2建設IOデータ'!BO:BO,'R2建設IOデータ'!$A:$A,'R2建設io'!$CE15)/'R2建設IOデータ'!BO$232 -> 0.00750742211 | EK15: =+SUMIFS('R2建設IOデータ'!BP:BP,'R2建設IOデータ'!$A:$A,'R2建設io'!$CE15)/'R2建設IOデータ'!BP$232 -> 0.004524295444 | EL15: =+SUMIFS('R2建設IOデータ'!BQ:BQ,'R2建設IOデータ'!$A:$A,'R2建設io'!$CE15)/'R2建設IOデータ'!BQ$232 -> 0.04916637362 | EM15: =+SUMIFS('R2建設IOデータ'!BR:BR,'R2建設IOデータ'!$A:$A,'R2建設io'!$CE15)/'R2建設IOデータ'!BR$232 -> 0.02118685851 | EN15: =+SUMIFS('R2建設IOデータ'!BS:BS,'R2建設IOデータ'!$A:$A,'R2建設io'!$CE15)/'R2建設IOデータ'!BS$232 -> 0.004078980858 | EO15: =+SUMIFS('R2建設IOデータ'!BT:BT,'R2建設IOデータ'!$A:$A,'R2建設io'!$CE15)/'R2建設IOデータ'!BT$232 -> 0.01870148061 | EP15: =+SUMIFS('R2建設IOデータ'!BU:BU,'R2建設IOデータ'!$A:$A,'R2建設io'!$CE15)/'R2建設IOデータ'!BU$232 -> 0.03001388832 | EQ15: =+SUMIFS('R2建設IOデータ'!BV:BV,'R2建設IOデータ'!$A:$A,'R2建設io'!$CE15)/'R2建設IOデータ'!BV$232 -> 0.01106450228 | ER15: =+SUMIFS('R2建設IOデータ'!BW:BW,'R2建設IOデータ'!$A:$A,'R2建設io'!$CE15)/'R2建設IOデータ'!BW$232 -> 0.01344804226 | ES15: =+SUMIFS('R2建設IOデータ'!BX:BX,'R2建設IOデータ'!$A:$A,'R2建設io'!$CE15)/'R2建設IOデータ'!BX$232 -> 0.01367345457 | ET15: =+SUMIFS('R2建設IOデータ'!BY:BY,'R2建設IOデータ'!$A:$A,'R2建設io'!$CE15)/'R2建設IOデータ'!BY$232 -> 0.01368428188 | EU15: =+SUMIFS('R2建設IOデータ'!BZ:BZ,'R2建設IOデータ'!$A:$A,'R2建設io'!$CE15)/'R2建設IOデータ'!BZ$232 -> 0.007591459836 | EV15: =+SUMIFS('R2建設IOデータ'!CA:CA,'R2建設IOデータ'!$A:$A,'R2建設io'!$CE15)/'R2建設IOデータ'!CA$232 -> 0.02031647467 | EW15: =+SUMIFS('R2建設IOデータ'!CB:CB,'R2建設IOデータ'!$A:$A,'R2建設io'!$CE15)/'R2建設IOデータ'!CB$232 -> 0.01543528202 | EX15: =+SUMIFS('R2建設IOデータ'!CC:CC,'R2建設IOデータ'!$A:$A,'R2建設io'!$CE15)/'R2建設IOデータ'!CC$232 -> 0.01244678668 | EY15: =+SUMIFS('R2建設IOデータ'!CD:CD,'R2建設IOデータ'!$A:$A,'R2建設io'!$CE15)/'R2建設IOデータ'!CD$232 -> 0.01678786817
A16: 0 | C16: 25 | D16: 窯業・土石製品 | E16: 0 | F16: 0 | G16: 0 | H16: 0 | I16: 0 | J16: 0 | K16: 0 | L16: 0 | M16: 0 | N16: 0 | O16: 0 | P16: 0 | Q16: 0 | R16: 0 | S16: 0 | T16: 0 | U16: 0 | V16: 0 | W16: 0 | X16: 0 | Y16: 0 | Z16: 0 | AA16: 0 | AB16: 0 | AC16: 0 | AD16: 0 | AE16: 0 | AF16: 0 | AG16: 0 | AH16: 0 | AI16: 0 | AJ16: 0 | AK16: 0 | AL16: 0 | AM16: 0 | AN16: 0 | AO16: 0 | AP16: 0 | AQ16: 0 | AR16: 0 | AS16: 0 | AT16: 0 | AU16: 0 | AV16: 0 | AW16: 0 | AX16: 0 | AY16: 0 | AZ16: 0 | BA16: 0 | BB16: 0 | BC16: 0 | BD16: 0 | BE16: 0 | BF16: 0 | BG16: 0 | BH16: 0 | BI16: 0 | BJ16: 0 | BK16: 0 | BL16: 0 | BM16: 0 | BN16: 0 | BO16: 0 | BP16: 0 | BQ16: 0 | BR16: 0 | BS16: 0 | BT16: 0 | BU16: 0 | BV16: 0 | BW16: 0 | CE16: 25 | CF16: 窯業・土石製品 | CG16: =+SUMIFS('R2建設IOデータ'!L:L,'R2建設IOデータ'!$A:$A,'R2建設io'!$CE16)/'R2建設IOデータ'!L$232 -> 0.05165512546 | CH16: =+SUMIFS('R2建設IOデータ'!M:M,'R2建設IOデータ'!$A:$A,'R2建設io'!$CE16)/'R2建設IOデータ'!M$232 -> 0.04566584659 | CI16: =+SUMIFS('R2建設IOデータ'!N:N,'R2建設IOデータ'!$A:$A,'R2建設io'!$CE16)/'R2建設IOデータ'!N$232 -> 0.04399959323 | CJ16: =+SUMIFS('R2建設IOデータ'!O:O,'R2建設IOデータ'!$A:$A,'R2建設io'!$CE16)/'R2建設IOデータ'!O$232 -> 0.04168966292 | CK16: =+SUMIFS('R2建設IOデータ'!P:P,'R2建設IOデータ'!$A:$A,'R2建設io'!$CE16)/'R2建設IOデータ'!P$232 -> 0.04180498455 | CL16: =+SUMIFS('R2建設IOデータ'!Q:Q,'R2建設IOデータ'!$A:$A,'R2建設io'!$CE16)/'R2建設IOデータ'!Q$232 -> 0.03644294287 | CM16: =+SUMIFS('R2建設IOデータ'!R:R,'R2建設IOデータ'!$A:$A,'R2建設io'!$CE16)/'R2建設IOデータ'!R$232 -> 0.04726977604 | CN16: =+SUMIFS('R2建設IOデータ'!S:S,'R2建設IOデータ'!$A:$A,'R2建設io'!$CE16)/'R2建設IOデータ'!S$232 -> 0.03179522804 | CO16: =+SUMIFS('R2建設IOデータ'!T:T,'R2建設IOデータ'!$A:$A,'R2建設io'!$CE16)/'R2建設IOデータ'!T$232 -> 0.05413696973 | CP16: =+SUMIFS('R2建設IOデータ'!U:U,'R2建設IOデータ'!$A:$A,'R2建設io'!$CE16)/'R2建設IOデータ'!U$232 -> 0.05336440702 | CQ16: =+SUMIFS('R2建設IOデータ'!V:V,'R2建設IOデータ'!$A:$A,'R2建設io'!$CE16)/'R2建設IOデータ'!V$232 -> 0.1098305342 | CR16: =+SUMIFS('R2建設IOデータ'!W:W,'R2建設IOデータ'!$A:$A,'R2建設io'!$CE16)/'R2建設IOデータ'!W$232 -> 0.03774667165 | CS16: =+SUMIFS('R2建設IOデータ'!X:X,'R2建設IOデータ'!$A:$A,'R2建設io'!$CE16)/'R2建設IOデータ'!X$232 -> 0.03523471237 | CT16: =+SUMIFS('R2建設IOデータ'!Y:Y,'R2建設IOデータ'!$A:$A,'R2建設io'!$CE16)/'R2建設IOデータ'!Y$232 -> 0.03878331175 | CU16: =+SUMIFS('R2建設IOデータ'!Z:Z,'R2建設IOデータ'!$A:$A,'R2建設io'!$CE16)/'R2建設IOデータ'!Z$232 -> 0.02628380192 | CV16: =+SUMIFS('R2建設IOデータ'!AA:AA,'R2建設IOデータ'!$A:$A,'R2建設io'!$CE16)/'R2建設IOデータ'!AA$232 -> 0.04740797574 | CW16: =+SUMIFS('R2建設IOデータ'!AB:AB,'R2建設IOデータ'!$A:$A,'R2建設io'!$CE16)/'R2建設IOデータ'!AB$232 -> 0.0508111881 | CX16: =+SUMIFS('R2建設IOデータ'!AC:AC,'R2建設IOデータ'!$A:$A,'R2建設io'!$CE16)/'R2建設IOデータ'!AC$232 -> 0.08814541525 | CY16: =+SUMIFS('R2建設IOデータ'!AD:AD,'R2建設IOデータ'!$A:$A,'R2建設io'!$CE16)/'R2建設IOデータ'!AD$232 -> 0.04609523854 | CZ16: =+SUMIFS('R2建設IOデータ'!AE:AE,'R2建設IOデータ'!$A:$A,'R2建設io'!$CE16)/'R2建設IOデータ'!AE$232 -> 0.04717684016 | DA16: =+SUMIFS('R2建設IOデータ'!AF:AF,'R2建設IOデータ'!$A:$A,'R2建設io'!$CE16)/'R2建設IOデータ'!AF$232 -> 0.05400393411 | DB16: =+SUMIFS('R2建設IOデータ'!AG:AG,'R2建設IOデータ'!$A:$A,'R2建設io'!$CE16)/'R2建設IOデータ'!AG$232 -> 0.03747297216 | DC16: =+SUMIFS('R2建設IOデータ'!AH:AH,'R2建設IOデータ'!$A:$A,'R2建設io'!$CE16)/'R2建設IOデータ'!AH$232 -> 0.06182747813 | DD16: =+SUMIFS('R2建設IOデータ'!AI:AI,'R2建設IOデータ'!$A:$A,'R2建設io'!$CE16)/'R2建設IOデータ'!AI$232 -> 0.04674632947 | DE16: =+SUMIFS('R2建設IOデータ'!AJ:AJ,'R2建設IOデータ'!$A:$A,'R2建設io'!$CE16)/'R2建設IOデータ'!AJ$232 -> 0.0460201688 | DF16: =+SUMIFS('R2建設IOデータ'!AK:AK,'R2建設IOデータ'!$A:$A,'R2建設io'!$CE16)/'R2建設IOデータ'!AK$232 -> 0.05309502784 | DG16: =+SUMIFS('R2建設IOデータ'!AL:AL,'R2建設IOデータ'!$A:$A,'R2建設io'!$CE16)/'R2建設IOデータ'!AL$232 -> 0.0431190325 | DH16: =+SUMIFS('R2建設IOデータ'!AM:AM,'R2建設IOデータ'!$A:$A,'R2建設io'!$CE16)/'R2建設IOデータ'!AM$232 -> 0.02255769303 | DI16: =+SUMIFS('R2建設IOデータ'!AN:AN,'R2建設IOデータ'!$A:$A,'R2建設io'!$CE16)/'R2建設IOデータ'!AN$232 -> 0.05130403719 | DJ16: =+SUMIFS('R2建設IOデータ'!AO:AO,'R2建設IOデータ'!$A:$A,'R2建設io'!$CE16)/'R2建設IOデータ'!AO$232 -> 0.05997770425 | DK16: =+SUMIFS('R2建設IOデータ'!AP:AP,'R2建設IOデータ'!$A:$A,'R2建設io'!$CE16)/'R2建設IOデータ'!AP$232 -> 0.06991120409 | DL16: =+SUMIFS('R2建設IOデータ'!AQ:AQ,'R2建設IOデータ'!$A:$A,'R2建設io'!$CE16)/'R2建設IOデータ'!AQ$232 -> 0.0647023056 | DM16: =+SUMIFS('R2建設IOデータ'!AR:AR,'R2建設IOデータ'!$A:$A,'R2建設io'!$CE16)/'R2建設IOデータ'!AR$232 -> 0.0640740453 | DN16: =+SUMIFS('R2建設IOデータ'!AS:AS,'R2建設IOデータ'!$A:$A,'R2建設io'!$CE16)/'R2建設IOデータ'!AS$232 -> 0.06380658236 | DO16: =+SUMIFS('R2建設IOデータ'!AT:AT,'R2建設IOデータ'!$A:$A,'R2建設io'!$CE16)/'R2建設IOデータ'!AT$232 -> 0.09246686482 | DP16: =+SUMIFS('R2建設IOデータ'!AU:AU,'R2建設IOデータ'!$A:$A,'R2建設io'!$CE16)/'R2建設IOデータ'!AU$232 -> 0.1025617681 | DQ16: =+SUMIFS('R2建設IOデータ'!AV:AV,'R2建設IOデータ'!$A:$A,'R2建設io'!$CE16)/'R2建設IOデータ'!AV$232 -> 0.04979743656 | DR16: =+SUMIFS('R2建設IOデータ'!AW:AW,'R2建設IOデータ'!$A:$A,'R2建設io'!$CE16)/'R2建設IOデータ'!AW$232 -> 0.02185554769 | DS16: =+SUMIFS('R2建設IOデータ'!AX:AX,'R2建設IOデータ'!$A:$A,'R2建設io'!$CE16)/'R2建設IOデータ'!AX$232 -> 0.1306592433 | DT16: =+SUMIFS('R2建設IOデータ'!AY:AY,'R2建設IOデータ'!$A:$A,'R2建設io'!$CE16)/'R2建設IOデータ'!AY$232 -> 0.05399734982 | DU16: =+SUMIFS('R2建設IOデータ'!AZ:AZ,'R2建設IOデータ'!$A:$A,'R2建設io'!$CE16)/'R2建設IOデータ'!AZ$232 -> 0.05048444671 | DV16: =+SUMIFS('R2建設IOデータ'!BA:BA,'R2建設IOデータ'!$A:$A,'R2建設io'!$CE16)/'R2建設IOデータ'!BA$232 -> 0.06519870443 | DW16: =+SUMIFS('R2建設IOデータ'!BB:BB,'R2建設IOデータ'!$A:$A,'R2建設io'!$CE16)/'R2建設IOデータ'!BB$232 -> 0.06471775346 | DX16: =+SUMIFS('R2建設IOデータ'!BC:BC,'R2建設IOデータ'!$A:$A,'R2建設io'!$CE16)/'R2建設IOデータ'!BC$232 -> 0.07057767216 | DY16: =+SUMIFS('R2建設IOデータ'!BD:BD,'R2建設IOデータ'!$A:$A,'R2建設io'!$CE16)/'R2建設IOデータ'!BD$232 -> 0.02160264459 | DZ16: =+SUMIFS('R2建設IOデータ'!BE:BE,'R2建設IOデータ'!$A:$A,'R2建設io'!$CE16)/'R2建設IOデータ'!BE$232 -> 0.004405690684 | EA16: =+SUMIFS('R2建設IOデータ'!BF:BF,'R2建設IOデータ'!$A:$A,'R2建設io'!$CE16)/'R2建設IOデータ'!BF$232 -> 0.02841435543 | EB16: =+SUMIFS('R2建設IOデータ'!BG:BG,'R2建設IOデータ'!$A:$A,'R2建設io'!$CE16)/'R2建設IOデータ'!BG$232 -> 0.06993068011 | EC16: =+SUMIFS('R2建設IOデータ'!BH:BH,'R2建設IOデータ'!$A:$A,'R2建設io'!$CE16)/'R2建設IOデータ'!BH$232 -> 0.07094422683 | ED16: =+SUMIFS('R2建設IOデータ'!BI:BI,'R2建設IOデータ'!$A:$A,'R2建設io'!$CE16)/'R2建設IOデータ'!BI$232 -> 0.0653363373 | EE16: =+SUMIFS('R2建設IOデータ'!BJ:BJ,'R2建設IOデータ'!$A:$A,'R2建設io'!$CE16)/'R2建設IOデータ'!BJ$232 -> 0.1024988886 | EF16: =+SUMIFS('R2建設IOデータ'!BK:BK,'R2建設IOデータ'!$A:$A,'R2建設io'!$CE16)/'R2建設IOデータ'!BK$232 -> 0.0721919112 | EG16: =+SUMIFS('R2建設IOデータ'!BL:BL,'R2建設IOデータ'!$A:$A,'R2建設io'!$CE16)/'R2建設IOデータ'!BL$232 -> 0.0762625297 | EH16: =+SUMIFS('R2建設IOデータ'!BM:BM,'R2建設IOデータ'!$A:$A,'R2建設io'!$CE16)/'R2建設IOデータ'!BM$232 -> 0.06557051719 | EI16: =+SUMIFS('R2建設IOデータ'!BN:BN,'R2建設IOデータ'!$A:$A,'R2建設io'!$CE16)/'R2建設IOデータ'!BN$232 -> 0.04839231673 | EJ16: =+SUMIFS('R2建設IOデータ'!BO:BO,'R2建設IOデータ'!$A:$A,'R2建設io'!$CE16)/'R2建設IOデータ'!BO$232 -> 0.1115136555 | EK16: =+SUMIFS('R2建設IOデータ'!BP:BP,'R2建設IOデータ'!$A:$A,'R2建設io'!$CE16)/'R2建設IOデータ'!BP$232 -> 0.1093810911 | EL16: =+SUMIFS('R2建設IOデータ'!BQ:BQ,'R2建設IOデータ'!$A:$A,'R2建設io'!$CE16)/'R2建設IOデータ'!BQ$232 -> 0.05969901578 | EM16: =+SUMIFS('R2建設IOデータ'!BR:BR,'R2建設IOデータ'!$A:$A,'R2建設io'!$CE16)/'R2建設IOデータ'!BR$232 -> 0.09745530526 | EN16: =+SUMIFS('R2建設IOデータ'!BS:BS,'R2建設IOデータ'!$A:$A,'R2建設io'!$CE16)/'R2建設IOデータ'!BS$232 -> 0.01883430898 | EO16: =+SUMIFS('R2建設IOデータ'!BT:BT,'R2建設IOデータ'!$A:$A,'R2建設io'!$CE16)/'R2建設IOデータ'!BT$232 -> 0.03909644132 | EP16: =+SUMIFS('R2建設IOデータ'!BU:BU,'R2建設IOデータ'!$A:$A,'R2建設io'!$CE16)/'R2建設IOデータ'!BU$232 -> 0.05380418044 | EQ16: =+SUMIFS('R2建設IOデータ'!BV:BV,'R2建設IOデータ'!$A:$A,'R2建設io'!$CE16)/'R2建設IOデータ'!BV$232 -> 0.08462750437 | ER16: =+SUMIFS('R2建設IOデータ'!BW:BW,'R2建設IOデータ'!$A:$A,'R2建設io'!$CE16)/'R2建設IOデータ'!BW$232 -> 0.08392396614 | ES16: =+SUMIFS('R2建設IOデータ'!BX:BX,'R2建設IOデータ'!$A:$A,'R2建設io'!$CE16)/'R2建設IOデータ'!BX$232 -> 0.04596429837 | ET16: =+SUMIFS('R2建設IOデータ'!BY:BY,'R2建設IOデータ'!$A:$A,'R2建設io'!$CE16)/'R2建設IOデータ'!BY$232 -> 0.04201814316 | EU16: =+SUMIFS('R2建設IOデータ'!BZ:BZ,'R2建設IOデータ'!$A:$A,'R2建設io'!$CE16)/'R2建設IOデータ'!BZ$232 -> 0.02094640642 | EV16: =+SUMIFS('R2建設IOデータ'!CA:CA,'R2建設IOデータ'!$A:$A,'R2建設io'!$CE16)/'R2建設IOデータ'!CA$232 -> 0.01562853037 | EW16: =+SUMIFS('R2建設IOデータ'!CB:CB,'R2建設IOデータ'!$A:$A,'R2建設io'!$CE16)/'R2建設IOデータ'!CB$232 -> 0.05174740108 | EX16: =+SUMIFS('R2建設IOデータ'!CC:CC,'R2建設IOデータ'!$A:$A,'R2建設io'!$CE16)/'R2建設IOデータ'!CC$232 -> 0.1110809505 | EY16: =+SUMIFS('R2建設IOデータ'!CD:CD,'R2建設IOデータ'!$A:$A,'R2建設io'!$CE16)/'R2建設IOデータ'!CD$232 -> 0.05998148368
A17: 0 | C17: 26 | D17: 鉄鋼 | E17: 0 | F17: 0 | G17: 0 | H17: 0 | I17: 0 | J17: 0 | K17: 0 | L17: 0 | M17: 0 | N17: 0 | O17: 0 | P17: 0 | Q17: 0 | R17: 0 | S17: 0 | T17: 0 | U17: 0 | V17: 0 | W17: 0 | X17: 0 | Y17: 0 | Z17: 0 | AA17: 0 | AB17: 0 | AC17: 0 | AD17: 0 | AE17: 0 | AF17: 0 | AG17: 0 | AH17: 0 | AI17: 0 | AJ17: 0 | AK17: 0 | AL17: 0 | AM17: 0 | AN17: 0 | AO17: 0 | AP17: 0 | AQ17: 0 | AR17: 0 | AS17: 0 | AT17: 0 | AU17: 0 | AV17: 0 | AW17: 0 | AX17: 0 | AY17: 0 | AZ17: 0 | BA17: 0 | BB17: 0 | BC17: 0 | BD17: 0 | BE17: 0 | BF17: 0 | BG17: 0 | BH17: 0 | BI17: 0 | BJ17: 0 | BK17: 0 | BL17: 0 | BM17: 0 | BN17: 0 | BO17: 0 | BP17: 0 | BQ17: 0 | BR17: 0 | BS17: 0 | BT17: 0 | BU17: 0 | BV17: 0 | BW17: 0 | CE17: 26 | CF17: 鉄鋼 | CG17: =+SUMIFS('R2建設IOデータ'!L:L,'R2建設IOデータ'!$A:$A,'R2建設io'!$CE17)/'R2建設IOデータ'!L$232 -> 0.01981075094 | CH17: =+SUMIFS('R2建設IOデータ'!M:M,'R2建設IOデータ'!$A:$A,'R2建設io'!$CE17)/'R2建設IOデータ'!M$232 -> 0.01839282635 | CI17: =+SUMIFS('R2建設IOデータ'!N:N,'R2建設IOデータ'!$A:$A,'R2建設io'!$CE17)/'R2建設IOデータ'!N$232 -> 0.01857110625 | CJ17: =+SUMIFS('R2建設IOデータ'!O:O,'R2建設IOデータ'!$A:$A,'R2建設io'!$CE17)/'R2建設IOデータ'!O$232 -> 0.008522669042 | CK17: =+SUMIFS('R2建設IOデータ'!P:P,'R2建設IOデータ'!$A:$A,'R2建設io'!$CE17)/'R2建設IOデータ'!P$232 -> 0.008558594156 | CL17: =+SUMIFS('R2建設IOデータ'!Q:Q,'R2建設IOデータ'!$A:$A,'R2建設io'!$CE17)/'R2建設IOデータ'!Q$232 -> 0.006888205335 | CM17: =+SUMIFS('R2建設IOデータ'!R:R,'R2建設IOデータ'!$A:$A,'R2建設io'!$CE17)/'R2建設IOデータ'!R$232 -> 0.03279674173 | CN17: =+SUMIFS('R2建設IOデータ'!S:S,'R2建設IOデータ'!$A:$A,'R2建設io'!$CE17)/'R2建設IOデータ'!S$232 -> 0.02336548481 | CO17: =+SUMIFS('R2建設IOデータ'!T:T,'R2建設IOデータ'!$A:$A,'R2建設io'!$CE17)/'R2建設IOデータ'!T$232 -> 0.0270061106 | CP17: =+SUMIFS('R2建設IOデータ'!U:U,'R2建設IOデータ'!$A:$A,'R2建設io'!$CE17)/'R2建設IOデータ'!U$232 -> 0.02720928698 | CQ17: =+SUMIFS('R2建設IOデータ'!V:V,'R2建設IOデータ'!$A:$A,'R2建設io'!$CE17)/'R2建設IOデータ'!V$232 -> 0.01235925238 | CR17: =+SUMIFS('R2建設IOデータ'!W:W,'R2建設IOデータ'!$A:$A,'R2建設io'!$CE17)/'R2建設IOデータ'!W$232 -> 0.04257163714 | CS17: =+SUMIFS('R2建設IOデータ'!X:X,'R2建設IOデータ'!$A:$A,'R2建設io'!$CE17)/'R2建設IOデータ'!X$232 -> 0.01131777553 | CT17: =+SUMIFS('R2建設IOデータ'!Y:Y,'R2建設IOデータ'!$A:$A,'R2建設io'!$CE17)/'R2建設IOデータ'!Y$232 -> 0.0554695399 | CU17: =+SUMIFS('R2建設IOデータ'!Z:Z,'R2建設IOデータ'!$A:$A,'R2建設io'!$CE17)/'R2建設IOデータ'!Z$232 -> 0.007672028667 | CV17: =+SUMIFS('R2建設IOデータ'!AA:AA,'R2建設IOデータ'!$A:$A,'R2建設io'!$CE17)/'R2建設IOデータ'!AA$232 -> 0.01820642817 | CW17: =+SUMIFS('R2建設IOデータ'!AB:AB,'R2建設IOデータ'!$A:$A,'R2建設io'!$CE17)/'R2建設IOデータ'!AB$232 -> 0.008403923294 | CX17: =+SUMIFS('R2建設IOデータ'!AC:AC,'R2建設IOデータ'!$A:$A,'R2建設io'!$CE17)/'R2建設IOデータ'!AC$232 -> 0.01650921423 | CY17: =+SUMIFS('R2建設IOデータ'!AD:AD,'R2建設IOデータ'!$A:$A,'R2建設io'!$CE17)/'R2建設IOデータ'!AD$232 -> 0.007380086829 | CZ17: =+SUMIFS('R2建設IOデータ'!AE:AE,'R2建設IOデータ'!$A:$A,'R2建設io'!$CE17)/'R2建設IOデータ'!AE$232 -> 0.01887218374 | DA17: =+SUMIFS('R2建設IOデータ'!AF:AF,'R2建設IOデータ'!$A:$A,'R2建設io'!$CE17)/'R2建設IOデータ'!AF$232 -> 0.02073666982 | DB17: =+SUMIFS('R2建設IOデータ'!AG:AG,'R2建設IOデータ'!$A:$A,'R2建設io'!$CE17)/'R2建設IOデータ'!AG$232 -> 0.01918946669 | DC17: =+SUMIFS('R2建設IOデータ'!AH:AH,'R2建設IOデータ'!$A:$A,'R2建設io'!$CE17)/'R2建設IOデータ'!AH$232 -> 0.02552794722 | DD17: =+SUMIFS('R2建設IOデータ'!AI:AI,'R2建設IOデータ'!$A:$A,'R2建設io'!$CE17)/'R2建設IOデータ'!AI$232 -> 0.02245271981 | DE17: =+SUMIFS('R2建設IOデータ'!AJ:AJ,'R2建設IOデータ'!$A:$A,'R2建設io'!$CE17)/'R2建設IOデータ'!AJ$232 -> 0.02436642248 | DF17: =+SUMIFS('R2建設IOデータ'!AK:AK,'R2建設IOデータ'!$A:$A,'R2建設io'!$CE17)/'R2建設IOデータ'!AK$232 -> 0.01886315667 | DG17: =+SUMIFS('R2建設IOデータ'!AL:AL,'R2建設IOデータ'!$A:$A,'R2建設io'!$CE17)/'R2建設IOデータ'!AL$232 -> 0.01569881188 | DH17: =+SUMIFS('R2建設IOデータ'!AM:AM,'R2建設IOデータ'!$A:$A,'R2建設io'!$CE17)/'R2建設IOデータ'!AM$232 -> 0.01039039265 | DI17: =+SUMIFS('R2建設IOデータ'!AN:AN,'R2建設IOデータ'!$A:$A,'R2建設io'!$CE17)/'R2建設IOデータ'!AN$232 -> 0.01345723847 | DJ17: =+SUMIFS('R2建設IOデータ'!AO:AO,'R2建設IOデータ'!$A:$A,'R2建設io'!$CE17)/'R2建設IOデータ'!AO$232 -> 0.02461420264 | DK17: =+SUMIFS('R2建設IOデータ'!AP:AP,'R2建設IOデータ'!$A:$A,'R2建設io'!$CE17)/'R2建設IOデータ'!AP$232 -> 0.01916597901 | DL17: =+SUMIFS('R2建設IOデータ'!AQ:AQ,'R2建設IOデータ'!$A:$A,'R2建設io'!$CE17)/'R2建設IOデータ'!AQ$232 -> 0.02056106458 | DM17: =+SUMIFS('R2建設IOデータ'!AR:AR,'R2建設IOデータ'!$A:$A,'R2建設io'!$CE17)/'R2建設IOデータ'!AR$232 -> 0.0207639763 | DN17: =+SUMIFS('R2建設IOデータ'!AS:AS,'R2建設IOデータ'!$A:$A,'R2建設io'!$CE17)/'R2建設IOデータ'!AS$232 -> 0.0138135703 | DO17: =+SUMIFS('R2建設IOデータ'!AT:AT,'R2建設IOデータ'!$A:$A,'R2建設io'!$CE17)/'R2建設IOデータ'!AT$232 -> 0.01616089593 | DP17: =+SUMIFS('R2建設IOデータ'!AU:AU,'R2建設IOデータ'!$A:$A,'R2建設io'!$CE17)/'R2建設IOデータ'!AU$232 -> 0.004745700987 | DQ17: =+SUMIFS('R2建設IOデータ'!AV:AV,'R2建設IOデータ'!$A:$A,'R2建設io'!$CE17)/'R2建設IOデータ'!AV$232 -> 0.04941187144 | DR17: =+SUMIFS('R2建設IOデータ'!AW:AW,'R2建設IOデータ'!$A:$A,'R2建設io'!$CE17)/'R2建設IOデータ'!AW$232 -> 0.00684831286 | DS17: =+SUMIFS('R2建設IOデータ'!AX:AX,'R2建設IOデータ'!$A:$A,'R2建設io'!$CE17)/'R2建設IOデータ'!AX$232 -> 0.004365410868 | DT17: =+SUMIFS('R2建設IOデータ'!AY:AY,'R2建設IOデータ'!$A:$A,'R2建設io'!$CE17)/'R2建設IOデータ'!AY$232 -> 0.003754416961 | DU17: =+SUMIFS('R2建設IOデータ'!AZ:AZ,'R2建設IOデータ'!$A:$A,'R2建設io'!$CE17)/'R2建設IOデータ'!AZ$232 -> 0.07008086253 | DV17: =+SUMIFS('R2建設IOデータ'!BA:BA,'R2建設IOデータ'!$A:$A,'R2建設io'!$CE17)/'R2建設IOデータ'!BA$232 -> 0.04998984764 | DW17: =+SUMIFS('R2建設IOデータ'!BB:BB,'R2建設IOデータ'!$A:$A,'R2建設io'!$CE17)/'R2建設IOデータ'!BB$232 -> 0.05300141306 | DX17: =+SUMIFS('R2建設IOデータ'!BC:BC,'R2建設IOデータ'!$A:$A,'R2建設io'!$CE17)/'R2建設IOデータ'!BC$232 -> 0.05693610459 | DY17: =+SUMIFS('R2建設IOデータ'!BD:BD,'R2建設IOデータ'!$A:$A,'R2建設io'!$CE17)/'R2建設IOデータ'!BD$232 -> 0.0007815903442 | DZ17: =+SUMIFS('R2建設IOデータ'!BE:BE,'R2建設IOデータ'!$A:$A,'R2建設io'!$CE17)/'R2建設IOデータ'!BE$232 -> 0.1163836622 | EA17: =+SUMIFS('R2建設IOデータ'!BF:BF,'R2建設IOデータ'!$A:$A,'R2建設io'!$CE17)/'R2建設IOデータ'!BF$232 -> 0.0009883254061 | EB17: =+SUMIFS('R2建設IOデータ'!BG:BG,'R2建設IOデータ'!$A:$A,'R2建設io'!$CE17)/'R2建設IOデータ'!BG$232 -> 0.02035968782 | EC17: =+SUMIFS('R2建設IOデータ'!BH:BH,'R2建設IOデータ'!$A:$A,'R2建設io'!$CE17)/'R2建設IOデータ'!BH$232 -> 0.02066198833 | ED17: =+SUMIFS('R2建設IOデータ'!BI:BI,'R2建設IOデータ'!$A:$A,'R2建設io'!$CE17)/'R2建設IOデータ'!BI$232 -> 0.01898937882 | EE17: =+SUMIFS('R2建設IOデータ'!BJ:BJ,'R2建設IOデータ'!$A:$A,'R2建設io'!$CE17)/'R2建設IOデータ'!BJ$232 -> 0.008353752468 | EF17: =+SUMIFS('R2建設IOデータ'!BK:BK,'R2建設IOデータ'!$A:$A,'R2建設io'!$CE17)/'R2建設IOデータ'!BK$232 -> 0.01671299499 | EG17: =+SUMIFS('R2建設IOデータ'!BL:BL,'R2建設IOデータ'!$A:$A,'R2建設io'!$CE17)/'R2建設IOデータ'!BL$232 -> 0.01499447649 | EH17: =+SUMIFS('R2建設IOデータ'!BM:BM,'R2建設IOデータ'!$A:$A,'R2建設io'!$CE17)/'R2建設IOデータ'!BM$232 -> 0.01707701477 | EI17: =+SUMIFS('R2建設IOデータ'!BN:BN,'R2建設IOデータ'!$A:$A,'R2建設io'!$CE17)/'R2建設IOデータ'!BN$232 -> 0.02285334681 | EJ17: =+SUMIFS('R2建設IOデータ'!BO:BO,'R2建設IOデータ'!$A:$A,'R2建設io'!$CE17)/'R2建設IOデータ'!BO$232 -> 0.01203462514 | EK17: =+SUMIFS('R2建設IOデータ'!BP:BP,'R2建設IOデータ'!$A:$A,'R2建設io'!$CE17)/'R2建設IOデータ'!BP$232 -> 0.0059872962 | EL17: =+SUMIFS('R2建設IOデータ'!BQ:BQ,'R2建設IOデータ'!$A:$A,'R2建設io'!$CE17)/'R2建設IOデータ'!BQ$232 -> 0.01031511086 | EM17: =+SUMIFS('R2建設IOデータ'!BR:BR,'R2建設IOデータ'!$A:$A,'R2建設io'!$CE17)/'R2建設IOデータ'!BR$232 -> 0.02654910336 | EN17: =+SUMIFS('R2建設IOデータ'!BS:BS,'R2建設IOデータ'!$A:$A,'R2建設io'!$CE17)/'R2建設IOデータ'!BS$232 -> 0.01708617433 | EO17: =+SUMIFS('R2建設IOデータ'!BT:BT,'R2建設IOデータ'!$A:$A,'R2建設io'!$CE17)/'R2建設IOデータ'!BT$232 -> 0.05765350131 | EP17: =+SUMIFS('R2建設IOデータ'!BU:BU,'R2建設IOデータ'!$A:$A,'R2建設io'!$CE17)/'R2建設IOデータ'!BU$232 -> 0.001208690953 | EQ17: =+SUMIFS('R2建設IOデータ'!BV:BV,'R2建設IOデータ'!$A:$A,'R2建設io'!$CE17)/'R2建設IOデータ'!BV$232 -> 0.002658591359 | ER17: =+SUMIFS('R2建設IOデータ'!BW:BW,'R2建設IOデータ'!$A:$A,'R2建設io'!$CE17)/'R2建設IOデータ'!BW$232 -> 0.02470719575 | ES17: =+SUMIFS('R2建設IOデータ'!BX:BX,'R2建設IOデータ'!$A:$A,'R2建設io'!$CE17)/'R2建設IOデータ'!BX$232 -> 0.03230013109 | ET17: =+SUMIFS('R2建設IOデータ'!BY:BY,'R2建設IOデータ'!$A:$A,'R2建設io'!$CE17)/'R2建設IOデータ'!BY$232 -> 0.05320347116 | EU17: =+SUMIFS('R2建設IOデータ'!BZ:BZ,'R2建設IOデータ'!$A:$A,'R2建設io'!$CE17)/'R2建設IOデータ'!BZ$232 -> 0.01646088316 | EV17: =+SUMIFS('R2建設IOデータ'!CA:CA,'R2建設IOデータ'!$A:$A,'R2建設io'!$CE17)/'R2建設IOデータ'!CA$232 -> 0.007090323622 | EW17: =+SUMIFS('R2建設IOデータ'!CB:CB,'R2建設IOデータ'!$A:$A,'R2建設io'!$CE17)/'R2建設IOデータ'!CB$232 -> 0.0545314032 | EX17: =+SUMIFS('R2建設IOデータ'!CC:CC,'R2建設IOデータ'!$A:$A,'R2建設io'!$CE17)/'R2建設IOデータ'!CC$232 -> 0.006299530597 | EY17: =+SUMIFS('R2建設IOデータ'!CD:CD,'R2建設IOデータ'!$A:$A,'R2建設io'!$CE17)/'R2建設IOデータ'!CD$232 -> 0.03475480767
A18: 0 | C18: 27 | D18: 非鉄金属 | E18: 0 | F18: 0 | G18: 0 | H18: 0 | I18: 0 | J18: 0 | K18: 0 | L18: 0 | M18: 0 | N18: 0 | O18: 0 | P18: 0 | Q18: 0 | R18: 0 | S18: 0 | T18: 0 | U18: 0 | V18: 0 | W18: 0 | X18: 0 | Y18: 0 | Z18: 0 | AA18: 0 | AB18: 0 | AC18: 0 | AD18: 0 | AE18: 0 | AF18: 0 | AG18: 0 | AH18: 0 | AI18: 0 | AJ18: 0 | AK18: 0 | AL18: 0 | AM18: 0 | AN18: 0 | AO18: 0 | AP18: 0 | AQ18: 0 | AR18: 0 | AS18: 0 | AT18: 0 | AU18: 0 | AV18: 0 | AW18: 0 | AX18: 0 | AY18: 0 | AZ18: 0 | BA18: 0 | BB18: 0 | BC18: 0 | BD18: 0 | BE18: 0 | BF18: 0 | BG18: 0 | BH18: 0 | BI18: 0 | BJ18: 0 | BK18: 0 | BL18: 0 | BM18: 0 | BN18: 0 | BO18: 0 | BP18: 0 | BQ18: 0 | BR18: 0 | BS18: 0 | BT18: 0 | BU18: 0 | BV18: 0 | BW18: 0 | CE18: 27 | CF18: 非鉄金属 | CG18: =+SUMIFS('R2建設IOデータ'!L:L,'R2建設IOデータ'!$A:$A,'R2建設io'!$CE18)/'R2建設IOデータ'!L$232 -> 0.008983915925 | CH18: =+SUMIFS('R2建設IOデータ'!M:M,'R2建設IOデータ'!$A:$A,'R2建設io'!$CE18)/'R2建設IOデータ'!M$232 -> 0.005995204538 | CI18: =+SUMIFS('R2建設IOデータ'!N:N,'R2建設IOデータ'!$A:$A,'R2建設io'!$CE18)/'R2建設IOデータ'!N$232 -> 0.004944816431 | CJ18: =+SUMIFS('R2建設IOデータ'!O:O,'R2建設IOデータ'!$A:$A,'R2建設io'!$CE18)/'R2建設IOデータ'!O$232 -> 0.003706333454 | CK18: =+SUMIFS('R2建設IOデータ'!P:P,'R2建設IOデータ'!$A:$A,'R2建設io'!$CE18)/'R2建設IOデータ'!P$232 -> 0.003744571978 | CL18: =+SUMIFS('R2建設IOデータ'!Q:Q,'R2建設IOデータ'!$A:$A,'R2建設io'!$CE18)/'R2建設IOデータ'!Q$232 -> 0.001966617921 | CM18: =+SUMIFS('R2建設IOデータ'!R:R,'R2建設IOデータ'!$A:$A,'R2建設io'!$CE18)/'R2建設IOデータ'!R$232 -> 0.006698144538 | CN18: =+SUMIFS('R2建設IOデータ'!S:S,'R2建設IOデータ'!$A:$A,'R2建設io'!$CE18)/'R2建設IOデータ'!S$232 -> 0.01652550298 | CO18: =+SUMIFS('R2建設IOデータ'!T:T,'R2建設IOデータ'!$A:$A,'R2建設io'!$CE18)/'R2建設IOデータ'!T$232 -> 0.007357310121 | CP18: =+SUMIFS('R2建設IOデータ'!U:U,'R2建設IOデータ'!$A:$A,'R2建設io'!$CE18)/'R2建設IOデータ'!U$232 -> 0.007406252375 | CQ18: =+SUMIFS('R2建設IOデータ'!V:V,'R2建設IOデータ'!$A:$A,'R2建設io'!$CE18)/'R2建設IOデータ'!V$232 -> 0.003829093528 | CR18: =+SUMIFS('R2建設IOデータ'!W:W,'R2建設IOデータ'!$A:$A,'R2建設io'!$CE18)/'R2建設IOデータ'!W$232 -> 0.005430319043 | CS18: =+SUMIFS('R2建設IOデータ'!X:X,'R2建設IOデータ'!$A:$A,'R2建設io'!$CE18)/'R2建設IOデータ'!X$232 -> 0.008564766375 | CT18: =+SUMIFS('R2建設IOデータ'!Y:Y,'R2建設IOデータ'!$A:$A,'R2建設io'!$CE18)/'R2建設IOデータ'!Y$232 -> 0.004136789387 | CU18: =+SUMIFS('R2建設IOデータ'!Z:Z,'R2建設IOデータ'!$A:$A,'R2建設io'!$CE18)/'R2建設IOデータ'!Z$232 -> 0.005383048921 | CV18: =+SUMIFS('R2建設IOデータ'!AA:AA,'R2建設IOデータ'!$A:$A,'R2建設io'!$CE18)/'R2建設IOデータ'!AA$232 -> 0.007093423927 | CW18: =+SUMIFS('R2建設IOデータ'!AB:AB,'R2建設IOデータ'!$A:$A,'R2建設io'!$CE18)/'R2建設IOデータ'!AB$232 -> 0.005050921945 | CX18: =+SUMIFS('R2建設IOデータ'!AC:AC,'R2建設IOデータ'!$A:$A,'R2建設io'!$CE18)/'R2建設IOデータ'!AC$232 -> 0.003586934243 | CY18: =+SUMIFS('R2建設IOデータ'!AD:AD,'R2建設IOデータ'!$A:$A,'R2建設io'!$CE18)/'R2建設IOデータ'!AD$232 -> 0.005235848557 | CZ18: =+SUMIFS('R2建設IOデータ'!AE:AE,'R2建設IOデータ'!$A:$A,'R2建設io'!$CE18)/'R2建設IOデータ'!AE$232 -> 0.007232144295 | DA18: =+SUMIFS('R2建設IOデータ'!AF:AF,'R2建設IOデータ'!$A:$A,'R2建設io'!$CE18)/'R2建設IOデータ'!AF$232 -> 0.005255491989 | DB18: =+SUMIFS('R2建設IOデータ'!AG:AG,'R2建設IOデータ'!$A:$A,'R2建設io'!$CE18)/'R2建設IOデータ'!AG$232 -> 0.008651325723 | DC18: =+SUMIFS('R2建設IOデータ'!AH:AH,'R2建設IOデータ'!$A:$A,'R2建設io'!$CE18)/'R2建設IOデータ'!AH$232 -> 0.00541788834 | DD18: =+SUMIFS('R2建設IOデータ'!AI:AI,'R2建設IOデータ'!$A:$A,'R2建設io'!$CE18)/'R2建設IOデータ'!AI$232 -> 0.007343105049 | DE18: =+SUMIFS('R2建設IOデータ'!AJ:AJ,'R2建設IOデータ'!$A:$A,'R2建設io'!$CE18)/'R2建設IOデータ'!AJ$232 -> 0.007634280962 | DF18: =+SUMIFS('R2建設IOデータ'!AK:AK,'R2建設IOデータ'!$A:$A,'R2建設io'!$CE18)/'R2建設IOデータ'!AK$232 -> 0.007216583639 | DG18: =+SUMIFS('R2建設IOデータ'!AL:AL,'R2建設IOデータ'!$A:$A,'R2建設io'!$CE18)/'R2建設IOデータ'!AL$232 -> 0.007083622798 | DH18: =+SUMIFS('R2建設IOデータ'!AM:AM,'R2建設IOデータ'!$A:$A,'R2建設io'!$CE18)/'R2建設IOデータ'!AM$232 -> 0.0125136468 | DI18: =+SUMIFS('R2建設IOデータ'!AN:AN,'R2建設IOデータ'!$A:$A,'R2建設io'!$CE18)/'R2建設IOデータ'!AN$232 -> 0.007995095803 | DJ18: =+SUMIFS('R2建設IOデータ'!AO:AO,'R2建設IOデータ'!$A:$A,'R2建設io'!$CE18)/'R2建設IOデータ'!AO$232 -> 0.0135045848 | DK18: =+SUMIFS('R2建設IOデータ'!AP:AP,'R2建設IOデータ'!$A:$A,'R2建設io'!$CE18)/'R2建設IOデータ'!AP$232 -> 0.003297128633 | DL18: =+SUMIFS('R2建設IOデータ'!AQ:AQ,'R2建設IOデータ'!$A:$A,'R2建設io'!$CE18)/'R2建設IOデータ'!AQ$232 -> 0.003308175758 | DM18: =+SUMIFS('R2建設IOデータ'!AR:AR,'R2建設IOデータ'!$A:$A,'R2建設io'!$CE18)/'R2建設IOデータ'!AR$232 -> 0.003306625074 | DN18: =+SUMIFS('R2建設IOデータ'!AS:AS,'R2建設IOデータ'!$A:$A,'R2建設io'!$CE18)/'R2建設IOデータ'!AS$232 -> 0.003485247791 | DO18: =+SUMIFS('R2建設IOデータ'!AT:AT,'R2建設IOデータ'!$A:$A,'R2建設io'!$CE18)/'R2建設IOデータ'!AT$232 -> 0.0001398206684 | DP18: =+SUMIFS('R2建設IOデータ'!AU:AU,'R2建設IOデータ'!$A:$A,'R2建設io'!$CE18)/'R2建設IOデータ'!AU$232 -> 0.001274624725 | DQ18: =+SUMIFS('R2建設IOデータ'!AV:AV,'R2建設IOデータ'!$A:$A,'R2建設io'!$CE18)/'R2建設IOデータ'!AV$232 -> 0.002299215545 | DR18: =+SUMIFS('R2建設IOデータ'!AW:AW,'R2建設IOデータ'!$A:$A,'R2建設io'!$CE18)/'R2建設IOデータ'!AW$232 -> 0.007282035844 | DS18: =+SUMIFS('R2建設IOデータ'!AX:AX,'R2建設IOデータ'!$A:$A,'R2建設io'!$CE18)/'R2建設IOデータ'!AX$232 -> 0.003066484647 | DT18: =+SUMIFS('R2建設IOデータ'!AY:AY,'R2建設IOデータ'!$A:$A,'R2建設io'!$CE18)/'R2建設IOデータ'!AY$232 -> 0.003754416961 | DU18: =+SUMIFS('R2建設IOデータ'!AZ:AZ,'R2建設IOデータ'!$A:$A,'R2建設io'!$CE18)/'R2建設IOデータ'!AZ$232 -> 0.004880891673 | DV18: =+SUMIFS('R2建設IOデータ'!BA:BA,'R2建設IOデータ'!$A:$A,'R2建設io'!$CE18)/'R2建設IOデータ'!BA$232 -> 0.002555531603 | DW18: =+SUMIFS('R2建設IOデータ'!BB:BB,'R2建設IOデータ'!$A:$A,'R2建設io'!$CE18)/'R2建設IOデータ'!BB$232 -> 0.0004453983063 | DX18: =+SUMIFS('R2建設IOデータ'!BC:BC,'R2建設IOデータ'!$A:$A,'R2建設io'!$CE18)/'R2建設IOデータ'!BC$232 -> 0.0005028944244 | DY18: =+SUMIFS('R2建設IOデータ'!BD:BD,'R2建設IOデータ'!$A:$A,'R2建設io'!$CE18)/'R2建設IOデータ'!BD$232 -> 0 | DZ18: =+SUMIFS('R2建設IOデータ'!BE:BE,'R2建設IOデータ'!$A:$A,'R2建設io'!$CE18)/'R2建設IOデータ'!BE$232 -> 0 | EA18: =+SUMIFS('R2建設IOデータ'!BF:BF,'R2建設IOデータ'!$A:$A,'R2建設io'!$CE18)/'R2建設IOデータ'!BF$232 -> 0 | EB18: =+SUMIFS('R2建設IOデータ'!BG:BG,'R2建設IOデータ'!$A:$A,'R2建設io'!$CE18)/'R2建設IOデータ'!BG$232 -> 0.0233166901 | EC18: =+SUMIFS('R2建設IOデータ'!BH:BH,'R2建設IOデータ'!$A:$A,'R2建設io'!$CE18)/'R2建設IOデータ'!BH$232 -> 0.02364413098 | ED18: =+SUMIFS('R2建設IOデータ'!BI:BI,'R2建設IOデータ'!$A:$A,'R2建設io'!$CE18)/'R2建設IOデータ'!BI$232 -> 0.02183242141 | EE18: =+SUMIFS('R2建設IOデータ'!BJ:BJ,'R2建設IOデータ'!$A:$A,'R2建設io'!$CE18)/'R2建設IOデータ'!BJ$232 -> 0.003401466042 | EF18: =+SUMIFS('R2建設IOデータ'!BK:BK,'R2建設IOデータ'!$A:$A,'R2建設io'!$CE18)/'R2建設IOデータ'!BK$232 -> 0.003770995068 | EG18: =+SUMIFS('R2建設IOデータ'!BL:BL,'R2建設IOデータ'!$A:$A,'R2建設io'!$CE18)/'R2建設IOデータ'!BL$232 -> 0.003557531273 | EH18: =+SUMIFS('R2建設IOデータ'!BM:BM,'R2建設IOデータ'!$A:$A,'R2建設io'!$CE18)/'R2建設IOデータ'!BM$232 -> 0.001067695714 | EI18: =+SUMIFS('R2建設IOデータ'!BN:BN,'R2建設IOデータ'!$A:$A,'R2建設io'!$CE18)/'R2建設IOデータ'!BN$232 -> 0.03573071092 | EJ18: =+SUMIFS('R2建設IOデータ'!BO:BO,'R2建設IOデータ'!$A:$A,'R2建設io'!$CE18)/'R2建設IOデータ'!BO$232 -> 0.0006597431552 | EK18: =+SUMIFS('R2建設IOデータ'!BP:BP,'R2建設IOデータ'!$A:$A,'R2建設io'!$CE18)/'R2建設IOデータ'!BP$232 -> 0.0001330000688 | EL18: =+SUMIFS('R2建設IOデータ'!BQ:BQ,'R2建設IOデータ'!$A:$A,'R2建設io'!$CE18)/'R2建設IOデータ'!BQ$232 -> 0.004249168781 | EM18: =+SUMIFS('R2建設IOデータ'!BR:BR,'R2建設IOデータ'!$A:$A,'R2建設io'!$CE18)/'R2建設IOデータ'!BR$232 -> 0.004665752156 | EN18: =+SUMIFS('R2建設IOデータ'!BS:BS,'R2建設IOデータ'!$A:$A,'R2建設io'!$CE18)/'R2建設IOデータ'!BS$232 -> 0.0006228985546 | EO18: =+SUMIFS('R2建設IOデータ'!BT:BT,'R2建設IOデータ'!$A:$A,'R2建設io'!$CE18)/'R2建設IOデータ'!BT$232 -> 0.008825484501 | EP18: =+SUMIFS('R2建設IOデータ'!BU:BU,'R2建設IOデータ'!$A:$A,'R2建設io'!$CE18)/'R2建設IOデータ'!BU$232 -> 0.005991155636 | EQ18: =+SUMIFS('R2建設IOデータ'!BV:BV,'R2建設IOデータ'!$A:$A,'R2建設io'!$CE18)/'R2建設IOデータ'!BV$232 -> 0.0006432850165 | ER18: =+SUMIFS('R2建設IOデータ'!BW:BW,'R2建設IOデータ'!$A:$A,'R2建設io'!$CE18)/'R2建設IOデータ'!BW$232 -> 0.0008522007318 | ES18: =+SUMIFS('R2建設IOデータ'!BX:BX,'R2建設IOデータ'!$A:$A,'R2建設io'!$CE18)/'R2建設IOデータ'!BX$232 -> 0.02790446687 | ET18: =+SUMIFS('R2建設IOデータ'!BY:BY,'R2建設IOデータ'!$A:$A,'R2建設io'!$CE18)/'R2建設IOデータ'!BY$232 -> 0.04534356379 | EU18: =+SUMIFS('R2建設IOデータ'!BZ:BZ,'R2建設IOデータ'!$A:$A,'R2建設io'!$CE18)/'R2建設IOデータ'!BZ$232 -> 0.05316759489 | EV18: =+SUMIFS('R2建設IOデータ'!CA:CA,'R2建設IOデータ'!$A:$A,'R2建設io'!$CE18)/'R2建設IOデータ'!CA$232 -> 0.06489498236 | EW18: =+SUMIFS('R2建設IOデータ'!CB:CB,'R2建設IOデータ'!$A:$A,'R2建設io'!$CE18)/'R2建設IOデータ'!CB$232 -> 0.003929109317 | EX18: =+SUMIFS('R2建設IOデータ'!CC:CC,'R2建設IOデータ'!$A:$A,'R2建設io'!$CE18)/'R2建設IOデータ'!CC$232 -> 0.003747277265 | EY18: =+SUMIFS('R2建設IOデータ'!CD:CD,'R2建設IOデータ'!$A:$A,'R2建設io'!$CE18)/'R2建設IOデータ'!CD$232 -> 0.004943015792
A19: 0 | C19: 28 | D19: 金属製品 | E19: 0 | F19: 0 | G19: 0 | H19: 0 | I19: 0 | J19: 0 | K19: 0 | L19: 0 | M19: 0 | N19: 0 | O19: 0 | P19: 0 | Q19: 0 | R19: 0 | S19: 0 | T19: 0 | U19: 0 | V19: 0 | W19: 0 | X19: 0 | Y19: 0 | Z19: 0 | AA19: 0 | AB19: 0 | AC19: 0 | AD19: 0 | AE19: 0 | AF19: 0 | AG19: 0 | AH19: 0 | AI19: 0 | AJ19: 0 | AK19: 0 | AL19: 0 | AM19: 0 | AN19: 0 | AO19: 0 | AP19: 0 | AQ19: 0 | AR19: 0 | AS19: 0 | AT19: 0 | AU19: 0 | AV19: 0 | AW19: 0 | AX19: 0 | AY19: 0 | AZ19: 0 | BA19: 0 | BB19: 0 | BC19: 0 | BD19: 0 | BE19: 0 | BF19: 0 | BG19: 0 | BH19: 0 | BI19: 0 | BJ19: 0 | BK19: 0 | BL19: 0 | BM19: 0 | BN19: 0 | BO19: 0 | BP19: 0 | BQ19: 0 | BR19: 0 | BS19: 0 | BT19: 0 | BU19: 0 | BV19: 0 | BW19: 0 | CE19: 28 | CF19: 金属製品 | CG19: =+SUMIFS('R2建設IOデータ'!L:L,'R2建設IOデータ'!$A:$A,'R2建設io'!$CE19)/'R2建設IOデータ'!L$232 -> 0.08811118664 | CH19: =+SUMIFS('R2建設IOデータ'!M:M,'R2建設IOデータ'!$A:$A,'R2建設io'!$CE19)/'R2建設IOデータ'!M$232 -> 0.09111117782 | CI19: =+SUMIFS('R2建設IOデータ'!N:N,'R2建設IOデータ'!$A:$A,'R2建設io'!$CE19)/'R2建設IOデータ'!N$232 -> 0.06330904388 | CJ19: =+SUMIFS('R2建設IOデータ'!O:O,'R2建設IOデータ'!$A:$A,'R2建設io'!$CE19)/'R2建設IOデータ'!O$232 -> 0.04907011971 | CK19: =+SUMIFS('R2建設IOデータ'!P:P,'R2建設IOデータ'!$A:$A,'R2建設io'!$CE19)/'R2建設IOデータ'!P$232 -> 0.04841897266 | CL19: =+SUMIFS('R2建設IOデータ'!Q:Q,'R2建設IOデータ'!$A:$A,'R2建設io'!$CE19)/'R2建設IOデータ'!Q$232 -> 0.07869497252 | CM19: =+SUMIFS('R2建設IOデータ'!R:R,'R2建設IOデータ'!$A:$A,'R2建設io'!$CE19)/'R2建設IOデータ'!R$232 -> 0.083467178 | CN19: =+SUMIFS('R2建設IOデータ'!S:S,'R2建設IOデータ'!$A:$A,'R2建設io'!$CE19)/'R2建設IOデータ'!S$232 -> 0.08397680819 | CO19: =+SUMIFS('R2建設IOデータ'!T:T,'R2建設IOデータ'!$A:$A,'R2建設io'!$CE19)/'R2建設IOデータ'!T$232 -> 0.05725334869 | CP19: =+SUMIFS('R2建設IOデータ'!U:U,'R2建設IOデータ'!$A:$A,'R2建設io'!$CE19)/'R2建設IOデータ'!U$232 -> 0.05726237923 | CQ19: =+SUMIFS('R2建設IOデータ'!V:V,'R2建設IOデータ'!$A:$A,'R2建設io'!$CE19)/'R2建設IOデータ'!V$232 -> 0.05660234295 | CR19: =+SUMIFS('R2建設IOデータ'!W:W,'R2建設IOデータ'!$A:$A,'R2建設io'!$CE19)/'R2建設IOデータ'!W$232 -> 0.1247548318 | CS19: =+SUMIFS('R2建設IOデータ'!X:X,'R2建設IOデータ'!$A:$A,'R2建設io'!$CE19)/'R2建設IOデータ'!X$232 -> 0.1039607458 | CT19: =+SUMIFS('R2建設IOデータ'!Y:Y,'R2建設IOデータ'!$A:$A,'R2建設io'!$CE19)/'R2建設IOデータ'!Y$232 -> 0.1333361746 | CU19: =+SUMIFS('R2建設IOデータ'!Z:Z,'R2建設IOデータ'!$A:$A,'R2建設io'!$CE19)/'R2建設IOデータ'!Z$232 -> 0.03649738741 | CV19: =+SUMIFS('R2建設IOデータ'!AA:AA,'R2建設IOデータ'!$A:$A,'R2建設io'!$CE19)/'R2建設IOデータ'!AA$232 -> 0.1201793311 | CW19: =+SUMIFS('R2建設IOデータ'!AB:AB,'R2建設IOデータ'!$A:$A,'R2建設io'!$CE19)/'R2建設IOデータ'!AB$232 -> 0.07311402817 | CX19: =+SUMIFS('R2建設IOデータ'!AC:AC,'R2建設IOデータ'!$A:$A,'R2建設io'!$CE19)/'R2建設IOデータ'!AC$232 -> 0.05856485363 | CY19: =+SUMIFS('R2建設IOデータ'!AD:AD,'R2建設IOデータ'!$A:$A,'R2建設io'!$CE19)/'R2建設IOデータ'!AD$232 -> 0.07495183702 | CZ19: =+SUMIFS('R2建設IOデータ'!AE:AE,'R2建設IOデータ'!$A:$A,'R2建設io'!$CE19)/'R2建設IOデータ'!AE$232 -> 0.1233758598 | DA19: =+SUMIFS('R2建設IOデータ'!AF:AF,'R2建設IOデータ'!$A:$A,'R2建設io'!$CE19)/'R2建設IOデータ'!AF$232 -> 0.1520488911 | DB19: =+SUMIFS('R2建設IOデータ'!AG:AG,'R2建設IOデータ'!$A:$A,'R2建設io'!$CE19)/'R2建設IOデータ'!AG$232 -> 0.1144361901 | DC19: =+SUMIFS('R2建設IOデータ'!AH:AH,'R2建設IOデータ'!$A:$A,'R2建設io'!$CE19)/'R2建設IOデータ'!AH$232 -> 0.1089948822 | DD19: =+SUMIFS('R2建設IOデータ'!AI:AI,'R2建設IOデータ'!$A:$A,'R2建設io'!$CE19)/'R2建設IOデータ'!AI$232 -> 0.07881053971 | DE19: =+SUMIFS('R2建設IOデータ'!AJ:AJ,'R2建設IOデータ'!$A:$A,'R2建設io'!$CE19)/'R2建設IOデータ'!AJ$232 -> 0.08617903416 | DF19: =+SUMIFS('R2建設IOデータ'!AK:AK,'R2建設IOデータ'!$A:$A,'R2建設io'!$CE19)/'R2建設IOデータ'!AK$232 -> 0.1477691901 | DG19: =+SUMIFS('R2建設IOデータ'!AL:AL,'R2建設IOデータ'!$A:$A,'R2建設io'!$CE19)/'R2建設IOデータ'!AL$232 -> 0.1282447293 | DH19: =+SUMIFS('R2建設IOデータ'!AM:AM,'R2建設IOデータ'!$A:$A,'R2建設io'!$CE19)/'R2建設IOデータ'!AM$232 -> 0.07997590634 | DI19: =+SUMIFS('R2建設IOデータ'!AN:AN,'R2建設IOデータ'!$A:$A,'R2建設io'!$CE19)/'R2建設IOデータ'!AN$232 -> 0.162005997 | DJ19: =+SUMIFS('R2建設IOデータ'!AO:AO,'R2建設IOデータ'!$A:$A,'R2建設io'!$CE19)/'R2建設IOデータ'!AO$232 -> 0.05063425553 | DK19: =+SUMIFS('R2建設IOデータ'!AP:AP,'R2建設IOデータ'!$A:$A,'R2建設io'!$CE19)/'R2建設IOデータ'!AP$232 -> 0.03792507606 | DL19: =+SUMIFS('R2建設IOデータ'!AQ:AQ,'R2建設IOデータ'!$A:$A,'R2建設io'!$CE19)/'R2建設IOデータ'!AQ$232 -> 0.04761507913 | DM19: =+SUMIFS('R2建設IOデータ'!AR:AR,'R2建設IOデータ'!$A:$A,'R2建設io'!$CE19)/'R2建設IOデータ'!AR$232 -> 0.04794443096 | DN19: =+SUMIFS('R2建設IOデータ'!AS:AS,'R2建設IOデータ'!$A:$A,'R2建設io'!$CE19)/'R2建設IOデータ'!AS$232 -> 0.04080977554 | DO19: =+SUMIFS('R2建設IOデータ'!AT:AT,'R2建設IOデータ'!$A:$A,'R2建設io'!$CE19)/'R2建設IOデータ'!AT$232 -> 0.03238783261 | DP19: =+SUMIFS('R2建設IOデータ'!AU:AU,'R2建設IOデータ'!$A:$A,'R2建設io'!$CE19)/'R2建設IOデータ'!AU$232 -> 0.006498309984 | DQ19: =+SUMIFS('R2建設IOデータ'!AV:AV,'R2建設IOデータ'!$A:$A,'R2建設io'!$CE19)/'R2建設IOデータ'!AV$232 -> 0.08520989201 | DR19: =+SUMIFS('R2建設IOデータ'!AW:AW,'R2建設IOデータ'!$A:$A,'R2建設io'!$CE19)/'R2建設IOデータ'!AW$232 -> 0.03485727262 | DS19: =+SUMIFS('R2建設IOデータ'!AX:AX,'R2建設IOデータ'!$A:$A,'R2建設io'!$CE19)/'R2建設IOデータ'!AX$232 -> 0.07596680861 | DT19: =+SUMIFS('R2建設IOデータ'!AY:AY,'R2建設IOデータ'!$A:$A,'R2建設io'!$CE19)/'R2建設IOデータ'!AY$232 -> 0.01060070671 | DU19: =+SUMIFS('R2建設IOデータ'!AZ:AZ,'R2建設IOデータ'!$A:$A,'R2建設io'!$CE19)/'R2建設IOデータ'!AZ$232 -> 0.1498506593 | DV19: =+SUMIFS('R2建設IOデータ'!BA:BA,'R2建設IOデータ'!$A:$A,'R2建設io'!$CE19)/'R2建設IOデータ'!BA$232 -> 0.07794505562 | DW19: =+SUMIFS('R2建設IOデータ'!BB:BB,'R2建設IOデータ'!$A:$A,'R2建設io'!$CE19)/'R2建設IOデータ'!BB$232 -> 0.08073731157 | DX19: =+SUMIFS('R2建設IOデータ'!BC:BC,'R2建設IOデータ'!$A:$A,'R2建設io'!$CE19)/'R2建設IOデータ'!BC$232 -> 0.06972875966 | DY19: =+SUMIFS('R2建設IOデータ'!BD:BD,'R2建設IOデータ'!$A:$A,'R2建設io'!$CE19)/'R2建設IOデータ'!BD$232 -> 0.2053404403 | DZ19: =+SUMIFS('R2建設IOデータ'!BE:BE,'R2建設IOデータ'!$A:$A,'R2建設io'!$CE19)/'R2建設IOデータ'!BE$232 -> 0.02455254704 | EA19: =+SUMIFS('R2建設IOデータ'!BF:BF,'R2建設IOデータ'!$A:$A,'R2建設io'!$CE19)/'R2建設IOデータ'!BF$232 -> 0.1668416826 | EB19: =+SUMIFS('R2建設IOデータ'!BG:BG,'R2建設IOデータ'!$A:$A,'R2建設io'!$CE19)/'R2建設IOデータ'!BG$232 -> 0.05047263561 | EC19: =+SUMIFS('R2建設IOデータ'!BH:BH,'R2建設IOデータ'!$A:$A,'R2建設io'!$CE19)/'R2建設IOデータ'!BH$232 -> 0.05115794706 | ED19: =+SUMIFS('R2建設IOデータ'!BI:BI,'R2建設IOデータ'!$A:$A,'R2建設io'!$CE19)/'R2建設IOデータ'!BI$232 -> 0.04736616243 | EE19: =+SUMIFS('R2建設IOデータ'!BJ:BJ,'R2建設IOデータ'!$A:$A,'R2建設io'!$CE19)/'R2建設IOデータ'!BJ$232 -> 0.02780104008 | EF19: =+SUMIFS('R2建設IOデータ'!BK:BK,'R2建設IOデータ'!$A:$A,'R2建設io'!$CE19)/'R2建設IOデータ'!BK$232 -> 0.02870128919 | EG19: =+SUMIFS('R2建設IOデータ'!BL:BL,'R2建設IOデータ'!$A:$A,'R2建設io'!$CE19)/'R2建設IOデータ'!BL$232 -> 0.03482733714 | EH19: =+SUMIFS('R2建設IOデータ'!BM:BM,'R2建設IOデータ'!$A:$A,'R2建設io'!$CE19)/'R2建設IOデータ'!BM$232 -> 0.02498652637 | EI19: =+SUMIFS('R2建設IOデータ'!BN:BN,'R2建設IOデータ'!$A:$A,'R2建設io'!$CE19)/'R2建設IOデータ'!BN$232 -> 0.0757254873 | EJ19: =+SUMIFS('R2建設IOデータ'!BO:BO,'R2建設IOデータ'!$A:$A,'R2建設io'!$CE19)/'R2建設IOデータ'!BO$232 -> 0.06120823996 | EK19: =+SUMIFS('R2建設IOデータ'!BP:BP,'R2建設IOデータ'!$A:$A,'R2建設io'!$CE19)/'R2建設IOデータ'!BP$232 -> 0.04087688321 | EL19: =+SUMIFS('R2建設IOデータ'!BQ:BQ,'R2建設IOデータ'!$A:$A,'R2建設io'!$CE19)/'R2建設IOデータ'!BQ$232 -> 0.03649624995 | EM19: =+SUMIFS('R2建設IOデータ'!BR:BR,'R2建設IOデータ'!$A:$A,'R2建設io'!$CE19)/'R2建設IOデータ'!BR$232 -> 0.03194005669 | EN19: =+SUMIFS('R2建設IOデータ'!BS:BS,'R2建設IOデータ'!$A:$A,'R2建設io'!$CE19)/'R2建設IOデータ'!BS$232 -> 0.007233660634 | EO19: =+SUMIFS('R2建設IOデータ'!BT:BT,'R2建設IOデータ'!$A:$A,'R2建設io'!$CE19)/'R2建設IOデータ'!BT$232 -> 0.02004281181 | EP19: =+SUMIFS('R2建設IOデータ'!BU:BU,'R2建設IOデータ'!$A:$A,'R2建設io'!$CE19)/'R2建設IOデータ'!BU$232 -> 0.04215890799 | EQ19: =+SUMIFS('R2建設IOデータ'!BV:BV,'R2建設IOデータ'!$A:$A,'R2建設io'!$CE19)/'R2建設IOデータ'!BV$232 -> 0.00927194538 | ER19: =+SUMIFS('R2建設IOデータ'!BW:BW,'R2建設IOデータ'!$A:$A,'R2建設io'!$CE19)/'R2建設IOデータ'!BW$232 -> 0.03698832758 | ES19: =+SUMIFS('R2建設IOデータ'!BX:BX,'R2建設IOデータ'!$A:$A,'R2建設io'!$CE19)/'R2建設IOデータ'!BX$232 -> 0.06856337349 | ET19: =+SUMIFS('R2建設IOデータ'!BY:BY,'R2建設IOデータ'!$A:$A,'R2建設io'!$CE19)/'R2建設IOデータ'!BY$232 -> 0.04280419908 | EU19: =+SUMIFS('R2建設IOデータ'!BZ:BZ,'R2建設IOデータ'!$A:$A,'R2建設io'!$CE19)/'R2建設IOデータ'!BZ$232 -> 0.07788359955 | EV19: =+SUMIFS('R2建設IOデータ'!CA:CA,'R2建設IOデータ'!$A:$A,'R2建設io'!$CE19)/'R2建設IOデータ'!CA$232 -> 0.04599103911 | EW19: =+SUMIFS('R2建設IOデータ'!CB:CB,'R2建設IOデータ'!$A:$A,'R2建設io'!$CE19)/'R2建設IOデータ'!CB$232 -> 0.1127609163 | EX19: =+SUMIFS('R2建設IOデータ'!CC:CC,'R2建設IOデータ'!$A:$A,'R2建設io'!$CE19)/'R2建設IOデータ'!CC$232 -> 0.01242361447 | EY19: =+SUMIFS('R2建設IOデータ'!CD:CD,'R2建設IOデータ'!$A:$A,'R2建設io'!$CE19)/'R2建設IOデータ'!CD$232 -> 0.06968584017
A20: 0 | C20: 29 | D20: はん用機械 | E20: 0 | F20: 0 | G20: 0 | H20: 0 | I20: 0 | J20: 0 | K20: 0 | L20: 0 | M20: 0 | N20: 0 | O20: 0 | P20: 0 | Q20: 0 | R20: 0 | S20: 0 | T20: 0 | U20: 0 | V20: 0 | W20: 0 | X20: 0 | Y20: 0 | Z20: 0 | AA20: 0 | AB20: 0 | AC20: 0 | AD20: 0 | AE20: 0 | AF20: 0 | AG20: 0 | AH20: 0 | AI20: 0 | AJ20: 0 | AK20: 0 | AL20: 0 | AM20: 0 | AN20: 0 | AO20: 0 | AP20: 0 | AQ20: 0 | AR20: 0 | AS20: 0 | AT20: 0 | AU20: 0 | AV20: 0 | AW20: 0 | AX20: 0 | AY20: 0 | AZ20: 0 | BA20: 0 | BB20: 0 | BC20: 0 | BD20: 0 | BE20: 0 | BF20: 0 | BG20: 0 | BH20: 0 | BI20: 0 | BJ20: 0 | BK20: 0 | BL20: 0 | BM20: 0 | BN20: 0 | BO20: 0 | BP20: 0 | BQ20: 0 | BR20: 0 | BS20: 0 | BT20: 0 | BU20: 0 | BV20: 0 | BW20: 0 | CE20: 29 | CF20: はん用機械 | CG20: =+SUMIFS('R2建設IOデータ'!L:L,'R2建設IOデータ'!$A:$A,'R2建設io'!$CE20)/'R2建設IOデータ'!L$232 -> 0.00708063696 | CH20: =+SUMIFS('R2建設IOデータ'!M:M,'R2建設IOデータ'!$A:$A,'R2建設io'!$CE20)/'R2建設IOデータ'!M$232 -> 0.01020874371 | CI20: =+SUMIFS('R2建設IOデータ'!N:N,'R2建設IOデータ'!$A:$A,'R2建設io'!$CE20)/'R2建設IOデータ'!N$232 -> 0.004067218132 | CJ20: =+SUMIFS('R2建設IOデータ'!O:O,'R2建設IOデータ'!$A:$A,'R2建設io'!$CE20)/'R2建設IOデータ'!O$232 -> 0.002808137297 | CK20: =+SUMIFS('R2建設IOデータ'!P:P,'R2建設IOデータ'!$A:$A,'R2建設io'!$CE20)/'R2建設IOデータ'!P$232 -> 0.002855229206 | CL20: =+SUMIFS('R2建設IOデータ'!Q:Q,'R2建設IOデータ'!$A:$A,'R2建設io'!$CE20)/'R2建設IOデータ'!Q$232 -> 0.0006656245273 | CM20: =+SUMIFS('R2建設IOデータ'!R:R,'R2建設IOデータ'!$A:$A,'R2建設io'!$CE20)/'R2建設IOデータ'!R$232 -> 0.005849706755 | CN20: =+SUMIFS('R2建設IOデータ'!S:S,'R2建設IOデータ'!$A:$A,'R2建設io'!$CE20)/'R2建設IOデータ'!S$232 -> 0.0263045395 | CO20: =+SUMIFS('R2建設IOデータ'!T:T,'R2建設IOデータ'!$A:$A,'R2建設io'!$CE20)/'R2建設IOデータ'!T$232 -> 0.007278466978 | CP20: =+SUMIFS('R2建設IOデータ'!U:U,'R2建設IOデータ'!$A:$A,'R2建設io'!$CE20)/'R2建設IOデータ'!U$232 -> 0.007270833076 | CQ20: =+SUMIFS('R2建設IOデータ'!V:V,'R2建設IOデータ'!$A:$A,'R2建設io'!$CE20)/'R2建設IOデータ'!V$232 -> 0.007828790234 | CR20: =+SUMIFS('R2建設IOデータ'!W:W,'R2建設IOデータ'!$A:$A,'R2建設io'!$CE20)/'R2建設IOデータ'!W$232 -> 0.003135532904 | CS20: =+SUMIFS('R2建設IOデータ'!X:X,'R2建設IOデータ'!$A:$A,'R2建設io'!$CE20)/'R2建設IOデータ'!X$232 -> 0.007137984732 | CT20: =+SUMIFS('R2建設IOデータ'!Y:Y,'R2建設IOデータ'!$A:$A,'R2建設io'!$CE20)/'R2建設IOデータ'!Y$232 -> 0.001483793509 | CU20: =+SUMIFS('R2建設IOデータ'!Z:Z,'R2建設IOデータ'!$A:$A,'R2建設io'!$CE20)/'R2建設IOデータ'!Z$232 -> 0.002652059292 | CV20: =+SUMIFS('R2建設IOデータ'!AA:AA,'R2建設IOデータ'!$A:$A,'R2建設io'!$CE20)/'R2建設IOデータ'!AA$232 -> 0.01662993453 | CW20: =+SUMIFS('R2建設IOデータ'!AB:AB,'R2建設IOデータ'!$A:$A,'R2建設io'!$CE20)/'R2建設IOデータ'!AB$232 -> 0.01187499543 | CX20: =+SUMIFS('R2建設IOデータ'!AC:AC,'R2建設IOデータ'!$A:$A,'R2建設io'!$CE20)/'R2建設IOデータ'!AC$232 -> 0.001537257533 | CY20: =+SUMIFS('R2建設IOデータ'!AD:AD,'R2建設IOデータ'!$A:$A,'R2建設io'!$CE20)/'R2建設IOデータ'!AD$232 -> 0.01318082801 | CZ20: =+SUMIFS('R2建設IOデータ'!AE:AE,'R2建設IOデータ'!$A:$A,'R2建設io'!$CE20)/'R2建設IOデータ'!AE$232 -> 0.01695287518 | DA20: =+SUMIFS('R2建設IOデータ'!AF:AF,'R2建設IOデータ'!$A:$A,'R2建設io'!$CE20)/'R2建設IOデータ'!AF$232 -> 0.01500067571 | DB20: =+SUMIFS('R2建設IOデータ'!AG:AG,'R2建設IOデータ'!$A:$A,'R2建設io'!$CE20)/'R2建設IOデータ'!AG$232 -> 0.0273503654 | DC20: =+SUMIFS('R2建設IOデータ'!AH:AH,'R2建設IOデータ'!$A:$A,'R2建設io'!$CE20)/'R2建設IOデータ'!AH$232 -> 0.01128994208 | DD20: =+SUMIFS('R2建設IOデータ'!AI:AI,'R2建設IOデータ'!$A:$A,'R2建設io'!$CE20)/'R2建設IOデータ'!AI$232 -> 0.01946434196 | DE20: =+SUMIFS('R2建設IOデータ'!AJ:AJ,'R2建設IOデータ'!$A:$A,'R2建設io'!$CE20)/'R2建設IOデータ'!AJ$232 -> 0.01663804839 | DF20: =+SUMIFS('R2建設IOデータ'!AK:AK,'R2建設IOデータ'!$A:$A,'R2建設io'!$CE20)/'R2建設IOデータ'!AK$232 -> 0.01659433088 | DG20: =+SUMIFS('R2建設IOデータ'!AL:AL,'R2建設IOデータ'!$A:$A,'R2建設io'!$CE20)/'R2建設IOデータ'!AL$232 -> 0.01693906814 | DH20: =+SUMIFS('R2建設IOデータ'!AM:AM,'R2建設IOデータ'!$A:$A,'R2建設io'!$CE20)/'R2建設IOデータ'!AM$232 -> 0.02111207318 | DI20: =+SUMIFS('R2建設IOデータ'!AN:AN,'R2建設IOデータ'!$A:$A,'R2建設io'!$CE20)/'R2建設IOデータ'!AN$232 -> 0.0006984854714 | DJ20: =+SUMIFS('R2建設IOデータ'!AO:AO,'R2建設IOデータ'!$A:$A,'R2建設io'!$CE20)/'R2建設IOデータ'!AO$232 -> 0.005700362334 | DK20: =+SUMIFS('R2建設IOデータ'!AP:AP,'R2建設IOデータ'!$A:$A,'R2建設io'!$CE20)/'R2建設IOデータ'!AP$232 -> 0.005304448271 | DL20: =+SUMIFS('R2建設IOデータ'!AQ:AQ,'R2建設IOデータ'!$A:$A,'R2建設io'!$CE20)/'R2建設IOデータ'!AQ$232 -> 0.0005001988793 | DM20: =+SUMIFS('R2建設IOデータ'!AR:AR,'R2建設IOデータ'!$A:$A,'R2建設io'!$CE20)/'R2建設IOデータ'!AR$232 -> 0.0005047324901 | DN20: =+SUMIFS('R2建設IOデータ'!AS:AS,'R2建設IOデータ'!$A:$A,'R2建設io'!$CE20)/'R2建設IOデータ'!AS$232 -> 0.0004824549554 | DO20: =+SUMIFS('R2建設IOデータ'!AT:AT,'R2建設IOデータ'!$A:$A,'R2建設io'!$CE20)/'R2建設IOデータ'!AT$232 -> 0.0005309057851 | DP20: =+SUMIFS('R2建設IOデータ'!AU:AU,'R2建設IOデータ'!$A:$A,'R2建設io'!$CE20)/'R2建設IOデータ'!AU$232 -> 0.0004893648499 | DQ20: =+SUMIFS('R2建設IOデータ'!AV:AV,'R2建設IOデータ'!$A:$A,'R2建設io'!$CE20)/'R2建設IOデータ'!AV$232 -> 0.0005159768548 | DR20: =+SUMIFS('R2建設IOデータ'!AW:AW,'R2建設IOデータ'!$A:$A,'R2建設io'!$CE20)/'R2建設IOデータ'!AW$232 -> 0.0005081953715 | DS20: =+SUMIFS('R2建設IOデータ'!AX:AX,'R2建設IOデータ'!$A:$A,'R2建設io'!$CE20)/'R2建設IOデータ'!AX$232 -> 0.0001018765664 | DT20: =+SUMIFS('R2建設IOデータ'!AY:AY,'R2建設IOデータ'!$A:$A,'R2建設io'!$CE20)/'R2建設IOデータ'!AY$232 -> 0.0002208480565 | DU20: =+SUMIFS('R2建設IOデータ'!AZ:AZ,'R2建設IOデータ'!$A:$A,'R2建設io'!$CE20)/'R2建設IOデータ'!AZ$232 -> 0.0002185473884 | DV20: =+SUMIFS('R2建設IOデータ'!BA:BA,'R2建設IOデータ'!$A:$A,'R2建設io'!$CE20)/'R2建設IOデータ'!BA$232 -> 0.0005984076453 | DW20: =+SUMIFS('R2建設IOデータ'!BB:BB,'R2建設IOデータ'!$A:$A,'R2建設io'!$CE20)/'R2建設IOデータ'!BB$232 -> 0.0006168569463 | DX20: =+SUMIFS('R2建設IOデータ'!BC:BC,'R2建設IOデータ'!$A:$A,'R2建設io'!$CE20)/'R2建設IOデータ'!BC$232 -> 0.0001435251787 | DY20: =+SUMIFS('R2建設IOデータ'!BD:BD,'R2建設IOデータ'!$A:$A,'R2建設io'!$CE20)/'R2建設IOデータ'!BD$232 -> 0.0002946979986 | DZ20: =+SUMIFS('R2建設IOデータ'!BE:BE,'R2建設IOデータ'!$A:$A,'R2建設io'!$CE20)/'R2建設IOデータ'!BE$232 -> 0.02156952731 | EA20: =+SUMIFS('R2建設IOデータ'!BF:BF,'R2建設IOデータ'!$A:$A,'R2建設io'!$CE20)/'R2建設IOデータ'!BF$232 -> 0.0002470813515 | EB20: =+SUMIFS('R2建設IOデータ'!BG:BG,'R2建設IOデータ'!$A:$A,'R2建設io'!$CE20)/'R2建設IOデータ'!BG$232 -> 0.0004168888458 | EC20: =+SUMIFS('R2建設IOデータ'!BH:BH,'R2建設IOデータ'!$A:$A,'R2建設io'!$CE20)/'R2建設IOデータ'!BH$232 -> 0.0004141864786 | ED20: =+SUMIFS('R2建設IOデータ'!BI:BI,'R2建設IOデータ'!$A:$A,'R2建設io'!$CE20)/'R2建設IOデータ'!BI$232 -> 0.0004291385045 | EE20: =+SUMIFS('R2建設IOデータ'!BJ:BJ,'R2建設IOデータ'!$A:$A,'R2建設io'!$CE20)/'R2建設IOデータ'!BJ$232 -> 0.0002274536563 | EF20: =+SUMIFS('R2建設IOデータ'!BK:BK,'R2建設IOデータ'!$A:$A,'R2建設io'!$CE20)/'R2建設IOデータ'!BK$232 -> 0.01089719578 | EG20: =+SUMIFS('R2建設IOデータ'!BL:BL,'R2建設IOデータ'!$A:$A,'R2建設io'!$CE20)/'R2建設IOデータ'!BL$232 -> 0.003711552284 | EH20: =+SUMIFS('R2建設IOデータ'!BM:BM,'R2建設IOデータ'!$A:$A,'R2建設io'!$CE20)/'R2建設IOデータ'!BM$232 -> 0.005367702578 | EI20: =+SUMIFS('R2建設IOデータ'!BN:BN,'R2建設IOデータ'!$A:$A,'R2建設io'!$CE20)/'R2建設IOデータ'!BN$232 -> 0.001385395434 | EJ20: =+SUMIFS('R2建設IOデータ'!BO:BO,'R2建設IOデータ'!$A:$A,'R2建設io'!$CE20)/'R2建設IOデータ'!BO$232 -> 0.0009554900868 | EK20: =+SUMIFS('R2建設IOデータ'!BP:BP,'R2建設IOデータ'!$A:$A,'R2建設io'!$CE20)/'R2建設IOデータ'!BP$232 -> 0.0001742759522 | EL20: =+SUMIFS('R2建設IOデータ'!BQ:BQ,'R2建設IOデータ'!$A:$A,'R2建設io'!$CE20)/'R2建設IOデータ'!BQ$232 -> 0.04118821961 | EM20: =+SUMIFS('R2建設IOデータ'!BR:BR,'R2建設IOデータ'!$A:$A,'R2建設io'!$CE20)/'R2建設IOデータ'!BR$232 -> 0.00346748515 | EN20: =+SUMIFS('R2建設IOデータ'!BS:BS,'R2建設IOデータ'!$A:$A,'R2建設io'!$CE20)/'R2建設IOデータ'!BS$232 -> 1.339566784e-05 | EO20: =+SUMIFS('R2建設IOデータ'!BT:BT,'R2建設IOデータ'!$A:$A,'R2建設io'!$CE20)/'R2建設IOデータ'!BT$232 -> 0.01231927639 | EP20: =+SUMIFS('R2建設IOデータ'!BU:BU,'R2建設IOデータ'!$A:$A,'R2建設io'!$CE20)/'R2建設IOデータ'!BU$232 -> 0.002033854969 | EQ20: =+SUMIFS('R2建設IOデータ'!BV:BV,'R2建設IOデータ'!$A:$A,'R2建設io'!$CE20)/'R2建設IOデータ'!BV$232 -> 0.000709533772 | ER20: =+SUMIFS('R2建設IOデータ'!BW:BW,'R2建設IOデータ'!$A:$A,'R2建設io'!$CE20)/'R2建設IOデータ'!BW$232 -> 0.0006244502933 | ES20: =+SUMIFS('R2建設IOデータ'!BX:BX,'R2建設IOデータ'!$A:$A,'R2建設io'!$CE20)/'R2建設IOデータ'!BX$232 -> 0.006258886977 | ET20: =+SUMIFS('R2建設IOデータ'!BY:BY,'R2建設IOデータ'!$A:$A,'R2建設io'!$CE20)/'R2建設IOデータ'!BY$232 -> 0.004366325521 | EU20: =+SUMIFS('R2建設IOデータ'!BZ:BZ,'R2建設IOデータ'!$A:$A,'R2建設io'!$CE20)/'R2建設IOデータ'!BZ$232 -> 0.003743881351 | EV20: =+SUMIFS('R2建設IOデータ'!CA:CA,'R2建設IOデータ'!$A:$A,'R2建設io'!$CE20)/'R2建設IOデータ'!CA$232 -> 0.00321700571 | EW20: =+SUMIFS('R2建設IOデータ'!CB:CB,'R2建設IOデータ'!$A:$A,'R2建設io'!$CE20)/'R2建設IOデータ'!CB$232 -> 0.01611061976 | EX20: =+SUMIFS('R2建設IOデータ'!CC:CC,'R2建設IOデータ'!$A:$A,'R2建設io'!$CE20)/'R2建設IOデータ'!CC$232 -> 0.0003988930305 | EY20: =+SUMIFS('R2建設IOデータ'!CD:CD,'R2建設IOデータ'!$A:$A,'R2建設io'!$CE20)/'R2建設IOデータ'!CD$232 -> 0.006455279224
A21: 0 | C21: 30 | D21: 生産用機械 | E21: 0 | F21: 0 | G21: 0 | H21: 0 | I21: 0 | J21: 0 | K21: 0 | L21: 0 | M21: 0 | N21: 0 | O21: 0 | P21: 0 | Q21: 0 | R21: 0 | S21: 0 | T21: 0 | U21: 0 | V21: 0 | W21: 0 | X21: 0 | Y21: 0 | Z21: 0 | AA21: 0 | AB21: 0 | AC21: 0 | AD21: 0 | AE21: 0 | AF21: 0 | AG21: 0 | AH21: 0 | AI21: 0 | AJ21: 0 | AK21: 0 | AL21: 0 | AM21: 0 | AN21: 0 | AO21: 0 | AP21: 0 | AQ21: 0 | AR21: 0 | AS21: 0 | AT21: 0 | AU21: 0 | AV21: 0 | AW21: 0 | AX21: 0 | AY21: 0 | AZ21: 0 | BA21: 0 | BB21: 0 | BC21: 0 | BD21: 0 | BE21: 0 | BF21: 0 | BG21: 0 | BH21: 0 | BI21: 0 | BJ21: 0 | BK21: 0 | BL21: 0 | BM21: 0 | BN21: 0 | BO21: 0 | BP21: 0 | BQ21: 0 | BR21: 0 | BS21: 0 | BT21: 0 | BU21: 0 | BV21: 0 | BW21: 0 | CE21: 30 | CF21: 生産用機械 | CG21: =+SUMIFS('R2建設IOデータ'!L:L,'R2建設IOデータ'!$A:$A,'R2建設io'!$CE21)/'R2建設IOデータ'!L$232 -> 5.630127876e-05 | CH21: =+SUMIFS('R2建設IOデータ'!M:M,'R2建設IOデータ'!$A:$A,'R2建設io'!$CE21)/'R2建設IOデータ'!M$232 -> 2.358487808e-05 | CI21: =+SUMIFS('R2建設IOデータ'!N:N,'R2建設IOデータ'!$A:$A,'R2建設io'!$CE21)/'R2建設IOデータ'!N$232 -> 1.646132383e-05 | CJ21: =+SUMIFS('R2建設IOデータ'!O:O,'R2建設IOデータ'!$A:$A,'R2建設io'!$CE21)/'R2建設IOデータ'!O$232 -> 1.420715969e-05 | CK21: =+SUMIFS('R2建設IOデータ'!P:P,'R2建設IOデータ'!$A:$A,'R2建設io'!$CE21)/'R2建設IOデータ'!P$232 -> 1.418692358e-05 | CL21: =+SUMIFS('R2建設IOデータ'!Q:Q,'R2建設IOデータ'!$A:$A,'R2建設io'!$CE21)/'R2建設IOデータ'!Q$232 -> 1.512783016e-05 | CM21: =+SUMIFS('R2建設IOデータ'!R:R,'R2建設IOデータ'!$A:$A,'R2建設io'!$CE21)/'R2建設IOデータ'!R$232 -> 1.965255813e-05 | CN21: =+SUMIFS('R2建設IOデータ'!S:S,'R2建設IOデータ'!$A:$A,'R2建設io'!$CE21)/'R2建設IOデータ'!S$232 -> 2.671867903e-05 | CO21: =+SUMIFS('R2建設IOデータ'!T:T,'R2建設IOデータ'!$A:$A,'R2建設io'!$CE21)/'R2建設IOデータ'!T$232 -> 1.971078572e-05 | CP21: =+SUMIFS('R2建設IOデータ'!U:U,'R2建設IOデータ'!$A:$A,'R2建設io'!$CE21)/'R2建設IOデータ'!U$232 -> 1.972125712e-05 | CQ21: =+SUMIFS('R2建設IOデータ'!V:V,'R2建設IOデータ'!$A:$A,'R2建設io'!$CE21)/'R2建設IOデータ'!V$232 -> 1.895590856e-05 | CR21: =+SUMIFS('R2建設IOデータ'!W:W,'R2建設IOデータ'!$A:$A,'R2建設io'!$CE21)/'R2建設IOデータ'!W$232 -> 1.945070418e-05 | CS21: =+SUMIFS('R2建設IOデータ'!X:X,'R2建設IOデータ'!$A:$A,'R2建設io'!$CE21)/'R2建設IOデータ'!X$232 -> 1.630607592e-05 | CT21: =+SUMIFS('R2建設IOデータ'!Y:Y,'R2建設IOデータ'!$A:$A,'R2建設io'!$CE21)/'R2建設IOデータ'!Y$232 -> 2.074843532e-05 | CU21: =+SUMIFS('R2建設IOデータ'!Z:Z,'R2建設IOデータ'!$A:$A,'R2建設io'!$CE21)/'R2建設IOデータ'!Z$232 -> 1.578606722e-05 | CV21: =+SUMIFS('R2建設IOデータ'!AA:AA,'R2建設IOデータ'!$A:$A,'R2建設io'!$CE21)/'R2建設IOデータ'!AA$232 -> 3.103281597e-05 | CW21: =+SUMIFS('R2建設IOデータ'!AB:AB,'R2建設IOデータ'!$A:$A,'R2建設io'!$CE21)/'R2建設IOデータ'!AB$232 -> 2.298723268e-05 | CX21: =+SUMIFS('R2建設IOデータ'!AC:AC,'R2建設IOデータ'!$A:$A,'R2建設io'!$CE21)/'R2建設IOデータ'!AC$232 -> 2.795013696e-05 | CY21: =+SUMIFS('R2建設IOデータ'!AD:AD,'R2建設IOデータ'!$A:$A,'R2建設io'!$CE21)/'R2建設IOデータ'!AD$232 -> 2.236033324e-05 | CZ21: =+SUMIFS('R2建設IOデータ'!AE:AE,'R2建設IOデータ'!$A:$A,'R2建設io'!$CE21)/'R2建設IOデータ'!AE$232 -> 3.157924691e-05 | DA21: =+SUMIFS('R2建設IOデータ'!AF:AF,'R2建設IOデータ'!$A:$A,'R2建設io'!$CE21)/'R2建設IOデータ'!AF$232 -> 3.753922849e-05 | DB21: =+SUMIFS('R2建設IOデータ'!AG:AG,'R2建設IOデータ'!$A:$A,'R2建設io'!$CE21)/'R2建設IOデータ'!AG$232 -> 3.14066558e-05 | DC21: =+SUMIFS('R2建設IOデータ'!AH:AH,'R2建設IOデータ'!$A:$A,'R2建設io'!$CE21)/'R2建設IOデータ'!AH$232 -> 3.530614439e-05 | DD21: =+SUMIFS('R2建設IOデータ'!AI:AI,'R2建設IOデータ'!$A:$A,'R2建設io'!$CE21)/'R2建設IOデータ'!AI$232 -> 3.068149742e-05 | DE21: =+SUMIFS('R2建設IOデータ'!AJ:AJ,'R2建設IOデータ'!$A:$A,'R2建設io'!$CE21)/'R2建設IOデータ'!AJ$232 -> 3.328184919e-05 | DF21: =+SUMIFS('R2建設IOデータ'!AK:AK,'R2建設IOデータ'!$A:$A,'R2建設io'!$CE21)/'R2建設IOデータ'!AK$232 -> 3.019491062e-05 | DG21: =+SUMIFS('R2建設IOデータ'!AL:AL,'R2建設IOデータ'!$A:$A,'R2建設io'!$CE21)/'R2建設IOデータ'!AL$232 -> 3.124244152e-05 | DH21: =+SUMIFS('R2建設IOデータ'!AM:AM,'R2建設IOデータ'!$A:$A,'R2建設io'!$CE21)/'R2建設IOデータ'!AM$232 -> 3.764635019e-05 | DI21: =+SUMIFS('R2建設IOデータ'!AN:AN,'R2建設IOデータ'!$A:$A,'R2建設io'!$CE21)/'R2建設IOデータ'!AN$232 -> 0.0001081001087 | DJ21: =+SUMIFS('R2建設IOデータ'!AO:AO,'R2建設IOデータ'!$A:$A,'R2建設io'!$CE21)/'R2建設IOデータ'!AO$232 -> 7.749269078e-05 | DK21: =+SUMIFS('R2建設IOデータ'!AP:AP,'R2建設IOデータ'!$A:$A,'R2建設io'!$CE21)/'R2建設IOデータ'!AP$232 -> 0.0001247811695 | DL21: =+SUMIFS('R2建設IOデータ'!AQ:AQ,'R2建設IOデータ'!$A:$A,'R2建設io'!$CE21)/'R2建設IOデータ'!AQ$232 -> 0.0002373366768 | DM21: =+SUMIFS('R2建設IOデータ'!AR:AR,'R2建設IOデータ'!$A:$A,'R2建設io'!$CE21)/'R2建設IOデータ'!AR$232 -> 0.000238016513 | DN21: =+SUMIFS('R2建設IOデータ'!AS:AS,'R2建設IOデータ'!$A:$A,'R2建設io'!$CE21)/'R2建設IOデータ'!AS$232 -> 0.0002422910909 | DO21: =+SUMIFS('R2建設IOデータ'!AT:AT,'R2建設IOデータ'!$A:$A,'R2建設io'!$CE21)/'R2建設IOデータ'!AT$232 -> 0.0002301107679 | DP21: =+SUMIFS('R2建設IOデータ'!AU:AU,'R2建設IOデータ'!$A:$A,'R2建設io'!$CE21)/'R2建設IOデータ'!AU$232 -> 0.0002503727139 | DQ21: =+SUMIFS('R2建設IOデータ'!AV:AV,'R2建設IOデータ'!$A:$A,'R2建設io'!$CE21)/'R2建設IOデータ'!AV$232 -> 0.0001984526364 | DR21: =+SUMIFS('R2建設IOデータ'!AW:AW,'R2建設IOデータ'!$A:$A,'R2建設io'!$CE21)/'R2建設IOデータ'!AW$232 -> 0.0002617022604 | DS21: =+SUMIFS('R2建設IOデータ'!AX:AX,'R2建設IOデータ'!$A:$A,'R2建設io'!$CE21)/'R2建設IOデータ'!AX$232 -> 0.0002394099309 | DT21: =+SUMIFS('R2建設IOデータ'!AY:AY,'R2建設IOデータ'!$A:$A,'R2建設io'!$CE21)/'R2建設IOデータ'!AY$232 -> 0.0002208480565 | DU21: =+SUMIFS('R2建設IOデータ'!AZ:AZ,'R2建設IOデータ'!$A:$A,'R2建設io'!$CE21)/'R2建設IOデータ'!AZ$232 -> 0.0004370947767 | DV21: =+SUMIFS('R2建設IOデータ'!BA:BA,'R2建設IOデータ'!$A:$A,'R2建設io'!$CE21)/'R2建設IOデータ'!BA$232 -> 0.0002200422732 | DW21: =+SUMIFS('R2建設IOデータ'!BB:BB,'R2建設IOデータ'!$A:$A,'R2建設io'!$CE21)/'R2建設IOデータ'!BB$232 -> 0.0002197429697 | DX21: =+SUMIFS('R2建設IOデータ'!BC:BC,'R2建設IOデータ'!$A:$A,'R2建設io'!$CE21)/'R2建設IOデータ'!BC$232 -> 0.000219181862 | DY21: =+SUMIFS('R2建設IOデータ'!BD:BD,'R2建設IOデータ'!$A:$A,'R2建設io'!$CE21)/'R2建設IOデータ'!BD$232 -> 0.0001921943469 | DZ21: =+SUMIFS('R2建設IOデータ'!BE:BE,'R2建設IOデータ'!$A:$A,'R2建設io'!$CE21)/'R2建設IOデータ'!BE$232 -> 0.000321248279 | EA21: =+SUMIFS('R2建設IOデータ'!BF:BF,'R2建設IOデータ'!$A:$A,'R2建設io'!$CE21)/'R2建設IOデータ'!BF$232 -> 0.0002470813515 | EB21: =+SUMIFS('R2建設IOデータ'!BG:BG,'R2建設IOデータ'!$A:$A,'R2建設io'!$CE21)/'R2建設IOデータ'!BG$232 -> 0.0002229870571 | EC21: =+SUMIFS('R2建設IOデータ'!BH:BH,'R2建設IOデータ'!$A:$A,'R2建設io'!$CE21)/'R2建設IOデータ'!BH$232 -> 0.0002366779878 | ED21: =+SUMIFS('R2建設IOデータ'!BI:BI,'R2建設IOデータ'!$A:$A,'R2建設io'!$CE21)/'R2建設IOデータ'!BI$232 -> 0.0001609269392 | EE21: =+SUMIFS('R2建設IOデータ'!BJ:BJ,'R2建設IOデータ'!$A:$A,'R2建設io'!$CE21)/'R2建設IOデータ'!BJ$232 -> 0.0001964372486 | EF21: =+SUMIFS('R2建設IOデータ'!BK:BK,'R2建設IOデータ'!$A:$A,'R2建設io'!$CE21)/'R2建設IOデータ'!BK$232 -> 1.346021832e-05 | EG21: =+SUMIFS('R2建設IOデータ'!BL:BL,'R2建設IOデータ'!$A:$A,'R2建設io'!$CE21)/'R2建設IOデータ'!BL$232 -> 1.327767333e-05 | EH21: =+SUMIFS('R2建設IOデータ'!BM:BM,'R2建設IOデータ'!$A:$A,'R2建設io'!$CE21)/'R2建設IOデータ'!BM$232 -> 1.359256161e-05 | EI21: =+SUMIFS('R2建設IOデータ'!BN:BN,'R2建設IOデータ'!$A:$A,'R2建設io'!$CE21)/'R2建設IOデータ'!BN$232 -> 1.135570028e-05 | EJ21: =+SUMIFS('R2建設IOデータ'!BO:BO,'R2建設IOデータ'!$A:$A,'R2建設io'!$CE21)/'R2建設IOデータ'!BO$232 -> 1.137488199e-05 | EK21: =+SUMIFS('R2建設IOデータ'!BP:BP,'R2建設IOデータ'!$A:$A,'R2建設io'!$CE21)/'R2建設IOデータ'!BP$232 -> 1.375862781e-05 | EL21: =+SUMIFS('R2建設IOデータ'!BQ:BQ,'R2建設IOデータ'!$A:$A,'R2建設io'!$CE21)/'R2建設IOデータ'!BQ$232 -> 1.375692038e-05 | EM21: =+SUMIFS('R2建設IOデータ'!BR:BR,'R2建設IOデータ'!$A:$A,'R2建設io'!$CE21)/'R2建設IOデータ'!BR$232 -> 1.248194798e-05 | EN21: =+SUMIFS('R2建設IOデータ'!BS:BS,'R2建設IOデータ'!$A:$A,'R2建設io'!$CE21)/'R2建設IOデータ'!BS$232 -> 1.339566784e-05 | EO21: =+SUMIFS('R2建設IOデータ'!BT:BT,'R2建設IOデータ'!$A:$A,'R2建設io'!$CE21)/'R2建設IOデータ'!BT$232 -> 1.384855223e-05 | EP21: =+SUMIFS('R2建設IOデータ'!BU:BU,'R2建設IOデータ'!$A:$A,'R2建設io'!$CE21)/'R2建設IOデータ'!BU$232 -> 1.162202839e-05 | EQ21: =+SUMIFS('R2建設IOデータ'!BV:BV,'R2建設IOデータ'!$A:$A,'R2建設io'!$CE21)/'R2建設IOデータ'!BV$232 -> 1.440190336e-05 | ER21: =+SUMIFS('R2建設IOデータ'!BW:BW,'R2建設IOデータ'!$A:$A,'R2建設io'!$CE21)/'R2建設IOデータ'!BW$232 -> 0.0001349938963 | ES21: =+SUMIFS('R2建設IOデータ'!BX:BX,'R2建設IOデータ'!$A:$A,'R2建設io'!$CE21)/'R2建設IOデータ'!BX$232 -> 1.078179776e-05 | ET21: =+SUMIFS('R2建設IOデータ'!BY:BY,'R2建設IOデータ'!$A:$A,'R2建設io'!$CE21)/'R2建設IOデータ'!BY$232 -> 5.214301264e-06 | EU21: =+SUMIFS('R2建設IOデータ'!BZ:BZ,'R2建設IOデータ'!$A:$A,'R2建設io'!$CE21)/'R2建設IOデータ'!BZ$232 -> 7.466193697e-06 | EV21: =+SUMIFS('R2建設IOデータ'!CA:CA,'R2建設IOデータ'!$A:$A,'R2建設io'!$CE21)/'R2建設IOデータ'!CA$232 -> 1.998140193e-05 | EW21: =+SUMIFS('R2建設IOデータ'!CB:CB,'R2建設IOデータ'!$A:$A,'R2建設io'!$CE21)/'R2建設IOデータ'!CB$232 -> 1.483482482e-05 | EX21: =+SUMIFS('R2建設IOデータ'!CC:CC,'R2建設IOデータ'!$A:$A,'R2建設io'!$CE21)/'R2建設IOデータ'!CC$232 -> 1.158610462e-05 | EY21: =+SUMIFS('R2建設IOデータ'!CD:CD,'R2建設IOデータ'!$A:$A,'R2建設io'!$CE21)/'R2建設IOデータ'!CD$232 -> 1.235390598e-05
A22: 0 | C22: 31 | D22: 業務用機械 | E22: 0 | F22: 0 | G22: 0 | H22: 0 | I22: 0 | J22: 0 | K22: 0 | L22: 0 | M22: 0 | N22: 0 | O22: 0 | P22: 0 | Q22: 0 | R22: 0 | S22: 0 | T22: 0 | U22: 0 | V22: 0 | W22: 0 | X22: 0 | Y22: 0 | Z22: 0 | AA22: 0 | AB22: 0 | AC22: 0 | AD22: 0 | AE22: 0 | AF22: 0 | AG22: 0 | AH22: 0 | AI22: 0 | AJ22: 0 | AK22: 0 | AL22: 0 | AM22: 0 | AN22: 0 | AO22: 0 | AP22: 0 | AQ22: 0 | AR22: 0 | AS22: 0 | AT22: 0 | AU22: 0 | AV22: 0 | AW22: 0 | AX22: 0 | AY22: 0 | AZ22: 0 | BA22: 0 | BB22: 0 | BC22: 0 | BD22: 0 | BE22: 0 | BF22: 0 | BG22: 0 | BH22: 0 | BI22: 0 | BJ22: 0 | BK22: 0 | BL22: 0 | BM22: 0 | BN22: 0 | BO22: 0 | BP22: 0 | BQ22: 0 | BR22: 0 | BS22: 0 | BT22: 0 | BU22: 0 | BV22: 0 | BW22: 0 | CE22: 31 | CF22: 業務用機械 | CG22: =+SUMIFS('R2建設IOデータ'!L:L,'R2建設IOデータ'!$A:$A,'R2建設io'!$CE22)/'R2建設IOデータ'!L$232 -> 0.0001896530363 | CH22: =+SUMIFS('R2建設IOデータ'!M:M,'R2建設IOデータ'!$A:$A,'R2建設io'!$CE22)/'R2建設IOデータ'!M$232 -> 0.0003746617064 | CI22: =+SUMIFS('R2建設IOデータ'!N:N,'R2建設IOデータ'!$A:$A,'R2建設io'!$CE22)/'R2建設IOデータ'!N$232 -> 0.0001114158327 | CJ22: =+SUMIFS('R2建設IOデータ'!O:O,'R2建設IOデータ'!$A:$A,'R2建設io'!$CE22)/'R2建設IOデータ'!O$232 -> 0.0001074755363 | CK22: =+SUMIFS('R2建設IOデータ'!P:P,'R2建設IOデータ'!$A:$A,'R2建設io'!$CE22)/'R2建設IOデータ'!P$232 -> 0.0001082861276 | CL22: =+SUMIFS('R2建設IOデータ'!Q:Q,'R2建設IOデータ'!$A:$A,'R2建設io'!$CE22)/'R2建設IOデータ'!Q$232 -> 7.059654077e-05 | CM22: =+SUMIFS('R2建設IOデータ'!R:R,'R2建設IOデータ'!$A:$A,'R2建設io'!$CE22)/'R2建設IOデータ'!R$232 -> 0.0001169941351 | CN22: =+SUMIFS('R2建設IOデータ'!S:S,'R2建設IOデータ'!$A:$A,'R2建設io'!$CE22)/'R2建設IOデータ'!S$232 -> 0.0008282790499 | CO22: =+SUMIFS('R2建設IOデータ'!T:T,'R2建設IOデータ'!$A:$A,'R2建設io'!$CE22)/'R2建設IOデータ'!T$232 -> 0.0001060751494 | CP22: =+SUMIFS('R2建設IOデータ'!U:U,'R2建設IOデータ'!$A:$A,'R2建設io'!$CE22)/'R2建設IOデータ'!U$232 -> 0.0001064947885 | CQ22: =+SUMIFS('R2建設IOデータ'!V:V,'R2建設IOデータ'!$A:$A,'R2建設io'!$CE22)/'R2建設IOデータ'!V$232 -> 7.582363423e-05 | CR22: =+SUMIFS('R2建設IOデータ'!W:W,'R2建設IOデータ'!$A:$A,'R2建設io'!$CE22)/'R2建設IOデータ'!W$232 -> 0.0001143225062 | CS22: =+SUMIFS('R2建設IOデータ'!X:X,'R2建設IOデータ'!$A:$A,'R2建設io'!$CE22)/'R2建設IOデータ'!X$232 -> 0.0002622560543 | CT22: =+SUMIFS('R2建設IOデータ'!Y:Y,'R2建設IOデータ'!$A:$A,'R2建設io'!$CE22)/'R2建設IOデータ'!Y$232 -> 5.327300959e-05 | CU22: =+SUMIFS('R2建設IOデータ'!Z:Z,'R2建設IOデータ'!$A:$A,'R2建設io'!$CE22)/'R2建設IOデータ'!Z$232 -> 4.735820165e-05 | CV22: =+SUMIFS('R2建設IOデータ'!AA:AA,'R2建設IOデータ'!$A:$A,'R2建設io'!$CE22)/'R2建設IOデータ'!AA$232 -> 0.0006498949469 | CW22: =+SUMIFS('R2建設IOデータ'!AB:AB,'R2建設IOデータ'!$A:$A,'R2建設io'!$CE22)/'R2建設IOデータ'!AB$232 -> 0.0001212054087 | CX22: =+SUMIFS('R2建設IOデータ'!AC:AC,'R2建設IOデータ'!$A:$A,'R2建設io'!$CE22)/'R2建設IOデータ'!AC$232 -> 4.658356159e-05 | CY22: =+SUMIFS('R2建設IOデータ'!AD:AD,'R2建設IOデータ'!$A:$A,'R2建設io'!$CE22)/'R2建設IOデータ'!AD$232 -> 0.0001306314205 | CZ22: =+SUMIFS('R2建設IOデータ'!AE:AE,'R2建設IOデータ'!$A:$A,'R2建設io'!$CE22)/'R2建設IOデータ'!AE$232 -> 0.0006858018925 | DA22: =+SUMIFS('R2建設IOデータ'!AF:AF,'R2建設IOデータ'!$A:$A,'R2建設io'!$CE22)/'R2建設IOデータ'!AF$232 -> 0.000848386564 | DB22: =+SUMIFS('R2建設IOデータ'!AG:AG,'R2建設IOデータ'!$A:$A,'R2建設io'!$CE22)/'R2建設IOデータ'!AG$232 -> 0.001048499124 | DC22: =+SUMIFS('R2建設IOデータ'!AH:AH,'R2建設IOデータ'!$A:$A,'R2建設io'!$CE22)/'R2建設IOデータ'!AH$232 -> 4.172544337e-05 | DD22: =+SUMIFS('R2建設IOデータ'!AI:AI,'R2建設IOデータ'!$A:$A,'R2建設io'!$CE22)/'R2建設IOデータ'!AI$232 -> 0.0006934018417 | DE22: =+SUMIFS('R2建設IOデータ'!AJ:AJ,'R2建設IOデータ'!$A:$A,'R2建設io'!$CE22)/'R2建設IOデータ'!AJ$232 -> 0.0005760636119 | DF22: =+SUMIFS('R2建設IOデータ'!AK:AK,'R2建設IOデータ'!$A:$A,'R2建設io'!$CE22)/'R2建設IOデータ'!AK$232 -> 0.0006259256473 | DG22: =+SUMIFS('R2建設IOデータ'!AL:AL,'R2建設IOデータ'!$A:$A,'R2建設io'!$CE22)/'R2建設IOデータ'!AL$232 -> 0.0008183116413 | DH22: =+SUMIFS('R2建設IOデータ'!AM:AM,'R2建設IOデータ'!$A:$A,'R2建設io'!$CE22)/'R2建設IOデータ'!AM$232 -> 0.000406580582 | DI22: =+SUMIFS('R2建設IOデータ'!AN:AN,'R2建設IOデータ'!$A:$A,'R2建設io'!$CE22)/'R2建設IOデータ'!AN$232 -> 0 | DJ22: =+SUMIFS('R2建設IOデータ'!AO:AO,'R2建設IOデータ'!$A:$A,'R2建設io'!$CE22)/'R2建設IOデータ'!AO$232 -> 2.315924416e-05 | DK22: =+SUMIFS('R2建設IOデータ'!AP:AP,'R2建設IOデータ'!$A:$A,'R2建設io'!$CE22)/'R2建設IOデータ'!AP$232 -> 3.957583483e-05 | DL22: =+SUMIFS('R2建設IOデータ'!AQ:AQ,'R2建設IOデータ'!$A:$A,'R2建設io'!$CE22)/'R2建設IOデータ'!AQ$232 -> 3.56681188e-05 | DM22: =+SUMIFS('R2建設IOデータ'!AR:AR,'R2建設IOデータ'!$A:$A,'R2建設io'!$CE22)/'R2建設IOデータ'!AR$232 -> 3.626099946e-05 | DN22: =+SUMIFS('R2建設IOデータ'!AS:AS,'R2建設IOデータ'!$A:$A,'R2建設io'!$CE22)/'R2建設IOデータ'!AS$232 -> 4.169363813e-05 | DO22: =+SUMIFS('R2建設IOデータ'!AT:AT,'R2建設IOデータ'!$A:$A,'R2建設io'!$CE22)/'R2建設IOデータ'!AT$232 -> 4.333924776e-05 | DP22: =+SUMIFS('R2建設IOデータ'!AU:AU,'R2建設IOデータ'!$A:$A,'R2建設io'!$CE22)/'R2建設IOデータ'!AU$232 -> 4.552231162e-05 | DQ22: =+SUMIFS('R2建設IOデータ'!AV:AV,'R2建設IOデータ'!$A:$A,'R2建設io'!$CE22)/'R2建設IOデータ'!AV$232 -> 3.969052729e-05 | DR22: =+SUMIFS('R2建設IOデータ'!AW:AW,'R2建設IOデータ'!$A:$A,'R2建設io'!$CE22)/'R2建設IOデータ'!AW$232 -> 4.929862221e-05 | DS22: =+SUMIFS('R2建設IOデータ'!AX:AX,'R2建設IOデータ'!$A:$A,'R2建設io'!$CE22)/'R2建設IOデータ'!AX$232 -> 0 | DT22: =+SUMIFS('R2建設IOデータ'!AY:AY,'R2建設IOデータ'!$A:$A,'R2建設io'!$CE22)/'R2建設IOデータ'!AY$232 -> 0 | DU22: =+SUMIFS('R2建設IOデータ'!AZ:AZ,'R2建設IOデータ'!$A:$A,'R2建設io'!$CE22)/'R2建設IOデータ'!AZ$232 -> 0 | DV22: =+SUMIFS('R2建設IOデータ'!BA:BA,'R2建設IOデータ'!$A:$A,'R2建設io'!$CE22)/'R2建設IOデータ'!BA$232 -> 1.341721178e-05 | DW22: =+SUMIFS('R2建設IOデータ'!BB:BB,'R2建設IOデータ'!$A:$A,'R2建設io'!$CE22)/'R2建設IOデータ'!BB$232 -> 1.379552276e-05 | DX22: =+SUMIFS('R2建設IOデータ'!BC:BC,'R2建設IOデータ'!$A:$A,'R2建設io'!$CE22)/'R2建設IOデータ'!BC$232 -> 1.446377769e-05 | DY22: =+SUMIFS('R2建設IOデータ'!BD:BD,'R2建設IOデータ'!$A:$A,'R2建設io'!$CE22)/'R2建設IOデータ'!BD$232 -> 1.281295646e-05 | DZ22: =+SUMIFS('R2建設IOデータ'!BE:BE,'R2建設IOデータ'!$A:$A,'R2建設io'!$CE22)/'R2建設IOデータ'!BE$232 -> 0 | EA22: =+SUMIFS('R2建設IOデータ'!BF:BF,'R2建設IOデータ'!$A:$A,'R2建設io'!$CE22)/'R2建設IOデータ'!BF$232 -> 0 | EB22: =+SUMIFS('R2建設IOデータ'!BG:BG,'R2建設IOデータ'!$A:$A,'R2建設io'!$CE22)/'R2建設IOデータ'!BG$232 -> 9.695089437e-06 | EC22: =+SUMIFS('R2建設IOデータ'!BH:BH,'R2建設IOデータ'!$A:$A,'R2建設io'!$CE22)/'R2建設IOデータ'!BH$232 -> 1.183389939e-05 | ED22: =+SUMIFS('R2建設IOデータ'!BI:BI,'R2建設IOデータ'!$A:$A,'R2建設io'!$CE22)/'R2建設IOデータ'!BI$232 -> 0 | EE22: =+SUMIFS('R2建設IOデータ'!BJ:BJ,'R2建設IOデータ'!$A:$A,'R2建設io'!$CE22)/'R2建設IOデータ'!BJ$232 -> 0 | EF22: =+SUMIFS('R2建設IOデータ'!BK:BK,'R2建設IOデータ'!$A:$A,'R2建設io'!$CE22)/'R2建設IOデータ'!BK$232 -> 3.200905577e-05 | EG22: =+SUMIFS('R2建設IOデータ'!BL:BL,'R2建設IOデータ'!$A:$A,'R2建設io'!$CE22)/'R2建設IOデータ'!BL$232 -> 0 | EH22: =+SUMIFS('R2建設IOデータ'!BM:BM,'R2建設IOデータ'!$A:$A,'R2建設io'!$CE22)/'R2建設IOデータ'!BM$232 -> 0 | EI22: =+SUMIFS('R2建設IOデータ'!BN:BN,'R2建設IOデータ'!$A:$A,'R2建設io'!$CE22)/'R2建設IOデータ'!BN$232 -> 0 | EJ22: =+SUMIFS('R2建設IOデータ'!BO:BO,'R2建設IOデータ'!$A:$A,'R2建設io'!$CE22)/'R2建設IOデータ'!BO$232 -> 0 | EK22: =+SUMIFS('R2建設IOデータ'!BP:BP,'R2建設IOデータ'!$A:$A,'R2建設io'!$CE22)/'R2建設IOデータ'!BP$232 -> 0 | EL22: =+SUMIFS('R2建設IOデータ'!BQ:BQ,'R2建設IOデータ'!$A:$A,'R2建設io'!$CE22)/'R2建設IOデータ'!BQ$232 -> 0.0001109151705 | EM22: =+SUMIFS('R2建設IOデータ'!BR:BR,'R2建設IOデータ'!$A:$A,'R2建設io'!$CE22)/'R2建設IOデータ'!BR$232 -> 0 | EN22: =+SUMIFS('R2建設IOデータ'!BS:BS,'R2建設IOデータ'!$A:$A,'R2建設io'!$CE22)/'R2建設IOデータ'!BS$232 -> 0 | EO22: =+SUMIFS('R2建設IOデータ'!BT:BT,'R2建設IOデータ'!$A:$A,'R2建設io'!$CE22)/'R2建設IOデータ'!BT$232 -> 0.0001305720639 | EP22: =+SUMIFS('R2建設IOデータ'!BU:BU,'R2建設IOデータ'!$A:$A,'R2建設io'!$CE22)/'R2建設IOデータ'!BU$232 -> 0 | EQ22: =+SUMIFS('R2建設IOデータ'!BV:BV,'R2建設IOデータ'!$A:$A,'R2建設io'!$CE22)/'R2建設IOデータ'!BV$232 -> 0 | ER22: =+SUMIFS('R2建設IOデータ'!BW:BW,'R2建設IOデータ'!$A:$A,'R2建設io'!$CE22)/'R2建設IOデータ'!BW$232 -> 9.68974593e-05 | ES22: =+SUMIFS('R2建設IOデータ'!BX:BX,'R2建設IOデータ'!$A:$A,'R2建設io'!$CE22)/'R2建設IOデータ'!BX$232 -> 0 | ET22: =+SUMIFS('R2建設IOデータ'!BY:BY,'R2建設IOデータ'!$A:$A,'R2建設io'!$CE22)/'R2建設IOデータ'!BY$232 -> 0 | EU22: =+SUMIFS('R2建設IOデータ'!BZ:BZ,'R2建設IOデータ'!$A:$A,'R2建設io'!$CE22)/'R2建設IOデータ'!BZ$232 -> 0 | EV22: =+SUMIFS('R2建設IOデータ'!CA:CA,'R2建設IOデータ'!$A:$A,'R2建設io'!$CE22)/'R2建設IOデータ'!CA$232 -> 0 | EW22: =+SUMIFS('R2建設IOデータ'!CB:CB,'R2建設IOデータ'!$A:$A,'R2建設io'!$CE22)/'R2建設IOデータ'!CB$232 -> 0 | EX22: =+SUMIFS('R2建設IOデータ'!CC:CC,'R2建設IOデータ'!$A:$A,'R2建設io'!$CE22)/'R2建設IOデータ'!CC$232 -> 0 | EY22: =+SUMIFS('R2建設IOデータ'!CD:CD,'R2建設IOデータ'!$A:$A,'R2建設io'!$CE22)/'R2建設IOデータ'!CD$232 -> 0
A23: 0 | C23: 32 | D23: 電子部品 | E23: 0 | F23: 0 | G23: 0 | H23: 0 | I23: 0 | J23: 0 | K23: 0 | L23: 0 | M23: 0 | N23: 0 | O23: 0 | P23: 0 | Q23: 0 | R23: 0 | S23: 0 | T23: 0 | U23: =U$56*CW23 -> 0 | V23: 0 | W23: 0 | X23: 0 | Y23: 0 | Z23: 0 | AA23: 0 | AB23: 0 | AC23: 0 | AD23: 0 | AE23: 0 | AF23: 0 | AG23: 0 | AH23: 0 | AI23: 0 | AJ23: 0 | AK23: =AK$56*DM23 -> 0 | AL23: 0 | AM23: 0 | AN23: 0 | AO23: 0 | AP23: 0 | AQ23: 0 | AR23: 0 | AS23: 0 | AT23: 0 | AU23: 0 | AV23: 0 | AW23: 0 | AX23: 0 | AY23: 0 | AZ23: 0 | BA23: =BA$56*EC23 -> 0 | BB23: 0 | BC23: 0 | BD23: 0 | BE23: 0 | BF23: 0 | BG23: 0 | BH23: 0 | BI23: 0 | BJ23: 0 | BK23: 0 | BL23: 0 | BM23: 0 | BN23: 0 | BO23: 0 | BP23: 0 | BQ23: =BQ$56*ES23 -> 0 | BR23: 0 | BS23: 0 | BT23: 0 | BU23: 0 | BV23: 0 | BW23: 0 | CE23: 32 | CF23: 電子部品 | CG23: =+SUMIFS('R2建設IOデータ'!L:L,'R2建設IOデータ'!$A:$A,'R2建設io'!$CE23)/'R2建設IOデータ'!L$232 -> 0.0003535072189 | CH23: =+SUMIFS('R2建設IOデータ'!M:M,'R2建設IOデータ'!$A:$A,'R2建設io'!$CE23)/'R2建設IOデータ'!M$232 -> 0.0006342577956 | CI23: =+SUMIFS('R2建設IOデータ'!N:N,'R2建設IOデータ'!$A:$A,'R2建設io'!$CE23)/'R2建設IOデータ'!N$232 -> 0.0007754618228 | CJ23: =+SUMIFS('R2建設IOデータ'!O:O,'R2建設IOデータ'!$A:$A,'R2建設io'!$CE23)/'R2建設IOデータ'!O$232 -> 0.0005347748431 | CK23: =+SUMIFS('R2建設IOデータ'!P:P,'R2建設IOデータ'!$A:$A,'R2建設io'!$CE23)/'R2建設IOデータ'!P$232 -> 0.0005346696824 | CL23: =+SUMIFS('R2建設IOデータ'!Q:Q,'R2建設IOデータ'!$A:$A,'R2建設io'!$CE23)/'R2建設IOデータ'!Q$232 -> 0.0005395592759 | CM23: =+SUMIFS('R2建設IOデータ'!R:R,'R2建設IOデータ'!$A:$A,'R2建設io'!$CE23)/'R2建設IOデータ'!R$232 -> 0.001116203887 | CN23: =+SUMIFS('R2建設IOデータ'!S:S,'R2建設IOデータ'!$A:$A,'R2建設io'!$CE23)/'R2建設IOデータ'!S$232 -> 0.00164319876 | CO23: =+SUMIFS('R2建設IOデータ'!T:T,'R2建設IOデータ'!$A:$A,'R2建設io'!$CE23)/'R2建設IOデータ'!T$232 -> 0.001395056794 | CP23: =+SUMIFS('R2建設IOデータ'!U:U,'R2建設IOデータ'!$A:$A,'R2建設io'!$CE23)/'R2建設IOデータ'!U$232 -> 0.001405205307 | CQ23: =+SUMIFS('R2建設IOデータ'!V:V,'R2建設IOデータ'!$A:$A,'R2建設io'!$CE23)/'R2建設IOデータ'!V$232 -> 0.0006634567995 | CR23: =+SUMIFS('R2建設IOデータ'!W:W,'R2建設IOデータ'!$A:$A,'R2建設io'!$CE23)/'R2建設IOデータ'!W$232 -> 0.0006712477706 | CS23: =+SUMIFS('R2建設IOデータ'!X:X,'R2建設IOデータ'!$A:$A,'R2建設io'!$CE23)/'R2建設IOデータ'!X$232 -> 0.0004674408429 | CT23: =+SUMIFS('R2建設IOデータ'!Y:Y,'R2建設IOデータ'!$A:$A,'R2建設io'!$CE23)/'R2建設IOデータ'!Y$232 -> 0.0007553551992 | CU23: =+SUMIFS('R2建設IOデータ'!Z:Z,'R2建設IOデータ'!$A:$A,'R2建設io'!$CE23)/'R2建設IOデータ'!Z$232 -> 0.001215527176 | CV23: =+SUMIFS('R2建設IOデータ'!AA:AA,'R2建設IOデータ'!$A:$A,'R2建設io'!$CE23)/'R2建設IOデータ'!AA$232 -> 0.0004866237931 | CW23: =+SUMIFS('R2建設IOデータ'!AB:AB,'R2建設IOデータ'!$A:$A,'R2建設io'!$CE23)/'R2建設IOデータ'!AB$232 -> 0.0004816870121 | CX23: =+SUMIFS('R2建設IOデータ'!AC:AC,'R2建設IOデータ'!$A:$A,'R2建設io'!$CE23)/'R2建設IOデータ'!AC$232 -> 0.0002515512326 | CY23: =+SUMIFS('R2建設IOデータ'!AD:AD,'R2建設IOデータ'!$A:$A,'R2建設io'!$CE23)/'R2建設IOデータ'!AD$232 -> 0.0005107570856 | CZ23: =+SUMIFS('R2建設IOデータ'!AE:AE,'R2建設IOデータ'!$A:$A,'R2建設io'!$CE23)/'R2建設IOデータ'!AE$232 -> 0.0004869590839 | DA23: =+SUMIFS('R2建設IOデータ'!AF:AF,'R2建設IOデータ'!$A:$A,'R2建設io'!$CE23)/'R2建設IOデータ'!AF$232 -> 0.0001126176855 | DB23: =+SUMIFS('R2建設IOデータ'!AG:AG,'R2建設IOデータ'!$A:$A,'R2建設io'!$CE23)/'R2建設IOデータ'!AG$232 -> 0.0003913752491 | DC23: =+SUMIFS('R2建設IOデータ'!AH:AH,'R2建設IOデータ'!$A:$A,'R2建設io'!$CE23)/'R2建設IOデータ'!AH$232 -> 0.0001444342271 | DD23: =+SUMIFS('R2建設IOデータ'!AI:AI,'R2建設IOデータ'!$A:$A,'R2建設io'!$CE23)/'R2建設IOデータ'!AI$232 -> 0.0009470355537 | DE23: =+SUMIFS('R2建設IOデータ'!AJ:AJ,'R2建設IOデータ'!$A:$A,'R2建設io'!$CE23)/'R2建設IOデータ'!AJ$232 -> 0.0008230067151 | DF23: =+SUMIFS('R2建設IOデータ'!AK:AK,'R2建設IOデータ'!$A:$A,'R2建設io'!$CE23)/'R2建設IOデータ'!AK$232 -> 0.000241559285 | DG23: =+SUMIFS('R2建設IOデータ'!AL:AL,'R2建設IOデータ'!$A:$A,'R2建設io'!$CE23)/'R2建設IOデータ'!AL$232 -> 0.0005151569615 | DH23: =+SUMIFS('R2建設IOデータ'!AM:AM,'R2建設IOデータ'!$A:$A,'R2建設io'!$CE23)/'R2建設IOデータ'!AM$232 -> 0.001144449046 | DI23: =+SUMIFS('R2建設IOデータ'!AN:AN,'R2建設IOデータ'!$A:$A,'R2建設io'!$CE23)/'R2建設IOデータ'!AN$232 -> 0.0002133580569 | DJ23: =+SUMIFS('R2建設IOデータ'!AO:AO,'R2建設IOデータ'!$A:$A,'R2建設io'!$CE23)/'R2建設IOデータ'!AO$232 -> 3.414106548e-05 | DK23: =+SUMIFS('R2建設IOデータ'!AP:AP,'R2建設IOデータ'!$A:$A,'R2建設io'!$CE23)/'R2建設IOデータ'!AP$232 -> 5.054810261e-05 | DL23: =+SUMIFS('R2建設IOデータ'!AQ:AQ,'R2建設IOデータ'!$A:$A,'R2建設io'!$CE23)/'R2建設IOデータ'!AQ$232 -> 3.26253409e-05 | DM23: =+SUMIFS('R2建設IOデータ'!AR:AR,'R2建設IOデータ'!$A:$A,'R2建設io'!$CE23)/'R2建設IOデータ'!AR$232 -> 3.265208482e-05 | DN23: =+SUMIFS('R2建設IOデータ'!AS:AS,'R2建設IOデータ'!$A:$A,'R2建設io'!$CE23)/'R2建設IOデータ'!AS$232 -> 3.297200974e-05 | DO23: =+SUMIFS('R2建設IOデータ'!AT:AT,'R2建設IOデータ'!$A:$A,'R2建設io'!$CE23)/'R2建設IOデータ'!AT$232 -> 3.19884924e-05 | DP23: =+SUMIFS('R2建設IOデータ'!AU:AU,'R2建設IOデータ'!$A:$A,'R2建設io'!$CE23)/'R2建設IOデータ'!AU$232 -> 3.414173372e-05 | DQ23: =+SUMIFS('R2建設IOデータ'!AV:AV,'R2建設IOデータ'!$A:$A,'R2建設io'!$CE23)/'R2建設IOデータ'!AV$232 -> 2.551533897e-05 | DR23: =+SUMIFS('R2建設IOデータ'!AW:AW,'R2建設IOデータ'!$A:$A,'R2建設io'!$CE23)/'R2建設IOデータ'!AW$232 -> 3.513837966e-05 | DS23: =+SUMIFS('R2建設IOデータ'!AX:AX,'R2建設IOデータ'!$A:$A,'R2建設io'!$CE23)/'R2建設IOデータ'!AX$232 -> 3.310988406e-05 | DT23: =+SUMIFS('R2建設IOデータ'!AY:AY,'R2建設IOデータ'!$A:$A,'R2建設io'!$CE23)/'R2建設IOデータ'!AY$232 -> 0 | DU23: =+SUMIFS('R2建設IOデータ'!AZ:AZ,'R2建設IOデータ'!$A:$A,'R2建設io'!$CE23)/'R2建設IOデータ'!AZ$232 -> 7.284912945e-05 | DV23: =+SUMIFS('R2建設IOデータ'!BA:BA,'R2建設IOデータ'!$A:$A,'R2建設io'!$CE23)/'R2建設IOデータ'!BA$232 -> 3.130682748e-05 | DW23: =+SUMIFS('R2建設IOデータ'!BB:BB,'R2建設IOデータ'!$A:$A,'R2建設io'!$CE23)/'R2建設IOデータ'!BB$232 -> 3.054722897e-05 | DX23: =+SUMIFS('R2建設IOデータ'!BC:BC,'R2建設IOデータ'!$A:$A,'R2建設io'!$CE23)/'R2建設IOデータ'!BC$232 -> 3.004015367e-05 | DY23: =+SUMIFS('R2建設IOデータ'!BD:BD,'R2建設IOデータ'!$A:$A,'R2建設io'!$CE23)/'R2建設IOデータ'!BD$232 -> 2.562591292e-05 | DZ23: =+SUMIFS('R2建設IOデータ'!BE:BE,'R2建設IOデータ'!$A:$A,'R2建設io'!$CE23)/'R2建設IOデータ'!BE$232 -> 4.589261129e-05 | EA23: =+SUMIFS('R2建設IOデータ'!BF:BF,'R2建設IOデータ'!$A:$A,'R2建設io'!$CE23)/'R2建設IOデータ'!BF$232 -> 6.177033788e-05 | EB23: =+SUMIFS('R2建設IOデータ'!BG:BG,'R2建設IOデータ'!$A:$A,'R2建設io'!$CE23)/'R2建設IOデータ'!BG$232 -> 3.878035775e-05 | EC23: =+SUMIFS('R2建設IOデータ'!BH:BH,'R2建設IOデータ'!$A:$A,'R2建設io'!$CE23)/'R2建設IOデータ'!BH$232 -> 3.550169816e-05 | ED23: =+SUMIFS('R2建設IOデータ'!BI:BI,'R2建設IOデータ'!$A:$A,'R2建設io'!$CE23)/'R2建設IOデータ'!BI$232 -> 5.364231306e-05 | EE23: =+SUMIFS('R2建設IOデータ'!BJ:BJ,'R2建設IOデータ'!$A:$A,'R2建設io'!$CE23)/'R2建設IOデータ'!BJ$232 -> 3.101640768e-05 | EF23: =+SUMIFS('R2建設IOデータ'!BK:BK,'R2建設IOデータ'!$A:$A,'R2建設io'!$CE23)/'R2建設IOデータ'!BK$232 -> 5.154278724e-05 | EG23: =+SUMIFS('R2建設IOデータ'!BL:BL,'R2建設IOデータ'!$A:$A,'R2建設io'!$CE23)/'R2建設IOデータ'!BL$232 -> 5.178292597e-05 | EH23: =+SUMIFS('R2建設IOデータ'!BM:BM,'R2建設IOデータ'!$A:$A,'R2建設io'!$CE23)/'R2建設IOデータ'!BM$232 -> 5.301099027e-05 | EI23: =+SUMIFS('R2建設IOデータ'!BN:BN,'R2建設IOデータ'!$A:$A,'R2建設io'!$CE23)/'R2建設IOデータ'!BN$232 -> 5.110065125e-05 | EJ23: =+SUMIFS('R2建設IOデータ'!BO:BO,'R2建設IOデータ'!$A:$A,'R2建設io'!$CE23)/'R2建設IOデータ'!BO$232 -> 4.549952794e-05 | EK23: =+SUMIFS('R2建設IOデータ'!BP:BP,'R2建設IOデータ'!$A:$A,'R2建設io'!$CE23)/'R2建設IOデータ'!BP$232 -> 5.044830196e-05 | EL23: =+SUMIFS('R2建設IOデータ'!BQ:BQ,'R2建設IOデータ'!$A:$A,'R2建設io'!$CE23)/'R2建設IOデータ'!BQ$232 -> 5.158845141e-05 | EM23: =+SUMIFS('R2建設IOデータ'!BR:BR,'R2建設IOデータ'!$A:$A,'R2建設io'!$CE23)/'R2建設IOデータ'!BR$232 -> 4.867959713e-05 | EN23: =+SUMIFS('R2建設IOデータ'!BS:BS,'R2建設IOデータ'!$A:$A,'R2建設io'!$CE23)/'R2建設IOデータ'!BS$232 -> 4.688483744e-05 | EO23: =+SUMIFS('R2建設IOデータ'!BT:BT,'R2建設IOデータ'!$A:$A,'R2建設io'!$CE23)/'R2建設IOデータ'!BT$232 -> 4.748075051e-05 | EP23: =+SUMIFS('R2建設IOデータ'!BU:BU,'R2建設IOデータ'!$A:$A,'R2建設io'!$CE23)/'R2建設IOデータ'!BU$232 -> 5.229912777e-05 | EQ23: =+SUMIFS('R2建設IOデータ'!BV:BV,'R2建設IOデータ'!$A:$A,'R2建設io'!$CE23)/'R2建設IOデータ'!BV$232 -> 5.568735964e-05 | ER23: =+SUMIFS('R2建設IOデータ'!BW:BW,'R2建設IOデータ'!$A:$A,'R2建設io'!$CE23)/'R2建設IOデータ'!BW$232 -> 0.0001333375295 | ES23: =+SUMIFS('R2建設IOデータ'!BX:BX,'R2建設IOデータ'!$A:$A,'R2建設io'!$CE23)/'R2建設IOデータ'!BX$232 -> 1.099529871e-05 | ET23: =+SUMIFS('R2建設IOデータ'!BY:BY,'R2建設IOデータ'!$A:$A,'R2建設io'!$CE23)/'R2建設IOデータ'!BY$232 -> 1.759826677e-05 | EU23: =+SUMIFS('R2建設IOデータ'!BZ:BZ,'R2建設IOデータ'!$A:$A,'R2建設io'!$CE23)/'R2建設IOデータ'!BZ$232 -> 2.405773525e-05 | EV23: =+SUMIFS('R2建設IOデータ'!CA:CA,'R2建設IOデータ'!$A:$A,'R2建設io'!$CE23)/'R2建設IOデータ'!CA$232 -> 1.998140193e-05 | EW23: =+SUMIFS('R2建設IOデータ'!CB:CB,'R2建設IOデータ'!$A:$A,'R2建設io'!$CE23)/'R2建設IOデータ'!CB$232 -> 7.064202296e-07 | EX23: =+SUMIFS('R2建設IOデータ'!CC:CC,'R2建設IOデータ'!$A:$A,'R2建設io'!$CE23)/'R2建設IOデータ'!CC$232 -> 0 | EY23: =+SUMIFS('R2建設IOデータ'!CD:CD,'R2建設IOデータ'!$A:$A,'R2建設io'!$CE23)/'R2建設IOデータ'!CD$232 -> 1.453400703e-06
A24: 0 | C24: 33 | D24: 電気機械 | E24: 0 | F24: 0 | G24: 0 | H24: 0 | I24: 0 | J24: 0 | K24: 0 | L24: 0 | M24: 0 | N24: 0 | O24: 0 | P24: 0 | Q24: 0 | R24: 0 | S24: 0 | T24: 0 | U24: 0 | V24: 0 | W24: 0 | X24: 0 | Y24: 0 | Z24: 0 | AA24: 0 | AB24: 0 | AC24: 0 | AD24: 0 | AE24: 0 | AF24: 0 | AG24: 0 | AH24: 0 | AI24: 0 | AJ24: 0 | AK24: 0 | AL24: 0 | AM24: 0 | AN24: 0 | AO24: 0 | AP24: 0 | AQ24: 0 | AR24: 0 | AS24: 0 | AT24: 0 | AU24: 0 | AV24: 0 | AW24: 0 | AX24: 0 | AY24: 0 | AZ24: 0 | BA24: 0 | BB24: 0 | BC24: 0 | BD24: 0 | BE24: 0 | BF24: 0 | BG24: 0 | BH24: 0 | BI24: 0 | BJ24: 0 | BK24: 0 | BL24: 0 | BM24: 0 | BN24: 0 | BO24: 0 | BP24: 0 | BQ24: 0 | BR24: 0 | BS24: 0 | BT24: 0 | BU24: 0 | BV24: 0 | BW24: 0 | CE24: 33 | CF24: 電気機械 | CG24: =+SUMIFS('R2建設IOデータ'!L:L,'R2建設IOデータ'!$A:$A,'R2建設io'!$CE24)/'R2建設IOデータ'!L$232 -> 0.00791578046 | CH24: =+SUMIFS('R2建設IOデータ'!M:M,'R2建設IOデータ'!$A:$A,'R2建設io'!$CE24)/'R2建設IOデータ'!M$232 -> 0.01037494239 | CI24: =+SUMIFS('R2建設IOデータ'!N:N,'R2建設IOデータ'!$A:$A,'R2建設io'!$CE24)/'R2建設IOデータ'!N$232 -> 0.009116331985 | CJ24: =+SUMIFS('R2建設IOデータ'!O:O,'R2建設IOデータ'!$A:$A,'R2建設io'!$CE24)/'R2建設IOデータ'!O$232 -> 0.00907945956 | CK24: =+SUMIFS('R2建設IOデータ'!P:P,'R2建設IOデータ'!$A:$A,'R2建設io'!$CE24)/'R2建設IOデータ'!P$232 -> 0.009181599604 | CL24: =+SUMIFS('R2建設IOデータ'!Q:Q,'R2建設IOデータ'!$A:$A,'R2建設io'!$CE24)/'R2建設IOデータ'!Q$232 -> 0.004432454238 | CM24: =+SUMIFS('R2建設IOデータ'!R:R,'R2建設IOデータ'!$A:$A,'R2建設io'!$CE24)/'R2建設IOデータ'!R$232 -> 0.009168532508 | CN24: =+SUMIFS('R2建設IOデータ'!S:S,'R2建設IOデータ'!$A:$A,'R2建設io'!$CE24)/'R2建設IOデータ'!S$232 -> 0.02776070751 | CO24: =+SUMIFS('R2建設IOデータ'!T:T,'R2建設IOデータ'!$A:$A,'R2建設io'!$CE24)/'R2建設IOデータ'!T$232 -> 0.007918289457 | CP24: =+SUMIFS('R2建設IOデータ'!U:U,'R2建設IOデータ'!$A:$A,'R2建設io'!$CE24)/'R2建設IOデータ'!U$232 -> 0.007804095868 | CQ24: =+SUMIFS('R2建設IOデータ'!V:V,'R2建設IOデータ'!$A:$A,'R2建設io'!$CE24)/'R2建設IOデータ'!V$232 -> 0.01615043409 | CR24: =+SUMIFS('R2建設IOデータ'!W:W,'R2建設IOデータ'!$A:$A,'R2建設io'!$CE24)/'R2建設IOデータ'!W$232 -> 0.01063397784 | CS24: =+SUMIFS('R2建設IOデータ'!X:X,'R2建設IOデータ'!$A:$A,'R2建設io'!$CE24)/'R2建設IOデータ'!X$232 -> 0.01623949277 | CT24: =+SUMIFS('R2建設IOデータ'!Y:Y,'R2建設IOデータ'!$A:$A,'R2建設io'!$CE24)/'R2建設IOデータ'!Y$232 -> 0.00832068333 | CU24: =+SUMIFS('R2建設IOデータ'!Z:Z,'R2建設IOデータ'!$A:$A,'R2建設io'!$CE24)/'R2建設IOデータ'!Z$232 -> 0.005019969375 | CV24: =+SUMIFS('R2建設IOデータ'!AA:AA,'R2建設IOデータ'!$A:$A,'R2建設io'!$CE24)/'R2建設IOデータ'!AA$232 -> 0.01169086584 | CW24: =+SUMIFS('R2建設IOデータ'!AB:AB,'R2建設IOデータ'!$A:$A,'R2建設io'!$CE24)/'R2建設IOデータ'!AB$232 -> 0.01869175479 | CX24: =+SUMIFS('R2建設IOデータ'!AC:AC,'R2建設IOデータ'!$A:$A,'R2建設io'!$CE24)/'R2建設IOデータ'!AC$232 -> 0.01069558574 | CY24: =+SUMIFS('R2建設IOデータ'!AD:AD,'R2建設IOデータ'!$A:$A,'R2建設io'!$CE24)/'R2建設IOデータ'!AD$232 -> 0.0197018073 | CZ24: =+SUMIFS('R2建設IOデータ'!AE:AE,'R2建設IOデータ'!$A:$A,'R2建設io'!$CE24)/'R2建設IOデータ'!AE$232 -> 0.01121538728 | DA24: =+SUMIFS('R2建設IOデータ'!AF:AF,'R2建設IOデータ'!$A:$A,'R2建設io'!$CE24)/'R2建設IOデータ'!AF$232 -> 0.004654864333 | DB24: =+SUMIFS('R2建設IOデータ'!AG:AG,'R2建設IOデータ'!$A:$A,'R2建設io'!$CE24)/'R2建設IOデータ'!AG$232 -> 0.01262547563 | DC24: =+SUMIFS('R2建設IOデータ'!AH:AH,'R2建設IOデータ'!$A:$A,'R2建設io'!$CE24)/'R2建設IOデータ'!AH$232 -> 0.006528427063 | DD24: =+SUMIFS('R2建設IOデータ'!AI:AI,'R2建設IOデータ'!$A:$A,'R2建設io'!$CE24)/'R2建設IOデータ'!AI$232 -> 0.01270418537 | DE24: =+SUMIFS('R2建設IOデータ'!AJ:AJ,'R2建設IOデータ'!$A:$A,'R2建設io'!$CE24)/'R2建設IOデータ'!AJ$232 -> 0.01185696694 | DF24: =+SUMIFS('R2建設IOデータ'!AK:AK,'R2建設IOデータ'!$A:$A,'R2建設io'!$CE24)/'R2建設IOデータ'!AK$232 -> 0.009863093305 | DG24: =+SUMIFS('R2建設IOデータ'!AL:AL,'R2建設IOデータ'!$A:$A,'R2建設io'!$CE24)/'R2建設IOデータ'!AL$232 -> 0.01198147632 | DH24: =+SUMIFS('R2建設IOデータ'!AM:AM,'R2建設IOデータ'!$A:$A,'R2建設io'!$CE24)/'R2建設IOデータ'!AM$232 -> 0.02568986937 | DI24: =+SUMIFS('R2建設IOデータ'!AN:AN,'R2建設IOデータ'!$A:$A,'R2建設io'!$CE24)/'R2建設IOデータ'!AN$232 -> 0.007737047221 | DJ24: =+SUMIFS('R2建設IOデータ'!AO:AO,'R2建設IOデータ'!$A:$A,'R2建設io'!$CE24)/'R2建設IOデータ'!AO$232 -> 0.00464446907 | DK24: =+SUMIFS('R2建設IOデータ'!AP:AP,'R2建設IOデータ'!$A:$A,'R2建設io'!$CE24)/'R2建設IOデータ'!AP$232 -> 0.003143668226 | DL24: =+SUMIFS('R2建設IOデータ'!AQ:AQ,'R2建設IOデータ'!$A:$A,'R2建設io'!$CE24)/'R2建設IOデータ'!AQ$232 -> 0.001431457962 | DM24: =+SUMIFS('R2建設IOデータ'!AR:AR,'R2建設IOデータ'!$A:$A,'R2建設io'!$CE24)/'R2建設IOデータ'!AR$232 -> 0.001398540349 | DN24: =+SUMIFS('R2建設IOデータ'!AS:AS,'R2建設IOデータ'!$A:$A,'R2建設io'!$CE24)/'R2建設IOデータ'!AS$232 -> 0.00160137606 | DO24: =+SUMIFS('R2建設IOデータ'!AT:AT,'R2建設IOデータ'!$A:$A,'R2建設io'!$CE24)/'R2建設IOデータ'!AT$232 -> 0.0003523893598 | DP24: =+SUMIFS('R2建設IOデータ'!AU:AU,'R2建設IOデータ'!$A:$A,'R2建設io'!$CE24)/'R2建設IOデータ'!AU$232 -> 0.0005462677395 | DQ24: =+SUMIFS('R2建設IOデータ'!AV:AV,'R2建設IOデータ'!$A:$A,'R2建設io'!$CE24)/'R2建設IOデータ'!AV$232 -> 0.0004025753482 | DR24: =+SUMIFS('R2建設IOデータ'!AW:AW,'R2建設IOデータ'!$A:$A,'R2建設io'!$CE24)/'R2建設IOデータ'!AW$232 -> 0.002761771751 | DS24: =+SUMIFS('R2建設IOデータ'!AX:AX,'R2建設IOデータ'!$A:$A,'R2建設io'!$CE24)/'R2建設IOデータ'!AX$232 -> 0.00336192669 | DT24: =+SUMIFS('R2建設IOデータ'!AY:AY,'R2建設IOデータ'!$A:$A,'R2建設io'!$CE24)/'R2建設IOデータ'!AY$232 -> 0.004527385159 | DU24: =+SUMIFS('R2建設IOデータ'!AZ:AZ,'R2建設IOデータ'!$A:$A,'R2建設io'!$CE24)/'R2建設IOデータ'!AZ$232 -> 0.002039775625 | DV24: =+SUMIFS('R2建設IOデータ'!BA:BA,'R2建設IOデータ'!$A:$A,'R2建設io'!$CE24)/'R2建設IOデータ'!BA$232 -> 0.000545633279 | DW24: =+SUMIFS('R2建設IOデータ'!BB:BB,'R2建設IOデータ'!$A:$A,'R2建設io'!$CE24)/'R2建設IOデータ'!BB$232 -> 0.0001852541628 | DX24: =+SUMIFS('R2建設IOデータ'!BC:BC,'R2建設IOデータ'!$A:$A,'R2建設io'!$CE24)/'R2建設IOデータ'!BC$232 -> 0.0001769031272 | DY24: =+SUMIFS('R2建設IOデータ'!BD:BD,'R2建設IOデータ'!$A:$A,'R2建設io'!$CE24)/'R2建設IOデータ'!BD$232 -> 0.0002562591292 | DZ24: =+SUMIFS('R2建設IOデータ'!BE:BE,'R2建設IOデータ'!$A:$A,'R2建設io'!$CE24)/'R2建設IOデータ'!BE$232 -> 0.0002753556677 | EA24: =+SUMIFS('R2建設IOデータ'!BF:BF,'R2建設IOデータ'!$A:$A,'R2建設io'!$CE24)/'R2建設IOデータ'!BF$232 -> 0.0001853110137 | EB24: =+SUMIFS('R2建設IOデータ'!BG:BG,'R2建設IOデータ'!$A:$A,'R2建設io'!$CE24)/'R2建設IOデータ'!BG$232 -> 0.004091327742 | EC24: =+SUMIFS('R2建設IOデータ'!BH:BH,'R2建設IOデータ'!$A:$A,'R2建設io'!$CE24)/'R2建設IOデータ'!BH$232 -> 0.004130030886 | ED24: =+SUMIFS('R2建設IOデータ'!BI:BI,'R2建設IOデータ'!$A:$A,'R2建設io'!$CE24)/'R2建設IOデータ'!BI$232 -> 0.003915888853 | EE24: =+SUMIFS('R2建設IOデータ'!BJ:BJ,'R2建設IOデータ'!$A:$A,'R2建設io'!$CE24)/'R2建設IOデータ'!BJ$232 -> 0.003411804845 | EF24: =+SUMIFS('R2建設IOデータ'!BK:BK,'R2建設IOデータ'!$A:$A,'R2建設io'!$CE24)/'R2建設IOデータ'!BK$232 -> 0.005263437812 | EG24: =+SUMIFS('R2建設IOデータ'!BL:BL,'R2建設IOデータ'!$A:$A,'R2建設io'!$CE24)/'R2建設IOデータ'!BL$232 -> 0.003155217772 | EH24: =+SUMIFS('R2建設IOデータ'!BM:BM,'R2建設IOデータ'!$A:$A,'R2建設io'!$CE24)/'R2建設IOデータ'!BM$232 -> 0.003248622224 | EI24: =+SUMIFS('R2建設IOデータ'!BN:BN,'R2建設IOデータ'!$A:$A,'R2建設io'!$CE24)/'R2建設IOデータ'!BN$232 -> 0.01058919051 | EJ24: =+SUMIFS('R2建設IOデータ'!BO:BO,'R2建設IOデータ'!$A:$A,'R2建設io'!$CE24)/'R2建設IOデータ'!BO$232 -> 0.0004948073664 | EK24: =+SUMIFS('R2建設IOデータ'!BP:BP,'R2建設IOデータ'!$A:$A,'R2建設io'!$CE24)/'R2建設IOデータ'!BP$232 -> 0.0009103625398 | EL24: =+SUMIFS('R2建設IOデータ'!BQ:BQ,'R2建設IOデータ'!$A:$A,'R2建設io'!$CE24)/'R2建設IOデータ'!BQ$232 -> 0.01161771926 | EM24: =+SUMIFS('R2建設IOデータ'!BR:BR,'R2建設IOデータ'!$A:$A,'R2建設io'!$CE24)/'R2建設IOデータ'!BR$232 -> 0.002727305634 | EN24: =+SUMIFS('R2建設IOデータ'!BS:BS,'R2建設IOデータ'!$A:$A,'R2建設io'!$CE24)/'R2建設IOデータ'!BS$232 -> 0.0006429920564 | EO24: =+SUMIFS('R2建設IOデータ'!BT:BT,'R2建設IOデータ'!$A:$A,'R2建設io'!$CE24)/'R2建設IOデータ'!BT$232 -> 0.01143890414 | EP24: =+SUMIFS('R2建設IOデータ'!BU:BU,'R2建設IOデータ'!$A:$A,'R2建設io'!$CE24)/'R2建設IOデータ'!BU$232 -> 0.01122106841 | EQ24: =+SUMIFS('R2建設IOデータ'!BV:BV,'R2建設IOデータ'!$A:$A,'R2建設io'!$CE24)/'R2建設IOデータ'!BV$232 -> 0.001372981453 | ER24: =+SUMIFS('R2建設IOデータ'!BW:BW,'R2建設IOデータ'!$A:$A,'R2建設io'!$CE24)/'R2建設IOデータ'!BW$232 -> 0.0008372934304 | ES24: =+SUMIFS('R2建設IOデータ'!BX:BX,'R2建設IOデータ'!$A:$A,'R2建設io'!$CE24)/'R2建設IOデータ'!BX$232 -> 0.006761681704 | ET24: =+SUMIFS('R2建設IOデータ'!BY:BY,'R2建設IOデータ'!$A:$A,'R2建設io'!$CE24)/'R2建設IOデータ'!BY$232 -> 0.003063401993 | EU24: =+SUMIFS('R2建設IOデータ'!BZ:BZ,'R2建設IOデータ'!$A:$A,'R2建設io'!$CE24)/'R2建設IOデータ'!BZ$232 -> 0.008518097431 | EV24: =+SUMIFS('R2建設IOデータ'!CA:CA,'R2建設IOデータ'!$A:$A,'R2建設io'!$CE24)/'R2建設IOデータ'!CA$232 -> 0.006948916777 | EW24: =+SUMIFS('R2建設IOデータ'!CB:CB,'R2建設IOデータ'!$A:$A,'R2建設io'!$CE24)/'R2建設IOデータ'!CB$232 -> 0.01436293611 | EX24: =+SUMIFS('R2建設IOデータ'!CC:CC,'R2建設IOデータ'!$A:$A,'R2建設io'!$CE24)/'R2建設IOデータ'!CC$232 -> 0.001368815503 | EY24: =+SUMIFS('R2建設IOデータ'!CD:CD,'R2建設IOデータ'!$A:$A,'R2建設io'!$CE24)/'R2建設IOデータ'!CD$232 -> 0.004514625935
A25: 0 | C25: 34 | D25: 情報通信機器 | E25: 0 | F25: 0 | G25: 0 | H25: 0 | I25: 0 | J25: 0 | K25: 0 | L25: 0 | M25: 0 | N25: 0 | O25: 0 | P25: 0 | Q25: 0 | R25: 0 | S25: 0 | T25: 0 | U25: 0 | V25: 0 | W25: 0 | X25: 0 | Y25: 0 | Z25: 0 | AA25: 0 | AB25: 0 | AC25: 0 | AD25: 0 | AE25: 0 | AF25: 0 | AG25: 0 | AH25: 0 | AI25: 0 | AJ25: 0 | AK25: 0 | AL25: 0 | AM25: 0 | AN25: 0 | AO25: 0 | AP25: 0 | AQ25: 0 | AR25: 0 | AS25: 0 | AT25: 0 | AU25: 0 | AV25: 0 | AW25: 0 | AX25: 0 | AY25: 0 | AZ25: 0 | BA25: 0 | BB25: 0 | BC25: 0 | BD25: 0 | BE25: 0 | BF25: 0 | BG25: 0 | BH25: 0 | BI25: 0 | BJ25: 0 | BK25: 0 | BL25: 0 | BM25: 0 | BN25: 0 | BO25: 0 | BP25: 0 | BQ25: 0 | BR25: 0 | BS25: 0 | BT25: 0 | BU25: 0 | BV25: 0 | BW25: 0 | CE25: 34 | CF25: 情報通信機器 | CG25: =+SUMIFS('R2建設IOデータ'!L:L,'R2建設IOデータ'!$A:$A,'R2建設io'!$CE25)/'R2建設IOデータ'!L$232 -> 0.001874381103 | CH25: =+SUMIFS('R2建設IOデータ'!M:M,'R2建設IOデータ'!$A:$A,'R2建設io'!$CE25)/'R2建設IOデータ'!M$232 -> 0.001423733976 | CI25: =+SUMIFS('R2建設IOデータ'!N:N,'R2建設IOデータ'!$A:$A,'R2建設io'!$CE25)/'R2建設IOデータ'!N$232 -> 0.0008835726793 | CJ25: =+SUMIFS('R2建設IOデータ'!O:O,'R2建設IOデータ'!$A:$A,'R2建設io'!$CE25)/'R2建設IOデータ'!O$232 -> 0.0004777293011 | CK25: =+SUMIFS('R2建設IOデータ'!P:P,'R2建設IOデータ'!$A:$A,'R2建設io'!$CE25)/'R2建設IOデータ'!P$232 -> 0.0004786978355 | CL25: =+SUMIFS('R2建設IOデータ'!Q:Q,'R2建設IOデータ'!$A:$A,'R2建設io'!$CE25)/'R2建設IOデータ'!Q$232 -> 0.0004336644647 | CM25: =+SUMIFS('R2建設IOデータ'!R:R,'R2建設IOデータ'!$A:$A,'R2建設io'!$CE25)/'R2建設IOデータ'!R$232 -> 0.001458127692 | CN25: =+SUMIFS('R2建設IOデータ'!S:S,'R2建設IOデータ'!$A:$A,'R2建設io'!$CE25)/'R2建設IOデータ'!S$232 -> 0.0033131162 | CO25: =+SUMIFS('R2建設IOデータ'!T:T,'R2建設IOデータ'!$A:$A,'R2建設io'!$CE25)/'R2建設IOデータ'!T$232 -> 0.001914280386 | CP25: =+SUMIFS('R2建設IOデータ'!U:U,'R2建設IOデータ'!$A:$A,'R2建設io'!$CE25)/'R2建設IOデータ'!U$232 -> 0.001935049749 | CQ25: =+SUMIFS('R2建設IOデータ'!V:V,'R2建設IOデータ'!$A:$A,'R2建設io'!$CE25)/'R2建設IOデータ'!V$232 -> 0.0004170299882 | CR25: =+SUMIFS('R2建設IOデータ'!W:W,'R2建設IOデータ'!$A:$A,'R2建設io'!$CE25)/'R2建設IOデータ'!W$232 -> 0.0007260273048 | CS25: =+SUMIFS('R2建設IOデータ'!X:X,'R2建設IOデータ'!$A:$A,'R2建設io'!$CE25)/'R2建設IOデータ'!X$232 -> 0.001349327782 | CT25: =+SUMIFS('R2建設IOデータ'!Y:Y,'R2建設IOデータ'!$A:$A,'R2建設io'!$CE25)/'R2建設IOデータ'!Y$232 -> 0.0004688024844 | CU25: =+SUMIFS('R2建設IOデータ'!Z:Z,'R2建設IOデータ'!$A:$A,'R2建設io'!$CE25)/'R2建設IOデータ'!Z$232 -> 0.0006156566215 | CV25: =+SUMIFS('R2建設IOデータ'!AA:AA,'R2建設IOデータ'!$A:$A,'R2建設io'!$CE25)/'R2建設IOデータ'!AA$232 -> 0.001988492474 | CW25: =+SUMIFS('R2建設IOデータ'!AB:AB,'R2建設IOデータ'!$A:$A,'R2建設io'!$CE25)/'R2建設IOデータ'!AB$232 -> 0.0008714250935 | CX25: =+SUMIFS('R2建設IOデータ'!AC:AC,'R2建設IOデータ'!$A:$A,'R2建設io'!$CE25)/'R2建設IOデータ'!AC$232 -> 0.0001397506848 | CY25: =+SUMIFS('R2建設IOデータ'!AD:AD,'R2建設IOデータ'!$A:$A,'R2建設io'!$CE25)/'R2建設IOデータ'!AD$232 -> 0.0009638480486 | CZ25: =+SUMIFS('R2建設IOデータ'!AE:AE,'R2建設IOデータ'!$A:$A,'R2建設io'!$CE25)/'R2建設IOデータ'!AE$232 -> 0.002064360208 | DA25: =+SUMIFS('R2建設IOデータ'!AF:AF,'R2建設IOデータ'!$A:$A,'R2建設io'!$CE25)/'R2建設IOデータ'!AF$232 -> 0.0009985434779 | DB25: =+SUMIFS('R2建設IOデータ'!AG:AG,'R2建設IOデータ'!$A:$A,'R2建設io'!$CE25)/'R2建設IOデータ'!AG$232 -> 0.002321676632 | DC25: =+SUMIFS('R2建設IOデータ'!AH:AH,'R2建設IOデータ'!$A:$A,'R2建設io'!$CE25)/'R2建設IOデータ'!AH$232 -> 0.002145650684 | DD25: =+SUMIFS('R2建設IOデータ'!AI:AI,'R2建設IOデータ'!$A:$A,'R2建設io'!$CE25)/'R2建設IOデータ'!AI$232 -> 0.002182477183 | DE25: =+SUMIFS('R2建設IOデータ'!AJ:AJ,'R2建設IOデータ'!$A:$A,'R2建設io'!$CE25)/'R2建設IOデータ'!AJ$232 -> 0.002244264942 | DF25: =+SUMIFS('R2建設IOデータ'!AK:AK,'R2建設IOデータ'!$A:$A,'R2建設io'!$CE25)/'R2建設IOデータ'!AK$232 -> 0.00198989411 | DG25: =+SUMIFS('R2建設IOデータ'!AL:AL,'R2建設IOデータ'!$A:$A,'R2建設io'!$CE25)/'R2建設IOデータ'!AL$232 -> 0.002005009434 | DH25: =+SUMIFS('R2建設IOデータ'!AM:AM,'R2建設IOデータ'!$A:$A,'R2建設io'!$CE25)/'R2建設IOデータ'!AM$232 -> 0.003087000715 | DI25: =+SUMIFS('R2建設IOデータ'!AN:AN,'R2建設IOデータ'!$A:$A,'R2建設io'!$CE25)/'R2建設IOデータ'!AN$232 -> 0.0003832996603 | DJ25: =+SUMIFS('R2建設IOデータ'!AO:AO,'R2建設IOデータ'!$A:$A,'R2建設io'!$CE25)/'R2建設IOデータ'!AO$232 -> 0.003162366007 | DK25: =+SUMIFS('R2建設IOデータ'!AP:AP,'R2建設IOデータ'!$A:$A,'R2建設io'!$CE25)/'R2建設IOデータ'!AP$232 -> 0.002785064246 | DL25: =+SUMIFS('R2建設IOデータ'!AQ:AQ,'R2建設IOデータ'!$A:$A,'R2建設io'!$CE25)/'R2建設IOデータ'!AQ$232 -> 0.0005612234807 | DM25: =+SUMIFS('R2建設IOデータ'!AR:AR,'R2建設IOデータ'!$A:$A,'R2建設io'!$CE25)/'R2建設IOデータ'!AR$232 -> 0.0005648810674 | DN25: =+SUMIFS('R2建設IOデータ'!AS:AS,'R2建設IOデータ'!$A:$A,'R2建設io'!$CE25)/'R2建設IOデータ'!AS$232 -> 0.0006037068622 | DO25: =+SUMIFS('R2建設IOデータ'!AT:AT,'R2建設IOデータ'!$A:$A,'R2建設io'!$CE25)/'R2建設IOデータ'!AT$232 -> 0.0003843778522 | DP25: =+SUMIFS('R2建設IOデータ'!AU:AU,'R2建設IOデータ'!$A:$A,'R2建設io'!$CE25)/'R2建設IOデータ'!AU$232 -> 0.0004324619604 | DQ25: =+SUMIFS('R2建設IOデータ'!AV:AV,'R2建設IOデータ'!$A:$A,'R2建設io'!$CE25)/'R2建設IOデータ'!AV$232 -> 0.0003316994066 | DR25: =+SUMIFS('R2建設IOデータ'!AW:AW,'R2建設IOデータ'!$A:$A,'R2建設io'!$CE25)/'R2建設IOデータ'!AW$232 -> 0.0004578478424 | DS25: =+SUMIFS('R2建設IOデータ'!AX:AX,'R2建設IOデータ'!$A:$A,'R2建設io'!$CE25)/'R2建設IOデータ'!AX$232 -> 0.002676806781 | DT25: =+SUMIFS('R2建設IOデータ'!AY:AY,'R2建設IOデータ'!$A:$A,'R2建設io'!$CE25)/'R2建設IOデータ'!AY$232 -> 0.0004416961131 | DU25: =+SUMIFS('R2建設IOデータ'!AZ:AZ,'R2建設IOデータ'!$A:$A,'R2建設io'!$CE25)/'R2建設IOデータ'!AZ$232 -> 0.0007284912945 | DV25: =+SUMIFS('R2建設IOデータ'!BA:BA,'R2建設IOデータ'!$A:$A,'R2建設io'!$CE25)/'R2建設IOデータ'!BA$232 -> 0.0004016218726 | DW25: =+SUMIFS('R2建設IOデータ'!BB:BB,'R2建設IOデータ'!$A:$A,'R2建設io'!$CE25)/'R2建設IOデータ'!BB$232 -> 0.0003645959587 | DX25: =+SUMIFS('R2建設IOデータ'!BC:BC,'R2建設IOデータ'!$A:$A,'R2建設io'!$CE25)/'R2建設IOデータ'!BC$232 -> 0.0003660448355 | DY25: =+SUMIFS('R2建設IOデータ'!BD:BD,'R2建設IOデータ'!$A:$A,'R2建設io'!$CE25)/'R2建設IOデータ'!BD$232 -> 0.0003075109551 | DZ25: =+SUMIFS('R2建設IOデータ'!BE:BE,'R2建設IOデータ'!$A:$A,'R2建設io'!$CE25)/'R2建設IOデータ'!BE$232 -> 0.0005048187242 | EA25: =+SUMIFS('R2建設IOデータ'!BF:BF,'R2建設IOデータ'!$A:$A,'R2建設io'!$CE25)/'R2建設IOデータ'!BF$232 -> 0.0003706220273 | EB25: =+SUMIFS('R2建設IOデータ'!BG:BG,'R2建設IOデータ'!$A:$A,'R2建設io'!$CE25)/'R2建設IOデータ'!BG$232 -> 0.0007659120655 | EC25: =+SUMIFS('R2建設IOデータ'!BH:BH,'R2建設IOデータ'!$A:$A,'R2建設io'!$CE25)/'R2建設IOデータ'!BH$232 -> 0.000792871259 | ED25: =+SUMIFS('R2建設IOデータ'!BI:BI,'R2建設IOデータ'!$A:$A,'R2建設io'!$CE25)/'R2建設IOデータ'!BI$232 -> 0.0006437077567 | EE25: =+SUMIFS('R2建設IOデータ'!BJ:BJ,'R2建設IOデータ'!$A:$A,'R2建設io'!$CE25)/'R2建設IOデータ'!BJ$232 -> 0.0003411804845 | EF25: =+SUMIFS('R2建設IOデータ'!BK:BK,'R2建設IOデータ'!$A:$A,'R2建設io'!$CE25)/'R2建設IOデータ'!BK$232 -> 0.005490127586 | EG25: =+SUMIFS('R2建設IOデータ'!BL:BL,'R2建設IOデータ'!$A:$A,'R2建設io'!$CE25)/'R2建設IOデータ'!BL$232 -> 0.005418618485 | EH25: =+SUMIFS('R2建設IOデータ'!BM:BM,'R2建設IOデータ'!$A:$A,'R2建設io'!$CE25)/'R2建設IOデータ'!BM$232 -> 0.001438093018 | EI25: =+SUMIFS('R2建設IOデータ'!BN:BN,'R2建設IOデータ'!$A:$A,'R2建設io'!$CE25)/'R2建設IOデータ'!BN$232 -> 0.05559750856 | EJ25: =+SUMIFS('R2建設IOデータ'!BO:BO,'R2建設IOデータ'!$A:$A,'R2建設io'!$CE25)/'R2建設IOデータ'!BO$232 -> 0.0009611775278 | EK25: =+SUMIFS('R2建設IOデータ'!BP:BP,'R2建設IOデータ'!$A:$A,'R2建設io'!$CE25)/'R2建設IOデータ'!BP$232 -> 0.0003806553693 | EL25: =+SUMIFS('R2建設IOデータ'!BQ:BQ,'R2建設IOデータ'!$A:$A,'R2建設io'!$CE25)/'R2建設IOデータ'!BQ$232 -> 0.009357285278 | EM25: =+SUMIFS('R2建設IOデータ'!BR:BR,'R2建設IOデータ'!$A:$A,'R2建設io'!$CE25)/'R2建設IOデータ'!BR$232 -> 0.004622065338 | EN25: =+SUMIFS('R2建設IOデータ'!BS:BS,'R2建設IOデータ'!$A:$A,'R2建設io'!$CE25)/'R2建設IOデータ'!BS$232 -> 0.002062932848 | EO25: =+SUMIFS('R2建設IOデータ'!BT:BT,'R2建設IOデータ'!$A:$A,'R2建設io'!$CE25)/'R2建設IOデータ'!BT$232 -> 0.0112232624 | EP25: =+SUMIFS('R2建設IOデータ'!BU:BU,'R2建設IOデータ'!$A:$A,'R2建設io'!$CE25)/'R2建設IOデータ'!BU$232 -> 0.001162202839 | EQ25: =+SUMIFS('R2建設IOデータ'!BV:BV,'R2建設IOデータ'!$A:$A,'R2建設io'!$CE25)/'R2建設IOデータ'!BV$232 -> 0.0004186153242 | ER25: =+SUMIFS('R2建設IOデータ'!BW:BW,'R2建設IOデータ'!$A:$A,'R2建設io'!$CE25)/'R2建設IOデータ'!BW$232 -> 3.22991531e-05 | ES25: =+SUMIFS('R2建設IOデータ'!BX:BX,'R2建設IOデータ'!$A:$A,'R2建設io'!$CE25)/'R2建設IOデータ'!BX$232 -> 0.003694633867 | ET25: =+SUMIFS('R2建設IOデータ'!BY:BY,'R2建設IOデータ'!$A:$A,'R2建設io'!$CE25)/'R2建設IOデータ'!BY$232 -> 0.003316295604 | EU25: =+SUMIFS('R2建設IOデータ'!BZ:BZ,'R2建設IOデータ'!$A:$A,'R2建設io'!$CE25)/'R2建設IOデータ'!BZ$232 -> 0.002458036881 | EV25: =+SUMIFS('R2建設IOデータ'!CA:CA,'R2建設IOデータ'!$A:$A,'R2建設io'!$CE25)/'R2建設IOデータ'!CA$232 -> 0.02257744715 | EW25: =+SUMIFS('R2建設IOデータ'!CB:CB,'R2建設IOデータ'!$A:$A,'R2建設io'!$CE25)/'R2建設IOデータ'!CB$232 -> 0.004688511064 | EX25: =+SUMIFS('R2建設IOデータ'!CC:CC,'R2建設IOデータ'!$A:$A,'R2建設io'!$CE25)/'R2建設IOデータ'!CC$232 -> 0.0006488218587 | EY25: =+SUMIFS('R2建設IOデータ'!CD:CD,'R2建設IOデータ'!$A:$A,'R2建設io'!$CE25)/'R2建設IOデータ'!CD$232 -> 0.0006823716302
A26: 0 | C26: 35 | D26: 輸送機械 | E26: 0 | F26: 0 | G26: 0 | H26: 0 | I26: 0 | J26: 0 | K26: 0 | L26: 0 | M26: 0 | N26: 0 | O26: 0 | P26: 0 | Q26: 0 | R26: 0 | S26: 0 | T26: 0 | U26: 0 | V26: 0 | W26: 0 | X26: 0 | Y26: 0 | Z26: 0 | AA26: 0 | AB26: 0 | AC26: 0 | AD26: 0 | AE26: 0 | AF26: 0 | AG26: 0 | AH26: 0 | AI26: 0 | AJ26: 0 | AK26: 0 | AL26: 0 | AM26: 0 | AN26: 0 | AO26: 0 | AP26: 0 | AQ26: 0 | AR26: 0 | AS26: 0 | AT26: 0 | AU26: 0 | AV26: 0 | AW26: 0 | AX26: 0 | AY26: 0 | AZ26: 0 | BA26: 0 | BB26: 0 | BC26: 0 | BD26: 0 | BE26: 0 | BF26: 0 | BG26: 0 | BH26: 0 | BI26: 0 | BJ26: 0 | BK26: 0 | BL26: 0 | BM26: 0 | BN26: 0 | BO26: 0 | BP26: 0 | BQ26: 0 | BR26: 0 | BS26: 0 | BT26: 0 | BU26: 0 | BV26: 0 | BW26: 0 | CE26: 35 | CF26: 輸送機械 | CG26: =+SUMIFS('R2建設IOデータ'!L:L,'R2建設IOデータ'!$A:$A,'R2建設io'!$CE26)/'R2建設IOデータ'!L$232 -> 0 | CH26: =+SUMIFS('R2建設IOデータ'!M:M,'R2建設IOデータ'!$A:$A,'R2建設io'!$CE26)/'R2建設IOデータ'!M$232 -> 0 | CI26: =+SUMIFS('R2建設IOデータ'!N:N,'R2建設IOデータ'!$A:$A,'R2建設io'!$CE26)/'R2建設IOデータ'!N$232 -> 0 | CJ26: =+SUMIFS('R2建設IOデータ'!O:O,'R2建設IOデータ'!$A:$A,'R2建設io'!$CE26)/'R2建設IOデータ'!O$232 -> 0 | CK26: =+SUMIFS('R2建設IOデータ'!P:P,'R2建設IOデータ'!$A:$A,'R2建設io'!$CE26)/'R2建設IOデータ'!P$232 -> 0 | CL26: =+SUMIFS('R2建設IOデータ'!Q:Q,'R2建設IOデータ'!$A:$A,'R2建設io'!$CE26)/'R2建設IOデータ'!Q$232 -> 0 | CM26: =+SUMIFS('R2建設IOデータ'!R:R,'R2建設IOデータ'!$A:$A,'R2建設io'!$CE26)/'R2建設IOデータ'!R$232 -> 0 | CN26: =+SUMIFS('R2建設IOデータ'!S:S,'R2建設IOデータ'!$A:$A,'R2建設io'!$CE26)/'R2建設IOデータ'!S$232 -> 0 | CO26: =+SUMIFS('R2建設IOデータ'!T:T,'R2建設IOデータ'!$A:$A,'R2建設io'!$CE26)/'R2建設IOデータ'!T$232 -> 0 | CP26: =+SUMIFS('R2建設IOデータ'!U:U,'R2建設IOデータ'!$A:$A,'R2建設io'!$CE26)/'R2建設IOデータ'!U$232 -> 0 | CQ26: =+SUMIFS('R2建設IOデータ'!V:V,'R2建設IOデータ'!$A:$A,'R2建設io'!$CE26)/'R2建設IOデータ'!V$232 -> 0 | CR26: =+SUMIFS('R2建設IOデータ'!W:W,'R2建設IOデータ'!$A:$A,'R2建設io'!$CE26)/'R2建設IOデータ'!W$232 -> 0 | CS26: =+SUMIFS('R2建設IOデータ'!X:X,'R2建設IOデータ'!$A:$A,'R2建設io'!$CE26)/'R2建設IOデータ'!X$232 -> 0 | CT26: =+SUMIFS('R2建設IOデータ'!Y:Y,'R2建設IOデータ'!$A:$A,'R2建設io'!$CE26)/'R2建設IOデータ'!Y$232 -> 0 | CU26: =+SUMIFS('R2建設IOデータ'!Z:Z,'R2建設IOデータ'!$A:$A,'R2建設io'!$CE26)/'R2建設IOデータ'!Z$232 -> 0 | CV26: =+SUMIFS('R2建設IOデータ'!AA:AA,'R2建設IOデータ'!$A:$A,'R2建設io'!$CE26)/'R2建設IOデータ'!AA$232 -> 0 | CW26: =+SUMIFS('R2建設IOデータ'!AB:AB,'R2建設IOデータ'!$A:$A,'R2建設io'!$CE26)/'R2建設IOデータ'!AB$232 -> 0 | CX26: =+SUMIFS('R2建設IOデータ'!AC:AC,'R2建設IOデータ'!$A:$A,'R2建設io'!$CE26)/'R2建設IOデータ'!AC$232 -> 0 | CY26: =+SUMIFS('R2建設IOデータ'!AD:AD,'R2建設IOデータ'!$A:$A,'R2建設io'!$CE26)/'R2建設IOデータ'!AD$232 -> 0 | CZ26: =+SUMIFS('R2建設IOデータ'!AE:AE,'R2建設IOデータ'!$A:$A,'R2建設io'!$CE26)/'R2建設IOデータ'!AE$232 -> 0 | DA26: =+SUMIFS('R2建設IOデータ'!AF:AF,'R2建設IOデータ'!$A:$A,'R2建設io'!$CE26)/'R2建設IOデータ'!AF$232 -> 0 | DB26: =+SUMIFS('R2建設IOデータ'!AG:AG,'R2建設IOデータ'!$A:$A,'R2建設io'!$CE26)/'R2建設IOデータ'!AG$232 -> 0 | DC26: =+SUMIFS('R2建設IOデータ'!AH:AH,'R2建設IOデータ'!$A:$A,'R2建設io'!$CE26)/'R2建設IOデータ'!AH$232 -> 0 | DD26: =+SUMIFS('R2建設IOデータ'!AI:AI,'R2建設IOデータ'!$A:$A,'R2建設io'!$CE26)/'R2建設IOデータ'!AI$232 -> 0 | DE26: =+SUMIFS('R2建設IOデータ'!AJ:AJ,'R2建設IOデータ'!$A:$A,'R2建設io'!$CE26)/'R2建設IOデータ'!AJ$232 -> 0 | DF26: =+SUMIFS('R2建設IOデータ'!AK:AK,'R2建設IOデータ'!$A:$A,'R2建設io'!$CE26)/'R2建設IOデータ'!AK$232 -> 0 | DG26: =+SUMIFS('R2建設IOデータ'!AL:AL,'R2建設IOデータ'!$A:$A,'R2建設io'!$CE26)/'R2建設IOデータ'!AL$232 -> 0 | DH26: =+SUMIFS('R2建設IOデータ'!AM:AM,'R2建設IOデータ'!$A:$A,'R2建設io'!$CE26)/'R2建設IOデータ'!AM$232 -> 0 | DI26: =+SUMIFS('R2建設IOデータ'!AN:AN,'R2建設IOデータ'!$A:$A,'R2建設io'!$CE26)/'R2建設IOデータ'!AN$232 -> 0 | DJ26: =+SUMIFS('R2建設IOデータ'!AO:AO,'R2建設IOデータ'!$A:$A,'R2建設io'!$CE26)/'R2建設IOデータ'!AO$232 -> 0 | DK26: =+SUMIFS('R2建設IOデータ'!AP:AP,'R2建設IOデータ'!$A:$A,'R2建設io'!$CE26)/'R2建設IOデータ'!AP$232 -> 0 | DL26: =+SUMIFS('R2建設IOデータ'!AQ:AQ,'R2建設IOデータ'!$A:$A,'R2建設io'!$CE26)/'R2建設IOデータ'!AQ$232 -> 0 | DM26: =+SUMIFS('R2建設IOデータ'!AR:AR,'R2建設IOデータ'!$A:$A,'R2建設io'!$CE26)/'R2建設IOデータ'!AR$232 -> 0 | DN26: =+SUMIFS('R2建設IOデータ'!AS:AS,'R2建設IOデータ'!$A:$A,'R2建設io'!$CE26)/'R2建設IOデータ'!AS$232 -> 0 | DO26: =+SUMIFS('R2建設IOデータ'!AT:AT,'R2建設IOデータ'!$A:$A,'R2建設io'!$CE26)/'R2建設IOデータ'!AT$232 -> 0 | DP26: =+SUMIFS('R2建設IOデータ'!AU:AU,'R2建設IOデータ'!$A:$A,'R2建設io'!$CE26)/'R2建設IOデータ'!AU$232 -> 0 | DQ26: =+SUMIFS('R2建設IOデータ'!AV:AV,'R2建設IOデータ'!$A:$A,'R2建設io'!$CE26)/'R2建設IOデータ'!AV$232 -> 0 | DR26: =+SUMIFS('R2建設IOデータ'!AW:AW,'R2建設IOデータ'!$A:$A,'R2建設io'!$CE26)/'R2建設IOデータ'!AW$232 -> 0 | DS26: =+SUMIFS('R2建設IOデータ'!AX:AX,'R2建設IOデータ'!$A:$A,'R2建設io'!$CE26)/'R2建設IOデータ'!AX$232 -> 0 | DT26: =+SUMIFS('R2建設IOデータ'!AY:AY,'R2建設IOデータ'!$A:$A,'R2建設io'!$CE26)/'R2建設IOデータ'!AY$232 -> 0 | DU26: =+SUMIFS('R2建設IOデータ'!AZ:AZ,'R2建設IOデータ'!$A:$A,'R2建設io'!$CE26)/'R2建設IOデータ'!AZ$232 -> 0 | DV26: =+SUMIFS('R2建設IOデータ'!BA:BA,'R2建設IOデータ'!$A:$A,'R2建設io'!$CE26)/'R2建設IOデータ'!BA$232 -> 0 | DW26: =+SUMIFS('R2建設IOデータ'!BB:BB,'R2建設IOデータ'!$A:$A,'R2建設io'!$CE26)/'R2建設IOデータ'!BB$232 -> 0 | DX26: =+SUMIFS('R2建設IOデータ'!BC:BC,'R2建設IOデータ'!$A:$A,'R2建設io'!$CE26)/'R2建設IOデータ'!BC$232 -> 0 | DY26: =+SUMIFS('R2建設IOデータ'!BD:BD,'R2建設IOデータ'!$A:$A,'R2建設io'!$CE26)/'R2建設IOデータ'!BD$232 -> 0 | DZ26: =+SUMIFS('R2建設IOデータ'!BE:BE,'R2建設IOデータ'!$A:$A,'R2建設io'!$CE26)/'R2建設IOデータ'!BE$232 -> 0 | EA26: =+SUMIFS('R2建設IOデータ'!BF:BF,'R2建設IOデータ'!$A:$A,'R2建設io'!$CE26)/'R2建設IOデータ'!BF$232 -> 0 | EB26: =+SUMIFS('R2建設IOデータ'!BG:BG,'R2建設IOデータ'!$A:$A,'R2建設io'!$CE26)/'R2建設IOデータ'!BG$232 -> 0 | EC26: =+SUMIFS('R2建設IOデータ'!BH:BH,'R2建設IOデータ'!$A:$A,'R2建設io'!$CE26)/'R2建設IOデータ'!BH$232 -> 0 | ED26: =+SUMIFS('R2建設IOデータ'!BI:BI,'R2建設IOデータ'!$A:$A,'R2建設io'!$CE26)/'R2建設IOデータ'!BI$232 -> 0 | EE26: =+SUMIFS('R2建設IOデータ'!BJ:BJ,'R2建設IOデータ'!$A:$A,'R2建設io'!$CE26)/'R2建設IOデータ'!BJ$232 -> 0 | EF26: =+SUMIFS('R2建設IOデータ'!BK:BK,'R2建設IOデータ'!$A:$A,'R2建設io'!$CE26)/'R2建設IOデータ'!BK$232 -> 0 | EG26: =+SUMIFS('R2建設IOデータ'!BL:BL,'R2建設IOデータ'!$A:$A,'R2建設io'!$CE26)/'R2建設IOデータ'!BL$232 -> 0 | EH26: =+SUMIFS('R2建設IOデータ'!BM:BM,'R2建設IOデータ'!$A:$A,'R2建設io'!$CE26)/'R2建設IOデータ'!BM$232 -> 0 | EI26: =+SUMIFS('R2建設IOデータ'!BN:BN,'R2建設IOデータ'!$A:$A,'R2建設io'!$CE26)/'R2建設IOデータ'!BN$232 -> 0 | EJ26: =+SUMIFS('R2建設IOデータ'!BO:BO,'R2建設IOデータ'!$A:$A,'R2建設io'!$CE26)/'R2建設IOデータ'!BO$232 -> 0 | EK26: =+SUMIFS('R2建設IOデータ'!BP:BP,'R2建設IOデータ'!$A:$A,'R2建設io'!$CE26)/'R2建設IOデータ'!BP$232 -> 0 | EL26: =+SUMIFS('R2建設IOデータ'!BQ:BQ,'R2建設IOデータ'!$A:$A,'R2建設io'!$CE26)/'R2建設IOデータ'!BQ$232 -> 0 | EM26: =+SUMIFS('R2建設IOデータ'!BR:BR,'R2建設IOデータ'!$A:$A,'R2建設io'!$CE26)/'R2建設IOデータ'!BR$232 -> 0 | EN26: =+SUMIFS('R2建設IOデータ'!BS:BS,'R2建設IOデータ'!$A:$A,'R2建設io'!$CE26)/'R2建設IOデータ'!BS$232 -> 0 | EO26: =+SUMIFS('R2建設IOデータ'!BT:BT,'R2建設IOデータ'!$A:$A,'R2建設io'!$CE26)/'R2建設IOデータ'!BT$232 -> 0 | EP26: =+SUMIFS('R2建設IOデータ'!BU:BU,'R2建設IOデータ'!$A:$A,'R2建設io'!$CE26)/'R2建設IOデータ'!BU$232 -> 0 | EQ26: =+SUMIFS('R2建設IOデータ'!BV:BV,'R2建設IOデータ'!$A:$A,'R2建設io'!$CE26)/'R2建設IOデータ'!BV$232 -> 0 | ER26: =+SUMIFS('R2建設IOデータ'!BW:BW,'R2建設IOデータ'!$A:$A,'R2建設io'!$CE26)/'R2建設IOデータ'!BW$232 -> 0 | ES26: =+SUMIFS('R2建設IOデータ'!BX:BX,'R2建設IOデータ'!$A:$A,'R2建設io'!$CE26)/'R2建設IOデータ'!BX$232 -> 0 | ET26: =+SUMIFS('R2建設IOデータ'!BY:BY,'R2建設IOデータ'!$A:$A,'R2建設io'!$CE26)/'R2建設IOデータ'!BY$232 -> 0 | EU26: =+SUMIFS('R2建設IOデータ'!BZ:BZ,'R2建設IOデータ'!$A:$A,'R2建設io'!$CE26)/'R2建設IOデータ'!BZ$232 -> 0 | EV26: =+SUMIFS('R2建設IOデータ'!CA:CA,'R2建設IOデータ'!$A:$A,'R2建設io'!$CE26)/'R2建設IOデータ'!CA$232 -> 0 | EW26: =+SUMIFS('R2建設IOデータ'!CB:CB,'R2建設IOデータ'!$A:$A,'R2建設io'!$CE26)/'R2建設IOデータ'!CB$232 -> 0 | EX26: =+SUMIFS('R2建設IOデータ'!CC:CC,'R2建設IOデータ'!$A:$A,'R2建設io'!$CE26)/'R2建設IOデータ'!CC$232 -> 0 | EY26: =+SUMIFS('R2建設IOデータ'!CD:CD,'R2建設IOデータ'!$A:$A,'R2建設io'!$CE26)/'R2建設IOデータ'!CD$232 -> 0
A27: 0 | C27: 39 | D27: その他の製造工業製品 | E27: 0 | F27: 0 | G27: 0 | H27: 0 | I27: 0 | J27: 0 | K27: 0 | L27: 0 | M27: 0 | N27: 0 | O27: 0 | P27: 0 | Q27: 0 | R27: 0 | S27: 0 | T27: 0 | U27: 0 | V27: 0 | W27: 0 | X27: 0 | Y27: 0 | Z27: 0 | AA27: 0 | AB27: 0 | AC27: 0 | AD27: 0 | AE27: 0 | AF27: 0 | AG27: 0 | AH27: 0 | AI27: 0 | AJ27: 0 | AK27: 0 | AL27: 0 | AM27: 0 | AN27: 0 | AO27: 0 | AP27: 0 | AQ27: 0 | AR27: 0 | AS27: 0 | AT27: 0 | AU27: 0 | AV27: 0 | AW27: 0 | AX27: 0 | AY27: 0 | AZ27: 0 | BA27: 0 | BB27: 0 | BC27: 0 | BD27: 0 | BE27: 0 | BF27: 0 | BG27: 0 | BH27: 0 | BI27: 0 | BJ27: 0 | BK27: 0 | BL27: 0 | BM27: 0 | BN27: 0 | BO27: 0 | BP27: 0 | BQ27: 0 | BR27: 0 | BS27: 0 | BT27: 0 | BU27: 0 | BV27: 0 | BW27: 0 | CE27: 39 | CF27: その他の製造工業製品 | CG27: =+SUMIFS('R2建設IOデータ'!L:L,'R2建設IOデータ'!$A:$A,'R2建設io'!$CE27)/'R2建設IOデータ'!L$232 -> 0.002935500538 | CH27: =+SUMIFS('R2建設IOデータ'!M:M,'R2建設IOデータ'!$A:$A,'R2建設io'!$CE27)/'R2建設IOデータ'!M$232 -> 0.001870709648 | CI27: =+SUMIFS('R2建設IOデータ'!N:N,'R2建設IOデータ'!$A:$A,'R2建設io'!$CE27)/'R2建設IOデータ'!N$232 -> 0.002408755645 | CJ27: =+SUMIFS('R2建設IOデータ'!O:O,'R2建設IOデータ'!$A:$A,'R2建設io'!$CE27)/'R2建設IOデータ'!O$232 -> 0.002560433841 | CK27: =+SUMIFS('R2建設IOデータ'!P:P,'R2建設IOデータ'!$A:$A,'R2建設io'!$CE27)/'R2建設IOデータ'!P$232 -> 0.0025732641 | CL27: =+SUMIFS('R2建設IOデータ'!Q:Q,'R2建設IOデータ'!$A:$A,'R2建設io'!$CE27)/'R2建設IOデータ'!Q$232 -> 0.001976703142 | CM27: =+SUMIFS('R2建設IOデータ'!R:R,'R2建設IOデータ'!$A:$A,'R2建設io'!$CE27)/'R2建設IOデータ'!R$232 -> 0.002194023872 | CN27: =+SUMIFS('R2建設IOデータ'!S:S,'R2建設IOデータ'!$A:$A,'R2建設io'!$CE27)/'R2建設IOデータ'!S$232 -> 0.001963822909 | CO27: =+SUMIFS('R2建設IOデータ'!T:T,'R2建設IOデータ'!$A:$A,'R2建設io'!$CE27)/'R2建設IOデータ'!T$232 -> 0.002107497957 | CP27: =+SUMIFS('R2建設IOデータ'!U:U,'R2建設IOデータ'!$A:$A,'R2建設io'!$CE27)/'R2建設IOデータ'!U$232 -> 0.002107545011 | CQ27: =+SUMIFS('R2建設IOデータ'!V:V,'R2建設IOデータ'!$A:$A,'R2建設io'!$CE27)/'R2建設IOデータ'!V$232 -> 0.00210410585 | CR27: =+SUMIFS('R2建設IOデータ'!W:W,'R2建設IOデータ'!$A:$A,'R2建設io'!$CE27)/'R2建設IOデータ'!W$232 -> 0.002332099735 | CS27: =+SUMIFS('R2建設IOデータ'!X:X,'R2建設IOデータ'!$A:$A,'R2建設io'!$CE27)/'R2建設IOデータ'!X$232 -> 0.001907810882 | CT27: =+SUMIFS('R2建設IOデータ'!Y:Y,'R2建設IOデータ'!$A:$A,'R2建設io'!$CE27)/'R2建設IOデータ'!Y$232 -> 0.002507196062 | CU27: =+SUMIFS('R2建設IOデータ'!Z:Z,'R2建設IOデータ'!$A:$A,'R2建設io'!$CE27)/'R2建設IOデータ'!Z$232 -> 0.002241621545 | CV27: =+SUMIFS('R2建設IOデータ'!AA:AA,'R2建設IOデータ'!$A:$A,'R2建設io'!$CE27)/'R2建設IOデータ'!AA$232 -> 0.001308162774 | CW27: =+SUMIFS('R2建設IOデータ'!AB:AB,'R2建設IOデータ'!$A:$A,'R2建設io'!$CE27)/'R2建設IOデータ'!AB$232 -> 0.0007188734584 | CX27: =+SUMIFS('R2建設IOデータ'!AC:AC,'R2建設IOデータ'!$A:$A,'R2建設io'!$CE27)/'R2建設IOデータ'!AC$232 -> 0.0006801199993 | CY27: =+SUMIFS('R2建設IOデータ'!AD:AD,'R2建設IOデータ'!$A:$A,'R2建設io'!$CE27)/'R2建設IOデータ'!AD$232 -> 0.0007237686812 | CZ27: =+SUMIFS('R2建設IOデータ'!AE:AE,'R2建設IOデータ'!$A:$A,'R2建設io'!$CE27)/'R2建設IOデータ'!AE$232 -> 0.001348185467 | DA27: =+SUMIFS('R2建設IOデータ'!AF:AF,'R2建設IOデータ'!$A:$A,'R2建設io'!$CE27)/'R2建設IOデータ'!AF$232 -> 0.001433998528 | DB27: =+SUMIFS('R2建設IOデータ'!AG:AG,'R2建設IOデータ'!$A:$A,'R2建設io'!$CE27)/'R2建設IOデータ'!AG$232 -> 0.001333574923 | DC27: =+SUMIFS('R2建設IOデータ'!AH:AH,'R2建設IOデータ'!$A:$A,'R2建設io'!$CE27)/'R2建設IOデータ'!AH$232 -> 0.001487672539 | DD27: =+SUMIFS('R2建設IOデータ'!AI:AI,'R2建設IOデータ'!$A:$A,'R2建設io'!$CE27)/'R2建設IOデータ'!AI$232 -> 0.001290668325 | DE27: =+SUMIFS('R2建設IOデータ'!AJ:AJ,'R2建設IOデータ'!$A:$A,'R2建設io'!$CE27)/'R2建設IOデータ'!AJ$232 -> 0.001484123942 | DF27: =+SUMIFS('R2建設IOデータ'!AK:AK,'R2建設IOデータ'!$A:$A,'R2建設io'!$CE27)/'R2建設IOデータ'!AK$232 -> 0.001233288849 | DG27: =+SUMIFS('R2建設IOデータ'!AL:AL,'R2建設IOデータ'!$A:$A,'R2建設io'!$CE27)/'R2建設IOデータ'!AL$232 -> 0.001353724691 | DH27: =+SUMIFS('R2建設IOデータ'!AM:AM,'R2建設IOデータ'!$A:$A,'R2建設io'!$CE27)/'R2建設IOデータ'!AM$232 -> 0.001626322328 | DI27: =+SUMIFS('R2建設IOデータ'!AN:AN,'R2建設IOデータ'!$A:$A,'R2建設io'!$CE27)/'R2建設IOデータ'!AN$232 -> 0.005317192475 | DJ27: =+SUMIFS('R2建設IOデータ'!AO:AO,'R2建設IOデータ'!$A:$A,'R2建設io'!$CE27)/'R2建設IOデータ'!AO$232 -> 0.003310797721 | DK27: =+SUMIFS('R2建設IOデータ'!AP:AP,'R2建設IOデータ'!$A:$A,'R2建設io'!$CE27)/'R2建設IOデータ'!AP$232 -> 0.003252255842 | DL27: =+SUMIFS('R2建設IOデータ'!AQ:AQ,'R2建設IOデータ'!$A:$A,'R2建設io'!$CE27)/'R2建設IOデータ'!AQ$232 -> 0.0047700615 | DM27: =+SUMIFS('R2建設IOデータ'!AR:AR,'R2建設IOデータ'!$A:$A,'R2建設io'!$CE27)/'R2建設IOデータ'!AR$232 -> 0.00476307991 | DN27: =+SUMIFS('R2建設IOデータ'!AS:AS,'R2建設IOデータ'!$A:$A,'R2建設io'!$CE27)/'R2建設IOデータ'!AS$232 -> 0.004966222835 | DO27: =+SUMIFS('R2建設IOデータ'!AT:AT,'R2建設IOデータ'!$A:$A,'R2建設io'!$CE27)/'R2建設IOデータ'!AT$232 -> 0.005269330207 | DP27: =+SUMIFS('R2建設IOデータ'!AU:AU,'R2建設IOデータ'!$A:$A,'R2建設io'!$CE27)/'R2建設IOデータ'!AU$232 -> 0.001672944952 | DQ27: =+SUMIFS('R2建設IOデータ'!AV:AV,'R2建設IOデータ'!$A:$A,'R2建設io'!$CE27)/'R2建設IOデータ'!AV$232 -> 0.001786073728 | DR27: =+SUMIFS('R2建設IOデータ'!AW:AW,'R2建設IOデータ'!$A:$A,'R2建設io'!$CE27)/'R2建設IOデータ'!AW$232 -> 0.005772134426 | DS27: =+SUMIFS('R2建設IOデータ'!AX:AX,'R2建設IOデータ'!$A:$A,'R2建設io'!$CE27)/'R2建設IOデータ'!AX$232 -> 0.003229487153 | DT27: =+SUMIFS('R2建設IOデータ'!AY:AY,'R2建設IOデータ'!$A:$A,'R2建設io'!$CE27)/'R2建設IOデータ'!AY$232 -> 0.003423144876 | DU27: =+SUMIFS('R2建設IOデータ'!AZ:AZ,'R2建設IOデータ'!$A:$A,'R2建設io'!$CE27)/'R2建設IOデータ'!AZ$232 -> 0.003715305602 | DV27: =+SUMIFS('R2建設IOデータ'!BA:BA,'R2建設IOデータ'!$A:$A,'R2建設io'!$CE27)/'R2建設IOデータ'!BA$232 -> 0.003908881031 | DW27: =+SUMIFS('R2建設IOデータ'!BB:BB,'R2建設IOデータ'!$A:$A,'R2建設io'!$CE27)/'R2建設IOデータ'!BB$232 -> 0.003703112467 | DX27: =+SUMIFS('R2建設IOデータ'!BC:BC,'R2建設IOデータ'!$A:$A,'R2建設io'!$CE27)/'R2建設IOデータ'!BC$232 -> 0.003179805896 | DY27: =+SUMIFS('R2建設IOデータ'!BD:BD,'R2建設IOデータ'!$A:$A,'R2建設io'!$CE27)/'R2建設IOデータ'!BD$232 -> 0.009840350562 | DZ27: =+SUMIFS('R2建設IOデータ'!BE:BE,'R2建設IOデータ'!$A:$A,'R2建設io'!$CE27)/'R2建設IOデータ'!BE$232 -> 0.002983019734 | EA27: =+SUMIFS('R2建設IOデータ'!BF:BF,'R2建設IOデータ'!$A:$A,'R2建設io'!$CE27)/'R2建設IOデータ'!BF$232 -> 0.004138612638 | EB27: =+SUMIFS('R2建設IOデータ'!BG:BG,'R2建設IOデータ'!$A:$A,'R2建設io'!$CE27)/'R2建設IOデータ'!BG$232 -> 0.005933394736 | EC27: =+SUMIFS('R2建設IOデータ'!BH:BH,'R2建設IOデータ'!$A:$A,'R2建設io'!$CE27)/'R2建設IOデータ'!BH$232 -> 0.0058104446 | ED27: =+SUMIFS('R2建設IOデータ'!BI:BI,'R2建設IOデータ'!$A:$A,'R2建設io'!$CE27)/'R2建設IOデータ'!BI$232 -> 0.00649071988 | EE27: =+SUMIFS('R2建設IOデータ'!BJ:BJ,'R2建設IOデータ'!$A:$A,'R2建設io'!$CE27)/'R2建設IOデータ'!BJ$232 -> 0.005190078885 | EF27: =+SUMIFS('R2建設IOデータ'!BK:BK,'R2建設IOデータ'!$A:$A,'R2建設io'!$CE27)/'R2建設IOデータ'!BK$232 -> 0.00216709515 | EG27: =+SUMIFS('R2建設IOデータ'!BL:BL,'R2建設IOデータ'!$A:$A,'R2建設io'!$CE27)/'R2建設IOデータ'!BL$232 -> 0.002307217035 | EH27: =+SUMIFS('R2建設IOデータ'!BM:BM,'R2建設IOデータ'!$A:$A,'R2建設io'!$CE27)/'R2建設IOデータ'!BM$232 -> 0.002382096422 | EI27: =+SUMIFS('R2建設IOデータ'!BN:BN,'R2建設IOデータ'!$A:$A,'R2建設io'!$CE27)/'R2建設IOデータ'!BN$232 -> 0.003895005195 | EJ27: =+SUMIFS('R2建設IOデータ'!BO:BO,'R2建設IOデータ'!$A:$A,'R2建設io'!$CE27)/'R2建設IOデータ'!BO$232 -> 0.002240851751 | EK27: =+SUMIFS('R2建設IOデータ'!BP:BP,'R2建設IOデータ'!$A:$A,'R2建設io'!$CE27)/'R2建設IOデータ'!BP$232 -> 0.00144006971 | EL27: =+SUMIFS('R2建設IOデータ'!BQ:BQ,'R2建設IOデータ'!$A:$A,'R2建設io'!$CE27)/'R2建設IOデータ'!BQ$232 -> 0.001661148135 | EM27: =+SUMIFS('R2建設IOデータ'!BR:BR,'R2建設IOデータ'!$A:$A,'R2建設io'!$CE27)/'R2建設IOデータ'!BR$232 -> 0.001741231744 | EN27: =+SUMIFS('R2建設IOデータ'!BS:BS,'R2建設IOデータ'!$A:$A,'R2建設io'!$CE27)/'R2建設IOデータ'!BS$232 -> 0.002605457395 | EO27: =+SUMIFS('R2建設IOデータ'!BT:BT,'R2建設IOデータ'!$A:$A,'R2建設io'!$CE27)/'R2建設IOデータ'!BT$232 -> 0.001147451471 | EP27: =+SUMIFS('R2建設IOデータ'!BU:BU,'R2建設IOデータ'!$A:$A,'R2建設io'!$CE27)/'R2建設IOデータ'!BU$232 -> 0.01036684933 | EQ27: =+SUMIFS('R2建設IOデータ'!BV:BV,'R2建設IOデータ'!$A:$A,'R2建設io'!$CE27)/'R2建設IOデータ'!BV$232 -> 0.001832882234 | ER27: =+SUMIFS('R2建設IOデータ'!BW:BW,'R2建設IOデータ'!$A:$A,'R2建設io'!$CE27)/'R2建設IOデータ'!BW$232 -> 0.001291137941 | ES27: =+SUMIFS('R2建設IOデータ'!BX:BX,'R2建設IOデータ'!$A:$A,'R2建設io'!$CE27)/'R2建設IOデータ'!BX$232 -> 0.003393384033 | ET27: =+SUMIFS('R2建設IOデータ'!BY:BY,'R2建設IOデータ'!$A:$A,'R2建設io'!$CE27)/'R2建設IOデータ'!BY$232 -> 0.003139661149 | EU27: =+SUMIFS('R2建設IOデータ'!BZ:BZ,'R2建設IOデータ'!$A:$A,'R2建設io'!$CE27)/'R2建設IOデータ'!BZ$232 -> 0.002764565611 | EV27: =+SUMIFS('R2建設IOデータ'!CA:CA,'R2建設IOデータ'!$A:$A,'R2建設io'!$CE27)/'R2建設IOデータ'!CA$232 -> 0.002489990086 | EW27: =+SUMIFS('R2建設IOデータ'!CB:CB,'R2建設IOデータ'!$A:$A,'R2建設io'!$CE27)/'R2建設IOデータ'!CB$232 -> 0.00535395892 | EX27: =+SUMIFS('R2建設IOデータ'!CC:CC,'R2建設IOデータ'!$A:$A,'R2建設io'!$CE27)/'R2建設IOデータ'!CC$232 -> 0.002760803215 | EY27: =+SUMIFS('R2建設IOデータ'!CD:CD,'R2建設IOデータ'!$A:$A,'R2建設io'!$CE27)/'R2建設IOデータ'!CD$232 -> 0.00342966231
A28: 0 | C28: 41 | D28: 建設 | E28: 0 | F28: 0 | G28: 0 | H28: 0 | I28: 0 | J28: 0 | K28: 0 | L28: 0 | M28: 0 | N28: 0 | O28: 0 | P28: 0 | Q28: 0 | R28: 0 | S28: 0 | T28: 0 | U28: 0 | V28: 0 | W28: 0 | X28: 0 | Y28: 0 | Z28: 0 | AA28: 0 | AB28: 0 | AC28: 0 | AD28: 0 | AE28: 0 | AF28: 0 | AG28: 0 | AH28: 0 | AI28: 0 | AJ28: 0 | AK28: 0 | AL28: 0 | AM28: 0 | AN28: 0 | AO28: 0 | AP28: 0 | AQ28: 0 | AR28: 0 | AS28: 0 | AT28: 0 | AU28: 0 | AV28: 0 | AW28: 0 | AX28: 0 | AY28: 0 | AZ28: 0 | BA28: 0 | BB28: 0 | BC28: 0 | BD28: 0 | BE28: 0 | BF28: 0 | BG28: 0 | BH28: 0 | BI28: 0 | BJ28: 0 | BK28: 0 | BL28: 0 | BM28: 0 | BN28: 0 | BO28: 0 | BP28: 0 | BQ28: 0 | BR28: 0 | BS28: 0 | BT28: 0 | BU28: 0 | BV28: 0 | BW28: 0 | CE28: 41 | CF28: 建設 | CG28: =+SUMIFS('R2建設IOデータ'!L:L,'R2建設IOデータ'!$A:$A,'R2建設io'!$CE28)/'R2建設IOデータ'!L$232 -> 0.0008106660515 | CH28: =+SUMIFS('R2建設IOデータ'!M:M,'R2建設IOデータ'!$A:$A,'R2建設io'!$CE28)/'R2建設IOデータ'!M$232 -> 0.0008562025436 | CI28: =+SUMIFS('R2建設IOデータ'!N:N,'R2建設IOデータ'!$A:$A,'R2建設io'!$CE28)/'R2建設IOデータ'!N$232 -> 0.0007738728919 | CJ28: =+SUMIFS('R2建設IOデータ'!O:O,'R2建設IOデータ'!$A:$A,'R2建設io'!$CE28)/'R2建設IOデータ'!O$232 -> 0.0008386562283 | CK28: =+SUMIFS('R2建設IOデータ'!P:P,'R2建設IOデータ'!$A:$A,'R2建設io'!$CE28)/'R2建設IOデータ'!P$232 -> 0.0008474470132 | CL28: =+SUMIFS('R2建設IOデータ'!Q:Q,'R2建設IOデータ'!$A:$A,'R2建設io'!$CE28)/'R2建設IOデータ'!Q$232 -> 0.0004387070748 | CM28: =+SUMIFS('R2建設IOデータ'!R:R,'R2建設IOデータ'!$A:$A,'R2建設io'!$CE28)/'R2建設IOデータ'!R$232 -> 0.0006821587168 | CN28: =+SUMIFS('R2建設IOデータ'!S:S,'R2建設IOデータ'!$A:$A,'R2建設io'!$CE28)/'R2建設IOデータ'!S$232 -> 0.0007748416918 | CO28: =+SUMIFS('R2建設IOデータ'!T:T,'R2建設IOデータ'!$A:$A,'R2建設io'!$CE28)/'R2建設IOデータ'!T$232 -> 0.0007923217153 | CP28: =+SUMIFS('R2建設IOデータ'!U:U,'R2建設IOデータ'!$A:$A,'R2建設io'!$CE28)/'R2建設IOデータ'!U$232 -> 0.0007967387877 | CQ28: =+SUMIFS('R2建設IOデータ'!V:V,'R2建設IOデータ'!$A:$A,'R2建設io'!$CE28)/'R2建設IOデータ'!V$232 -> 0.0004738977139 | CR28: =+SUMIFS('R2建設IOデータ'!W:W,'R2建設IOデータ'!$A:$A,'R2建設io'!$CE28)/'R2建設IOデータ'!W$232 -> 0.0005188177624 | CS28: =+SUMIFS('R2建設IOデータ'!X:X,'R2建設IOデータ'!$A:$A,'R2建設io'!$CE28)/'R2建設IOデータ'!X$232 -> 0.0008750927408 | CT28: =+SUMIFS('R2建設IOデータ'!Y:Y,'R2建設IOデータ'!$A:$A,'R2建設io'!$CE28)/'R2建設IOデータ'!Y$232 -> 0.0003717895301 | CU28: =+SUMIFS('R2建設IOデータ'!Z:Z,'R2建設IOデータ'!$A:$A,'R2建設io'!$CE28)/'R2建設IOデータ'!Z$232 -> 0.000363079546 | CV28: =+SUMIFS('R2建設IOデータ'!AA:AA,'R2建設IOデータ'!$A:$A,'R2建設io'!$CE28)/'R2建設IOデータ'!AA$232 -> 0.0009422812216 | CW28: =+SUMIFS('R2建設IOデータ'!AB:AB,'R2建設IOデータ'!$A:$A,'R2建設io'!$CE28)/'R2建設IOデータ'!AB$232 -> 0.0008160467602 | CX28: =+SUMIFS('R2建設IOデータ'!AC:AC,'R2建設IOデータ'!$A:$A,'R2建設io'!$CE28)/'R2建設IOデータ'!AC$232 -> 0.0007080701362 | CY28: =+SUMIFS('R2建設IOデータ'!AD:AD,'R2建設IOデータ'!$A:$A,'R2建設io'!$CE28)/'R2建設IOデータ'!AD$232 -> 0.0008296860492 | CZ28: =+SUMIFS('R2建設IOデータ'!AE:AE,'R2建設IOデータ'!$A:$A,'R2建設io'!$CE28)/'R2建設IOデータ'!AE$232 -> 0.0009508546728 | DA28: =+SUMIFS('R2建設IOデータ'!AF:AF,'R2建設IOデータ'!$A:$A,'R2建設io'!$CE28)/'R2建設IOデータ'!AF$232 -> 0.0008634022554 | DB28: =+SUMIFS('R2建設IOデータ'!AG:AG,'R2建設IOデータ'!$A:$A,'R2建設io'!$CE28)/'R2建設IOデータ'!AG$232 -> 0.001084737573 | DC28: =+SUMIFS('R2建設IOデータ'!AH:AH,'R2建設IOデータ'!$A:$A,'R2建設io'!$CE28)/'R2建設IOデータ'!AH$232 -> 0.001057579507 | DD28: =+SUMIFS('R2建設IOデータ'!AI:AI,'R2建設IOデータ'!$A:$A,'R2建設io'!$CE28)/'R2建設IOデータ'!AI$232 -> 0.0009858987838 | DE28: =+SUMIFS('R2建設IOデータ'!AJ:AJ,'R2建設IOデータ'!$A:$A,'R2建設io'!$CE28)/'R2建設IOデータ'!AJ$232 -> 0.0009368224216 | DF28: =+SUMIFS('R2建設IOデータ'!AK:AK,'R2建設IOデータ'!$A:$A,'R2建設io'!$CE28)/'R2建設IOデータ'!AK$232 -> 0.0009543571751 | DG28: =+SUMIFS('R2建設IOデータ'!AL:AL,'R2建設IOデータ'!$A:$A,'R2建設io'!$CE28)/'R2建設IOデータ'!AL$232 -> 0.0009353849661 | DH28: =+SUMIFS('R2建設IOデータ'!AM:AM,'R2建設IOデータ'!$A:$A,'R2建設io'!$CE28)/'R2建設IOデータ'!AM$232 -> 0.0008206904341 | DI28: =+SUMIFS('R2建設IOデータ'!AN:AN,'R2建設IOデータ'!$A:$A,'R2建設io'!$CE28)/'R2建設IOデータ'!AN$232 -> 0.001481353711 | DJ28: =+SUMIFS('R2建設IOデータ'!AO:AO,'R2建設IOデータ'!$A:$A,'R2建設io'!$CE28)/'R2建設IOデータ'!AO$232 -> 0.0004455608312 | DK28: =+SUMIFS('R2建設IOデータ'!AP:AP,'R2建設IOデータ'!$A:$A,'R2建設io'!$CE28)/'R2建設IOデータ'!AP$232 -> 0.000504724318 | DL28: =+SUMIFS('R2建設IOデータ'!AQ:AQ,'R2建設IOデータ'!$A:$A,'R2建設io'!$CE28)/'R2建設IOデータ'!AQ$232 -> 0.0006403357063 | DM28: =+SUMIFS('R2建設IOデータ'!AR:AR,'R2建設IOデータ'!$A:$A,'R2建設io'!$CE28)/'R2建設IOデータ'!AR$232 -> 0.0006394653032 | DN28: =+SUMIFS('R2建設IOデータ'!AS:AS,'R2建設IOデータ'!$A:$A,'R2建設io'!$CE28)/'R2建設IOデータ'!AS$232 -> 0.0006843287441 | DO28: =+SUMIFS('R2建設IOデータ'!AT:AT,'R2建設IOデータ'!$A:$A,'R2建設io'!$CE28)/'R2建設IOデータ'!AT$232 -> 0.0006382220177 | DP28: =+SUMIFS('R2建設IOデータ'!AU:AU,'R2建設IOデータ'!$A:$A,'R2建設io'!$CE28)/'R2建設IOデータ'!AU$232 -> 0.000603170629 | DQ28: =+SUMIFS('R2建設IOデータ'!AV:AV,'R2建設IOデータ'!$A:$A,'R2建設io'!$CE28)/'R2建設IOデータ'!AV$232 -> 0.0005613374574 | DR28: =+SUMIFS('R2建設IOデータ'!AW:AW,'R2建設IOデータ'!$A:$A,'R2建設io'!$CE28)/'R2建設IOデータ'!AW$232 -> 0.0007520662154 | DS28: =+SUMIFS('R2建設IOデータ'!AX:AX,'R2建設IOデータ'!$A:$A,'R2建設io'!$CE28)/'R2建設IOデータ'!AX$232 -> 0.0007360581919 | DT28: =+SUMIFS('R2建設IOデータ'!AY:AY,'R2建設IOデータ'!$A:$A,'R2建設io'!$CE28)/'R2建設IOデータ'!AY$232 -> 0.0004416961131 | DU28: =+SUMIFS('R2建設IOデータ'!AZ:AZ,'R2建設IOデータ'!$A:$A,'R2建設io'!$CE28)/'R2建設IOデータ'!AZ$232 -> 0.0001456982589 | DV28: =+SUMIFS('R2建設IOデータ'!BA:BA,'R2建設IOデータ'!$A:$A,'R2建設io'!$CE28)/'R2建設IOデータ'!BA$232 -> 0.0004508183157 | DW28: =+SUMIFS('R2建設IOデータ'!BB:BB,'R2建設IOデータ'!$A:$A,'R2建設io'!$CE28)/'R2建設IOデータ'!BB$232 -> 0.0004286466001 | DX28: =+SUMIFS('R2建設IOデータ'!BC:BC,'R2建設IOデータ'!$A:$A,'R2建設io'!$CE28)/'R2建設IOデータ'!BC$232 -> 0.0004205621514 | DY28: =+SUMIFS('R2建設IOデータ'!BD:BD,'R2建設IOデータ'!$A:$A,'R2建設io'!$CE28)/'R2建設IOデータ'!BD$232 -> 0.0004356405197 | DZ28: =+SUMIFS('R2建設IOデータ'!BE:BE,'R2建設IOデータ'!$A:$A,'R2建設io'!$CE28)/'R2建設IOデータ'!BE$232 -> 0.0005966039468 | EA28: =+SUMIFS('R2建設IOデータ'!BF:BF,'R2建設IOデータ'!$A:$A,'R2建設io'!$CE28)/'R2建設IOデータ'!BF$232 -> 0.0006177033788 | EB28: =+SUMIFS('R2建設IOデータ'!BG:BG,'R2建設IOデータ'!$A:$A,'R2建設io'!$CE28)/'R2建設IOデータ'!BG$232 -> 0.0006689611712 | EC28: =+SUMIFS('R2建設IOデータ'!BH:BH,'R2建設IOデータ'!$A:$A,'R2建設io'!$CE28)/'R2建設IOデータ'!BH$232 -> 0.0006745322651 | ED28: =+SUMIFS('R2建設IOデータ'!BI:BI,'R2建設IOデータ'!$A:$A,'R2建設io'!$CE28)/'R2建設IOデータ'!BI$232 -> 0.0006437077567 | EE28: =+SUMIFS('R2建設IOデータ'!BJ:BJ,'R2建設IOデータ'!$A:$A,'R2建設io'!$CE28)/'R2建設IOデータ'!BJ$232 -> 0.0006926997715 | EF28: =+SUMIFS('R2建設IOデータ'!BK:BK,'R2建設IOデータ'!$A:$A,'R2建設io'!$CE28)/'R2建設IOデータ'!BK$232 -> 0.0004522305059 | EG28: =+SUMIFS('R2建設IOデータ'!BL:BL,'R2建設IOデータ'!$A:$A,'R2建設io'!$CE28)/'R2建設IOデータ'!BL$232 -> 0.0007116832903 | EH28: =+SUMIFS('R2建設IOデータ'!BM:BM,'R2建設IOデータ'!$A:$A,'R2建設io'!$CE28)/'R2建設IOデータ'!BM$232 -> 0.0003105900327 | EI28: =+SUMIFS('R2建設IOデータ'!BN:BN,'R2建設IOデータ'!$A:$A,'R2建設io'!$CE28)/'R2建設IOデータ'!BN$232 -> 0.0002384697058 | EJ28: =+SUMIFS('R2建設IOデータ'!BO:BO,'R2建設IOデータ'!$A:$A,'R2建設io'!$CE28)/'R2建設IOデータ'!BO$232 -> 0.0003241841366 | EK28: =+SUMIFS('R2建設IOデータ'!BP:BP,'R2建設IOデータ'!$A:$A,'R2建設io'!$CE28)/'R2建設IOデータ'!BP$232 -> 0.002412346075 | EL28: =+SUMIFS('R2建設IOデータ'!BQ:BQ,'R2建設IOデータ'!$A:$A,'R2建設io'!$CE28)/'R2建設IOデータ'!BQ$232 -> 0.0003379043567 | EM28: =+SUMIFS('R2建設IOデータ'!BR:BR,'R2建設IOデータ'!$A:$A,'R2建設io'!$CE28)/'R2建設IOデータ'!BR$232 -> 0.0003145450892 | EN28: =+SUMIFS('R2建設IOデータ'!BS:BS,'R2建設IOデータ'!$A:$A,'R2建設io'!$CE28)/'R2建設IOデータ'!BS$232 -> 0.0003817765335 | EO28: =+SUMIFS('R2建設IOデータ'!BT:BT,'R2建設IOデータ'!$A:$A,'R2建設io'!$CE28)/'R2建設IOデータ'!BT$232 -> 0.0001958580959 | EP28: =+SUMIFS('R2建設IOデータ'!BU:BU,'R2建設IOデータ'!$A:$A,'R2建設io'!$CE28)/'R2建設IOデータ'!BU$232 -> 0.0004242040363 | EQ28: =+SUMIFS('R2建設IOデータ'!BV:BV,'R2建設IOデータ'!$A:$A,'R2建設io'!$CE28)/'R2建設IOデータ'!BV$232 -> 0.0002621146411 | ER28: =+SUMIFS('R2建設IOデータ'!BW:BW,'R2建設IOデータ'!$A:$A,'R2建設io'!$CE28)/'R2建設IOデータ'!BW$232 -> 0.0001051792934 | ES28: =+SUMIFS('R2建設IOデータ'!BX:BX,'R2建設IOデータ'!$A:$A,'R2建設io'!$CE28)/'R2建設IOデータ'!BX$232 -> 0.0003620976041 | ET28: =+SUMIFS('R2建設IOデータ'!BY:BY,'R2建設IOデータ'!$A:$A,'R2建設io'!$CE28)/'R2建設IOデータ'!BY$232 -> 0.0003565278489 | EU28: =+SUMIFS('R2建設IOデータ'!BZ:BZ,'R2建設IOデータ'!$A:$A,'R2建設io'!$CE28)/'R2建設IOデータ'!BZ$232 -> 0.0005106046912 | EV28: =+SUMIFS('R2建設IOデータ'!CA:CA,'R2建設IOデータ'!$A:$A,'R2建設io'!$CE28)/'R2建設IOデータ'!CA$232 -> 0.0003427578946 | EW28: =+SUMIFS('R2建設IOデータ'!CB:CB,'R2建設IOデータ'!$A:$A,'R2建設io'!$CE28)/'R2建設IOデータ'!CB$232 -> 0.0002747974693 | EX28: =+SUMIFS('R2建設IOデータ'!CC:CC,'R2建設IOデータ'!$A:$A,'R2建設io'!$CE28)/'R2建設IOデータ'!CC$232 -> 0.000235032408 | EY28: =+SUMIFS('R2建設IOデータ'!CD:CD,'R2建設IOデータ'!$A:$A,'R2建設io'!$CE28)/'R2建設IOデータ'!CD$232 -> 0.0003124811512
A29: 0 | C29: 46 | D29: 電気・ガス・熱供給 | E29: 0 | F29: 0 | G29: 0 | H29: 0 | I29: 0 | J29: 0 | K29: 0 | L29: 0 | M29: 0 | N29: 0 | O29: 0 | P29: 0 | Q29: 0 | R29: 0 | S29: 0 | T29: 0 | U29: 0 | V29: 0 | W29: 0 | X29: 0 | Y29: 0 | Z29: 0 | AA29: 0 | AB29: 0 | AC29: 0 | AD29: 0 | AE29: 0 | AF29: 0 | AG29: 0 | AH29: 0 | AI29: 0 | AJ29: 0 | AK29: 0 | AL29: 0 | AM29: 0 | AN29: 0 | AO29: 0 | AP29: 0 | AQ29: 0 | AR29: 0 | AS29: 0 | AT29: 0 | AU29: 0 | AV29: 0 | AW29: 0 | AX29: 0 | AY29: 0 | AZ29: 0 | BA29: 0 | BB29: 0 | BC29: 0 | BD29: 0 | BE29: 0 | BF29: 0 | BG29: 0 | BH29: 0 | BI29: 0 | BJ29: 0 | BK29: 0 | BL29: 0 | BM29: 0 | BN29: 0 | BO29: 0 | BP29: 0 | BQ29: 0 | BR29: 0 | BS29: 0 | BT29: 0 | BU29: 0 | BV29: 0 | BW29: 0 | CE29: 46 | CF29: 電気・ガス・熱供給 | CG29: =+SUMIFS('R2建設IOデータ'!L:L,'R2建設IOデータ'!$A:$A,'R2建設io'!$CE29)/'R2建設IOデータ'!L$232 -> 0.002832053427 | CH29: =+SUMIFS('R2建設IOデータ'!M:M,'R2建設IOデータ'!$A:$A,'R2建設io'!$CE29)/'R2建設IOデータ'!M$232 -> 0.003146112283 | CI29: =+SUMIFS('R2建設IOデータ'!N:N,'R2建設IOデータ'!$A:$A,'R2建設io'!$CE29)/'R2建設IOデータ'!N$232 -> 0.004806261659 | CJ29: =+SUMIFS('R2建設IOデータ'!O:O,'R2建設IOデータ'!$A:$A,'R2建設io'!$CE29)/'R2建設IOデータ'!O$232 -> 0.003637466688 | CK29: =+SUMIFS('R2建設IOデータ'!P:P,'R2建設IOデータ'!$A:$A,'R2建設io'!$CE29)/'R2建設IOデータ'!P$232 -> 0.003628305706 | CL29: =+SUMIFS('R2建設IOデータ'!Q:Q,'R2建設IOデータ'!$A:$A,'R2建設io'!$CE29)/'R2建設IOデータ'!Q$232 -> 0.004054258484 | CM29: =+SUMIFS('R2建設IOデータ'!R:R,'R2建設IOデータ'!$A:$A,'R2建設io'!$CE29)/'R2建設IOデータ'!R$232 -> 0.006460932019 | CN29: =+SUMIFS('R2建設IOデータ'!S:S,'R2建設IOデータ'!$A:$A,'R2建設io'!$CE29)/'R2建設IOデータ'!S$232 -> 0.006238811553 | CO29: =+SUMIFS('R2建設IOデータ'!T:T,'R2建設IOデータ'!$A:$A,'R2建設io'!$CE29)/'R2建設IOデータ'!T$232 -> 0.006835752357 | CP29: =+SUMIFS('R2建設IOデータ'!U:U,'R2建設IOデータ'!$A:$A,'R2建設io'!$CE29)/'R2建設IOデータ'!U$232 -> 0.006834072968 | CQ29: =+SUMIFS('R2建設IOデータ'!V:V,'R2建設IOデータ'!$A:$A,'R2建設io'!$CE29)/'R2建設IOデータ'!V$232 -> 0.00695681844 | CR29: =+SUMIFS('R2建設IOデータ'!W:W,'R2建設IOデータ'!$A:$A,'R2建設io'!$CE29)/'R2建設IOデータ'!W$232 -> 0.005949136806 | CS29: =+SUMIFS('R2建設IOデータ'!X:X,'R2建設IOデータ'!$A:$A,'R2建設io'!$CE29)/'R2建設IOデータ'!X$232 -> 0.005617443153 | CT29: =+SUMIFS('R2建設IOデータ'!Y:Y,'R2建設IOデータ'!$A:$A,'R2建設io'!$CE29)/'R2建設IOデータ'!Y$232 -> 0.00608602077 | CU29: =+SUMIFS('R2建設IOデータ'!Z:Z,'R2建設IOデータ'!$A:$A,'R2建設io'!$CE29)/'R2建設IOデータ'!Z$232 -> 0.004262238149 | CV29: =+SUMIFS('R2建設IOデータ'!AA:AA,'R2建設IOデータ'!$A:$A,'R2建設io'!$CE29)/'R2建設IOデータ'!AA$232 -> 0.001410365067 | CW29: =+SUMIFS('R2建設IOデータ'!AB:AB,'R2建設IOデータ'!$A:$A,'R2建設io'!$CE29)/'R2建設IOデータ'!AB$232 -> 0.001383413458 | CX29: =+SUMIFS('R2建設IOデータ'!AC:AC,'R2建設IOデータ'!$A:$A,'R2建設io'!$CE29)/'R2建設IOデータ'!AC$232 -> 0.001229806026 | CY29: =+SUMIFS('R2建設IOデータ'!AD:AD,'R2建設IOデータ'!$A:$A,'R2建設io'!$CE29)/'R2建設IOデータ'!AD$232 -> 0.001402816696 | CZ29: =+SUMIFS('R2建設IOデータ'!AE:AE,'R2建設IOデータ'!$A:$A,'R2建設io'!$CE29)/'R2建設IOデータ'!AE$232 -> 0.001412195536 | DA29: =+SUMIFS('R2建設IOデータ'!AF:AF,'R2建設IOデータ'!$A:$A,'R2建設io'!$CE29)/'R2建設IOデータ'!AF$232 -> 0.001306365152 | DB29: =+SUMIFS('R2建設IOデータ'!AG:AG,'R2建設IOデータ'!$A:$A,'R2建設io'!$CE29)/'R2建設IOデータ'!AG$232 -> 0.001444706167 | DC29: =+SUMIFS('R2建設IOデータ'!AH:AH,'R2建設IOデータ'!$A:$A,'R2建設io'!$CE29)/'R2建設IOデータ'!AH$232 -> 0.001741234848 | DD29: =+SUMIFS('R2建設IOデータ'!AI:AI,'R2建設IOデータ'!$A:$A,'R2建設io'!$CE29)/'R2建設IOデータ'!AI$232 -> 0.001458393844 | DE29: =+SUMIFS('R2建設IOデータ'!AJ:AJ,'R2建設IOデータ'!$A:$A,'R2建設io'!$CE29)/'R2建設IOデータ'!AJ$232 -> 0.001364966704 | DF29: =+SUMIFS('R2建設IOデータ'!AK:AK,'R2建設IOデータ'!$A:$A,'R2建設io'!$CE29)/'R2建設IOデータ'!AK$232 -> 0.001413715815 | DG29: =+SUMIFS('R2建設IOデータ'!AL:AL,'R2建設IOデータ'!$A:$A,'R2建設io'!$CE29)/'R2建設IOデータ'!AL$232 -> 0.001380503927 | DH29: =+SUMIFS('R2建設IOデータ'!AM:AM,'R2建設IOデータ'!$A:$A,'R2建設io'!$CE29)/'R2建設IOデータ'!AM$232 -> 0.001912434589 | DI29: =+SUMIFS('R2建設IOデータ'!AN:AN,'R2建設IOデータ'!$A:$A,'R2建設io'!$CE29)/'R2建設IOデータ'!AN$232 -> 0.002350760841 | DJ29: =+SUMIFS('R2建設IOデータ'!AO:AO,'R2建設IOデータ'!$A:$A,'R2建設io'!$CE29)/'R2建設IOデータ'!AO$232 -> 0.002621422744 | DK29: =+SUMIFS('R2建設IOデータ'!AP:AP,'R2建設IOデータ'!$A:$A,'R2建設io'!$CE29)/'R2建設IOデータ'!AP$232 -> 0.001920827899 | DL29: =+SUMIFS('R2建設IOデータ'!AQ:AQ,'R2建設IOデータ'!$A:$A,'R2建設io'!$CE29)/'R2建設IOデータ'!AQ$232 -> 0.002053875088 | DM29: =+SUMIFS('R2建設IOデータ'!AR:AR,'R2建設IOデータ'!$A:$A,'R2建設io'!$CE29)/'R2建設IOデータ'!AR$232 -> 0.00204178642 | DN29: =+SUMIFS('R2建設IOデータ'!AS:AS,'R2建設IOデータ'!$A:$A,'R2建設io'!$CE29)/'R2建設IOデータ'!AS$232 -> 0.002127864603 | DO29: =+SUMIFS('R2建設IOデータ'!AT:AT,'R2建設IOデータ'!$A:$A,'R2建設io'!$CE29)/'R2建設IOデータ'!AT$232 -> 0.001981222755 | DP29: =+SUMIFS('R2建設IOデータ'!AU:AU,'R2建設IOデータ'!$A:$A,'R2建設io'!$CE29)/'R2建設IOデータ'!AU$232 -> 0.001798131309 | DQ29: =+SUMIFS('R2建設IOデータ'!AV:AV,'R2建設IOデータ'!$A:$A,'R2建設io'!$CE29)/'R2建設IOデータ'!AV$232 -> 0.001922155536 | DR29: =+SUMIFS('R2建設IOデータ'!AW:AW,'R2建設IOデータ'!$A:$A,'R2建設io'!$CE29)/'R2建設IOデータ'!AW$232 -> 0.00236843168 | DS29: =+SUMIFS('R2建設IOデータ'!AX:AX,'R2建設IOデータ'!$A:$A,'R2建設io'!$CE29)/'R2建設IOデータ'!AX$232 -> 0.001973858473 | DT29: =+SUMIFS('R2建設IOデータ'!AY:AY,'R2建設IOデータ'!$A:$A,'R2建設io'!$CE29)/'R2建設IOデータ'!AY$232 -> 0.001766784452 | DU29: =+SUMIFS('R2建設IOデータ'!AZ:AZ,'R2建設IOデータ'!$A:$A,'R2建設io'!$CE29)/'R2建設IOデータ'!AZ$232 -> 0.001456982589 | DV29: =+SUMIFS('R2建設IOデータ'!BA:BA,'R2建設IOデータ'!$A:$A,'R2建設io'!$CE29)/'R2建設IOデータ'!BA$232 -> 0.001679834915 | DW29: =+SUMIFS('R2建設IOデータ'!BB:BB,'R2建設IOデータ'!$A:$A,'R2建設io'!$CE29)/'R2建設IOデータ'!BB$232 -> 0.001603236824 | DX29: =+SUMIFS('R2建設IOデータ'!BC:BC,'R2建設IOデータ'!$A:$A,'R2建設io'!$CE29)/'R2建設IOデータ'!BC$232 -> 0.001544286418 | DY29: =+SUMIFS('R2建設IOデータ'!BD:BD,'R2建設IOデータ'!$A:$A,'R2建設io'!$CE29)/'R2建設IOデータ'!BD$232 -> 0.002024447121 | DZ29: =+SUMIFS('R2建設IOデータ'!BE:BE,'R2建設IOデータ'!$A:$A,'R2建設io'!$CE29)/'R2建設IOデータ'!BE$232 -> 0.001835704452 | EA29: =+SUMIFS('R2建設IOデータ'!BF:BF,'R2建設IOデータ'!$A:$A,'R2建設io'!$CE29)/'R2建設IOデータ'!BF$232 -> 0.002532583853 | EB29: =+SUMIFS('R2建設IOデータ'!BG:BG,'R2建設IOデータ'!$A:$A,'R2建設io'!$CE29)/'R2建設IOデータ'!BG$232 -> 0.002433467449 | EC29: =+SUMIFS('R2建設IOデータ'!BH:BH,'R2建設IOデータ'!$A:$A,'R2建設io'!$CE29)/'R2建設IOデータ'!BH$232 -> 0.00231944428 | ED29: =+SUMIFS('R2建設IOデータ'!BI:BI,'R2建設IOデータ'!$A:$A,'R2建設io'!$CE29)/'R2建設IOデータ'!BI$232 -> 0.002950327218 | EE29: =+SUMIFS('R2建設IOデータ'!BJ:BJ,'R2建設IOデータ'!$A:$A,'R2建設io'!$CE29)/'R2建設IOデータ'!BJ$232 -> 0.002781137889 | EF29: =+SUMIFS('R2建設IOデータ'!BK:BK,'R2建設IOデータ'!$A:$A,'R2建設io'!$CE29)/'R2建設IOデータ'!BK$232 -> 0.001869657155 | EG29: =+SUMIFS('R2建設IOデータ'!BL:BL,'R2建設IOデータ'!$A:$A,'R2建設io'!$CE29)/'R2建設IOデータ'!BL$232 -> 0.0006678669683 | EH29: =+SUMIFS('R2建設IOデータ'!BM:BM,'R2建設IOデータ'!$A:$A,'R2建設io'!$CE29)/'R2建設IOデータ'!BM$232 -> 0.000617781925 | EI29: =+SUMIFS('R2建設IOデータ'!BN:BN,'R2建設IOデータ'!$A:$A,'R2建設io'!$CE29)/'R2建設IOデータ'!BN$232 -> 0.0006018521147 | EJ29: =+SUMIFS('R2建設IOデータ'!BO:BO,'R2建設IOデータ'!$A:$A,'R2建設io'!$CE29)/'R2建設IOデータ'!BO$232 -> 0.0006199310682 | EK29: =+SUMIFS('R2建設IOデータ'!BP:BP,'R2建設IOデータ'!$A:$A,'R2建設io'!$CE29)/'R2建設IOデータ'!BP$232 -> 0.0008828452842 | EL29: =+SUMIFS('R2建設IOデータ'!BQ:BQ,'R2建設IOデータ'!$A:$A,'R2建設io'!$CE29)/'R2建設IOデータ'!BQ$232 -> 0.001790979071 | EM29: =+SUMIFS('R2建設IOデータ'!BR:BR,'R2建設IOデータ'!$A:$A,'R2建設io'!$CE29)/'R2建設IOデータ'!BR$232 -> 0.0009798329166 | EN29: =+SUMIFS('R2建設IOデータ'!BS:BS,'R2建設IOデータ'!$A:$A,'R2建設io'!$CE29)/'R2建設IOデータ'!BS$232 -> 0.000924301081 | EO29: =+SUMIFS('R2建設IOデータ'!BT:BT,'R2建設IOデータ'!$A:$A,'R2建設io'!$CE29)/'R2建設IOデータ'!BT$232 -> 0.0007596920082 | EP29: =+SUMIFS('R2建設IOデータ'!BU:BU,'R2建設IOデータ'!$A:$A,'R2建設io'!$CE29)/'R2建設IOデータ'!BU$232 -> 0.0004125820079 | EQ29: =+SUMIFS('R2建設IOデータ'!BV:BV,'R2建設IOデータ'!$A:$A,'R2建設io'!$CE29)/'R2建設IOデータ'!BV$232 -> 0.006164014636 | ER29: =+SUMIFS('R2建設IOデータ'!BW:BW,'R2建設IOデータ'!$A:$A,'R2建設io'!$CE29)/'R2建設IOデータ'!BW$232 -> 0.001527170213 | ES29: =+SUMIFS('R2建設IOデータ'!BX:BX,'R2建設IOデータ'!$A:$A,'R2建設io'!$CE29)/'R2建設IOデータ'!BX$232 -> 0.003609767241 | ET29: =+SUMIFS('R2建設IOデータ'!BY:BY,'R2建設IOデータ'!$A:$A,'R2建設io'!$CE29)/'R2建設IOデータ'!BY$232 -> 0.00349553721 | EU29: =+SUMIFS('R2建設IOデータ'!BZ:BZ,'R2建設IOデータ'!$A:$A,'R2建設io'!$CE29)/'R2建設IOデータ'!BZ$232 -> 0.002561734015 | EV29: =+SUMIFS('R2建設IOデータ'!CA:CA,'R2建設IOデータ'!$A:$A,'R2建設io'!$CE29)/'R2建設IOデータ'!CA$232 -> 0.005047609533 | EW29: =+SUMIFS('R2建設IOデータ'!CB:CB,'R2建設IOデータ'!$A:$A,'R2建設io'!$CE29)/'R2建設IOデータ'!CB$232 -> 0.007250697237 | EX29: =+SUMIFS('R2建設IOデータ'!CC:CC,'R2建設IOデータ'!$A:$A,'R2建設io'!$CE29)/'R2建設IOデータ'!CC$232 -> 0.002808802791 | EY29: =+SUMIFS('R2建設IOデータ'!CD:CD,'R2建設IOデータ'!$A:$A,'R2建設io'!$CE29)/'R2建設IOデータ'!CD$232 -> 0.002554715086
A30: 0 | C30: 47 | D30: 水道 | E30: 0 | F30: 0 | G30: 0 | H30: 0 | I30: 0 | J30: 0 | K30: 0 | L30: 0 | M30: 0 | N30: 0 | O30: 0 | P30: 0 | Q30: 0 | R30: 0 | S30: 0 | T30: 0 | U30: 0 | V30: 0 | W30: 0 | X30: 0 | Y30: 0 | Z30: 0 | AA30: 0 | AB30: 0 | AC30: 0 | AD30: 0 | AE30: 0 | AF30: 0 | AG30: 0 | AH30: 0 | AI30: 0 | AJ30: 0 | AK30: 0 | AL30: 0 | AM30: 0 | AN30: 0 | AO30: 0 | AP30: 0 | AQ30: 0 | AR30: 0 | AS30: 0 | AT30: 0 | AU30: 0 | AV30: 0 | AW30: 0 | AX30: 0 | AY30: 0 | AZ30: 0 | BA30: 0 | BB30: 0 | BC30: 0 | BD30: 0 | BE30: 0 | BF30: 0 | BG30: 0 | BH30: 0 | BI30: 0 | BJ30: 0 | BK30: 0 | BL30: 0 | BM30: 0 | BN30: 0 | BO30: 0 | BP30: 0 | BQ30: 0 | BR30: 0 | BS30: 0 | BT30: 0 | BU30: 0 | BV30: 0 | BW30: 0 | CE30: 47 | CF30: 水道 | CG30: =+SUMIFS('R2建設IOデータ'!L:L,'R2建設IOデータ'!$A:$A,'R2建設io'!$CE30)/'R2建設IOデータ'!L$232 -> 0.0008604232308 | CH30: =+SUMIFS('R2建設IOデータ'!M:M,'R2建設IOデータ'!$A:$A,'R2建設io'!$CE30)/'R2建設IOデータ'!M$232 -> 0.0007445804484 | CI30: =+SUMIFS('R2建設IOデータ'!N:N,'R2建設IOデータ'!$A:$A,'R2建設io'!$CE30)/'R2建設IOデータ'!N$232 -> 0.0008201425589 | CJ30: =+SUMIFS('R2建設IOデータ'!O:O,'R2建設IOデータ'!$A:$A,'R2建設io'!$CE30)/'R2建設IOデータ'!O$232 -> 0.0009353950561 | CK30: =+SUMIFS('R2建設IOデータ'!P:P,'R2建設IOデータ'!$A:$A,'R2建設io'!$CE30)/'R2建設IOデータ'!P$232 -> 0.0009338985788 | CL30: =+SUMIFS('R2建設IOデータ'!Q:Q,'R2建設IOデータ'!$A:$A,'R2建設io'!$CE30)/'R2建設IOデータ'!Q$232 -> 0.001003479401 | CM30: =+SUMIFS('R2建設IOデータ'!R:R,'R2建設IOデータ'!$A:$A,'R2建設io'!$CE30)/'R2建設IOデータ'!R$232 -> 0.0006569788767 | CN30: =+SUMIFS('R2建設IOデータ'!S:S,'R2建設IOデータ'!$A:$A,'R2建設io'!$CE30)/'R2建設IOデータ'!S$232 -> 0.0005477329201 | CO30: =+SUMIFS('R2建設IOデータ'!T:T,'R2建設IOデータ'!$A:$A,'R2建設io'!$CE30)/'R2建設IOデータ'!T$232 -> 0.0005936577435 | CP30: =+SUMIFS('R2建設IOデータ'!U:U,'R2建設IOデータ'!$A:$A,'R2建設io'!$CE30)/'R2建設IOデータ'!U$232 -> 0.0005840121609 | CQ30: =+SUMIFS('R2建設IOデータ'!V:V,'R2建設IOデータ'!$A:$A,'R2建設io'!$CE30)/'R2建設IOデータ'!V$232 -> 0.001289001782 | CR30: =+SUMIFS('R2建設IOデータ'!W:W,'R2建設IOデータ'!$A:$A,'R2建設io'!$CE30)/'R2建設IOデータ'!W$232 -> 0.0007641348069 | CS30: =+SUMIFS('R2建設IOデータ'!X:X,'R2建設IOデータ'!$A:$A,'R2建設io'!$CE30)/'R2建設IOデータ'!X$232 -> 0.0004837469188 | CT30: =+SUMIFS('R2建設IOデータ'!Y:Y,'R2建設IOデータ'!$A:$A,'R2建設io'!$CE30)/'R2建設IOデータ'!Y$232 -> 0.0008798458111 | CU30: =+SUMIFS('R2建設IOデータ'!Z:Z,'R2建設IOデータ'!$A:$A,'R2建設io'!$CE30)/'R2建設IOデータ'!Z$232 -> 0.0003788656132 | CV30: =+SUMIFS('R2建設IOデータ'!AA:AA,'R2建設IOデータ'!$A:$A,'R2建設io'!$CE30)/'R2建設IOデータ'!AA$232 -> 0.0006655774835 | CW30: =+SUMIFS('R2建設IOデータ'!AB:AB,'R2建設IOデータ'!$A:$A,'R2建設io'!$CE30)/'R2建設IOデータ'!AB$232 -> 0.001437746917 | CX30: =+SUMIFS('R2建設IOデータ'!AC:AC,'R2建設IOデータ'!$A:$A,'R2建設io'!$CE30)/'R2建設IOデータ'!AC$232 -> 0.001621107943 | CY30: =+SUMIFS('R2建設IOデータ'!AD:AD,'R2建設IOデータ'!$A:$A,'R2建設io'!$CE30)/'R2建設IOデータ'!AD$232 -> 0.001414585292 | CZ30: =+SUMIFS('R2建設IOデータ'!AE:AE,'R2建設IOデータ'!$A:$A,'R2建設io'!$CE30)/'R2建設IOデータ'!AE$232 -> 0.0006131341423 | DA30: =+SUMIFS('R2建設IOデータ'!AF:AF,'R2建設IOデータ'!$A:$A,'R2建設io'!$CE30)/'R2建設IOデータ'!AF$232 -> 0.0005630884274 | DB30: =+SUMIFS('R2建設IOデータ'!AG:AG,'R2建設IOデータ'!$A:$A,'R2建設io'!$CE30)/'R2建設IOデータ'!AG$232 -> 0.0006039741499 | DC30: =+SUMIFS('R2建設IOデータ'!AH:AH,'R2建設IOデータ'!$A:$A,'R2建設io'!$CE30)/'R2建設IOデータ'!AH$232 -> 0.0007847593004 | DD30: =+SUMIFS('R2建設IOデータ'!AI:AI,'R2建設IOデータ'!$A:$A,'R2建設io'!$CE30)/'R2建設IOデータ'!AI$232 -> 0.00063408428 | DE30: =+SUMIFS('R2建設IOデータ'!AJ:AJ,'R2建設IOデータ'!$A:$A,'R2建設io'!$CE30)/'R2建設IOデータ'!AJ$232 -> 0.0005978406243 | DF30: =+SUMIFS('R2建設IOデータ'!AK:AK,'R2建設IOデータ'!$A:$A,'R2建設io'!$CE30)/'R2建設IOデータ'!AK$232 -> 0.0006130556854 | DG30: =+SUMIFS('R2建設IOデータ'!AL:AL,'R2建設IOデータ'!$A:$A,'R2建設io'!$CE30)/'R2建設IOデータ'!AL$232 -> 0.0005965246389 | DH30: =+SUMIFS('R2建設IOデータ'!AM:AM,'R2建設IOデータ'!$A:$A,'R2建設io'!$CE30)/'R2建設IOデータ'!AM$232 -> 0.0008206904341 | DI30: =+SUMIFS('R2建設IOデータ'!AN:AN,'R2建設IOデータ'!$A:$A,'R2建設io'!$CE30)/'R2建設IOデータ'!AN$232 -> 0.00127907028 | DJ30: =+SUMIFS('R2建設IOデータ'!AO:AO,'R2建設IOデータ'!$A:$A,'R2建設io'!$CE30)/'R2建設IOデータ'!AO$232 -> 0.0008291717913 | DK30: =+SUMIFS('R2建設IOデータ'!AP:AP,'R2建設IOデータ'!$A:$A,'R2建設io'!$CE30)/'R2建設IOデータ'!AP$232 -> 0.0006867882924 | DL30: =+SUMIFS('R2建設IOデータ'!AQ:AQ,'R2建設IOデータ'!$A:$A,'R2建設io'!$CE30)/'R2建設IOデータ'!AQ$232 -> 0.0005110176452 | DM30: =+SUMIFS('R2建設IOデータ'!AR:AR,'R2建設IOデータ'!$A:$A,'R2建設io'!$CE30)/'R2建設IOデータ'!AR$232 -> 0.0005071384332 | DN30: =+SUMIFS('R2建設IOデータ'!AS:AS,'R2建設IOデータ'!$A:$A,'R2建設io'!$CE30)/'R2建設IOデータ'!AS$232 -> 0.0005326574993 | DO30: =+SUMIFS('R2建設IOデータ'!AT:AT,'R2建設IOデータ'!$A:$A,'R2建設io'!$CE30)/'R2建設IOデータ'!AT$232 -> 0.0004906621979 | DP30: =+SUMIFS('R2建設IOデータ'!AU:AU,'R2建設IOデータ'!$A:$A,'R2建設io'!$CE30)/'R2建設IOデータ'!AU$232 -> 0.0004438425383 | DQ30: =+SUMIFS('R2建設IOデータ'!AV:AV,'R2建設IOデータ'!$A:$A,'R2建設io'!$CE30)/'R2建設IOデータ'!AV$232 -> 0.0004706162521 | DR30: =+SUMIFS('R2建設IOデータ'!AW:AW,'R2建設IOデータ'!$A:$A,'R2建設io'!$CE30)/'R2建設IOデータ'!AW$232 -> 0.0005978769076 | DS30: =+SUMIFS('R2建設IOデータ'!AX:AX,'R2建設IOデータ'!$A:$A,'R2建設io'!$CE30)/'R2建設IOデータ'!AX$232 -> 0.0005068359176 | DT30: =+SUMIFS('R2建設IOデータ'!AY:AY,'R2建設IOデータ'!$A:$A,'R2建設io'!$CE30)/'R2建設IOデータ'!AY$232 -> 0.0004416961131 | DU30: =+SUMIFS('R2建設IOデータ'!AZ:AZ,'R2建設IOデータ'!$A:$A,'R2建設io'!$CE30)/'R2建設IOデータ'!AZ$232 -> 0.0003642456473 | DV30: =+SUMIFS('R2建設IOデータ'!BA:BA,'R2建設IOデータ'!$A:$A,'R2建設io'!$CE30)/'R2建設IOデータ'!BA$232 -> 0.000399832911 | DW30: =+SUMIFS('R2建設IOデータ'!BB:BB,'R2建設IOデータ'!$A:$A,'R2建設io'!$CE30)/'R2建設IOデータ'!BB$232 -> 0.0003823330594 | DX30: =+SUMIFS('R2建設IOデータ'!BC:BC,'R2建設IOデータ'!$A:$A,'R2建設io'!$CE30)/'R2建設IOデータ'!BC$232 -> 0.0003671574338 | DY30: =+SUMIFS('R2建設IOデータ'!BD:BD,'R2建設IOデータ'!$A:$A,'R2建設io'!$CE30)/'R2建設IOデータ'!BD$232 -> 0.000499705302 | DZ30: =+SUMIFS('R2建設IOデータ'!BE:BE,'R2建設IOデータ'!$A:$A,'R2建設io'!$CE30)/'R2建設IOデータ'!BE$232 -> 0.0005048187242 | EA30: =+SUMIFS('R2建設IOデータ'!BF:BF,'R2建設IOデータ'!$A:$A,'R2建設io'!$CE30)/'R2建設IOデータ'!BF$232 -> 0.0004941627031 | EB30: =+SUMIFS('R2建設IOデータ'!BG:BG,'R2建設IOデータ'!$A:$A,'R2建設io'!$CE30)/'R2建設IOデータ'!BG$232 -> 0.0005720102768 | EC30: =+SUMIFS('R2建設IOデータ'!BH:BH,'R2建設IOデータ'!$A:$A,'R2建設io'!$CE30)/'R2建設IOデータ'!BH$232 -> 0.0005561932712 | ED30: =+SUMIFS('R2建設IOデータ'!BI:BI,'R2建設IOデータ'!$A:$A,'R2建設io'!$CE30)/'R2建設IOデータ'!BI$232 -> 0.0006437077567 | EE30: =+SUMIFS('R2建設IOデータ'!BJ:BJ,'R2建設IOデータ'!$A:$A,'R2建設io'!$CE30)/'R2建設IOデータ'!BJ$232 -> 0.0007443937843 | EF30: =+SUMIFS('R2建設IOデータ'!BK:BK,'R2建設IOデータ'!$A:$A,'R2建設io'!$CE30)/'R2建設IOデータ'!BK$232 -> 0.0009763582756 | EG30: =+SUMIFS('R2建設IOデータ'!BL:BL,'R2建設IOデータ'!$A:$A,'R2建設io'!$CE30)/'R2建設IOデータ'!BL$232 -> 0.0003461046847 | EH30: =+SUMIFS('R2建設IOデータ'!BM:BM,'R2建設IOデータ'!$A:$A,'R2建設io'!$CE30)/'R2建設IOデータ'!BM$232 -> 0.0004410786241 | EI30: =+SUMIFS('R2建設IOデータ'!BN:BN,'R2建設IOデータ'!$A:$A,'R2建設io'!$CE30)/'R2建設IOデータ'!BN$232 -> 0.0002611811064 | EJ30: =+SUMIFS('R2建設IOデータ'!BO:BO,'R2建設IOデータ'!$A:$A,'R2建設io'!$CE30)/'R2建設IOデータ'!BO$232 -> 0.0003298715776 | EK30: =+SUMIFS('R2建設IOデータ'!BP:BP,'R2建設IOデータ'!$A:$A,'R2建設io'!$CE30)/'R2建設IOデータ'!BP$232 -> 6.65000344e-05 | EL30: =+SUMIFS('R2建設IOデータ'!BQ:BQ,'R2建設IOデータ'!$A:$A,'R2建設io'!$CE30)/'R2建設IOデータ'!BQ$232 -> 0.001089376132 | EM30: =+SUMIFS('R2建設IOデータ'!BR:BR,'R2建設IOデータ'!$A:$A,'R2建設io'!$CE30)/'R2建設IOデータ'!BR$232 -> 0.0005766659968 | EN30: =+SUMIFS('R2建設IOデータ'!BS:BS,'R2建設IOデータ'!$A:$A,'R2建設io'!$CE30)/'R2建設IOデータ'!BS$232 -> 0.0004755462084 | EO30: =+SUMIFS('R2建設IOデータ'!BT:BT,'R2建設IOデータ'!$A:$A,'R2建設io'!$CE30)/'R2建設IOデータ'!BT$232 -> 0.000670665601 | EP30: =+SUMIFS('R2建設IOデータ'!BU:BU,'R2建設IOデータ'!$A:$A,'R2建設io'!$CE30)/'R2建設IOデータ'!BU$232 -> 0.0002033854969 | EQ30: =+SUMIFS('R2建設IOデータ'!BV:BV,'R2建設IOデータ'!$A:$A,'R2建設io'!$CE30)/'R2建設IOデータ'!BV$232 -> 0.002872699656 | ER30: =+SUMIFS('R2建設IOデータ'!BW:BW,'R2建設IOデータ'!$A:$A,'R2建設io'!$CE30)/'R2建設IOデータ'!BW$232 -> 8.695925835e-05 | ES30: =+SUMIFS('R2建設IOデータ'!BX:BX,'R2建設IOデータ'!$A:$A,'R2建設io'!$CE30)/'R2建設IOデータ'!BX$232 -> 0.001030035313 | ET30: =+SUMIFS('R2建設IOデータ'!BY:BY,'R2建設IOデータ'!$A:$A,'R2建設io'!$CE30)/'R2建設IOデータ'!BY$232 -> 0.00119668214 | EU30: =+SUMIFS('R2建設IOデータ'!BZ:BZ,'R2建設IOデータ'!$A:$A,'R2建設io'!$CE30)/'R2建設IOデータ'!BZ$232 -> 0.0004558526041 | EV30: =+SUMIFS('R2建設IOデータ'!CA:CA,'R2建設IOデータ'!$A:$A,'R2建設io'!$CE30)/'R2建設IOデータ'!CA$232 -> 0.0006424789235 | EW30: =+SUMIFS('R2建設IOデータ'!CB:CB,'R2建設IOデータ'!$A:$A,'R2建設io'!$CE30)/'R2建設IOデータ'!CB$232 -> 0.002730314187 | EX30: =+SUMIFS('R2建設IOデータ'!CC:CC,'R2建設IOデータ'!$A:$A,'R2建設io'!$CE30)/'R2建設IOデータ'!CC$232 -> 0.0008457856372 | EY30: =+SUMIFS('R2建設IOデータ'!CD:CD,'R2建設IOデータ'!$A:$A,'R2建設io'!$CE30)/'R2建設IOデータ'!CD$232 -> 0.0006976323376
A31: 0 | C31: 48 | D31: 廃棄物処理 | E31: 0 | F31: 0 | G31: 0 | H31: 0 | I31: 0 | J31: 0 | K31: 0 | L31: 0 | M31: 0 | N31: 0 | O31: 0 | P31: 0 | Q31: 0 | R31: 0 | S31: 0 | T31: 0 | U31: 0 | V31: 0 | W31: 0 | X31: 0 | Y31: 0 | Z31: 0 | AA31: 0 | AB31: 0 | AC31: 0 | AD31: 0 | AE31: 0 | AF31: 0 | AG31: 0 | AH31: 0 | AI31: 0 | AJ31: 0 | AK31: 0 | AL31: 0 | AM31: 0 | AN31: 0 | AO31: 0 | AP31: 0 | AQ31: 0 | AR31: 0 | AS31: 0 | AT31: 0 | AU31: 0 | AV31: 0 | AW31: 0 | AX31: 0 | AY31: 0 | AZ31: 0 | BA31: 0 | BB31: 0 | BC31: 0 | BD31: 0 | BE31: 0 | BF31: 0 | BG31: 0 | BH31: 0 | BI31: 0 | BJ31: 0 | BK31: 0 | BL31: 0 | BM31: 0 | BN31: 0 | BO31: 0 | BP31: 0 | BQ31: 0 | BR31: 0 | BS31: 0 | BT31: 0 | BU31: 0 | BV31: 0 | BW31: 0 | CE31: 48 | CF31: 廃棄物処理 | CG31: =+SUMIFS('R2建設IOデータ'!L:L,'R2建設IOデータ'!$A:$A,'R2建設io'!$CE31)/'R2建設IOデータ'!L$232 -> 0.002583063027 | CH31: =+SUMIFS('R2建設IOデータ'!M:M,'R2建設IOデータ'!$A:$A,'R2建設io'!$CE31)/'R2建設IOデータ'!M$232 -> 0.0008563324878 | CI31: =+SUMIFS('R2建設IOデータ'!N:N,'R2建設IOデータ'!$A:$A,'R2建設io'!$CE31)/'R2建設IOデータ'!N$232 -> 0.0009158597546 | CJ31: =+SUMIFS('R2建設IOデータ'!O:O,'R2建設IOデータ'!$A:$A,'R2建設io'!$CE31)/'R2建設IOデータ'!O$232 -> 0.0008425604859 | CK31: =+SUMIFS('R2建設IOデータ'!P:P,'R2建設IOデータ'!$A:$A,'R2建設io'!$CE31)/'R2建設IOデータ'!P$232 -> 0.0008350334551 | CL31: =+SUMIFS('R2建設IOデータ'!Q:Q,'R2建設IOデータ'!$A:$A,'R2建設io'!$CE31)/'R2建設IOデータ'!Q$232 -> 0.001185013363 | CM31: =+SUMIFS('R2建設IOデータ'!R:R,'R2建設IOデータ'!$A:$A,'R2建設io'!$CE31)/'R2建設IOデータ'!R$232 -> 0.001019629988 | CN31: =+SUMIFS('R2建設IOデータ'!S:S,'R2建設IOデータ'!$A:$A,'R2建設io'!$CE31)/'R2建設IOデータ'!S$232 -> 0.0008149197104 | CO31: =+SUMIFS('R2建設IOデータ'!T:T,'R2建設IOデータ'!$A:$A,'R2建設io'!$CE31)/'R2建設IOデータ'!T$232 -> 0.0009489705912 | CP31: =+SUMIFS('R2建設IOデータ'!U:U,'R2建設IOデータ'!$A:$A,'R2建設io'!$CE31)/'R2建設IOデータ'!U$232 -> 0.0009429390405 | CQ31: =+SUMIFS('R2建設IOデータ'!V:V,'R2建設IOデータ'!$A:$A,'R2建設io'!$CE31)/'R2建設IOデータ'!V$232 -> 0.001383781325 | CR31: =+SUMIFS('R2建設IOデータ'!W:W,'R2建設IOデータ'!$A:$A,'R2建設io'!$CE31)/'R2建設IOデータ'!W$232 -> 0.001151561078 | CS31: =+SUMIFS('R2建設IOデータ'!X:X,'R2建設IOデータ'!$A:$A,'R2建設io'!$CE31)/'R2建設IOデータ'!X$232 -> 0.0005095648724 | CT31: =+SUMIFS('R2建設IOデータ'!Y:Y,'R2建設IOデータ'!$A:$A,'R2建設io'!$CE31)/'R2建設IOデータ'!Y$232 -> 0.001416501287 | CU31: =+SUMIFS('R2建設IOデータ'!Z:Z,'R2建設IOデータ'!$A:$A,'R2建設io'!$CE31)/'R2建設IOデータ'!Z$232 -> 0.0003157213443 | CV31: =+SUMIFS('R2建設IOデータ'!AA:AA,'R2建設IOデータ'!$A:$A,'R2建設io'!$CE31)/'R2建設IOデータ'!AA$232 -> 0.0007940945415 | CW31: =+SUMIFS('R2建設IOデータ'!AB:AB,'R2建設IOデータ'!$A:$A,'R2建設io'!$CE31)/'R2建設IOデータ'!AB$232 -> 0.0007387260685 | CX31: =+SUMIFS('R2建設IOデータ'!AC:AC,'R2建設IOデータ'!$A:$A,'R2建設io'!$CE31)/'R2建設IOデータ'!AC$232 -> 0.0007267035608 | CY31: =+SUMIFS('R2建設IOデータ'!AD:AD,'R2建設IOデータ'!$A:$A,'R2建設io'!$CE31)/'R2建設IOデータ'!AD$232 -> 0.0007402447162 | CZ31: =+SUMIFS('R2建設IOデータ'!AE:AE,'R2建設IOデータ'!$A:$A,'R2建設io'!$CE31)/'R2建設IOデータ'!AE$232 -> 0.0007978549956 | DA31: =+SUMIFS('R2建設IOデータ'!AF:AF,'R2建設IOデータ'!$A:$A,'R2建設io'!$CE31)/'R2建設IOデータ'!AF$232 -> 0.0006832139586 | DB31: =+SUMIFS('R2建設IOデータ'!AG:AG,'R2建設IOデータ'!$A:$A,'R2建設io'!$CE31)/'R2建設IOデータ'!AG$232 -> 0.0005532403213 | DC31: =+SUMIFS('R2建設IOデータ'!AH:AH,'R2建設IOデータ'!$A:$A,'R2建設io'!$CE31)/'R2建設IOデータ'!AH$232 -> 0.001548655879 | DD31: =+SUMIFS('R2建設IOデータ'!AI:AI,'R2建設IOデータ'!$A:$A,'R2建設io'!$CE31)/'R2建設IOデータ'!AI$232 -> 0.0006913564085 | DE31: =+SUMIFS('R2建設IOデータ'!AJ:AJ,'R2建設IOデータ'!$A:$A,'R2建設io'!$CE31)/'R2建設IOデータ'!AJ$232 -> 0.0007063147995 | DF31: =+SUMIFS('R2建設IOデータ'!AK:AK,'R2建設IOデータ'!$A:$A,'R2建設io'!$CE31)/'R2建設IOデータ'!AK$232 -> 0.0008197175736 | DG31: =+SUMIFS('R2建設IOデータ'!AL:AL,'R2建設IOデータ'!$A:$A,'R2建設io'!$CE31)/'R2建設IOデータ'!AL$232 -> 0.0007645815084 | DH31: =+SUMIFS('R2建設IOデータ'!AM:AM,'R2建設IOデータ'!$A:$A,'R2建設io'!$CE31)/'R2建設IOデータ'!AM$232 -> 0.001016451455 | DI31: =+SUMIFS('R2建設IOデータ'!AN:AN,'R2建設IOデータ'!$A:$A,'R2建設io'!$CE31)/'R2建設IOデータ'!AN$232 -> 0.0007159304572 | DJ31: =+SUMIFS('R2建設IOデータ'!AO:AO,'R2建設IOデータ'!$A:$A,'R2建設io'!$CE31)/'R2建設IOデータ'!AO$232 -> 0.005780379072 | DK31: =+SUMIFS('R2建設IOデータ'!AP:AP,'R2建設IOデータ'!$A:$A,'R2建設io'!$CE31)/'R2建設IOデータ'!AP$232 -> 0.005207665302 | DL31: =+SUMIFS('R2建設IOデータ'!AQ:AQ,'R2建設IOデータ'!$A:$A,'R2建設io'!$CE31)/'R2建設IOデータ'!AQ$232 -> 0.005157508553 | DM31: =+SUMIFS('R2建設IOデータ'!AR:AR,'R2建設IOデータ'!$A:$A,'R2建設io'!$CE31)/'R2建設IOデータ'!AR$232 -> 0.004955899063 | DN31: =+SUMIFS('R2建設IOデータ'!AS:AS,'R2建設IOデータ'!$A:$A,'R2建設io'!$CE31)/'R2建設IOデータ'!AS$232 -> 0.005996225875 | DO31: =+SUMIFS('R2建設IOデータ'!AT:AT,'R2建設IOデータ'!$A:$A,'R2建設io'!$CE31)/'R2建設IOデータ'!AT$232 -> 0.004330829116 | DP31: =+SUMIFS('R2建設IOデータ'!AU:AU,'R2建設IOデータ'!$A:$A,'R2建設io'!$CE31)/'R2建設IOデータ'!AU$232 -> 0.004313239026 | DQ31: =+SUMIFS('R2建設IOデータ'!AV:AV,'R2建設IOデータ'!$A:$A,'R2建設io'!$CE31)/'R2建設IOデータ'!AV$232 -> 0.002338906072 | DR31: =+SUMIFS('R2建設IOデータ'!AW:AW,'R2建設IOデータ'!$A:$A,'R2建設io'!$CE31)/'R2建設IOデータ'!AW$232 -> 0.005990307052 | DS31: =+SUMIFS('R2建設IOデータ'!AX:AX,'R2建設IOデータ'!$A:$A,'R2建設io'!$CE31)/'R2建設IOデータ'!AX$232 -> 0.01768067809 | DT31: =+SUMIFS('R2建設IOデータ'!AY:AY,'R2建設IOデータ'!$A:$A,'R2建設io'!$CE31)/'R2建設IOデータ'!AY$232 -> 0.01998674912 | DU31: =+SUMIFS('R2建設IOデータ'!AZ:AZ,'R2建設IOデータ'!$A:$A,'R2建設io'!$CE31)/'R2建設IOデータ'!AZ$232 -> 0.003278210825 | DV31: =+SUMIFS('R2建設IOデータ'!BA:BA,'R2建設IOデータ'!$A:$A,'R2建設io'!$CE31)/'R2建設IOデータ'!BA$232 -> 0.0005814125104 | DW31: =+SUMIFS('R2建設IOデータ'!BB:BB,'R2建設IOデータ'!$A:$A,'R2建設io'!$CE31)/'R2建設IOデータ'!BB$232 -> 0.0001616046952 | DX31: =+SUMIFS('R2建設IOデータ'!BC:BC,'R2建設IOデータ'!$A:$A,'R2建設io'!$CE31)/'R2建設IOデータ'!BC$232 -> 0 | DY31: =+SUMIFS('R2建設IOデータ'!BD:BD,'R2建設IOデータ'!$A:$A,'R2建設io'!$CE31)/'R2建設IOデータ'!BD$232 -> 0.0007303385183 | DZ31: =+SUMIFS('R2建設IOデータ'!BE:BE,'R2建設IOデータ'!$A:$A,'R2建設io'!$CE31)/'R2建設IOデータ'!BE$232 -> 0.002615878844 | EA31: =+SUMIFS('R2建設IOデータ'!BF:BF,'R2建設IOデータ'!$A:$A,'R2建設io'!$CE31)/'R2建設IOデータ'!BF$232 -> 0.003088516894 | EB31: =+SUMIFS('R2建設IOデータ'!BG:BG,'R2建設IOデータ'!$A:$A,'R2建設io'!$CE31)/'R2建設IOデータ'!BG$232 -> 0.004711813466 | EC31: =+SUMIFS('R2建設IOデータ'!BH:BH,'R2建設IOデータ'!$A:$A,'R2建設io'!$CE31)/'R2建設IOデータ'!BH$232 -> 0.004769061453 | ED31: =+SUMIFS('R2建設IOデータ'!BI:BI,'R2建設IOデータ'!$A:$A,'R2建設io'!$CE31)/'R2建設IOデータ'!BI$232 -> 0.004452311984 | EE31: =+SUMIFS('R2建設IOデータ'!BJ:BJ,'R2建設IOデータ'!$A:$A,'R2建設io'!$CE31)/'R2建設IOデータ'!BJ$232 -> 0.01728647788 | EF31: =+SUMIFS('R2建設IOデータ'!BK:BK,'R2建設IOデータ'!$A:$A,'R2建設io'!$CE31)/'R2建設IOデータ'!BK$232 -> 0.004804477197 | EG31: =+SUMIFS('R2建設IOデータ'!BL:BL,'R2建設IOデータ'!$A:$A,'R2建設io'!$CE31)/'R2建設IOデータ'!BL$232 -> 0.006729124842 | EH31: =+SUMIFS('R2建設IOデータ'!BM:BM,'R2建設IOデータ'!$A:$A,'R2建設io'!$CE31)/'R2建設IOデータ'!BM$232 -> 0.009362556435 | EI31: =+SUMIFS('R2建設IOデータ'!BN:BN,'R2建設IOデータ'!$A:$A,'R2建設io'!$CE31)/'R2建設IOデータ'!BN$232 -> 0.0003747381092 | EJ31: =+SUMIFS('R2建設IOデータ'!BO:BO,'R2建設IOデータ'!$A:$A,'R2建設io'!$CE31)/'R2建設IOデータ'!BO$232 -> 0.0005004948074 | EK31: =+SUMIFS('R2建設IOデータ'!BP:BP,'R2建設IOデータ'!$A:$A,'R2建設io'!$CE31)/'R2建設IOデータ'!BP$232 -> 0.002921415304 | EL31: =+SUMIFS('R2建設IOデータ'!BQ:BQ,'R2建設IOデータ'!$A:$A,'R2建設io'!$CE31)/'R2建設IOデータ'!BQ$232 -> 0.005331666453 | EM31: =+SUMIFS('R2建設IOデータ'!BR:BR,'R2建設IOデータ'!$A:$A,'R2建設io'!$CE31)/'R2建設IOデータ'!BR$232 -> 0.001969651392 | EN31: =+SUMIFS('R2建設IOデータ'!BS:BS,'R2建設IOデータ'!$A:$A,'R2建設io'!$CE31)/'R2建設IOデータ'!BS$232 -> 0.002377731042 | EO31: =+SUMIFS('R2建設IOデータ'!BT:BT,'R2建設IOデータ'!$A:$A,'R2建設io'!$CE31)/'R2建設IOデータ'!BT$232 -> 0.006948016492 | EP31: =+SUMIFS('R2建設IOデータ'!BU:BU,'R2建設IOデータ'!$A:$A,'R2建設io'!$CE31)/'R2建設IOデータ'!BU$232 -> 0.004631378314 | EQ31: =+SUMIFS('R2建設IOデータ'!BV:BV,'R2建設IOデータ'!$A:$A,'R2建設io'!$CE31)/'R2建設IOデータ'!BV$232 -> 0.001557325816 | ER31: =+SUMIFS('R2建設IOデータ'!BW:BW,'R2建設IOデータ'!$A:$A,'R2建設io'!$CE31)/'R2建設IOデータ'!BW$232 -> 0.007487606235 | ES31: =+SUMIFS('R2建設IOデータ'!BX:BX,'R2建設IOデータ'!$A:$A,'R2建設io'!$CE31)/'R2建設IOデータ'!BX$232 -> 0.006588318936 | ET31: =+SUMIFS('R2建設IOデータ'!BY:BY,'R2建設IOデータ'!$A:$A,'R2建設io'!$CE31)/'R2建設IOデータ'!BY$232 -> 0.009452876404 | EU31: =+SUMIFS('R2建設IOデータ'!BZ:BZ,'R2建設IOデータ'!$A:$A,'R2建設io'!$CE31)/'R2建設IOデータ'!BZ$232 -> 0.005331277088 | EV31: =+SUMIFS('R2建設IOデータ'!CA:CA,'R2建設IOデータ'!$A:$A,'R2建設io'!$CE31)/'R2建設IOデータ'!CA$232 -> 0.006487807502 | EW31: =+SUMIFS('R2建設IOデータ'!CB:CB,'R2建設IOデータ'!$A:$A,'R2建設io'!$CE31)/'R2建設IOデータ'!CB$232 -> 0.006658010664 | EX31: =+SUMIFS('R2建設IOデータ'!CC:CC,'R2建設IOデータ'!$A:$A,'R2建設io'!$CE31)/'R2建設IOデータ'!CC$232 -> 0.005908913356 | EY31: =+SUMIFS('R2建設IOデータ'!CD:CD,'R2建設IOデータ'!$A:$A,'R2建設io'!$CE31)/'R2建設IOデータ'!CD$232 -> 0.006229638765
A32: 0 | C32: 51 | D32: 商業 | E32: 0 | F32: 0 | G32: 0 | H32: 0 | I32: 0 | J32: 0 | K32: 0 | L32: 0 | M32: 0 | N32: 0 | O32: 0 | P32: 0 | Q32: 0 | R32: 0 | S32: 0 | T32: 0 | U32: 0 | V32: 0 | W32: 0 | X32: 0 | Y32: 0 | Z32: 0 | AA32: 0 | AB32: 0 | AC32: 0 | AD32: 0 | AE32: 0 | AF32: 0 | AG32: 0 | AH32: 0 | AI32: 0 | AJ32: 0 | AK32: 0 | AL32: 0 | AM32: 0 | AN32: 0 | AO32: 0 | AP32: 0 | AQ32: 0 | AR32: 0 | AS32: 0 | AT32: 0 | AU32: 0 | AV32: 0 | AW32: 0 | AX32: 0 | AY32: 0 | AZ32: 0 | BA32: 0 | BB32: 0 | BC32: 0 | BD32: 0 | BE32: 0 | BF32: 0 | BG32: 0 | BH32: 0 | BI32: 0 | BJ32: 0 | BK32: 0 | BL32: 0 | BM32: 0 | BN32: 0 | BO32: 0 | BP32: 0 | BQ32: 0 | BR32: 0 | BS32: 0 | BT32: 0 | BU32: 0 | BV32: 0 | BW32: 0 | CE32: 51 | CF32: 商業 | CG32: =+SUMIFS('R2建設IOデータ'!L:L,'R2建設IOデータ'!$A:$A,'R2建設io'!$CE32)/'R2建設IOデータ'!L$232 -> 0.04854169148 | CH32: =+SUMIFS('R2建設IOデータ'!M:M,'R2建設IOデータ'!$A:$A,'R2建設io'!$CE32)/'R2建設IOデータ'!M$232 -> 0.05338989416 | CI32: =+SUMIFS('R2建設IOデータ'!N:N,'R2建設IOデータ'!$A:$A,'R2建設io'!$CE32)/'R2建設IOデータ'!N$232 -> 0.0603777842 | CJ32: =+SUMIFS('R2建設IOデータ'!O:O,'R2建設IOデータ'!$A:$A,'R2建設io'!$CE32)/'R2建設IOデータ'!O$232 -> 0.06433847831 | CK32: =+SUMIFS('R2建設IOデータ'!P:P,'R2建設IOデータ'!$A:$A,'R2建設io'!$CE32)/'R2建設IOデータ'!P$232 -> 0.06414074404 | CL32: =+SUMIFS('R2建設IOデータ'!Q:Q,'R2建設IOデータ'!$A:$A,'R2建設io'!$CE32)/'R2建設IOデータ'!Q$232 -> 0.07333467803 | CM32: =+SUMIFS('R2建設IOデータ'!R:R,'R2建設IOデータ'!$A:$A,'R2建設io'!$CE32)/'R2建設IOデータ'!R$232 -> 0.05477060475 | CN32: =+SUMIFS('R2建設IOデータ'!S:S,'R2建設IOデータ'!$A:$A,'R2建設io'!$CE32)/'R2建設IOデータ'!S$232 -> 0.04765276405 | CO32: =+SUMIFS('R2建設IOデータ'!T:T,'R2建設IOデータ'!$A:$A,'R2建設io'!$CE32)/'R2建設IOデータ'!T$232 -> 0.0503921798 | CP32: =+SUMIFS('R2建設IOデータ'!U:U,'R2建設IOデータ'!$A:$A,'R2建設io'!$CE32)/'R2建設IOデータ'!U$232 -> 0.04999470156 | CQ32: =+SUMIFS('R2建設IOデータ'!V:V,'R2建設IOデータ'!$A:$A,'R2建設io'!$CE32)/'R2建設IOデータ'!V$232 -> 0.07904613868 | CR32: =+SUMIFS('R2建設IOデータ'!W:W,'R2建設IOデータ'!$A:$A,'R2建設io'!$CE32)/'R2建設IOデータ'!W$232 -> 0.06214063335 | CS32: =+SUMIFS('R2建設IOデータ'!X:X,'R2建設IOデータ'!$A:$A,'R2建設io'!$CE32)/'R2建設IOデータ'!X$232 -> 0.04180606097 | CT32: =+SUMIFS('R2建設IOデータ'!Y:Y,'R2建設IOデータ'!$A:$A,'R2建設io'!$CE32)/'R2建設IOデータ'!Y$232 -> 0.07053234317 | CU32: =+SUMIFS('R2建設IOデータ'!Z:Z,'R2建設IOデータ'!$A:$A,'R2建設io'!$CE32)/'R2建設IOデータ'!Z$232 -> 0.03659210381 | CV32: =+SUMIFS('R2建設IOデータ'!AA:AA,'R2建設IOデータ'!$A:$A,'R2建設io'!$CE32)/'R2建設IOデータ'!AA$232 -> 0.04608379817 | CW32: =+SUMIFS('R2建設IOデータ'!AB:AB,'R2建設IOデータ'!$A:$A,'R2建設io'!$CE32)/'R2建設IOデータ'!AB$232 -> 0.0616496683 | CX32: =+SUMIFS('R2建設IOデータ'!AC:AC,'R2建設IOデータ'!$A:$A,'R2建設io'!$CE32)/'R2建設IOデータ'!AC$232 -> 0.05410214843 | CY32: =+SUMIFS('R2建設IOデータ'!AD:AD,'R2建設IOデータ'!$A:$A,'R2建設io'!$CE32)/'R2建設IOデータ'!AD$232 -> 0.06260304877 | CZ32: =+SUMIFS('R2建設IOデータ'!AE:AE,'R2建設IOデータ'!$A:$A,'R2建設io'!$CE32)/'R2建設IOデータ'!AE$232 -> 0.04502661279 | DA32: =+SUMIFS('R2建設IOデータ'!AF:AF,'R2建設IOデータ'!$A:$A,'R2建設io'!$CE32)/'R2建設IOデータ'!AF$232 -> 0.04248689881 | DB32: =+SUMIFS('R2建設IOデータ'!AG:AG,'R2建設IOデータ'!$A:$A,'R2建設io'!$CE32)/'R2建設IOデータ'!AG$232 -> 0.04422781905 | DC32: =+SUMIFS('R2建設IOデータ'!AH:AH,'R2建設IOデータ'!$A:$A,'R2建設io'!$CE32)/'R2建設IOデータ'!AH$232 -> 0.04239465529 | DD32: =+SUMIFS('R2建設IOデータ'!AI:AI,'R2建設IOデータ'!$A:$A,'R2建設io'!$CE32)/'R2建設IOデータ'!AI$232 -> 0.04986152417 | DE32: =+SUMIFS('R2建設IOデータ'!AJ:AJ,'R2建設IOデータ'!$A:$A,'R2建設io'!$CE32)/'R2建設IOデータ'!AJ$232 -> 0.05192625893 | DF32: =+SUMIFS('R2建設IOデータ'!AK:AK,'R2建設IOデータ'!$A:$A,'R2建設io'!$CE32)/'R2建設IOデータ'!AK$232 -> 0.04161799181 | DG32: =+SUMIFS('R2建設IOデータ'!AL:AL,'R2建設IOデータ'!$A:$A,'R2建設io'!$CE32)/'R2建設IOデータ'!AL$232 -> 0.04468596111 | DH32: =+SUMIFS('R2建設IOデータ'!AM:AM,'R2建設IOデータ'!$A:$A,'R2建設io'!$CE32)/'R2建設IOデータ'!AM$232 -> 0.03681813048 | DI32: =+SUMIFS('R2建設IOデータ'!AN:AN,'R2建設IOデータ'!$A:$A,'R2建設io'!$CE32)/'R2建設IOデータ'!AN$232 -> 0.06157687971 | DJ32: =+SUMIFS('R2建設IOデータ'!AO:AO,'R2建設IOデータ'!$A:$A,'R2建設io'!$CE32)/'R2建設IOデータ'!AO$232 -> 0.0360434889 | DK32: =+SUMIFS('R2建設IOデータ'!AP:AP,'R2建設IOデータ'!$A:$A,'R2建設io'!$CE32)/'R2建設IOデータ'!AP$232 -> 0.03793892382 | DL32: =+SUMIFS('R2建設IOデータ'!AQ:AQ,'R2建設IOデータ'!$A:$A,'R2建設io'!$CE32)/'R2建設IOデータ'!AQ$232 -> 0.03737799095 | DM32: =+SUMIFS('R2建設IOデータ'!AR:AR,'R2建設IOデータ'!$A:$A,'R2建設io'!$CE32)/'R2建設IOデータ'!AR$232 -> 0.03729486757 | DN32: =+SUMIFS('R2建設IOデータ'!AS:AS,'R2建設IOデータ'!$A:$A,'R2建設io'!$CE32)/'R2建設IOデータ'!AS$232 -> 0.03441980005 | DO32: =+SUMIFS('R2建設IOデータ'!AT:AT,'R2建設IOデータ'!$A:$A,'R2建設io'!$CE32)/'R2建設IOデータ'!AT$232 -> 0.04213503581 | DP32: =+SUMIFS('R2建設IOデータ'!AU:AU,'R2建設IOデータ'!$A:$A,'R2建設io'!$CE32)/'R2建設IOデータ'!AU$232 -> 0.04112940855 | DQ32: =+SUMIFS('R2建設IOデータ'!AV:AV,'R2建設IOデータ'!$A:$A,'R2建設io'!$CE32)/'R2建設IOデータ'!AV$232 -> 0.03110886828 | DR32: =+SUMIFS('R2建設IOデータ'!AW:AW,'R2建設IOデータ'!$A:$A,'R2建設io'!$CE32)/'R2建設IOデータ'!AW$232 -> 0.02407923023 | DS32: =+SUMIFS('R2建設IOデータ'!AX:AX,'R2建設IOデータ'!$A:$A,'R2建設io'!$CE32)/'R2建設IOデータ'!AX$232 -> 0.04820289737 | DT32: =+SUMIFS('R2建設IOデータ'!AY:AY,'R2建設IOデータ'!$A:$A,'R2建設io'!$CE32)/'R2建設IOデータ'!AY$232 -> 0.0277164311 | DU32: =+SUMIFS('R2建設IOデータ'!AZ:AZ,'R2建設IOデータ'!$A:$A,'R2建設io'!$CE32)/'R2建設IOデータ'!AZ$232 -> 0.03372914694 | DV32: =+SUMIFS('R2建設IOデータ'!BA:BA,'R2建設IOデータ'!$A:$A,'R2建設io'!$CE32)/'R2建設IOデータ'!BA$232 -> 0.04938428415 | DW32: =+SUMIFS('R2建設IOデータ'!BB:BB,'R2建設IOデータ'!$A:$A,'R2建設io'!$CE32)/'R2建設IOデータ'!BB$232 -> 0.05035168729 | DX32: =+SUMIFS('R2建設IOデータ'!BC:BC,'R2建設IOデータ'!$A:$A,'R2建設io'!$CE32)/'R2建設IOデータ'!BC$232 -> 0.05183706666 | DY32: =+SUMIFS('R2建設IOデータ'!BD:BD,'R2建設IOデータ'!$A:$A,'R2建設io'!$CE32)/'R2建設IOデータ'!BD$232 -> 0.04475565692 | DZ32: =+SUMIFS('R2建設IOデータ'!BE:BE,'R2建設IOデータ'!$A:$A,'R2建設io'!$CE32)/'R2建設IOデータ'!BE$232 -> 0.03189536485 | EA32: =+SUMIFS('R2建設IOデータ'!BF:BF,'R2建設IOデータ'!$A:$A,'R2建設io'!$CE32)/'R2建設IOデータ'!BF$232 -> 0.01970473778 | EB32: =+SUMIFS('R2建設IOデータ'!BG:BG,'R2建設IOデータ'!$A:$A,'R2建設io'!$CE32)/'R2建設IOデータ'!BG$232 -> 0.03986620777 | EC32: =+SUMIFS('R2建設IOデータ'!BH:BH,'R2建設IOデータ'!$A:$A,'R2建設io'!$CE32)/'R2建設IOデータ'!BH$232 -> 0.04042460031 | ED32: =+SUMIFS('R2建設IOデータ'!BI:BI,'R2建設IOデータ'!$A:$A,'R2建設io'!$CE32)/'R2建設IOデータ'!BI$232 -> 0.03733504989 | EE32: =+SUMIFS('R2建設IOデータ'!BJ:BJ,'R2建設IOデータ'!$A:$A,'R2建設io'!$CE32)/'R2建設IOデータ'!BJ$232 -> 0.04237875169 | EF32: =+SUMIFS('R2建設IOデータ'!BK:BK,'R2建設IOデータ'!$A:$A,'R2建設io'!$CE32)/'R2建設IOデータ'!BK$232 -> 0.03820732216 | EG32: =+SUMIFS('R2建設IOデータ'!BL:BL,'R2建設IOデータ'!$A:$A,'R2建設io'!$CE32)/'R2建設IOデータ'!BL$232 -> 0.03690529301 | EH32: =+SUMIFS('R2建設IOデータ'!BM:BM,'R2建設IOデータ'!$A:$A,'R2建設io'!$CE32)/'R2建設IOデータ'!BM$232 -> 0.03326779453 | EI32: =+SUMIFS('R2建設IOデータ'!BN:BN,'R2建設IOデータ'!$A:$A,'R2建設io'!$CE32)/'R2建設IOデータ'!BN$232 -> 0.04104517865 | EJ32: =+SUMIFS('R2建設IOデータ'!BO:BO,'R2建設IOデータ'!$A:$A,'R2建設io'!$CE32)/'R2建設IOデータ'!BO$232 -> 0.04198468941 | EK32: =+SUMIFS('R2建設IOデータ'!BP:BP,'R2建設IOデータ'!$A:$A,'R2建設io'!$CE32)/'R2建設IOデータ'!BP$232 -> 0.04545850627 | EL32: =+SUMIFS('R2建設IOデータ'!BQ:BQ,'R2建設IOデータ'!$A:$A,'R2建設io'!$CE32)/'R2建設IOデータ'!BQ$232 -> 0.04718107804 | EM32: =+SUMIFS('R2建設IOデータ'!BR:BR,'R2建設IOデータ'!$A:$A,'R2建設io'!$CE32)/'R2建設IOデータ'!BR$232 -> 0.03750201271 | EN32: =+SUMIFS('R2建設IOデータ'!BS:BS,'R2建設IOデータ'!$A:$A,'R2建設io'!$CE32)/'R2建設IOデータ'!BS$232 -> 0.01649676495 | EO32: =+SUMIFS('R2建設IOデータ'!BT:BT,'R2建設IOデータ'!$A:$A,'R2建設io'!$CE32)/'R2建設IOデータ'!BT$232 -> 0.03142830011 | EP32: =+SUMIFS('R2建設IOデータ'!BU:BU,'R2建設IOデータ'!$A:$A,'R2建設io'!$CE32)/'R2建設IOデータ'!BU$232 -> 0.04961443921 | EQ32: =+SUMIFS('R2建設IOデータ'!BV:BV,'R2建設IOデータ'!$A:$A,'R2建設io'!$CE32)/'R2建設IOデータ'!BV$232 -> 0.03607100714 | ER32: =+SUMIFS('R2建設IOデータ'!BW:BW,'R2建設IOデータ'!$A:$A,'R2建設io'!$CE32)/'R2建設IOデータ'!BW$232 -> 0.03933291482 | ES32: =+SUMIFS('R2建設IOデータ'!BX:BX,'R2建設IOデータ'!$A:$A,'R2建設io'!$CE32)/'R2建設IOデータ'!BX$232 -> 0.03336955733 | ET32: =+SUMIFS('R2建設IOデータ'!BY:BY,'R2建設IOデータ'!$A:$A,'R2建設io'!$CE32)/'R2建設IOデータ'!BY$232 -> 0.0325841686 | EU32: =+SUMIFS('R2建設IOデータ'!BZ:BZ,'R2建設IOデータ'!$A:$A,'R2建設io'!$CE32)/'R2建設IOデータ'!BZ$232 -> 0.02295066464 | EV32: =+SUMIFS('R2建設IOデータ'!CA:CA,'R2建設IOデータ'!$A:$A,'R2建設io'!$CE32)/'R2建設IOデータ'!CA$232 -> 0.0262140623 | EW32: =+SUMIFS('R2建設IOデータ'!CB:CB,'R2建設IOデータ'!$A:$A,'R2建設io'!$CE32)/'R2建設IOデータ'!CB$232 -> 0.03701147509 | EX32: =+SUMIFS('R2建設IOデータ'!CC:CC,'R2建設IOデータ'!$A:$A,'R2建設io'!$CE32)/'R2建設IOデータ'!CC$232 -> 0.04330058328 | EY32: =+SUMIFS('R2建設IOデータ'!CD:CD,'R2建設IOデータ'!$A:$A,'R2建設io'!$CE32)/'R2建設IOデータ'!CD$232 -> 0.04057240733
A33: 0 | C33: 53 | D33: 金融・保険 | E33: 0 | F33: 0 | G33: 0 | H33: 0 | I33: 0 | J33: 0 | K33: 0 | L33: 0 | M33: 0 | N33: 0 | O33: 0 | P33: 0 | Q33: 0 | R33: 0 | S33: 0 | T33: 0 | U33: 0 | V33: 0 | W33: 0 | X33: 0 | Y33: 0 | Z33: 0 | AA33: 0 | AB33: 0 | AC33: 0 | AD33: 0 | AE33: 0 | AF33: 0 | AG33: 0 | AH33: 0 | AI33: 0 | AJ33: 0 | AK33: 0 | AL33: 0 | AM33: 0 | AN33: 0 | AO33: 0 | AP33: 0 | AQ33: 0 | AR33: 0 | AS33: 0 | AT33: 0 | AU33: 0 | AV33: 0 | AW33: 0 | AX33: 0 | AY33: 0 | AZ33: 0 | BA33: 0 | BB33: 0 | BC33: 0 | BD33: 0 | BE33: 0 | BF33: 0 | BG33: 0 | BH33: 0 | BI33: 0 | BJ33: 0 | BK33: 0 | BL33: 0 | BM33: 0 | BN33: 0 | BO33: 0 | BP33: 0 | BQ33: 0 | BR33: 0 | BS33: 0 | BT33: 0 | BU33: 0 | BV33: 0 | BW33: 0 | CE33: 53 | CF33: 金融・保険 | CG33: =+SUMIFS('R2建設IOデータ'!L:L,'R2建設IOデータ'!$A:$A,'R2建設io'!$CE33)/'R2建設IOデータ'!L$232 -> 0.01113369979 | CH33: =+SUMIFS('R2建設IOデータ'!M:M,'R2建設IOデータ'!$A:$A,'R2建設io'!$CE33)/'R2建設IOデータ'!M$232 -> 0.01024944874 | CI33: =+SUMIFS('R2建設IOデータ'!N:N,'R2建設IOデータ'!$A:$A,'R2建設io'!$CE33)/'R2建設IOデータ'!N$232 -> 0.009557864096 | CJ33: =+SUMIFS('R2建設IOデータ'!O:O,'R2建設IOデータ'!$A:$A,'R2建設io'!$CE33)/'R2建設IOデータ'!O$232 -> 0.01048022043 | CK33: =+SUMIFS('R2建設IOデータ'!P:P,'R2建設IOデータ'!$A:$A,'R2建設io'!$CE33)/'R2建設IOデータ'!P$232 -> 0.01050763362 | CL33: =+SUMIFS('R2建設IOデータ'!Q:Q,'R2建設IOデータ'!$A:$A,'R2建設io'!$CE33)/'R2建設IOデータ'!Q$232 -> 0.009233019011 | CM33: =+SUMIFS('R2建設IOデータ'!R:R,'R2建設IOデータ'!$A:$A,'R2建設io'!$CE33)/'R2建設IOデータ'!R$232 -> 0.00825207845 | CN33: =+SUMIFS('R2建設IOデータ'!S:S,'R2建設IOデータ'!$A:$A,'R2建設io'!$CE33)/'R2建設IOデータ'!S$232 -> 0.008229353141 | CO33: =+SUMIFS('R2建設IOデータ'!T:T,'R2建設IOデータ'!$A:$A,'R2建設io'!$CE33)/'R2建設IOデータ'!T$232 -> 0.008325213441 | CP33: =+SUMIFS('R2建設IOデータ'!U:U,'R2建設IOデータ'!$A:$A,'R2建設io'!$CE33)/'R2建設IOデータ'!U$232 -> 0.008324474106 | CQ33: =+SUMIFS('R2建設IOデータ'!V:V,'R2建設IOデータ'!$A:$A,'R2建設io'!$CE33)/'R2建設IOデータ'!V$232 -> 0.008378511582 | CR33: =+SUMIFS('R2建設IOデータ'!W:W,'R2建設IOデータ'!$A:$A,'R2建設io'!$CE33)/'R2建設IOデータ'!W$232 -> 0.008167707941 | CS33: =+SUMIFS('R2建設IOデータ'!X:X,'R2建設IOデータ'!$A:$A,'R2建設io'!$CE33)/'R2建設IOデータ'!X$232 -> 0.007474976968 | CT33: =+SUMIFS('R2建設IOデータ'!Y:Y,'R2建設IOデータ'!$A:$A,'R2建設io'!$CE33)/'R2建設IOデータ'!Y$232 -> 0.00845358547 | CU33: =+SUMIFS('R2建設IOデータ'!Z:Z,'R2建設IOデータ'!$A:$A,'R2建設io'!$CE33)/'R2建設IOデータ'!Z$232 -> 0.007182660584 | CV33: =+SUMIFS('R2建設IOデータ'!AA:AA,'R2建設IOデータ'!$A:$A,'R2建設io'!$CE33)/'R2建設IOデータ'!AA$232 -> 0.01097252592 | CW33: =+SUMIFS('R2建設IOデータ'!AB:AB,'R2建設IOデータ'!$A:$A,'R2建設io'!$CE33)/'R2建設IOデータ'!AB$232 -> 0.01137345581 | CX33: =+SUMIFS('R2建設IOデータ'!AC:AC,'R2建設IOデータ'!$A:$A,'R2建設io'!$CE33)/'R2建設IOデータ'!AC$232 -> 0.01509307396 | CY33: =+SUMIFS('R2建設IOデータ'!AD:AD,'R2建設IOデータ'!$A:$A,'R2建設io'!$CE33)/'R2建設IOデータ'!AD$232 -> 0.0109036046 | CZ33: =+SUMIFS('R2建設IOデータ'!AE:AE,'R2建設IOデータ'!$A:$A,'R2建設io'!$CE33)/'R2建設IOデータ'!AE$232 -> 0.01094529602 | DA33: =+SUMIFS('R2建設IOデータ'!AF:AF,'R2建設IOデータ'!$A:$A,'R2建設io'!$CE33)/'R2建設IOデータ'!AF$232 -> 0.01199002958 | DB33: =+SUMIFS('R2建設IOデータ'!AG:AG,'R2建設IOデータ'!$A:$A,'R2建設io'!$CE33)/'R2建設IOデータ'!AG$232 -> 0.01095850698 | DC33: =+SUMIFS('R2建設IOデータ'!AH:AH,'R2建設IOデータ'!$A:$A,'R2建設io'!$CE33)/'R2建設IOデータ'!AH$232 -> 0.01250960889 | DD33: =+SUMIFS('R2建設IOデータ'!AI:AI,'R2建設IOデータ'!$A:$A,'R2建設io'!$CE33)/'R2建設IOデータ'!AI$232 -> 0.01080806882 | DE33: =+SUMIFS('R2建設IOデータ'!AJ:AJ,'R2建設IOデータ'!$A:$A,'R2建設io'!$CE33)/'R2建設IOデータ'!AJ$232 -> 0.01148963394 | DF33: =+SUMIFS('R2建設IOデータ'!AK:AK,'R2建設IOデータ'!$A:$A,'R2建設io'!$CE33)/'R2建設IOデータ'!AK$232 -> 0.01045461655 | DG33: =+SUMIFS('R2建設IOデータ'!AL:AL,'R2建設IOデータ'!$A:$A,'R2建設io'!$CE33)/'R2建設IOデータ'!AL$232 -> 0.01083340243 | DH33: =+SUMIFS('R2建設IOデータ'!AM:AM,'R2建設IOデータ'!$A:$A,'R2建設io'!$CE33)/'R2建設IOデータ'!AM$232 -> 0.01288258103 | DI33: =+SUMIFS('R2建設IOデータ'!AN:AN,'R2建設IOデータ'!$A:$A,'R2建設io'!$CE33)/'R2建設IOデータ'!AN$232 -> 0.005379622002 | DJ33: =+SUMIFS('R2建設IOデータ'!AO:AO,'R2建設IOデータ'!$A:$A,'R2建設io'!$CE33)/'R2建設IOデータ'!AO$232 -> 0.0149388638 | DK33: =+SUMIFS('R2建設IOデータ'!AP:AP,'R2建設IOデータ'!$A:$A,'R2建設io'!$CE33)/'R2建設IOデータ'!AP$232 -> 0.0153642774 | DL33: =+SUMIFS('R2建設IOデータ'!AQ:AQ,'R2建設IOデータ'!$A:$A,'R2建設io'!$CE33)/'R2建設IOデータ'!AQ$232 -> 0.01401858495 | DM33: =+SUMIFS('R2建設IOデータ'!AR:AR,'R2建設IOデータ'!$A:$A,'R2建設io'!$CE33)/'R2建設IOデータ'!AR$232 -> 0.01406273737 | DN33: =+SUMIFS('R2建設IOデータ'!AS:AS,'R2建設IOデータ'!$A:$A,'R2建設io'!$CE33)/'R2建設IOデータ'!AS$232 -> 0.01437515808 | DO33: =+SUMIFS('R2建設IOデータ'!AT:AT,'R2建設IOデータ'!$A:$A,'R2建設io'!$CE33)/'R2建設IOデータ'!AT$232 -> 0.01357343965 | DP33: =+SUMIFS('R2建設IOデータ'!AU:AU,'R2建設IOデータ'!$A:$A,'R2建設io'!$CE33)/'R2建設IOデータ'!AU$232 -> 0.01460128145 | DQ33: =+SUMIFS('R2建設IOデータ'!AV:AV,'R2建設IOデータ'!$A:$A,'R2建設io'!$CE33)/'R2建設IOデータ'!AV$232 -> 0.01181643698 | DR33: =+SUMIFS('R2建設IOデータ'!AW:AW,'R2建設IOデータ'!$A:$A,'R2建設io'!$CE33)/'R2建設IOデータ'!AW$232 -> 0.01555214195 | DS33: =+SUMIFS('R2建設IOデータ'!AX:AX,'R2建設IOデータ'!$A:$A,'R2建設io'!$CE33)/'R2建設IOデータ'!AX$232 -> 0.01452250453 | DT33: =+SUMIFS('R2建設IOデータ'!AY:AY,'R2建設IOデータ'!$A:$A,'R2建設io'!$CE33)/'R2建設IOデータ'!AY$232 -> 0.01656360424 | DU33: =+SUMIFS('R2建設IOデータ'!AZ:AZ,'R2建設IOデータ'!$A:$A,'R2建設io'!$CE33)/'R2建設IOデータ'!AZ$232 -> 0.02272892839 | DV33: =+SUMIFS('R2建設IOデータ'!BA:BA,'R2建設IOデータ'!$A:$A,'R2建設io'!$CE33)/'R2建設IOデータ'!BA$232 -> 0.01274903463 | DW33: =+SUMIFS('R2建設IOデータ'!BB:BB,'R2建設IOデータ'!$A:$A,'R2建設io'!$CE33)/'R2建設IOデータ'!BB$232 -> 0.01268399778 | DX33: =+SUMIFS('R2建設IOデータ'!BC:BC,'R2建設IOデータ'!$A:$A,'R2建設io'!$CE33)/'R2建設IOデータ'!BC$232 -> 0.01267917005 | DY33: =+SUMIFS('R2建設IOデータ'!BD:BD,'R2建設IOデータ'!$A:$A,'R2建設io'!$CE33)/'R2建設IOデータ'!BD$232 -> 0.01112164621 | DZ33: =+SUMIFS('R2建設IOデータ'!BE:BE,'R2建設IOデータ'!$A:$A,'R2建設io'!$CE33)/'R2建設IOデータ'!BE$232 -> 0.01743919229 | EA33: =+SUMIFS('R2建設IOデータ'!BF:BF,'R2建設IOデータ'!$A:$A,'R2建設io'!$CE33)/'R2建設IOデータ'!BF$232 -> 0.01408363704 | EB33: =+SUMIFS('R2建設IOデータ'!BG:BG,'R2建設IOデータ'!$A:$A,'R2建設io'!$CE33)/'R2建設IOデータ'!BG$232 -> 0.01338891851 | EC33: =+SUMIFS('R2建設IOデータ'!BH:BH,'R2建設IOデータ'!$A:$A,'R2建設io'!$CE33)/'R2建設IOデータ'!BH$232 -> 0.01373915719 | ED33: =+SUMIFS('R2建設IOデータ'!BI:BI,'R2建設IOデータ'!$A:$A,'R2建設io'!$CE33)/'R2建設IOデータ'!BI$232 -> 0.01180130887 | EE33: =+SUMIFS('R2建設IOデータ'!BJ:BJ,'R2建設IOデータ'!$A:$A,'R2建設io'!$CE33)/'R2建設IOデータ'!BJ$232 -> 0.01136234401 | EF33: =+SUMIFS('R2建設IOデータ'!BK:BK,'R2建設IOデータ'!$A:$A,'R2建設io'!$CE33)/'R2建設IOデータ'!BK$232 -> 0.01535121485 | EG33: =+SUMIFS('R2建設IOデータ'!BL:BL,'R2建設IOデータ'!$A:$A,'R2建設io'!$CE33)/'R2建設IOデータ'!BL$232 -> 0.01490330313 | EH33: =+SUMIFS('R2建設IOデータ'!BM:BM,'R2建設IOデータ'!$A:$A,'R2建設io'!$CE33)/'R2建設IOデータ'!BM$232 -> 0.01501570281 | EI33: =+SUMIFS('R2建設IOデータ'!BN:BN,'R2建設IOデータ'!$A:$A,'R2建設io'!$CE33)/'R2建設IOデータ'!BN$232 -> 0.01380853154 | EJ33: =+SUMIFS('R2建設IOデータ'!BO:BO,'R2建設IOデータ'!$A:$A,'R2建設io'!$CE33)/'R2建設IOデータ'!BO$232 -> 0.01519115489 | EK33: =+SUMIFS('R2建設IOデータ'!BP:BP,'R2建設IOデータ'!$A:$A,'R2建設io'!$CE33)/'R2建設IOデータ'!BP$232 -> 0.01485014561 | EL33: =+SUMIFS('R2建設IOデータ'!BQ:BQ,'R2建設IOデータ'!$A:$A,'R2建設io'!$CE33)/'R2建設IOデータ'!BQ$232 -> 0.01686942361 | EM33: =+SUMIFS('R2建設IOデータ'!BR:BR,'R2建設IOデータ'!$A:$A,'R2建設io'!$CE33)/'R2建設IOデータ'!BR$232 -> 0.01396979618 | EN33: =+SUMIFS('R2建設IOデータ'!BS:BS,'R2建設IOデータ'!$A:$A,'R2建設io'!$CE33)/'R2建設IOデータ'!BS$232 -> 0.0155992552 | EO33: =+SUMIFS('R2建設IOデータ'!BT:BT,'R2建設IOデータ'!$A:$A,'R2建設io'!$CE33)/'R2建設IOデータ'!BT$232 -> 0.01418091749 | EP33: =+SUMIFS('R2建設IOデータ'!BU:BU,'R2建設IOデータ'!$A:$A,'R2建設io'!$CE33)/'R2建設IOデータ'!BU$232 -> 0.01508539285 | EQ33: =+SUMIFS('R2建設IOデータ'!BV:BV,'R2建設IOデータ'!$A:$A,'R2建設io'!$CE33)/'R2建設IOデータ'!BV$232 -> 0.01626646978 | ER33: =+SUMIFS('R2建設IOデータ'!BW:BW,'R2建設IOデータ'!$A:$A,'R2建設io'!$CE33)/'R2建設IOデータ'!BW$232 -> 0.02202305331 | ES33: =+SUMIFS('R2建設IOデータ'!BX:BX,'R2建設IOデータ'!$A:$A,'R2建設io'!$CE33)/'R2建設IOデータ'!BX$232 -> 0.01433872352 | ET33: =+SUMIFS('R2建設IOデータ'!BY:BY,'R2建設IOデータ'!$A:$A,'R2建設io'!$CE33)/'R2建設IOデータ'!BY$232 -> 0.01436931071 | EU33: =+SUMIFS('R2建設IOデータ'!BZ:BZ,'R2建設IOデータ'!$A:$A,'R2建設io'!$CE33)/'R2建設IOデータ'!BZ$232 -> 0.01497718456 | EV33: =+SUMIFS('R2建設IOデータ'!CA:CA,'R2建設IOデータ'!$A:$A,'R2建設io'!$CE33)/'R2建設IOデータ'!CA$232 -> 0.0318319103 | EW33: =+SUMIFS('R2建設IOデータ'!CB:CB,'R2建設IOデータ'!$A:$A,'R2建設io'!$CE33)/'R2建設IOデータ'!CB$232 -> 0.01465892618 | EX33: =+SUMIFS('R2建設IOデータ'!CC:CC,'R2建設IOデータ'!$A:$A,'R2建設io'!$CE33)/'R2建設IOデータ'!CC$232 -> 0.009821706401 | EY33: =+SUMIFS('R2建設IOデータ'!CD:CD,'R2建設IOデータ'!$A:$A,'R2建設io'!$CE33)/'R2建設IOデータ'!CD$232 -> 0.01045394791
A34: 0 | C34: 55 | D34: 不動産 | E34: 0 | F34: 0 | G34: 0 | H34: 0 | I34: 0 | J34: 0 | K34: 0 | L34: 0 | M34: 0 | N34: 0 | O34: 0 | P34: 0 | Q34: 0 | R34: 0 | S34: 0 | T34: 0 | U34: 0 | V34: 0 | W34: 0 | X34: 0 | Y34: 0 | Z34: 0 | AA34: 0 | AB34: 0 | AC34: 0 | AD34: 0 | AE34: 0 | AF34: 0 | AG34: 0 | AH34: 0 | AI34: 0 | AJ34: 0 | AK34: 0 | AL34: 0 | AM34: 0 | AN34: 0 | AO34: 0 | AP34: 0 | AQ34: 0 | AR34: 0 | AS34: 0 | AT34: 0 | AU34: 0 | AV34: 0 | AW34: 0 | AX34: 0 | AY34: 0 | AZ34: 0 | BA34: 0 | BB34: 0 | BC34: 0 | BD34: 0 | BE34: 0 | BF34: 0 | BG34: 0 | BH34: 0 | BI34: 0 | BJ34: 0 | BK34: 0 | BL34: 0 | BM34: 0 | BN34: 0 | BO34: 0 | BP34: 0 | BQ34: 0 | BR34: 0 | BS34: 0 | BT34: 0 | BU34: 0 | BV34: 0 | BW34: 0 | CE34: 55 | CF34: 不動産 | CG34: =+SUMIFS('R2建設IOデータ'!L:L,'R2建設IOデータ'!$A:$A,'R2建設io'!$CE34)/'R2建設IOデータ'!L$232 -> 0.005370534777 | CH34: =+SUMIFS('R2建設IOデータ'!M:M,'R2建設IOデータ'!$A:$A,'R2建設io'!$CE34)/'R2建設IOデータ'!M$232 -> 0.008462942959 | CI34: =+SUMIFS('R2建設IOデータ'!N:N,'R2建設IOデータ'!$A:$A,'R2建設io'!$CE34)/'R2建設IOデータ'!N$232 -> 0.009100569791 | CJ34: =+SUMIFS('R2建設IOデータ'!O:O,'R2建設IOデータ'!$A:$A,'R2建設io'!$CE34)/'R2建設IOデータ'!O$232 -> 0.009962038686 | CK34: =+SUMIFS('R2建設IOデータ'!P:P,'R2建設IOデータ'!$A:$A,'R2建設io'!$CE34)/'R2建設IOデータ'!P$232 -> 0.009821452025 | CL34: =+SUMIFS('R2建設IOデータ'!Q:Q,'R2建設IOデータ'!$A:$A,'R2建設io'!$CE34)/'R2建設IOデータ'!Q$232 -> 0.01635822702 | CM34: =+SUMIFS('R2建設IOデータ'!R:R,'R2建設IOデータ'!$A:$A,'R2建設io'!$CE34)/'R2建設IOデータ'!R$232 -> 0.00788098288 | CN34: =+SUMIFS('R2建設IOデータ'!S:S,'R2建設IOデータ'!$A:$A,'R2建設io'!$CE34)/'R2建設IOデータ'!S$232 -> 0.007788494937 | CO34: =+SUMIFS('R2建設IOデータ'!T:T,'R2建設IOデータ'!$A:$A,'R2建設io'!$CE34)/'R2建設IOデータ'!T$232 -> 0.007790428702 | CP34: =+SUMIFS('R2建設IOデータ'!U:U,'R2建設IOデータ'!$A:$A,'R2建設io'!$CE34)/'R2建設IOデータ'!U$232 -> 0.00772547379 | CQ34: =+SUMIFS('R2建設IOデータ'!V:V,'R2建設IOデータ'!$A:$A,'R2建設io'!$CE34)/'R2建設IOデータ'!V$232 -> 0.01247298783 | CR34: =+SUMIFS('R2建設IOデータ'!W:W,'R2建設IOデータ'!$A:$A,'R2建設io'!$CE34)/'R2建設IOデータ'!W$232 -> 0.00799225465 | CS34: =+SUMIFS('R2建設IOデータ'!X:X,'R2建設IOデータ'!$A:$A,'R2建設io'!$CE34)/'R2建設IOデータ'!X$232 -> 0.008029383549 | CT34: =+SUMIFS('R2建設IOデータ'!Y:Y,'R2建設IOデータ'!$A:$A,'R2建設io'!$CE34)/'R2建設IOデータ'!Y$232 -> 0.007976932226 | CU34: =+SUMIFS('R2建設IOデータ'!Z:Z,'R2建設IOデータ'!$A:$A,'R2建設io'!$CE34)/'R2建設IOデータ'!Z$232 -> 0.00907698865 | CV34: =+SUMIFS('R2建設IOデータ'!AA:AA,'R2建設IOデータ'!$A:$A,'R2建設io'!$CE34)/'R2建設IOデータ'!AA$232 -> 0.007796280661 | CW34: =+SUMIFS('R2建設IOデータ'!AB:AB,'R2建設IOデータ'!$A:$A,'R2建設io'!$CE34)/'R2建設IOデータ'!AB$232 -> 0.008715295809 | CX34: =+SUMIFS('R2建設IOデータ'!AC:AC,'R2建設IOデータ'!$A:$A,'R2建設io'!$CE34)/'R2建設IOデータ'!AC$232 -> 0.00767697095 | CY34: =+SUMIFS('R2建設IOデータ'!AD:AD,'R2建設IOデータ'!$A:$A,'R2建設io'!$CE34)/'R2建設IOデータ'!AD$232 -> 0.008846453945 | CZ34: =+SUMIFS('R2建設IOデータ'!AE:AE,'R2建設IOデータ'!$A:$A,'R2建設io'!$CE34)/'R2建設IOデータ'!AE$232 -> 0.007733864016 | DA34: =+SUMIFS('R2建設IOデータ'!AF:AF,'R2建設IOデータ'!$A:$A,'R2建設io'!$CE34)/'R2建設IOデータ'!AF$232 -> 0.007079898494 | DB34: =+SUMIFS('R2建設IOデータ'!AG:AG,'R2建設IOデータ'!$A:$A,'R2建設io'!$CE34)/'R2建設IOデータ'!AG$232 -> 0.008663405206 | DC34: =+SUMIFS('R2建設IOデータ'!AH:AH,'R2建設IOデータ'!$A:$A,'R2建設io'!$CE34)/'R2建設IOデータ'!AH$232 -> 0.008231146118 | DD34: =+SUMIFS('R2建設IOデータ'!AI:AI,'R2建設IOデータ'!$A:$A,'R2建設io'!$CE34)/'R2建設IOデータ'!AI$232 -> 0.007846281607 | DE34: =+SUMIFS('R2建設IOデータ'!AJ:AJ,'R2建設IOデータ'!$A:$A,'R2建設io'!$CE34)/'R2建設IOデータ'!AJ$232 -> 0.007637568058 | DF34: =+SUMIFS('R2建設IOデータ'!AK:AK,'R2建設IOデータ'!$A:$A,'R2建設io'!$CE34)/'R2建設IOデータ'!AK$232 -> 0.007693514727 | DG34: =+SUMIFS('R2建設IOデータ'!AL:AL,'R2建設IOデータ'!$A:$A,'R2建設io'!$CE34)/'R2建設IOデータ'!AL$232 -> 0.00755122945 | DH34: =+SUMIFS('R2建設IOデータ'!AM:AM,'R2建設IOデータ'!$A:$A,'R2建設io'!$CE34)/'R2建設IOデータ'!AM$232 -> 0.01374844709 | DI34: =+SUMIFS('R2建設IOデータ'!AN:AN,'R2建設IOデータ'!$A:$A,'R2建設io'!$CE34)/'R2建設IOデータ'!AN$232 -> 0.003237808969 | DJ34: =+SUMIFS('R2建設IOデータ'!AO:AO,'R2建設IOデータ'!$A:$A,'R2建設io'!$CE34)/'R2建設IOデータ'!AO$232 -> 0.002118915855 | DK34: =+SUMIFS('R2建設IOデータ'!AP:AP,'R2建設IOデータ'!$A:$A,'R2建設io'!$CE34)/'R2建設IOデータ'!AP$232 -> 0.001923552048 | DL34: =+SUMIFS('R2建設IOデータ'!AQ:AQ,'R2建設IOデータ'!$A:$A,'R2建設io'!$CE34)/'R2建設IOデータ'!AQ$232 -> 0.001875027364 | DM34: =+SUMIFS('R2建設IOデータ'!AR:AR,'R2建設IOデータ'!$A:$A,'R2建設io'!$CE34)/'R2建設IOデータ'!AR$232 -> 0.001898460953 | DN34: =+SUMIFS('R2建設IOデータ'!AS:AS,'R2建設IOデータ'!$A:$A,'R2建設io'!$CE34)/'R2建設IOデータ'!AS$232 -> 0.001977256971 | DO34: =+SUMIFS('R2建設IOデータ'!AT:AT,'R2建設IOデータ'!$A:$A,'R2建設io'!$CE34)/'R2建設IOデータ'!AT$232 -> 0.001968324169 | DP34: =+SUMIFS('R2建設IOデータ'!AU:AU,'R2建設IOデータ'!$A:$A,'R2建設io'!$CE34)/'R2建設IOデータ'!AU$232 -> 0.002048504023 | DQ34: =+SUMIFS('R2建設IOデータ'!AV:AV,'R2建設IOデータ'!$A:$A,'R2建設io'!$CE34)/'R2建設IOデータ'!AV$232 -> 0.001720867862 | DR34: =+SUMIFS('R2建設IOデータ'!AW:AW,'R2建設IOデータ'!$A:$A,'R2建設io'!$CE34)/'R2建設IOデータ'!AW$232 -> 0.00240829014 | DS34: =+SUMIFS('R2建設IOデータ'!AX:AX,'R2建設IOデータ'!$A:$A,'R2建設io'!$CE34)/'R2建設IOデータ'!AX$232 -> 0.0002470506734 | DT34: =+SUMIFS('R2建設IOデータ'!AY:AY,'R2建設IOデータ'!$A:$A,'R2建設io'!$CE34)/'R2建設IOデータ'!AY$232 -> 0.0002208480565 | DU34: =+SUMIFS('R2建設IOデータ'!AZ:AZ,'R2建設IOデータ'!$A:$A,'R2建設io'!$CE34)/'R2建設IOデータ'!AZ$232 -> 0.0001456982589 | DV34: =+SUMIFS('R2建設IOデータ'!BA:BA,'R2建設IOデータ'!$A:$A,'R2建設io'!$CE34)/'R2建設IOデータ'!BA$232 -> 0.001567130336 | DW34: =+SUMIFS('R2建設IOデータ'!BB:BB,'R2建設IOデータ'!$A:$A,'R2建設io'!$CE34)/'R2建設IOデータ'!BB$232 -> 0.001519478293 | DX34: =+SUMIFS('R2建設IOデータ'!BC:BC,'R2建設IOデータ'!$A:$A,'R2建設io'!$CE34)/'R2建設IOデータ'!BC$232 -> 0.001519809256 | DY34: =+SUMIFS('R2建設IOデータ'!BD:BD,'R2建設IOデータ'!$A:$A,'R2建設io'!$CE34)/'R2建設IOデータ'!BD$232 -> 0.001832252774 | DZ34: =+SUMIFS('R2建設IOデータ'!BE:BE,'R2建設IOデータ'!$A:$A,'R2建設io'!$CE34)/'R2建設IOデータ'!BE$232 -> 0.0002294630564 | EA34: =+SUMIFS('R2建設IOデータ'!BF:BF,'R2建設IOデータ'!$A:$A,'R2建設io'!$CE34)/'R2建設IOデータ'!BF$232 -> 0.001729569461 | EB34: =+SUMIFS('R2建設IOデータ'!BG:BG,'R2建設IOデータ'!$A:$A,'R2建設io'!$CE34)/'R2建設IOデータ'!BG$232 -> 0.002035968782 | EC34: =+SUMIFS('R2建設IOデータ'!BH:BH,'R2建設IOデータ'!$A:$A,'R2建設io'!$CE34)/'R2建設IOデータ'!BH$232 -> 0.002070932393 | ED34: =+SUMIFS('R2建設IOデータ'!BI:BI,'R2建設IOデータ'!$A:$A,'R2建設io'!$CE34)/'R2建設IOデータ'!BI$232 -> 0.001877480957 | EE34: =+SUMIFS('R2建設IOデータ'!BJ:BJ,'R2建設IOデータ'!$A:$A,'R2建設io'!$CE34)/'R2建設IOデータ'!BJ$232 -> 0.0004652461152 | EF34: =+SUMIFS('R2建設IOデータ'!BK:BK,'R2建設IOデータ'!$A:$A,'R2建設io'!$CE34)/'R2建設IOデータ'!BK$232 -> 0.002299070949 | EG34: =+SUMIFS('R2建設IOデータ'!BL:BL,'R2建設IOデータ'!$A:$A,'R2建設io'!$CE34)/'R2建設IOデータ'!BL$232 -> 0.003778825829 | EH34: =+SUMIFS('R2建設IOデータ'!BM:BM,'R2建設IOデータ'!$A:$A,'R2建設io'!$CE34)/'R2建設IOデータ'!BM$232 -> 0.00201101949 | EI34: =+SUMIFS('R2建設IOデータ'!BN:BN,'R2建設IOデータ'!$A:$A,'R2建設io'!$CE34)/'R2建設IOデータ'!BN$232 -> 0.0009936237743 | EJ34: =+SUMIFS('R2建設IOデータ'!BO:BO,'R2建設IOデータ'!$A:$A,'R2建設io'!$CE34)/'R2建設IOデータ'!BO$232 -> 0.0005403068943 | EK34: =+SUMIFS('R2建設IOデータ'!BP:BP,'R2建設IOデータ'!$A:$A,'R2建設io'!$CE34)/'R2建設IOデータ'!BP$232 -> 0.0121740925 | EL34: =+SUMIFS('R2建設IOデータ'!BQ:BQ,'R2建設IOデータ'!$A:$A,'R2建設io'!$CE34)/'R2建設IOデータ'!BQ$232 -> 0.001227805144 | EM34: =+SUMIFS('R2建設IOデータ'!BR:BR,'R2建設IOデータ'!$A:$A,'R2建設io'!$CE34)/'R2建設IOデータ'!BR$232 -> 0.002316649546 | EN34: =+SUMIFS('R2建設IOデータ'!BS:BS,'R2建設IOデータ'!$A:$A,'R2建設io'!$CE34)/'R2建設IOデータ'!BS$232 -> 0.001560595303 | EO34: =+SUMIFS('R2建設IOデータ'!BT:BT,'R2建設IOデータ'!$A:$A,'R2建設io'!$CE34)/'R2建設IOデータ'!BT$232 -> 0.0009417015518 | EP34: =+SUMIFS('R2建設IOデータ'!BU:BU,'R2建設IOデータ'!$A:$A,'R2建設io'!$CE34)/'R2建設IOデータ'!BU$232 -> 0.006002777665 | EQ34: =+SUMIFS('R2建設IOデータ'!BV:BV,'R2建設IOデータ'!$A:$A,'R2建設io'!$CE34)/'R2建設IOデータ'!BV$232 -> 0.0004243760855 | ER34: =+SUMIFS('R2建設IOデータ'!BW:BW,'R2建設IOデータ'!$A:$A,'R2建設io'!$CE34)/'R2建設IOデータ'!BW$232 -> 0.0002666750589 | ES34: =+SUMIFS('R2建設IOデータ'!BX:BX,'R2建設IOデータ'!$A:$A,'R2建設io'!$CE34)/'R2建設IOデータ'!BX$232 -> 0.002394519858 | ET34: =+SUMIFS('R2建設IOデータ'!BY:BY,'R2建設IOデータ'!$A:$A,'R2建設io'!$CE34)/'R2建設IOデータ'!BY$232 -> 0.004585326174 | EU34: =+SUMIFS('R2建設IOデータ'!BZ:BZ,'R2建設IOデータ'!$A:$A,'R2建設io'!$CE34)/'R2建設IOデータ'!BZ$232 -> 0.001138594539 | EV34: =+SUMIFS('R2建設IOデータ'!CA:CA,'R2建設IOデータ'!$A:$A,'R2建設io'!$CE34)/'R2建設IOデータ'!CA$232 -> 0.001185050837 | EW34: =+SUMIFS('R2建設IOデータ'!CB:CB,'R2建設IOデータ'!$A:$A,'R2建設io'!$CE34)/'R2建設IOデータ'!CB$232 -> 0.001187492406 | EX34: =+SUMIFS('R2建設IOデータ'!CC:CC,'R2建設IOデータ'!$A:$A,'R2建設io'!$CE34)/'R2建設IOデータ'!CC$232 -> 0.003538727382 | EY34: =+SUMIFS('R2建設IOデータ'!CD:CD,'R2建設IOデータ'!$A:$A,'R2建設io'!$CE34)/'R2建設IOデータ'!CD$232 -> 0.002928965767
A35: 0 | C35: 57 | D35: 運輸・郵便 | E35: 0 | F35: 0 | G35: 0 | H35: 0 | I35: 0 | J35: 0 | K35: 0 | L35: 0 | M35: 0 | N35: 0 | O35: 0 | P35: 0 | Q35: 0 | R35: 0 | S35: 0 | T35: 0 | U35: 0 | V35: 0 | W35: 0 | X35: 0 | Y35: 0 | Z35: 0 | AA35: 0 | AB35: 0 | AC35: 0 | AD35: 0 | AE35: 0 | AF35: 0 | AG35: 0 | AH35: 0 | AI35: 0 | AJ35: 0 | AK35: 0 | AL35: 0 | AM35: 0 | AN35: 0 | AO35: 0 | AP35: 0 | AQ35: 0 | AR35: 0 | AS35: 0 | AT35: 0 | AU35: 0 | AV35: 0 | AW35: 0 | AX35: 0 | AY35: 0 | AZ35: 0 | BA35: 0 | BB35: 0 | BC35: 0 | BD35: 0 | BE35: 0 | BF35: 0 | BG35: 0 | BH35: 0 | BI35: 0 | BJ35: 0 | BK35: 0 | BL35: 0 | BM35: 0 | BN35: 0 | BO35: 0 | BP35: 0 | BQ35: 0 | BR35: 0 | BS35: 0 | BT35: 0 | BU35: 0 | BV35: 0 | BW35: 0 | CE35: 57 | CF35: 運輸・郵便 | CG35: =+SUMIFS('R2建設IOデータ'!L:L,'R2建設IOデータ'!$A:$A,'R2建設io'!$CE35)/'R2建設IOデータ'!L$232 -> 0.04241987521 | CH35: =+SUMIFS('R2建設IOデータ'!M:M,'R2建設IOデータ'!$A:$A,'R2建設io'!$CE35)/'R2建設IOデータ'!M$232 -> 0.04321730743 | CI35: =+SUMIFS('R2建設IOデータ'!N:N,'R2建設IOデータ'!$A:$A,'R2建設io'!$CE35)/'R2建設IOデータ'!N$232 -> 0.04682642837 | CJ35: =+SUMIFS('R2建設IOデータ'!O:O,'R2建設IOデータ'!$A:$A,'R2建設io'!$CE35)/'R2建設IOデータ'!O$232 -> 0.04228159176 | CK35: =+SUMIFS('R2建設IOデータ'!P:P,'R2建設IOデータ'!$A:$A,'R2建設io'!$CE35)/'R2建設IOデータ'!P$232 -> 0.04216054433 | CL35: =+SUMIFS('R2建設IOデータ'!Q:Q,'R2建設IOデータ'!$A:$A,'R2建設io'!$CE35)/'R2建設IOデータ'!Q$232 -> 0.04778881549 | CM35: =+SUMIFS('R2建設IOデータ'!R:R,'R2建設IOデータ'!$A:$A,'R2建設io'!$CE35)/'R2建設IOデータ'!R$232 -> 0.05326058202 | CN35: =+SUMIFS('R2建設IOデータ'!S:S,'R2建設IOデータ'!$A:$A,'R2建設io'!$CE35)/'R2建設IOデータ'!S$232 -> 0.04985705507 | CO35: =+SUMIFS('R2建設IOデータ'!T:T,'R2建設IOデータ'!$A:$A,'R2建設io'!$CE35)/'R2建設IOデータ'!T$232 -> 0.0504663546 | CP35: =+SUMIFS('R2建設IOデータ'!U:U,'R2建設IOデータ'!$A:$A,'R2建設io'!$CE35)/'R2建設IOデータ'!U$232 -> 0.05035730974 | CQ35: =+SUMIFS('R2建設IOデータ'!V:V,'R2建設IOデータ'!$A:$A,'R2建設io'!$CE35)/'R2建設IOデータ'!V$232 -> 0.05832733063 | CR35: =+SUMIFS('R2建設IOデータ'!W:W,'R2建設IOデータ'!$A:$A,'R2建設io'!$CE35)/'R2建設IOデータ'!W$232 -> 0.05789045602 | CS35: =+SUMIFS('R2建設IOデータ'!X:X,'R2建設IOデータ'!$A:$A,'R2建設io'!$CE35)/'R2建設IOデータ'!X$232 -> 0.04714086547 | CT35: =+SUMIFS('R2建設IOデータ'!Y:Y,'R2建設IOデータ'!$A:$A,'R2建設io'!$CE35)/'R2建設IOデータ'!Y$232 -> 0.06232661738 | CU35: =+SUMIFS('R2建設IOデータ'!Z:Z,'R2建設IOデータ'!$A:$A,'R2建設io'!$CE35)/'R2建設IOデータ'!Z$232 -> 0.04323803811 | CV35: =+SUMIFS('R2建設IOデータ'!AA:AA,'R2建設IOデータ'!$A:$A,'R2建設io'!$CE35)/'R2建設IOデータ'!AA$232 -> 0.03944383878 | CW35: =+SUMIFS('R2建設IOデータ'!AB:AB,'R2建設IOデータ'!$A:$A,'R2建設io'!$CE35)/'R2建設IOデータ'!AB$232 -> 0.04189005207 | CX35: =+SUMIFS('R2建設IOデータ'!AC:AC,'R2建設IOデータ'!$A:$A,'R2建設io'!$CE35)/'R2建設IOデータ'!AC$232 -> 0.05022639611 | CY35: =+SUMIFS('R2建設IOデータ'!AD:AD,'R2建設IOデータ'!$A:$A,'R2建設io'!$CE35)/'R2建設IOデータ'!AD$232 -> 0.04083702965 | CZ35: =+SUMIFS('R2建設IOデータ'!AE:AE,'R2建設IOデータ'!$A:$A,'R2建設io'!$CE35)/'R2建設IOデータ'!AE$232 -> 0.03927769959 | DA35: =+SUMIFS('R2建設IOデータ'!AF:AF,'R2建設IOデータ'!$A:$A,'R2建設io'!$CE35)/'R2建設IOデータ'!AF$232 -> 0.04384581888 | DB35: =+SUMIFS('R2建設IOデータ'!AG:AG,'R2建設IOデータ'!$A:$A,'R2建設io'!$CE35)/'R2建設IOデータ'!AG$232 -> 0.03626260796 | DC35: =+SUMIFS('R2建設IOデータ'!AH:AH,'R2建設IOデータ'!$A:$A,'R2建設io'!$CE35)/'R2建設IOデータ'!AH$232 -> 0.04212343991 | DD35: =+SUMIFS('R2建設IOデータ'!AI:AI,'R2建設IOデータ'!$A:$A,'R2建設io'!$CE35)/'R2建設IOデータ'!AI$232 -> 0.03629825688 | DE35: =+SUMIFS('R2建設IOデータ'!AJ:AJ,'R2建設IOデータ'!$A:$A,'R2建設io'!$CE35)/'R2建設IOデータ'!AJ$232 -> 0.03842245678 | DF35: =+SUMIFS('R2建設IOデータ'!AK:AK,'R2建設IOデータ'!$A:$A,'R2建設io'!$CE35)/'R2建設IOデータ'!AK$232 -> 0.0409113814 | DG35: =+SUMIFS('R2建設IOデータ'!AL:AL,'R2建設IOデータ'!$A:$A,'R2建設io'!$CE35)/'R2建設IOデータ'!AL$232 -> 0.03855849435 | DH35: =+SUMIFS('R2建設IOデータ'!AM:AM,'R2建設IOデータ'!$A:$A,'R2建設io'!$CE35)/'R2建設IOデータ'!AM$232 -> 0.03922749689 | DI35: =+SUMIFS('R2建設IOデータ'!AN:AN,'R2建設IOデータ'!$A:$A,'R2建設io'!$CE35)/'R2建設IOデータ'!AN$232 -> 0.04323465319 | DJ35: =+SUMIFS('R2建設IOデータ'!AO:AO,'R2建設IOデータ'!$A:$A,'R2建設io'!$CE35)/'R2建設IOデータ'!AO$232 -> 0.04096476186 | DK35: =+SUMIFS('R2建設IOデータ'!AP:AP,'R2建設IOデータ'!$A:$A,'R2建設io'!$CE35)/'R2建設IOデータ'!AP$232 -> 0.04409686318 | DL35: =+SUMIFS('R2建設IOデータ'!AQ:AQ,'R2建設IOデータ'!$A:$A,'R2建設io'!$CE35)/'R2建設IOデータ'!AQ$232 -> 0.04996697741 | DM35: =+SUMIFS('R2建設IOデータ'!AR:AR,'R2建設IOデータ'!$A:$A,'R2建設io'!$CE35)/'R2建設IOデータ'!AR$232 -> 0.04916321299 | DN35: =+SUMIFS('R2建設IOデータ'!AS:AS,'R2建設IOデータ'!$A:$A,'R2建設io'!$CE35)/'R2建設IOデータ'!AS$232 -> 0.05192729906 | DO35: =+SUMIFS('R2建設IOデータ'!AT:AT,'R2建設IOデータ'!$A:$A,'R2建設io'!$CE35)/'R2建設IOデータ'!AT$232 -> 0.05393982139 | DP35: =+SUMIFS('R2建設IOデータ'!AU:AU,'R2建設IOデータ'!$A:$A,'R2建設io'!$CE35)/'R2建設IOデータ'!AU$232 -> 0.06748682698 | DQ35: =+SUMIFS('R2建設IOデータ'!AV:AV,'R2建設IOデータ'!$A:$A,'R2建設io'!$CE35)/'R2建設IOデータ'!AV$232 -> 0.08154418831 | DR35: =+SUMIFS('R2建設IOデータ'!AW:AW,'R2建設IOデータ'!$A:$A,'R2建設io'!$CE35)/'R2建設IOデータ'!AW$232 -> 0.04754012987 | DS35: =+SUMIFS('R2建設IOデータ'!AX:AX,'R2建設IOデータ'!$A:$A,'R2建設io'!$CE35)/'R2建設IOデータ'!AX$232 -> 0.03417449418 | DT35: =+SUMIFS('R2建設IOデータ'!AY:AY,'R2建設IOデータ'!$A:$A,'R2建設io'!$CE35)/'R2建設IOデータ'!AY$232 -> 0.0371024735 | DU35: =+SUMIFS('R2建設IOデータ'!AZ:AZ,'R2建設IOデータ'!$A:$A,'R2建設io'!$CE35)/'R2建設IOデータ'!AZ$232 -> 0.03409339258 | DV35: =+SUMIFS('R2建設IOデータ'!BA:BA,'R2建設IOデータ'!$A:$A,'R2建設io'!$CE35)/'R2建設IOデータ'!BA$232 -> 0.03754046407 | DW35: =+SUMIFS('R2建設IOデータ'!BB:BB,'R2建設IOデータ'!$A:$A,'R2建設io'!$CE35)/'R2建設IOデータ'!BB$232 -> 0.03327775708 | DX35: =+SUMIFS('R2建設IOデータ'!BC:BC,'R2建設IOデータ'!$A:$A,'R2建設io'!$CE35)/'R2建設IOデータ'!BC$232 -> 0.03366388628 | DY35: =+SUMIFS('R2建設IOデータ'!BD:BD,'R2建設IOデータ'!$A:$A,'R2建設io'!$CE35)/'R2建設IOデータ'!BD$232 -> 0.03286523332 | DZ35: =+SUMIFS('R2建設IOデータ'!BE:BE,'R2建設IOデータ'!$A:$A,'R2建設io'!$CE35)/'R2建設IOデータ'!BE$232 -> 0.02000917852 | EA35: =+SUMIFS('R2建設IOデータ'!BF:BF,'R2建設IOデータ'!$A:$A,'R2建設io'!$CE35)/'R2建設IOデータ'!BF$232 -> 0.03168818333 | EB35: =+SUMIFS('R2建設IOデータ'!BG:BG,'R2建設IOデータ'!$A:$A,'R2建設io'!$CE35)/'R2建設IOデータ'!BG$232 -> 0.07948034321 | EC35: =+SUMIFS('R2建設IOデータ'!BH:BH,'R2建設IOデータ'!$A:$A,'R2建設io'!$CE35)/'R2建設IOデータ'!BH$232 -> 0.08037584464 | ED35: =+SUMIFS('R2建設IOデータ'!BI:BI,'R2建設IOデータ'!$A:$A,'R2建設io'!$CE35)/'R2建設IOデータ'!BI$232 -> 0.07542109216 | EE35: =+SUMIFS('R2建設IOデータ'!BJ:BJ,'R2建設IOデータ'!$A:$A,'R2建設io'!$CE35)/'R2建設IOデータ'!BJ$232 -> 0.09832201234 | EF35: =+SUMIFS('R2建設IOデータ'!BK:BK,'R2建設IOデータ'!$A:$A,'R2建設io'!$CE35)/'R2建設IOデータ'!BK$232 -> 0.04099670619 | EG35: =+SUMIFS('R2建設IOデータ'!BL:BL,'R2建設IOデータ'!$A:$A,'R2建設io'!$CE35)/'R2建設IOデータ'!BL$232 -> 0.03388860563 | EH35: =+SUMIFS('R2建設IOデータ'!BM:BM,'R2建設IOデータ'!$A:$A,'R2建設io'!$CE35)/'R2建設IOデータ'!BM$232 -> 0.03837316067 | EI35: =+SUMIFS('R2建設IOデータ'!BN:BN,'R2建設IOデータ'!$A:$A,'R2建設io'!$CE35)/'R2建設IOデータ'!BN$232 -> 0.03424879204 | EJ35: =+SUMIFS('R2建設IOデータ'!BO:BO,'R2建設IOデータ'!$A:$A,'R2建設io'!$CE35)/'R2建設IOデータ'!BO$232 -> 0.04411179234 | EK35: =+SUMIFS('R2建設IOデータ'!BP:BP,'R2建設IOデータ'!$A:$A,'R2建設io'!$CE35)/'R2建設IOデータ'!BP$232 -> 0.01449012818 | EL35: =+SUMIFS('R2建設IOデータ'!BQ:BQ,'R2建設IOデータ'!$A:$A,'R2建設io'!$CE35)/'R2建設IOデータ'!BQ$232 -> 0.05614887051 | EM35: =+SUMIFS('R2建設IOデータ'!BR:BR,'R2建設IOデータ'!$A:$A,'R2建設io'!$CE35)/'R2建設IOデータ'!BR$232 -> 0.05529752595 | EN35: =+SUMIFS('R2建設IOデータ'!BS:BS,'R2建設IOデータ'!$A:$A,'R2建設io'!$CE35)/'R2建設IOデータ'!BS$232 -> 0.02489584868 | EO35: =+SUMIFS('R2建設IOデータ'!BT:BT,'R2建設IOデータ'!$A:$A,'R2建設io'!$CE35)/'R2建設IOデータ'!BT$232 -> 0.04846795445 | EP35: =+SUMIFS('R2建設IOデータ'!BU:BU,'R2建設IOデータ'!$A:$A,'R2建設io'!$CE35)/'R2建設IOデータ'!BU$232 -> 0.04822560682 | EQ35: =+SUMIFS('R2建設IOデータ'!BV:BV,'R2建設IOデータ'!$A:$A,'R2建設io'!$CE35)/'R2建設IOデータ'!BV$232 -> 0.02598391403 | ER35: =+SUMIFS('R2建設IOデータ'!BW:BW,'R2建設IOデータ'!$A:$A,'R2建設io'!$CE35)/'R2建設IOデータ'!BW$232 -> 0.03097902874 | ES35: =+SUMIFS('R2建設IOデータ'!BX:BX,'R2建設IOデータ'!$A:$A,'R2建設io'!$CE35)/'R2建設IOデータ'!BX$232 -> 0.0365462379 | ET35: =+SUMIFS('R2建設IOデータ'!BY:BY,'R2建設IOデータ'!$A:$A,'R2建設io'!$CE35)/'R2建設IOデータ'!BY$232 -> 0.0383564001 | EU35: =+SUMIFS('R2建設IOデータ'!BZ:BZ,'R2建設IOデータ'!$A:$A,'R2建設io'!$CE35)/'R2建設IOデータ'!BZ$232 -> 0.02481555391 | EV35: =+SUMIFS('R2建設IOデータ'!CA:CA,'R2建設IOデータ'!$A:$A,'R2建設io'!$CE35)/'R2建設IOデータ'!CA$232 -> 0.02454945781 | EW35: =+SUMIFS('R2建設IOデータ'!CB:CB,'R2建設IOデータ'!$A:$A,'R2建設io'!$CE35)/'R2建設IOデータ'!CB$232 -> 0.04169927973 | EX35: =+SUMIFS('R2建設IOデータ'!CC:CC,'R2建設IOデータ'!$A:$A,'R2建設io'!$CE35)/'R2建設IOデータ'!CC$232 -> 0.04862853624 | EY35: =+SUMIFS('R2建設IOデータ'!CD:CD,'R2建設IOデータ'!$A:$A,'R2建設io'!$CE35)/'R2建設IOデータ'!CD$232 -> 0.04334622258
A36: 0 | C36: 59 | D36: 情報通信 | E36: 0 | F36: 0 | G36: 0 | H36: 0 | I36: 0 | J36: 0 | K36: 0 | L36: 0 | M36: 0 | N36: 0 | O36: 0 | P36: 0 | Q36: 0 | R36: 0 | S36: 0 | T36: 0 | U36: 0 | V36: 0 | W36: 0 | X36: 0 | Y36: 0 | Z36: 0 | AA36: 0 | AB36: 0 | AC36: 0 | AD36: 0 | AE36: 0 | AF36: 0 | AG36: 0 | AH36: 0 | AI36: 0 | AJ36: 0 | AK36: 0 | AL36: 0 | AM36: 0 | AN36: 0 | AO36: 0 | AP36: 0 | AQ36: 0 | AR36: 0 | AS36: 0 | AT36: 0 | AU36: 0 | AV36: 0 | AW36: 0 | AX36: 0 | AY36: 0 | AZ36: 0 | BA36: 0 | BB36: 0 | BC36: 0 | BD36: 0 | BE36: 0 | BF36: 0 | BG36: 0 | BH36: 0 | BI36: 0 | BJ36: 0 | BK36: 0 | BL36: 0 | BM36: 0 | BN36: 0 | BO36: 0 | BP36: 0 | BQ36: 0 | BR36: 0 | BS36: 0 | BT36: 0 | BU36: 0 | BV36: 0 | BW36: 0 | CE36: 59 | CF36: 情報通信 | CG36: =+SUMIFS('R2建設IOデータ'!L:L,'R2建設IOデータ'!$A:$A,'R2建設io'!$CE36)/'R2建設IOデータ'!L$232 -> 0.008405722714 | CH36: =+SUMIFS('R2建設IOデータ'!M:M,'R2建設IOデータ'!$A:$A,'R2建設io'!$CE36)/'R2建設IOデータ'!M$232 -> 0.008284042238 | CI36: =+SUMIFS('R2建設IOデータ'!N:N,'R2建設IOデータ'!$A:$A,'R2建設io'!$CE36)/'R2建設IOデータ'!N$232 -> 0.007725318342 | CJ36: =+SUMIFS('R2建設IOデータ'!O:O,'R2建設IOデータ'!$A:$A,'R2建設io'!$CE36)/'R2建設IOデータ'!O$232 -> 0.006874530066 | CK36: =+SUMIFS('R2建設IOデータ'!P:P,'R2建設IOデータ'!$A:$A,'R2建設io'!$CE36)/'R2建設IOデータ'!P$232 -> 0.006639923577 | CL36: =+SUMIFS('R2建設IOデータ'!Q:Q,'R2建設IOデータ'!$A:$A,'R2建設io'!$CE36)/'R2建設IOデータ'!Q$232 -> 0.01754828299 | CM36: =+SUMIFS('R2建設IOデータ'!R:R,'R2建設IOデータ'!$A:$A,'R2建設io'!$CE36)/'R2建設IOデータ'!R$232 -> 0.008929784634 | CN36: =+SUMIFS('R2建設IOデータ'!S:S,'R2建設IOデータ'!$A:$A,'R2建設io'!$CE36)/'R2建設IOデータ'!S$232 -> 0.007948807011 | CO36: =+SUMIFS('R2建設IOデータ'!T:T,'R2建設IOデータ'!$A:$A,'R2建設io'!$CE36)/'R2建設IOデータ'!T$232 -> 0.008111247675 | CP36: =+SUMIFS('R2建設IOデータ'!U:U,'R2建設IOデータ'!$A:$A,'R2建設io'!$CE36)/'R2建設IOデータ'!U$232 -> 0.008012089394 | CQ36: =+SUMIFS('R2建設IOデータ'!V:V,'R2建設IOデータ'!$A:$A,'R2建設io'!$CE36)/'R2建設IOデータ'!V$232 -> 0.01525950639 | CR36: =+SUMIFS('R2建設IOデータ'!W:W,'R2建設IOデータ'!$A:$A,'R2建設io'!$CE36)/'R2建設IOデータ'!W$232 -> 0.0101429468 | CS36: =+SUMIFS('R2建設IOデータ'!X:X,'R2建設IOデータ'!$A:$A,'R2建設io'!$CE36)/'R2建設IOデータ'!X$232 -> 0.007529330554 | CT36: =+SUMIFS('R2建設IOデータ'!Y:Y,'R2建設IOデータ'!$A:$A,'R2建設io'!$CE36)/'R2建設IOデータ'!Y$232 -> 0.01122153889 | CU36: =+SUMIFS('R2建設IOデータ'!Z:Z,'R2建設IOデータ'!$A:$A,'R2建設io'!$CE36)/'R2建設IOデータ'!Z$232 -> 0.01166590367 | CV36: =+SUMIFS('R2建設IOデータ'!AA:AA,'R2建設IOデータ'!$A:$A,'R2建設io'!$CE36)/'R2建設IOデータ'!AA$232 -> 0.008868208614 | CW36: =+SUMIFS('R2建設IOデータ'!AB:AB,'R2建設IOデータ'!$A:$A,'R2建設io'!$CE36)/'R2建設IOデータ'!AB$232 -> 0.01234309908 | CX36: =+SUMIFS('R2建設IOデータ'!AC:AC,'R2建設IOデータ'!$A:$A,'R2建設io'!$CE36)/'R2建設IOデータ'!AC$232 -> 0.01528872491 | CY36: =+SUMIFS('R2建設IOデータ'!AD:AD,'R2建設IOデータ'!$A:$A,'R2建設io'!$CE36)/'R2建設IOデータ'!AD$232 -> 0.0119710163 | CZ36: =+SUMIFS('R2建設IOデータ'!AE:AE,'R2建設IOデータ'!$A:$A,'R2建設io'!$CE36)/'R2建設IOデータ'!AE$232 -> 0.008632204885 | DA36: =+SUMIFS('R2建設IOデータ'!AF:AF,'R2建設IOデータ'!$A:$A,'R2建設io'!$CE36)/'R2建設IOデータ'!AF$232 -> 0.008911812844 | DB36: =+SUMIFS('R2建設IOデータ'!AG:AG,'R2建設IOデータ'!$A:$A,'R2建設io'!$CE36)/'R2建設IOデータ'!AG$232 -> 0.008885667693 | DC36: =+SUMIFS('R2建設IOデータ'!AH:AH,'R2建設IOデータ'!$A:$A,'R2建設io'!$CE36)/'R2建設IOデータ'!AH$232 -> 0.009640182244 | DD36: =+SUMIFS('R2建設IOデータ'!AI:AI,'R2建設IOデータ'!$A:$A,'R2建設io'!$CE36)/'R2建設IOデータ'!AI$232 -> 0.008541728882 | DE36: =+SUMIFS('R2建設IOデータ'!AJ:AJ,'R2建設IOデータ'!$A:$A,'R2建設io'!$CE36)/'R2建設IOデータ'!AJ$232 -> 0.00880654165 | DF36: =+SUMIFS('R2建設IOデータ'!AK:AK,'R2建設IOデータ'!$A:$A,'R2建設io'!$CE36)/'R2建設IOデータ'!AK$232 -> 0.008271178017 | DG36: =+SUMIFS('R2建設IOデータ'!AL:AL,'R2建設IOデータ'!$A:$A,'R2建設io'!$CE36)/'R2建設IOデータ'!AL$232 -> 0.008431339327 | DH36: =+SUMIFS('R2建設IOデータ'!AM:AM,'R2建設IOデータ'!$A:$A,'R2建設io'!$CE36)/'R2建設IOデータ'!AM$232 -> 0.01976433385 | DI36: =+SUMIFS('R2建設IOデータ'!AN:AN,'R2建設IOデータ'!$A:$A,'R2建設io'!$CE36)/'R2建設IOデータ'!AN$232 -> 0.008445137235 | DJ36: =+SUMIFS('R2建設IOデータ'!AO:AO,'R2建設IOデータ'!$A:$A,'R2建設io'!$CE36)/'R2建設IOデータ'!AO$232 -> 0.008553776053 | DK36: =+SUMIFS('R2建設IOデータ'!AP:AP,'R2建設IOデータ'!$A:$A,'R2建設io'!$CE36)/'R2建設IOデータ'!AP$232 -> 0.008094052766 | DL36: =+SUMIFS('R2建設IOデータ'!AQ:AQ,'R2建設IOデータ'!$A:$A,'R2建設io'!$CE36)/'R2建設IOデータ'!AQ$232 -> 0.008622556417 | DM36: =+SUMIFS('R2建設IOデータ'!AR:AR,'R2建設IOデータ'!$A:$A,'R2建設io'!$CE36)/'R2建設IOデータ'!AR$232 -> 0.008656067685 | DN36: =+SUMIFS('R2建設IOデータ'!AS:AS,'R2建設IOデータ'!$A:$A,'R2建設io'!$CE36)/'R2建設IOデータ'!AS$232 -> 0.009174089446 | DO36: =+SUMIFS('R2建設IOデータ'!AT:AT,'R2建設IOデータ'!$A:$A,'R2建設io'!$CE36)/'R2建設IOデータ'!AT$232 -> 0.008698806159 | DP36: =+SUMIFS('R2建設IOデータ'!AU:AU,'R2建設IOデータ'!$A:$A,'R2建設io'!$CE36)/'R2建設IOデータ'!AU$232 -> 0.008159874358 | DQ36: =+SUMIFS('R2建設IOデータ'!AV:AV,'R2建設IOデータ'!$A:$A,'R2建設io'!$CE36)/'R2建設IOデータ'!AV$232 -> 0.007793518537 | DR36: =+SUMIFS('R2建設IOデータ'!AW:AW,'R2建設IOデータ'!$A:$A,'R2建設io'!$CE36)/'R2建設IOデータ'!AW$232 -> 0.01039571584 | DS36: =+SUMIFS('R2建設IOデータ'!AX:AX,'R2建設IOデータ'!$A:$A,'R2建設io'!$CE36)/'R2建設IOデータ'!AX$232 -> 0.007426801687 | DT36: =+SUMIFS('R2建設IOデータ'!AY:AY,'R2建設IOデータ'!$A:$A,'R2建設io'!$CE36)/'R2建設IOデータ'!AY$232 -> 0.004527385159 | DU36: =+SUMIFS('R2建設IOデータ'!AZ:AZ,'R2建設IOデータ'!$A:$A,'R2建設io'!$CE36)/'R2建設IOデータ'!AZ$232 -> 0.001602680848 | DV36: =+SUMIFS('R2建設IOデータ'!BA:BA,'R2建設IOデータ'!$A:$A,'R2建設io'!$CE36)/'R2建設IOデータ'!BA$232 -> 0.006477829846 | DW36: =+SUMIFS('R2建設IOデータ'!BB:BB,'R2建設IOデータ'!$A:$A,'R2建設io'!$CE36)/'R2建設IOデータ'!BB$232 -> 0.006197145903 | DX36: =+SUMIFS('R2建設IOデータ'!BC:BC,'R2建設IOデータ'!$A:$A,'R2建設io'!$CE36)/'R2建設IOデータ'!BC$232 -> 0.006039183486 | DY36: =+SUMIFS('R2建設IOデータ'!BD:BD,'R2建設IOデータ'!$A:$A,'R2建設io'!$CE36)/'R2建設IOデータ'!BD$232 -> 0.006995874228 | DZ36: =+SUMIFS('R2建設IOデータ'!BE:BE,'R2建設IOデータ'!$A:$A,'R2建設io'!$CE36)/'R2建設IOデータ'!BE$232 -> 0.00816888481 | EA36: =+SUMIFS('R2建設IOデータ'!BF:BF,'R2建設IOデータ'!$A:$A,'R2建設io'!$CE36)/'R2建設IOデータ'!BF$232 -> 0.00846253629 | EB36: =+SUMIFS('R2建設IOデータ'!BG:BG,'R2建設IOデータ'!$A:$A,'R2建設io'!$CE36)/'R2建設IOデータ'!BG$232 -> 0.009239420234 | EC36: =+SUMIFS('R2建設IOデータ'!BH:BH,'R2建設IOデータ'!$A:$A,'R2建設io'!$CE36)/'R2建設IOデータ'!BH$232 -> 0.009218607623 | ED36: =+SUMIFS('R2建設IOデータ'!BI:BI,'R2建設IOデータ'!$A:$A,'R2建設io'!$CE36)/'R2建設IOデータ'!BI$232 -> 0.009333762472 | EE36: =+SUMIFS('R2建設IOデータ'!BJ:BJ,'R2建設IOデータ'!$A:$A,'R2建設io'!$CE36)/'R2建設IOデータ'!BJ$232 -> 0.006606494836 | EF36: =+SUMIFS('R2建設IOデータ'!BK:BK,'R2建設IOデータ'!$A:$A,'R2建設io'!$CE36)/'R2建設IOデータ'!BK$232 -> 0.008803311082 | EG36: =+SUMIFS('R2建設IOデータ'!BL:BL,'R2建設IOデータ'!$A:$A,'R2建設io'!$CE36)/'R2建設IOデータ'!BL$232 -> 0.007735129891 | EH36: =+SUMIFS('R2建設IOデータ'!BM:BM,'R2建設IOデータ'!$A:$A,'R2建設io'!$CE36)/'R2建設IOデータ'!BM$232 -> 0.007775624867 | EI36: =+SUMIFS('R2建設IOデータ'!BN:BN,'R2建設IOデータ'!$A:$A,'R2建設io'!$CE36)/'R2建設IOデータ'!BN$232 -> 0.005445058283 | EJ36: =+SUMIFS('R2建設IOデータ'!BO:BO,'R2建設IOデータ'!$A:$A,'R2建設io'!$CE36)/'R2建設IOデータ'!BO$232 -> 0.01144313128 | EK36: =+SUMIFS('R2建設IOデータ'!BP:BP,'R2建設IOデータ'!$A:$A,'R2建設io'!$CE36)/'R2建設IOデータ'!BP$232 -> 0.007028365704 | EL36: =+SUMIFS('R2建設IOデータ'!BQ:BQ,'R2建設IOデータ'!$A:$A,'R2建設io'!$CE36)/'R2建設IOデータ'!BQ$232 -> 0.009083006678 | EM36: =+SUMIFS('R2建設IOデータ'!BR:BR,'R2建設IOデータ'!$A:$A,'R2建設io'!$CE36)/'R2建設IOデータ'!BR$232 -> 0.008023396163 | EN36: =+SUMIFS('R2建設IOデータ'!BS:BS,'R2建設IOデータ'!$A:$A,'R2建設io'!$CE36)/'R2建設IOデータ'!BS$232 -> 0.008881327779 | EO36: =+SUMIFS('R2建設IOデータ'!BT:BT,'R2建設IOデータ'!$A:$A,'R2建設io'!$CE36)/'R2建設IOデータ'!BT$232 -> 0.004718399582 | EP36: =+SUMIFS('R2建設IOデータ'!BU:BU,'R2建設IOデータ'!$A:$A,'R2建設io'!$CE36)/'R2建設IOデータ'!BU$232 -> 0.01464375577 | EQ36: =+SUMIFS('R2建設IOデータ'!BV:BV,'R2建設IOデータ'!$A:$A,'R2建設io'!$CE36)/'R2建設IOデータ'!BV$232 -> 0.01241444069 | ER36: =+SUMIFS('R2建設IOデータ'!BW:BW,'R2建設IOデータ'!$A:$A,'R2建設io'!$CE36)/'R2建設IOデータ'!BW$232 -> 0.001926354618 | ES36: =+SUMIFS('R2建設IOデータ'!BX:BX,'R2建設IOデータ'!$A:$A,'R2建設io'!$CE36)/'R2建設IOデータ'!BX$232 -> 0.009202317766 | ET36: =+SUMIFS('R2建設IOデータ'!BY:BY,'R2建設IOデータ'!$A:$A,'R2建設io'!$CE36)/'R2建設IOデータ'!BY$232 -> 0.007888586025 | EU36: =+SUMIFS('R2建設IOデータ'!BZ:BZ,'R2建設IOデータ'!$A:$A,'R2建設io'!$CE36)/'R2建設IOデータ'!BZ$232 -> 0.008295770775 | EV36: =+SUMIFS('R2建設IOデータ'!CA:CA,'R2建設IOデータ'!$A:$A,'R2建設io'!$CE36)/'R2建設IOデータ'!CA$232 -> 0.01076229048 | EW36: =+SUMIFS('R2建設IOデータ'!CB:CB,'R2建設IOデータ'!$A:$A,'R2建設io'!$CE36)/'R2建設IOデータ'!CB$232 -> 0.00966170948 | EX36: =+SUMIFS('R2建設IOデータ'!CC:CC,'R2建設IOデータ'!$A:$A,'R2建設io'!$CE36)/'R2建設IOデータ'!CC$232 -> 0.008131790285 | EY36: =+SUMIFS('R2建設IOデータ'!CD:CD,'R2建設IOデータ'!$A:$A,'R2建設io'!$CE36)/'R2建設IOデータ'!CD$232 -> 0.01035875016
A37: 0 | C37: 61 | D37: 公務 | E37: 0 | F37: 0 | G37: 0 | H37: 0 | I37: 0 | J37: 0 | K37: 0 | L37: 0 | M37: 0 | N37: 0 | O37: 0 | P37: 0 | Q37: 0 | R37: 0 | S37: 0 | T37: 0 | U37: 0 | V37: 0 | W37: 0 | X37: 0 | Y37: 0 | Z37: 0 | AA37: 0 | AB37: 0 | AC37: 0 | AD37: 0 | AE37: 0 | AF37: 0 | AG37: 0 | AH37: 0 | AI37: 0 | AJ37: 0 | AK37: 0 | AL37: 0 | AM37: 0 | AN37: 0 | AO37: 0 | AP37: 0 | AQ37: 0 | AR37: 0 | AS37: 0 | AT37: 0 | AU37: 0 | AV37: 0 | AW37: 0 | AX37: 0 | AY37: 0 | AZ37: 0 | BA37: 0 | BB37: 0 | BC37: 0 | BD37: 0 | BE37: 0 | BF37: 0 | BG37: 0 | BH37: 0 | BI37: 0 | BJ37: 0 | BK37: 0 | BL37: 0 | BM37: 0 | BN37: 0 | BO37: 0 | BP37: 0 | BQ37: 0 | BR37: 0 | BS37: 0 | BT37: 0 | BU37: 0 | BV37: 0 | BW37: 0 | CE37: 61 | CF37: 公務 | CG37: =+SUMIFS('R2建設IOデータ'!L:L,'R2建設IOデータ'!$A:$A,'R2建設io'!$CE37)/'R2建設IOデータ'!L$232 -> 0 | CH37: =+SUMIFS('R2建設IOデータ'!M:M,'R2建設IOデータ'!$A:$A,'R2建設io'!$CE37)/'R2建設IOデータ'!M$232 -> 0 | CI37: =+SUMIFS('R2建設IOデータ'!N:N,'R2建設IOデータ'!$A:$A,'R2建設io'!$CE37)/'R2建設IOデータ'!N$232 -> 0 | CJ37: =+SUMIFS('R2建設IOデータ'!O:O,'R2建設IOデータ'!$A:$A,'R2建設io'!$CE37)/'R2建設IOデータ'!O$232 -> 0 | CK37: =+SUMIFS('R2建設IOデータ'!P:P,'R2建設IOデータ'!$A:$A,'R2建設io'!$CE37)/'R2建設IOデータ'!P$232 -> 0 | CL37: =+SUMIFS('R2建設IOデータ'!Q:Q,'R2建設IOデータ'!$A:$A,'R2建設io'!$CE37)/'R2建設IOデータ'!Q$232 -> 0 | CM37: =+SUMIFS('R2建設IOデータ'!R:R,'R2建設IOデータ'!$A:$A,'R2建設io'!$CE37)/'R2建設IOデータ'!R$232 -> 0 | CN37: =+SUMIFS('R2建設IOデータ'!S:S,'R2建設IOデータ'!$A:$A,'R2建設io'!$CE37)/'R2建設IOデータ'!S$232 -> 0 | CO37: =+SUMIFS('R2建設IOデータ'!T:T,'R2建設IOデータ'!$A:$A,'R2建設io'!$CE37)/'R2建設IOデータ'!T$232 -> 0 | CP37: =+SUMIFS('R2建設IOデータ'!U:U,'R2建設IOデータ'!$A:$A,'R2建設io'!$CE37)/'R2建設IOデータ'!U$232 -> 0 | CQ37: =+SUMIFS('R2建設IOデータ'!V:V,'R2建設IOデータ'!$A:$A,'R2建設io'!$CE37)/'R2建設IOデータ'!V$232 -> 0 | CR37: =+SUMIFS('R2建設IOデータ'!W:W,'R2建設IOデータ'!$A:$A,'R2建設io'!$CE37)/'R2建設IOデータ'!W$232 -> 0 | CS37: =+SUMIFS('R2建設IOデータ'!X:X,'R2建設IOデータ'!$A:$A,'R2建設io'!$CE37)/'R2建設IOデータ'!X$232 -> 0 | CT37: =+SUMIFS('R2建設IOデータ'!Y:Y,'R2建設IOデータ'!$A:$A,'R2建設io'!$CE37)/'R2建設IOデータ'!Y$232 -> 0 | CU37: =+SUMIFS('R2建設IOデータ'!Z:Z,'R2建設IOデータ'!$A:$A,'R2建設io'!$CE37)/'R2建設IOデータ'!Z$232 -> 0 | CV37: =+SUMIFS('R2建設IOデータ'!AA:AA,'R2建設IOデータ'!$A:$A,'R2建設io'!$CE37)/'R2建設IOデータ'!AA$232 -> 0 | CW37: =+SUMIFS('R2建設IOデータ'!AB:AB,'R2建設IOデータ'!$A:$A,'R2建設io'!$CE37)/'R2建設IOデータ'!AB$232 -> 0 | CX37: =+SUMIFS('R2建設IOデータ'!AC:AC,'R2建設IOデータ'!$A:$A,'R2建設io'!$CE37)/'R2建設IOデータ'!AC$232 -> 0 | CY37: =+SUMIFS('R2建設IOデータ'!AD:AD,'R2建設IOデータ'!$A:$A,'R2建設io'!$CE37)/'R2建設IOデータ'!AD$232 -> 0 | CZ37: =+SUMIFS('R2建設IOデータ'!AE:AE,'R2建設IOデータ'!$A:$A,'R2建設io'!$CE37)/'R2建設IOデータ'!AE$232 -> 0 | DA37: =+SUMIFS('R2建設IOデータ'!AF:AF,'R2建設IOデータ'!$A:$A,'R2建設io'!$CE37)/'R2建設IOデータ'!AF$232 -> 0 | DB37: =+SUMIFS('R2建設IOデータ'!AG:AG,'R2建設IOデータ'!$A:$A,'R2建設io'!$CE37)/'R2建設IOデータ'!AG$232 -> 0 | DC37: =+SUMIFS('R2建設IOデータ'!AH:AH,'R2建設IOデータ'!$A:$A,'R2建設io'!$CE37)/'R2建設IOデータ'!AH$232 -> 0 | DD37: =+SUMIFS('R2建設IOデータ'!AI:AI,'R2建設IOデータ'!$A:$A,'R2建設io'!$CE37)/'R2建設IOデータ'!AI$232 -> 0 | DE37: =+SUMIFS('R2建設IOデータ'!AJ:AJ,'R2建設IOデータ'!$A:$A,'R2建設io'!$CE37)/'R2建設IOデータ'!AJ$232 -> 0 | DF37: =+SUMIFS('R2建設IOデータ'!AK:AK,'R2建設IOデータ'!$A:$A,'R2建設io'!$CE37)/'R2建設IOデータ'!AK$232 -> 0 | DG37: =+SUMIFS('R2建設IOデータ'!AL:AL,'R2建設IOデータ'!$A:$A,'R2建設io'!$CE37)/'R2建設IOデータ'!AL$232 -> 0 | DH37: =+SUMIFS('R2建設IOデータ'!AM:AM,'R2建設IOデータ'!$A:$A,'R2建設io'!$CE37)/'R2建設IOデータ'!AM$232 -> 0 | DI37: =+SUMIFS('R2建設IOデータ'!AN:AN,'R2建設IOデータ'!$A:$A,'R2建設io'!$CE37)/'R2建設IOデータ'!AN$232 -> 0 | DJ37: =+SUMIFS('R2建設IOデータ'!AO:AO,'R2建設IOデータ'!$A:$A,'R2建設io'!$CE37)/'R2建設IOデータ'!AO$232 -> 0 | DK37: =+SUMIFS('R2建設IOデータ'!AP:AP,'R2建設IOデータ'!$A:$A,'R2建設io'!$CE37)/'R2建設IOデータ'!AP$232 -> 0 | DL37: =+SUMIFS('R2建設IOデータ'!AQ:AQ,'R2建設IOデータ'!$A:$A,'R2建設io'!$CE37)/'R2建設IOデータ'!AQ$232 -> 0 | DM37: =+SUMIFS('R2建設IOデータ'!AR:AR,'R2建設IOデータ'!$A:$A,'R2建設io'!$CE37)/'R2建設IOデータ'!AR$232 -> 0 | DN37: =+SUMIFS('R2建設IOデータ'!AS:AS,'R2建設IOデータ'!$A:$A,'R2建設io'!$CE37)/'R2建設IOデータ'!AS$232 -> 0 | DO37: =+SUMIFS('R2建設IOデータ'!AT:AT,'R2建設IOデータ'!$A:$A,'R2建設io'!$CE37)/'R2建設IOデータ'!AT$232 -> 0 | DP37: =+SUMIFS('R2建設IOデータ'!AU:AU,'R2建設IOデータ'!$A:$A,'R2建設io'!$CE37)/'R2建設IOデータ'!AU$232 -> 0 | DQ37: =+SUMIFS('R2建設IOデータ'!AV:AV,'R2建設IOデータ'!$A:$A,'R2建設io'!$CE37)/'R2建設IOデータ'!AV$232 -> 0 | DR37: =+SUMIFS('R2建設IOデータ'!AW:AW,'R2建設IOデータ'!$A:$A,'R2建設io'!$CE37)/'R2建設IOデータ'!AW$232 -> 0 | DS37: =+SUMIFS('R2建設IOデータ'!AX:AX,'R2建設IOデータ'!$A:$A,'R2建設io'!$CE37)/'R2建設IOデータ'!AX$232 -> 0 | DT37: =+SUMIFS('R2建設IOデータ'!AY:AY,'R2建設IOデータ'!$A:$A,'R2建設io'!$CE37)/'R2建設IOデータ'!AY$232 -> 0 | DU37: =+SUMIFS('R2建設IOデータ'!AZ:AZ,'R2建設IOデータ'!$A:$A,'R2建設io'!$CE37)/'R2建設IOデータ'!AZ$232 -> 0 | DV37: =+SUMIFS('R2建設IOデータ'!BA:BA,'R2建設IOデータ'!$A:$A,'R2建設io'!$CE37)/'R2建設IOデータ'!BA$232 -> 0 | DW37: =+SUMIFS('R2建設IOデータ'!BB:BB,'R2建設IOデータ'!$A:$A,'R2建設io'!$CE37)/'R2建設IOデータ'!BB$232 -> 0 | DX37: =+SUMIFS('R2建設IOデータ'!BC:BC,'R2建設IOデータ'!$A:$A,'R2建設io'!$CE37)/'R2建設IOデータ'!BC$232 -> 0 | DY37: =+SUMIFS('R2建設IOデータ'!BD:BD,'R2建設IOデータ'!$A:$A,'R2建設io'!$CE37)/'R2建設IOデータ'!BD$232 -> 0 | DZ37: =+SUMIFS('R2建設IOデータ'!BE:BE,'R2建設IOデータ'!$A:$A,'R2建設io'!$CE37)/'R2建設IOデータ'!BE$232 -> 0 | EA37: =+SUMIFS('R2建設IOデータ'!BF:BF,'R2建設IOデータ'!$A:$A,'R2建設io'!$CE37)/'R2建設IOデータ'!BF$232 -> 0 | EB37: =+SUMIFS('R2建設IOデータ'!BG:BG,'R2建設IOデータ'!$A:$A,'R2建設io'!$CE37)/'R2建設IOデータ'!BG$232 -> 0 | EC37: =+SUMIFS('R2建設IOデータ'!BH:BH,'R2建設IOデータ'!$A:$A,'R2建設io'!$CE37)/'R2建設IOデータ'!BH$232 -> 0 | ED37: =+SUMIFS('R2建設IOデータ'!BI:BI,'R2建設IOデータ'!$A:$A,'R2建設io'!$CE37)/'R2建設IOデータ'!BI$232 -> 0 | EE37: =+SUMIFS('R2建設IOデータ'!BJ:BJ,'R2建設IOデータ'!$A:$A,'R2建設io'!$CE37)/'R2建設IOデータ'!BJ$232 -> 0 | EF37: =+SUMIFS('R2建設IOデータ'!BK:BK,'R2建設IOデータ'!$A:$A,'R2建設io'!$CE37)/'R2建設IOデータ'!BK$232 -> 0 | EG37: =+SUMIFS('R2建設IOデータ'!BL:BL,'R2建設IOデータ'!$A:$A,'R2建設io'!$CE37)/'R2建設IOデータ'!BL$232 -> 0 | EH37: =+SUMIFS('R2建設IOデータ'!BM:BM,'R2建設IOデータ'!$A:$A,'R2建設io'!$CE37)/'R2建設IOデータ'!BM$232 -> 0 | EI37: =+SUMIFS('R2建設IOデータ'!BN:BN,'R2建設IOデータ'!$A:$A,'R2建設io'!$CE37)/'R2建設IOデータ'!BN$232 -> 0 | EJ37: =+SUMIFS('R2建設IOデータ'!BO:BO,'R2建設IOデータ'!$A:$A,'R2建設io'!$CE37)/'R2建設IOデータ'!BO$232 -> 0 | EK37: =+SUMIFS('R2建設IOデータ'!BP:BP,'R2建設IOデータ'!$A:$A,'R2建設io'!$CE37)/'R2建設IOデータ'!BP$232 -> 0 | EL37: =+SUMIFS('R2建設IOデータ'!BQ:BQ,'R2建設IOデータ'!$A:$A,'R2建設io'!$CE37)/'R2建設IOデータ'!BQ$232 -> 0 | EM37: =+SUMIFS('R2建設IOデータ'!BR:BR,'R2建設IOデータ'!$A:$A,'R2建設io'!$CE37)/'R2建設IOデータ'!BR$232 -> 0 | EN37: =+SUMIFS('R2建設IOデータ'!BS:BS,'R2建設IOデータ'!$A:$A,'R2建設io'!$CE37)/'R2建設IOデータ'!BS$232 -> 0 | EO37: =+SUMIFS('R2建設IOデータ'!BT:BT,'R2建設IOデータ'!$A:$A,'R2建設io'!$CE37)/'R2建設IOデータ'!BT$232 -> 0 | EP37: =+SUMIFS('R2建設IOデータ'!BU:BU,'R2建設IOデータ'!$A:$A,'R2建設io'!$CE37)/'R2建設IOデータ'!BU$232 -> 0 | EQ37: =+SUMIFS('R2建設IOデータ'!BV:BV,'R2建設IOデータ'!$A:$A,'R2建設io'!$CE37)/'R2建設IOデータ'!BV$232 -> 0 | ER37: =+SUMIFS('R2建設IOデータ'!BW:BW,'R2建設IOデータ'!$A:$A,'R2建設io'!$CE37)/'R2建設IOデータ'!BW$232 -> 0 | ES37: =+SUMIFS('R2建設IOデータ'!BX:BX,'R2建設IOデータ'!$A:$A,'R2建設io'!$CE37)/'R2建設IOデータ'!BX$232 -> 0 | ET37: =+SUMIFS('R2建設IOデータ'!BY:BY,'R2建設IOデータ'!$A:$A,'R2建設io'!$CE37)/'R2建設IOデータ'!BY$232 -> 0 | EU37: =+SUMIFS('R2建設IOデータ'!BZ:BZ,'R2建設IOデータ'!$A:$A,'R2建設io'!$CE37)/'R2建設IOデータ'!BZ$232 -> 0 | EV37: =+SUMIFS('R2建設IOデータ'!CA:CA,'R2建設IOデータ'!$A:$A,'R2建設io'!$CE37)/'R2建設IOデータ'!CA$232 -> 0 | EW37: =+SUMIFS('R2建設IOデータ'!CB:CB,'R2建設IOデータ'!$A:$A,'R2建設io'!$CE37)/'R2建設IOデータ'!CB$232 -> 0 | EX37: =+SUMIFS('R2建設IOデータ'!CC:CC,'R2建設IOデータ'!$A:$A,'R2建設io'!$CE37)/'R2建設IOデータ'!CC$232 -> 0 | EY37: =+SUMIFS('R2建設IOデータ'!CD:CD,'R2建設IOデータ'!$A:$A,'R2建設io'!$CE37)/'R2建設IOデータ'!CD$232 -> 0
